Workbook

Sheet 1
E2: مشاغل | G2: شرکت ها | I2: ارزش افزوده قبل 1403 | K2: حقوق | M2: دفترچه ضرایب | O2: سامانه مودیان-ارزش افزوده
D4: منبع را مشخص کنید : | F4: =E170 -> مشاغل | I4: =O170 -> تکمیل اتوماتیک با وارد کردن کد رهگیری اظهارنامه : | L4: 3247124679 | O4: ورژن 22 | S4: ماده 169 و سامانه مودیان
E6: خلاصه وضعیت پرونده | S6: راهنمای پایین همین صفحه را حتما مطالعه کنید
E7: سال عملکرد | I7: =G184 -> یاسر ناظمی | M7: منبع مالیاتی | O7: نوع شخصیت | S7: برگشت هزینه
E9: 1403 | I9: =I184 -> 16218196470001 | M9: =E170 -> مشاغل | O9: =I170 -> حقیقی | S9: صورت سود و زیان
E11: عنوان شغلی : | G11: دندانپزشکی | M11: موبایل : | O11: =J184 -> 9127212385 | S11: کاربرگ جرائم
E13: =F221 -> نوع پرونده : | G13: =IF(C170=1,'2'!AS164,G221) -> انفرادی | I13: گردش حساب بانکی : | K13: 0 | M13: دفاتر روزنامه و کل : | O13: =D209 -> غیر مشمول | S13: توضیحات حسابرسی
E15: =IF('2'!AR164=2,"تعداد اعضا :",D221) -> تعداد اعضا : | G15: =IF('2'!AR164=2,"",IF(C170=1,'2'!AY162,"")) ->  | I15: گردش Pos : | K15: 0 | M15: ترازنامه و سود و زیان : | O15: =D210 -> ارائه | S15: کاربرگ نهایی
E17: وضعیت تسلیم اظهارنامه : | G17: =IF('10'!BR465=1,'10'!BS463,'10'!BS464) -> ارائه | I17: فروش سیستم استخراج : | K17: 0 | M17: جریمه رد دفاتر : | O17: =IF(E194=2,F194,F195) -> خیر | S17: حد مجاز
E19: نوع اظهارنامه : | G19: =IF(C211=2,G17,'10'!BO470) -> عادی | I19: خرید سیستم استخراج : | K19: 0 | M19: سود ابرازی سال قبل : | O19: 0 | S19: بخشودگی جرائم
E21: شماره اظهارنامه : | G21: =G189 -> 3247124679 | I21: فروش -سامانه مودیان: | K21: 0 | M21: =M170 -> نرخ تخفیف ماده 131 : | O21: 0 | S21: تقسیط و بخشودگی
E23: تاریخ اظهارنامه : | G23: =I189 -> 1402/02/29 | I23: خرید -سامانه مودیان: | K23: 0 | M23: نحوه رسیدگی : | O23: ='2'!$AS$155 -> فروش برآوردی | S23: استرداد
E25: فروش ابرازی : | G25: =IF(G163="",0,G163) -> 0 | I25: فروش - پولشویی : | K25: 0 | M25: نوع حسابرسی : | O25: ='10'!BQ470 -> اداری (پشت میزی) | S25: رسیدگی مستغلات
E27: خرید ابرازی : | G27: 0 | I27: فروش - صادرات : | K27: 0 | M27: =K170 -> گروه : | O27: =H217 -> سوم | S27: تشخیص حقوق
E29: سود ابرازی : | G29: =IFERROR(M189,0) -> 0 | I29: قرارداد پیمانکاری : | K29: 0 | M29: کارت بازرگانی : | O29: ='2'!V48 -> ندارد | S29: قطعی حقوق ( سرقفلی ، ...)
E31: معافیت ابرازی : | G31: =IF(O189="",0,O189) -> 0 | I31: فروش - سایر منابع : | K31: 0 | M31: عضویت در سامانه مودیان : | O31: =K252 -> ندارد | S31: دعوتنامه اسناد و مدارک
E33: کد پستی و آدرس : | G33: =K181 -> 5618694316 | H33: =L184 -> مرکزی شهرک آیت الله کاشانی کوچه ((احد اصولی)) کوچه شهیدنجف کوشش پلاک 0 طبقه همکف | S33: صورت جلسه
E35: تعدیلات ( اظهارنامه ابرازی مودی )
E36: تعدیلات سنواتی | F36: سود درآمدهایی مشمول مالیات مقطوع | I36: درآمد(هزینه)های معاف،نرخ صفر ، پزشکی،ماده 81، ماده 137 و … | K36: کمک های پرداختی (ماده 172) ، خسارت ( ماده 165)، ... | M36: استهلاک زیان انباشته | N36: مجموع تعدیلات | S36: برای خروج از حالت تمام صفحه دکمه Esc ( بالای صفحه کلید) فشار دهید
E37: 0 | F37: 0 | I37: 0 | K37: 0 | M37: 0 | N37: =M37+K37+I37+F37+E37 -> 0
E39: مودیان اصلی | G39: تغییرات سرمایه | J39: تغییرات دارایی ها | N39: سابقه مالیاتی
G40: افزایش سرمایه : | I40: 0 | J40: تجدید ارزیابی دارایی ها : | M40: 0 | N40: 0 | S40: برای مشاهده بهتر حالت تمام صفحه فعال شود
E41: =I7 -> یاسر ناظمی | G41: کاهش سرمایه : | I41: 0 | J41: خرید دارایی اولیه : | M41: 0 | N41: 0
J42: فروش دارایی ها : | M42: 0 | N42: 0
E44: ماده 169 ( صورت معاملات ) | N44: =F215 -> ( غیر مشمول ) | S44: جهت ورود خودکار
E45: دوره | G45: وضعیت ارائه | I45: تاریخ ارائه | J45: فروش | L45: خرید | N45: مجموع | S45: لیست مشاغل
D46: 1 | E46: 1 | G46: =$G$174 ->  | I46: 1403/01/19 | J46: 2057908735 | L46: 1570510912 | N46: =IF(C215=2,"",IF(E174<3,SUM(J46:L46),0)) ->  | S46: لیست شرکت ها
D47: 2 | E47: 2 | G47: =$G$175 ->  | I47: - | J47: 0 | L47: 0 | N47: =IF(E175<3,SUM(J47:L47),0) -> 0
D48: 3 | E48: 3 | G48: =$G$176 ->  | I48: - | J48: 0 | L48: 0 | N48: =IF(E176<3,SUM(J48:L48),0) -> 0
D49: 4 | E49: 4 | G49: =$G$177 ->  | I49: - | J49: 0 | L49: 0 | N49: =IF(E177<3,SUM(J49:L49),0) -> 0
E50: مجموع معاملات ارسالی | J50: =IF('1'!$C$215=1,SUM(J46:K49),0) -> 0 | L50: =IF('1'!$C$215=1,SUM(L46:M49),0) -> 0 | N50: =SUM(O46:O49) -> 0
E51: مجموع معاملات ارسالی ( قابل قبول) : | J51: =SUMIF(G46:G49,G171,J46:J49) -> 2057908735 | L51: =SUMIF(G46:G49,G171,L46:L49) -> 1570510912 | N51: =SUM(J51:L51) -> 3628419647
E53: اظهارنامه ارزش افزوده | N53: ='11'!D120 -> (غیرمشمول)
E54: نوع اظهارنامه : | F54: ='11'!F8 -> عمومی ( سایر کالا و خدمات ) | L54: ضریب : | N54: ='11'!J8 -> 10
E55: دوره | F55: وضعیت ارائه | I55: تاریخ ارائه | J55: فروش | L55: خرید | N55: شماره اظهارنامه
E56: 1 | G56: =K196 -> در موعد مقرر | I56: 1402/04/13 | J56: 2004325940 | L56: 0 | N56: 1409040939
E57: 2 | G57: =K197 -> در موعد مقرر | I57: 0 | J57: 0 | L57: 0 | N57: -
E58: 3 | G58: =K198 -> در موعد مقرر | I58: 0 | J58: 0 | L58: 0 | N58: -
E59: 4 | G59: =K199 -> در موعد مقرر | I59: 0 | J59: 0 | L59: 0 | N59: -
E60: مجموع : | J60: =IF($C$216=1,SUM(J56:K59),0) -> 0 | L60: =IF($C$216=1,SUM(L56:M59),0) -> 0
E62: اداره کل امور مالیاتی | I62: واحد مالیاتی | M62: اداره امور مالیاتی
E63: =ez!L16 -> اردبيل | I63: =H184 -> 610400 | M63: شهرستان گرمی
E65: حسابرس : | F65: یاسر ناظمی | I65: مسئول حسابرسی : | J65: علی بخشی | M65: تایید کننده نهایی : | O65: حسن حامدی
E66: سمت : | F66: حسابرس | I66: =E66 -> سمت : | J66: رئیس گروه حسابرسی | M66: =E66 -> سمت : | O66: رئیس امور مالیاتی
D67: Designed By Yaser Nazemi Ardabil Provience Germi City Tax Affairs Department - All rights reserved
C70: فقط موارد آبی رنگ تکمیل شود _ مکرو را حتما فعال کنید. موقع باز کردن فایل برای اولین بار دو بار نوار زرد رنگ میاد هر دو بار روی گزینه enable editing داخل کادر کلیک کنید
E72: یاسر ناظمی | G72: 09127212385 | I72: تهیه شده در اداره کل امور مالیاتی استان اردبیل | O72: Yaser Nazemi Ardabil Provience
C76: لیست کاربرگ ها (جهت ورود روی متن آبی رنگ کلیک کنید)
E78: 1 | G78: خلاصه وضعیت پرونده | I78: 11 | K78: ارزش افزوده | M78: int | O78: دفترچه ضرایب ( intacode )
E79: 2 | G79: مشاغل | I79: 12 | K79: ارزش افزوده به تفکیک دوره | M79: A | O79: اسناد و مدارک
E80: 3 | G80: شرکت ها | I80: 13 | K80: اعتبار | M80: S | O80: صورتمجلس
E81: 4 | G81: برگشت هزینه | I81: 14 | K81: آلایندگی | M81: LM (جهت ورود خودکار) | O81: لیست مشاغل
E82: 5 | G82: صورت سود و زیان | I82: 15 | K82: رسیدگی حقوق | M82: Ls (جهت ورود خودکار) | O82: لیست شرکت ها
E83: 6 | G83: ماده 169 و سامانه مودیان | I83: 16 | K83: تشخیص حقوق | M83: B | O83: بخشودگی جرائم
E84: 7 | G84: کتمان مشاغل | I84: 17 | K84: قطعی حقوق ( سرقفلی ، ...) | M84: T | O84: تقسیط و بخشودگی
E85: 8 | G85: کاربرگ جرائم | I85: 18 | K85: تنظیمات دفترچه مستغلات | M85: H | O85: حد مجاز
E86: 9 | G86: توضیحات حسابرسی | I86: 19 | K86: رسیدگی مستغلات | M86: r | O86: استرداد
E87: 10 | G87: کاربرگ نهایی | I87: 20 | K87: برگ تشخیص دستی مستغلات | M87: تهیه شده در اداره کل مالیاتی استان اردبیل
E88: در صورتی ضعیف بودن سیستم کامپیوتریتان شیت های که نیاز ندارین را حذف کنید
D89: تنظیمات ورود خودکار
D91: لیست را از سامانه کد اقتصادی دانلود کنید و در شیت مربوطه طبق راهنما وارد کنید با کد رئیس گروه معمولا کل استان میاره جهت ورود روی لینک روبرو کلیک کنید | O91: لیست مشاغل
O93: لیست شرکت ها
C95: راهنمای استفاده
C96: مکرو را فعال کنید موقع باز کردن فایل برای اولین بار دو بار نوار زرد رنگ میاد گزینه enable editing داخل کادر را انتخاب کنید
C97: فقط موارد آبی رنگ پر شود بقیه موارد اتوماتیک تکمیل می شود برخی ها موارد آبی رنگ هم اتوماتیک محاسبه می شود که در صورت مغایرت تغییر دهید
C98: با پر کردن اطلاعات در صفحه اصلی ( همین صفحه ) بقیه صفحات به صورت خودکار پر می شود
C99: برای باز کردن قفل و انجام تغییرات دلخواه در فرمول ها از تب Review گزینه unprotect sheet را انتخاب نمایید
C100: همه صفحات به جز همین صفحه بدون قفل بوده و برای باز کردن طبق مورد بالا عمل کنید
C101: برای کارکرد بهتر از آفیس 2019 و به بعد استفاده کنید
C102: به دلیل محاسبات اتوماتیک و تاثیر بر سایر کاربرگ ها خلاصه وضعیت پرونده ( همین صفحه ) به دقت پر شود
C103: در کاربرگ جرائم و سود و زیان دقت شود حتما گزینه شخص حقیقی یا حقوقی مشخص شود
C104: برای خروج از حالت تمام صفحه دکمه Esc ( بالای صفحه کلید) فشار دهید
C105: برای رفع مشکل بزرگی فونت B TITR نصب شود از فناوری می تونین راهنمایی بگیرین
C106: در صورت کندی سیستم کامپیوتری شیت های که نیاز ندارین حذف کنید برای چاپ و پرینت دکمه ترکیبی Ctrl + P را فشار دهید
C107: در انتخاب سال عملکرد به دلیل تاثیر بر محاسبات دقت شود
C108: برای دریافت فیلم آموزشی در تلگرام متن روبرو را سرچ کنید >>> تست مالیاتی سامانه مودیان
C109: یک کپی از فایل اصلی داشته باشید
C110: تنظیمات پیشرفته کد برای ورود اتوماتیک اطلاعات (برای سال 1402 تکمیل می باشد)
C111: برای مشاهده کد هر یک از آیتم ها روی حقیقی و یا حقوقی هر کدام مغایرت داشت کلیک نمایید یادداشت کرده و تغییر دهید - برای 1402 تکمیل می باشد
G112: نام | I112: پرونده TIN کد اقتصادی | K112: حوزه | M112: موبایل | O112: نام شغل
E113: حقیقی | G113: 10 | I113: 11 | K113: 3 | M113: 17 | O113: 14
E114: حقوقی | G114: 2 | I114: 1 | K114: 13 | M114: 17 | O114: 0
G115: کد پستی | I115: آدرس | K115: شماره اظهارنامه | M115: تاریخ اظهارنامه
E116: حقیقی | G116: 15 | I116: 16 | K116: 1 | M116: 5
E117: حقوقی | G117: 0 | I117: 0 | K117: 4 | M117: 5
G118: فروش گروه اول | I118: فروش گروه دوم و سوم | K118: درآمد خدمات دوم و سوم | M118: سود/زيان ويژه | O118: معافیت
E119: حقیقی | G119: 18 | I119: 19 | K119: 20 | M119: 21 | O119: 23
E120: حقوقی | G120: 28 | I120: - | K120: 29 | M120: 17 | O120: 22
C122: تنظیمات نرخ های ارزش افزوده
C124: ردیف | E124: عنوان | G124: 1400 | I124: 1401 | K124: 1402 | M124: 1403 | O124: 1404
C125: 1 | E125: عمومی ( سایر کالا و خدمات ) | G125: 9 | I125: 9 | K125: 9 | M125: 10 | O125: =M125 -> 10
C126: 2 | E126: سیگار و توتون پیپ و تنباکوی داخلی | G126: 25 | I126: 25 | K126: 25 | M126: 35 | O126: =M126 -> 35
C127: 3 | E127: سیگار و توتون پیپ و تنباکوی داخلی با نشان بین المللی | G127: 40 | I127: 40 | K127: 40 | M127: 50 | O127: 50
C128: 4 | E128: سیگار و توتون پیپ و تنباکوی وارداتی | G128: 65 | I128: 65 | K128: 65 | M128: 75 | O128: 75
C129: 5 | E129: توتون خام وارداتی | G129: 10 | I129: 10 | K129: 10 | M129: 10 | O129: 10
C130: 6 | E130: توتون فراوری شده وارداتی | G130: 35 | I130: 35 | K130: 35 | M130: 35 | O130: 35
C131: 7 | E131: قند و شکر و ... | G131: 1 | I131: 1 | K131: 1 | M131: 10 | O131: 10
C132: 8 | E132: معاف | G132: 0 | I132: 0 | K132: 0 | M132: 0 | O132: 0
C133: 9 | E133: نوشابه گازدار | G133: 16 | I133: 16 | K133: 16 | M133: 16 | O133: 16
C134: 10 | E134: طلا و جواهر | G134: 9 | I134: 9 | K134: 9 | M134: 9 | O134: 10
C135: 11 | E135: - | G135: 0 | I135: 0 | K135: 0 | M135: 0 | O135: 0
C137: 12 | E137: =E125 -> عمومی ( سایر کالا و خدمات ) | G137: =G125 -> 9 | I137: =I125 -> 9 | K137: =K125 -> 9 | M137: =M125 -> 10 | O137: =O125 -> 10
C138: 1 | E138: =LOOKUP(C138,C125:C137,E125:E137) -> عمومی ( سایر کالا و خدمات ) | G138: =LOOKUP($C$138,$C$125:$C$137,G125:G137) -> 9 | I138: =LOOKUP($C$138,$C$125:$C$137,I125:I137) -> 9 | K138: 9 | M138: 10 | O138: 10
C139: =E9 -> 1403 | E139: =LOOKUP(C139,G124:P124,G138:P138) -> 10
G141: حداقل جریمه بند الف ماده 36 : | K141: 10000000
G142: حداقل جریمه بند الف ماده 36 : | K142: 2
G143: حداقل جریمه بند ب ماده 36 : | K143: 2
G144: حداقل جریمه بند ج ماده 36 : | K144: 2
C146: تنظیمات معافیت های سالانه مشاغل
E148: معافیت ماده 101 : | I148: 1402 | K148: 475000000 | M148: عدم عضویت در سامانه مودیان | O148: عضویت در سامانه مودیان
I149: 1403 | K149: =IF(G252=1,O149,M149) -> 1000000000 | M149: 1000000000 | O149: 1440000000
I150: 1404 | K150: =IF(G253=1,O150,M150) -> 2000000000 | M150: 2000000000 | O150: 2000000000
I151: 1405 | K151: 0
I152: 1406 | K152: 0
I153: 1407 | K153: 0
I154: 1408 | K154: 0
C156: سایر - این موارد را تغییر ندهید
E157: در صورت تغیرات در موارد زیر محاسبات با خطا مواجه می شود
E158: گروه اول : | G158: =IFERROR(VLOOKUP($L$4,LM!$A$1:$BZ$5,G119,0),0) -> 0 | I158: =IFERROR(VLOOKUP($L$4,LM!$A$1:$BZ$5,M119,0),"") -> 0
E159: فروش | G159: =IFERROR(VLOOKUP($L$4,LM!$A$1:$BZ$5,I119,0),0) -> 0
E160: خدمات | G160: =IFERROR(VLOOKUP($L$4,LM!$A$1:$BZ$5,K119,0),0) -> 0
E161: شرکت -فروش | G161: =IFERROR(VLOOKUP($L$4,LS!$A$1:$BZ$95309,K120,0),0) -> 0
E162: شرکت -پیمانکاری | G162: =IFERROR(VLOOKUP($L$4,LS!$A$1:$BZ$95309,G120,0),0) -> 0
E163: مجموع | G163: =IF(C170=1,SUM(G158:G160),SUM(G161:G162)) -> 0
C167: 1 | E167: مشاغل | G167: مودی اصلی | I167: حقیقی | K167: گروه : | M167: نرخ تخفیف ماده 131 : | O167: تکمیل اتوماتیک با وارد کردن کد رهگیری اظهارنامه : | P167: 0
C168: 2 | E168: شرکت ها | G168: مدیر عامل | I168: حقوقی | K168: نوع شرکت : | M168: نرخ تخفیف ماده 105 : | O168: تکمیل اتوماتیک با وارد کردن شناسه ملی شرکت : | P168: 0
C169: 3 | E169: مستغلات | P169: 0
C170: 1 | E170: =LOOKUP(C170,C167:C169,E167:E169) -> مشاغل | G170: =LOOKUP(C170,C167:C169,G167:G169) -> مودی اصلی | I170: =IF(C170=2,I168,I167) -> حقیقی | K170: =LOOKUP(C170,C167:C169,K167:K169) -> گروه : | M170: =LOOKUP($C$170,$C$167:$C$169,M167:M168) -> نرخ تخفیف ماده 131 : | O170: =LOOKUP($C$170,$C$167:$C$169,O167:O168) -> تکمیل اتوماتیک با وارد کردن کد رهگیری اظهارنامه : | P170: 0
C171: 169 | E171: 1 | G171: =IF($C$215=1,I171,"") ->  | I171: ارائه در موعد مقرر
E172: 2 | G172: =IF($C$215=1,I172,"") ->  | I172: خارج از موعد مقرر
E173: 3 | G173: =IF($C$215=1,I173,"") ->  | I173: عدم ارائه
C174: د 1 | E174: 3 | G174: =LOOKUP(E174,E171:E173,G171:G173) -> 
C175: د2 | E175: 3 | G175: =LOOKUP(E175,E171:E173,G171:G173) -> 
C176: د 3 | E176: 3 | G176: =LOOKUP(E176,E171:E173,G171:G173) -> 
C177: د 4 | E177: 3 | G177: =LOOKUP(E177,E171:E173,G171:G173) -> 
G180: name | H180: unit | I180: Tin | J180: mob | K180: postal | L180: address | M180: title
C181: =C167 -> 1 | D181: 0 | E181: مشاغل | G181: =IFERROR(VLOOKUP($L$4,LM!$A$1:$BZ$5,G113,0),"") -> یاسر ناظمی | H181: =IFERROR(VLOOKUP($L$4,LM!$A$1:$BZ$5,K113,0),"") -> 610400 | I181: =IFERROR(VLOOKUP($L$4,LM!$A$1:$BZ$5,I113,0),"") -> 16218196470001 | J181: =IFERROR(VLOOKUP($L$4,LM!$A$1:$BZ$5,M113,0),"") -> 9127212385 | K181: =IFERROR(VLOOKUP($L$4,LM!$A$1:$BZ$5,G116,0),"") -> 5618694316 | L181: =IFERROR(VLOOKUP($L$4,LM!$A$1:$BZ$5,I116,0),"") -> مرکزی شهرک آیت الله کاشانی کوچه ((احد اصولی)) کوچه شهیدنجف کوشش پلاک 0 طبقه همکف | M181: =IFERROR(VLOOKUP($L$4,LM!$A$1:$BZ$5,O113,0),"") -> میوه فروشی خرد | O181: =IFERROR(VLOOKUP($L$4,LM!$A$1:$BZ$5,O113,0),"") -> میوه فروشی خرد
C182: 2 | D182: 0 | E182: شرکت ها | G182: =IFERROR(VLOOKUP($L$4,LS!$A$1:$BZ$995309,G114,0),"") ->  | H182: =IFERROR(VLOOKUP($L$4,LS!$A$1:$BZ$995309,K114,0),"") ->  | I182: =IFERROR(VLOOKUP($L$4,LS!$A$1:$BZ$995309,I114,0),"") ->  | J182: =IFERROR(VLOOKUP($L$4,LS!$A$1:$BZ$995309,J114,0),"") ->  | K182: =IFERROR(VLOOKUP($L$4,LS!$A$1:$BZ$995309,G117,0),"") ->  | L182: =IFERROR(VLOOKUP($L$4,LS!$A$1:$BZ$995309,I117,0),"") ->  | M182: =IFERROR(VLOOKUP($L$4,LS!$A$1:$BZ$995309,O114,0),"") ->  | O182: =IFERROR(VLOOKUP($L$4,LS!$A$1:$BZ$995309,O114,0),"") -> 
C183: 3 | D183: 0 | E183: مستغلات | G183: =IFERROR(VLOOKUP($L$4,LS!$A$1:$BZ$995309,G115,0),"") -> 
C184: 1 | D184: 0 | E184: مشاغل | G184: =LOOKUP($C$184,$C$181:$C$183,G181:G183) -> یاسر ناظمی | H184: =LOOKUP($C$184,$C$181:$C$183,H181:H183) -> 610400 | I184: 16218196470001 | J184: 9127212385 | K184: 5618694316 | L184: مرکزی شهرک آیت الله کاشانی کوچه ((احد اصولی)) کوچه شهیدنجف کوشش پلاک 0 طبقه همکف | M184: میوه فروشی خرد | O184: میوه فروشی خرد
G185: tax ret | I185: date | K185: sale | M185: net income | O185: exemption
C186: =C167 -> 1 | D186: 0 | E186: مشاغل | G186: =IFERROR(VLOOKUP($L$4,LM!$A$1:$BZ$5,K116,0),"") -> 3247124679 | H186: =IFERROR(VLOOKUP($L$4,LM!$A$1:$BZ$5,L116,0),"") ->  | I186: =IFERROR(VLOOKUP($L$4,LM!$A$1:$BZ$5,M116,0),"") -> 1402/02/29 | J186: =IFERROR(VLOOKUP($L$4,LM!$A$1:$BZ$5,O116,0),"") ->  | K186: =IF(C170=1,G163,0) -> 0 | L186: =IFERROR(VLOOKUP($L$4,LM!$A$1:$BZ$5,Q116,0),"") ->  | M186: =IFERROR(VLOOKUP($L$4,LM!$A$1:$BZ$5,M119,0),0) -> 0 | O186: =IFERROR(VLOOKUP($L$4,LM!$A$1:$BZ$5,O119,0),0) -> 0
C187: 2 | D187: 0 | E187: شرکت ها | G187: =IFERROR(VLOOKUP($L$4,LS!$A$1:$BZ$95309,K117,0),"") ->  | H187: =IFERROR(VLOOKUP($L$4,LS!$A$1:$BZ$95309,L117,0),"") ->  | I187: =IFERROR(VLOOKUP($L$4,LS!$A$1:$BZ$95309,M117,0),"") ->  | J187: =IFERROR(VLOOKUP($L$4,LS!$A$1:$BZ$95309,O117,0),"") ->  | K187: =IF(C170=2,G163,0) -> 0 | L187: =IFERROR(VLOOKUP($L$4,LS!$A$1:$BZ$95309,Q117,0),"") ->  | M187: =IFERROR(VLOOKUP($L$4,LS!$A$1:$BZ$95309,M120,0),0) -> 0 | O187: =IFERROR(VLOOKUP($L$4,LS!$A$1:$BZ$95309,O120,0),0) -> 0
C188: 3 | D188: 0 | E188: مستغلات | O188: =IFERROR(VLOOKUP($L$4,LM!$A$1:$BZ$5,O121,0),0) -> 0
C189: =C170 -> 1 | D189: =#NULL! ->  | E189: =LOOKUP($C$189,$C$186:$C$188,E186:E188) -> مشاغل | G189: =LOOKUP($C$189,$C$186:$C$188,G186:G188) -> 3247124679 | H189: =LOOKUP($C$189,$C$186:$C$188,H186:H188) ->  | I189: 1402/02/29 | K189: 0 | M189: 0 | O189: =IFERROR(LOOKUP($C$189,$C$186:$C$188,O186:O188),0) -> 0 | P189: 0
E193: r BOOK | I193: vat | J193: 1 | K193: در موعد مقرر
E194: 1 | F194: بلی | J194: 2 | K194: خارج از موعد مقرر | M194: شراکت | O194: معاقیت
F195: خیر | J195: 3 | K195: عدم ارائه | M195: ='10'!$BL$474 -> 1
I196: د 1 | J196: 1 | K196: =LOOKUP(J196,J193:J195,K193:K195) -> در موعد مقرر | O196: ='10'!$BR$470 -> 1
I197: د2 | J197: 1 | K197: =LOOKUP(J197,J193:J195,K193:K195) -> در موعد مقرر
I198: د 3 | J198: 1 | K198: =LOOKUP(J198,J193:J195,K193:K195) -> در موعد مقرر
I199: د 4 | J199: 1 | K199: =LOOKUP(J199,J193:J195,K193:K195) -> در موعد مقرر
C204: 1 | D204: ( مشمول )
C205: 2 | D205: ( غیر مشمول )
C206: 1 | D206: ارائه | G206: 1 | H206: سهامی | I206: 25 | J206: گروه | L206: نوع شخص
C207: 2 | D207: عدم ارائه | G207: 2 | H207: با مسئولیت محدود | I207: 25 | J207: 1 | K207: اول | L207: حقیقی
C208: 3 | D208: غیر مشمول | G208: 3 | H208: تضامنی | I208: 25 | J208: 2 | K208: دوم | L208: حقوقی
C209: 3 | D209: =LOOKUP(C209,C206:C208,D206:D207) -> غیر مشمول | E209: دف | G209: 4 | H209: مختلط | I209: 25 | J209: 3 | K209: سوم
C210: 1 | D210: =LOOKUP(C210,C206:C208,D206:D207) -> ارائه | E210: تر | G210: 5 | H210: نسبی | I210: 25 | J210: 4 | K210: اول
C211: 1 | D211: =G17 -> ارائه | E211: اظ | G211: 6 | H211: تعاونی | I211: 25 | J211: 5 | K211: دوم
C213: 1 | E213: نوع اظ | G213: 7 | H213: موسسه | I213: 25 | J213: 6 | K213: سوم
C214: 2 | E214: نوع حس | G214: 8
C215: 2 | E215: 169 | F215: =LOOKUP(C215,C204:C205,D204:D205) -> ( غیر مشمول ) | H215: 6 | J215: =H215 -> 6 | K215: =LOOKUP(H215,J207:J213,K207:K213) -> سوم
C216: 2 | E216: vat | F216: =LOOKUP(C216,C206:C208,D206:D208) -> عدم ارائه | H216: =LOOKUP(H215,G206:G214,H206:H213) -> تعاونی | I216: =LOOKUP(H215,G206:G213,I206:I213) -> 25 | J216: =LOOKUP(C170,C167:C169,K167:K169) -> گروه : | K216: =IF(J207=1,K207,IF(J207=2,K208,K209)) -> اول
H217: =IF(C170=2,H216,K215) -> سوم
C219: 1 | D219: تعداد شرکا : | F219: نوع پرونده : | G219: غیر دولتی | H219: شراکت
C220: 2 | D220: تعداد اعضا : | F220: عمومی/خصوصی | G220: عمومی | H220: انفرادی
C221: ='2'!AR164 -> 2 | D221: =LOOKUP($C$170,$C$219:$C$220,D219:D220) -> تعداد شرکا : | F221: =LOOKUP($C$170,$C$219:$C$220,F219:F220) -> نوع پرونده : | G221: =LOOKUP(C221,$C$219:$C$220,G219:G220) -> عمومی | H221: =LOOKUP($C$170,$C$219:$C$220,H219:H220) -> شراکت
E225: سایر هزینه ها | H225: =IFERROR(MATCH($E225,ez!G:G,0),0) -> 100 | I225: =IFERROR(MATCH($E225,ez!C:C,0),0) -> 0 | J225: =MAX(H225:I225) -> 100 | K225: =IFERROR(INDEX(ez!D:D,'1'!H225),0) -> 0 | L225: =IFERROR(INDEX(ez!B:B,H225),0) -> 0
E226: جمع خرید و هزینه ها | H226: =IFERROR(MATCH($E226,ez!G:G,0),0) -> 101 | I226: =IFERROR(MATCH($E226,ez!C:C,0),0) -> 0 | J226: 101 | K226: =IFERROR(INDEX(ez!D:D,'1'!H226),0) -> 33000000000 | L226: =IFERROR(INDEX(ez!B:B,H226),0) -> 0
E227: کسر می شود:موجودي اول دوره | H227: =IFERROR(MATCH($E227,ez!G:G,0),0) -> 102 | I227: =IFERROR(MATCH($E227,ez!C:C,0),0) -> 0 | J227: 102 | K227: =IFERROR(INDEX(ez!D:D,'1'!H227),0) -> 0 | L227: =IFERROR(INDEX(ez!B:B,H227),0) -> 0
E228: اضافه می شود:موجودي پایان دوره | H228: =IFERROR(MATCH($E228,ez!G:G,0),0) -> 103 | I228: =IFERROR(MATCH($E228,ez!C:C,0),0) -> 0 | J228: 103 | K228: =IFERROR(INDEX(ez!D:D,'1'!H228),0) -> 0 | L228: =IFERROR(INDEX(ez!B:B,H228),0) -> 0
E229: سود (زیان) ویژه | H229: =IFERROR(MATCH($E229,ez!G:G,0),0) -> 104 | I229: =IFERROR(MATCH($E229,ez!C:C,0),0) -> 136 | J229: 136 | K229: =IFERROR(INDEX(ez!D:D,'1'!H229),0) -> 2000000000 | L229: =IFERROR(INDEX(ez!B:B,H229),0) -> 0
E230: تعدیلات سود (زیان)‌ سنواتی | H230: =IFERROR(MATCH($E230,ez!G:G,0),0) -> 0 | I230: =IFERROR(MATCH($E230,ez!C:C,0),0) -> 137 | J230: 137 | K230: =IFERROR(INDEX(ez!B:B,'1'!I230),0) -> 0
E231: اضافه / کسر می شود از سود (زیان) ویژه | H231: =IFERROR(MATCH($E231,ez!G:G,0),0) -> 0 | I231: =IFERROR(MATCH($E231,ez!C:C,0),0) -> 138 | J231: 138 | K231: =IFERROR(INDEX(ez!B:B,'1'!I231),0) -> 0
E232: سود (زیان) حاصل ازدرآمدهایی که مالیات آن مقطوع است | H232: =IFERROR(MATCH($E232,ez!G:G,0),0) -> 0 | I232: =IFERROR(MATCH($E232,ez!C:C,0),0) -> 139 | J232: 139 | K232: =IFERROR(INDEX(ez!B:B,'1'!I232),0) -> 0
E233: درآمدهاي معاف و موارد قابل کسر از درآمد مشمول مالیات | H233: =IFERROR(MATCH($E233,ez!G:G,0),0) -> 0 | I233: =IFERROR(MATCH($E233,ez!C:C,0),0) -> 140 | J233: 140 | K233: =IFERROR(INDEX(ez!B:B,'1'!I233),0) -> 0
E234: کمک هاي پرداختی | H234: =IFERROR(MATCH($E234,ez!G:G,0),0) -> 0 | I234: =IFERROR(MATCH($E234,ez!C:C,0),0) -> 141 | J234: 141 | K234: =IFERROR(INDEX(ez!B:B,'1'!I234),0) -> 0
E235: جمع تعدیلات | H235: =IFERROR(MATCH($E235,ez!G:G,0),0) -> 0 | I235: =IFERROR(MATCH($E235,ez!C:C,0),0) -> 142 | J235: 142 | K235: =IFERROR(INDEX(ez!B:B,'1'!I235),0) -> 0
E239: درآمد مشمول مالیات قبل از کسر معافیت ماده 101ق.م.م | H239: =IFERROR(MATCH($E239,ez!G:G,0),0) -> 0 | I239: =IFERROR(MATCH($E239,ez!C:C,0),0) -> 143 | J239: =MAX(H239:I239) -> 143 | K239: =IFERROR(INDEX(ez!B:B,'1'!I239),0) -> 2000000000
E240: معافیت ماده 101ق.م.م | H240: =IFERROR(MATCH($E240,ez!G:G,0),0) -> 0 | I240: =IFERROR(MATCH($E240,ez!C:C,0),0) -> 144 | J240: =MAX(H240:I240) -> 144 | K240: =IFERROR(INDEX(ez!B:B,'1'!I240),0) -> 396000000
E241: درآمد مشمول مالیات پس از کسر معافیت ماده 101ق.م.م | H241: =IFERROR(MATCH($E241,ez!G:G,0),0) -> 0 | I241: =IFERROR(MATCH($E241,ez!C:C,0),0) -> 145 | J241: =MAX(H241:I241) -> 145 | K241: =IFERROR(INDEX(ez!B:B,'1'!I241),0) -> 1604000000
E242: خسارت وارده در اجراي مقررات ماده 165ق.م.م و سایر هزینه ها | H242: =IFERROR(MATCH($E242,ez!G:G,0),0) -> 0 | I242: =IFERROR(MATCH($E242,ez!C:C,0),0) -> 146 | J242: =MAX(H242:I242) -> 146 | K242: =IFERROR(INDEX(ez!B:B,'1'!I242),0) -> 0
E243: استهلاك زیان انباشته از سنوات قبل (مورد تایید سازمان) | H243: =IFERROR(MATCH($E243,ez!G:G,0),0) -> 0 | I243: =IFERROR(MATCH($E243,ez!C:C,0),0) -> 147 | J243: =MAX(H243:I243) -> 147 | K243: =IFERROR(INDEX(ez!B:B,'1'!I243),0) -> 0
O247: Designed By Yaser Nazemi Ardabil Provience Germi City Tax Affairs Department - All rights reserved
O249: 1,2,3,6,16,17,19,21,22,23,24,43
E250: سامانه مودیان | G250: 1 | I250: مشمول | K250: دارد
G251: 2 | I251: غیرمشمول | K251: ندارد
G252: 2 | I252: =LOOKUP($G$252,$G$250:$G$251,I250:I251) -> غیرمشمول | J252: =LOOKUP($G$252,$G$250:$G$251,J250:J251) -> 0 | K252: ندارد

Sheet 2
D2: صفحه اصلی | G2: گام بعدی | I2: سود و زیان | K2: جریمه کتمان | M2: ماده 169 و سامانه مودیان | O2: جرائم | Q2: صورتمجلس | R2: کاربرگ نهایی | X2: مهم
F5: کاربرگ محاسبات حسابرسی | V5: ویرایش صفر | X5: ورود کاربرگ توضیحات حسابرسی
F7: F | V7: صفحه 1
D8: مشخصات مؤدی : | G8: نام مودی : | J8: ='1'!I7 -> یاسر ناظمی | O8: شناسه مؤدی : | P8: ='1'!I9 -> 16218196470001 | T8: نوع شخصیت : | U8: ='1'!O9 -> حقیقی | X8: اکثر موارد اتوماتیک محاسبه می شود - در صورت صلاحدید می توانید تغییر دهید - فقط موارد آبی را تغییر دهید - قبل از شروع این صفحه اطلاعات موجود در صفحه اصلی تکمیل شود
G9: اداره کل مالیاتی : | J9: ='1'!E63 -> اردبيل | O9: اداره امور مالیاتی : | P9: ='1'!I63 -> 610400 | T9: نوع فعالیت : | U9: ='1'!G11 -> دندانپزشکی
D10: جزییات حسابرسی : | G10: نوع حسابرسی : | J10: ='1'!O25 -> اداری (پشت میزی) | O10: سال عملکرد : | P10: ='1'!$E$9 -> 1403 | T10: گروه : | U10: =IF('1'!$C$170=1,'1'!O27,0) -> سوم
C11: 1 | G11: منبع مالیاتی : | J11: ='1'!M9 -> مشاغل | O11: شماره اظهارنامه : | P11: =IF('1'!$C$211=1,'1'!G21,'1'!G17) -> 3247124679 | T11: تاریخ اظهارنامه : | U11: =IF('1'!$C$211=1,'1'!G23,'1'!G17) -> 1402/02/29
D12: کد پستی و آدرس : | G12: ='1'!G33 -> 5618694316 | I12: ='1'!H33 -> مرکزی شهرک آیت الله کاشانی کوچه ((احد اصولی)) کوچه شهیدنجف کوشش پلاک 0 طبقه همکف | T12: موبایل : | U12: ='1'!O11 -> 9127212385
D14: فروش ابرازی : | G14: ='1'!G25 -> 0 | J14: گردش حساب بانکی : | M14: ='1'!K13 -> 0 | Q14: تعدیلات | T14: تشخیصی | V14: ابرازی | X14: =BB155 -> 
D15: سود (ابرازی) : | G15: ='1'!G29 -> 0 | J15: گردش Pos : | M15: ='1'!K15 -> 0 | Q15: تعدیلات سود (زیان) سنواتی : | T15: 0 | V15: ='1'!E37 -> 0
D16: فروش صورت معاملات : | G16: ='1'!J50 -> 0 | J16: ='1'!I21 -> فروش -سامانه مودیان: | M16: ='1'!K21 -> 0 | Q16: سود درآمدهای مشمول مالیات مقطوع : | T16: 0 | V16: ='1'!F37 -> 0
D17: خرید صورت معاملات : | G17: ='1'!L50 -> 0 | J17: ='1'!I23 -> خرید -سامانه مودیان: | M17: ='1'!K23 -> 0 | Q17: درآمد (هزینه)های معاف،نرخ صفر ، ماده 81 ، ... : | T17: =MAX(0,U37+U38) -> 0 | V17: ='1'!I37 -> 0
D18: فروش ارزش افزوده : | G18: ='1'!J60 -> 0 | J18: ='1'!I25 -> فروش - پولشویی : | M18: ='1'!K25 -> 0 | Q18: کمک های پرداختی و خسارات : | T18: 0 | V18: ='1'!K37 -> 0
D19: خرید ارزش افزوده : | G19: ='1'!L60 -> 0 | J19: ='1'!I29 -> قرارداد پیمانکاری : | M19: ='1'!K29 -> 0 | Q19: استهلاک زیان انباشته سنوات قبل: | T19: 0 | V19: ='1'!M37 -> 0
D20: ='1'!I17 -> فروش سیستم استخراج : | G20: ='1'!K17 -> 0 | J20: فروش سایر منابع : | M20: ='1'!K31 -> 0 | Q20: مجموع تعدیلات : | T20: =SUM(T15:U19) -> 0 | V20: =SUM(V15:V19) -> 0
D21: ='1'!I19 -> خرید سیستم استخراج : | G21: ='1'!K19 -> 0 | J21: ='1'!I27 -> فروش - صادرات : | M21: ='1'!K27 -> 0
D23: مبالغ غیر درآمدی : | G23: 0 | K23: فروش مستند (ماخذ کتمان ) : | M23: =MAX(G18,G16,G20,IX31,M16,G19,G21,G17,M17,M14,M15,M18,M19,M20,M21)-G23 -> 0 | Q23: فروش کتمان شده : | T23: =MAX(0,IF('1'!$C$211=1,M23-G14,M23)) -> 0
D25: فروش | E25: اینتاکد | G25: نحوه رسیدگی : | I25: ='1'!O23 -> فروش برآوردی | M25: مبلغ فروش | P25: =$AT$155 -> نرخ سود فعالیت/ ویژه | S25: توضیحات | U25: سود و زیان ویژه | X25: ضریب اینتاکد 1401 جهت راهنمایی | AR25: ردیف | AS25: عنوان | AX25: مبلغ فروش | AY25: =$AT$155 -> نرخ سود فعالیت/ ویژه | AZ25: =$AU$155 -> درصد سود فعالیت / ویژه | BA25: سود و زیان ویژه
C26: =A213:O213 -> 0 | D26: فروش اصلی | E26: 3180070 | G26: =IF('2'!$AR$155=2,AS26,I25) -> لابراتوار دندان سازی و دندانساز تجربی | M26: 34300000000 | P26: 8 | S26: کارکرد سالانه | U26: =IFERROR(IF($AR$155=2,(M26*P26/100),(M26-P26)),0) -> 2744000000 | X26: =IFERROR(IF($AR$155=1,"طبق دفاتر",AZ26),0) -> 21 | AR26: 1 | AS26: =IFERROR(VLOOKUP(E26,Int!$D$7:$I$3368,2,0),"") -> لابراتوار دندان سازی و دندانساز تجربی | AX26: 100000000000 | AY26: =E26 -> 3180070 | AZ26: =IFERROR(VLOOKUP(E26,Int!$D$7:$I$3368,3,0),"") -> 21 | BA26: =IFERROR(IF($AR$155=2,($M$26*$P$26/100),($M$26-$E$26)),0) -> 2744000000
D27: سایر مبالغ فروش | G27: =AS27 ->  | U27: =IF((M27*P27/100)=0,0,(M27*P27/100)) -> 0 | X27: =AZ27 ->  | AR27: 2 | AS27: =IFERROR(VLOOKUP(E27,Int!$D$7:$I$3368,2,0),"") ->  | AZ27: =IFERROR(VLOOKUP(E27,Int!$D$7:$I$3368,3,0),"") ->  | BA27: =IFERROR(IF($AR$155=2,($M27*$P27/100),($M27-$E27)),0) -> 0
U28: 0 | AR28: 3 | AS28: =IFERROR(VLOOKUP(E28,Int!$D$7:$I$3368,2,0),"") ->  | AZ28: =IFERROR(VLOOKUP(E28,Int!$D$7:$I$3368,3,0),"") ->  | BA28: =IFERROR(IF($AR$155=2,($O28*$P28/100),($O28-$E28)),0) -> 0
U29: 0 | AR29: 4 | AS29: =IFERROR(VLOOKUP(E29,Int!$D$7:$I$3368,2,0),"") ->  | AZ29: =IFERROR(VLOOKUP(E29,Int!$D$7:$I$3368,3,0),"") ->  | BA29: 0
U30: 0 | AR30: 5 | AS30: =IFERROR(VLOOKUP(E30,Int!$D$7:$I$3368,2,0),"") ->  | AZ30: =IFERROR(VLOOKUP(E30,Int!$D$7:$I$3368,3,0),"") ->  | BA30: 0
U31: 0 | AR31: 6 | AS31: =IFERROR(VLOOKUP(E31,Int!$D$7:$I$3368,2,0),"") ->  | AZ31: =IFERROR(VLOOKUP(E31,Int!$D$7:$I$3368,3,0),"") ->  | BA31: 0
U32: 0 | AR32: 7 | AS32: =IFERROR(VLOOKUP(E32,Int!$D$7:$I$3368,2,0),"") ->  | AZ32: =IFERROR(VLOOKUP(E32,Int!$D$7:$I$3368,3,0),"") ->  | BA32: 0
U33: 0 | AR33: 8 | AS33: =IFERROR(VLOOKUP(E33,Int!$D$7:$I$3368,2,0),"") ->  | AZ33: =IFERROR(VLOOKUP(E33,Int!$D$7:$I$3368,3,0),"") ->  | BA33: 0
U34: 0 | AR34: 9 | AS34: =IFERROR(VLOOKUP(E34,Int!$D$7:$I$3368,2,0),"") ->  | AZ34: =IFERROR(VLOOKUP(E34,Int!$D$7:$I$3368,3,0),"") ->  | BA34: 0
U35: 0 | AR35: 10 | AS35: =IFERROR(VLOOKUP(E35,Int!$D$7:$I$3368,2,0),"") ->  | AZ35: =IFERROR(VLOOKUP(E35,Int!$D$7:$I$3368,3,0),"") ->  | BA35: 0
U36: 0 | AR36: 11 | AS36: =IFERROR(VLOOKUP(E36,Int!$D$7:$I$3368,2,0),"") ->  | AZ36: =IFERROR(VLOOKUP(E36,Int!$D$7:$I$3368,3,0),"") ->  | BA36: 0
D37: فروش معاف | S37: فروش معاف - ماده 81 ، ... | U37: =IFERROR(IF($AR$155=2,(M37*P37/100),MAX(0,(M37-P37))),0) -> 0 | AS37: =IFERROR(VLOOKUP(E37,Int!$D$7:$I$3368,2,0),"") ->  | AZ37: =IFERROR(VLOOKUP(E37,Int!$D$7:$I$3368,3,0),"") -> 
S38: فروش - نرخ صفر | U38: =IFERROR(IF($AR$155=2,(M38*P38/100),MAX(0,(M38-P38))),0) -> 0 | AS38: =IFERROR(VLOOKUP(E38,Int!$D$7:$I$3368,2,0),"") ->  | AZ38: =IFERROR(VLOOKUP(E38,Int!$D$7:$I$3368,3,0),"") -> 
D39: مجموع : | M39: =SUM(M26:O38) -> 34300000000 | S39: =AX150 ->  | U39: =SUM(U26:V38) -> 2744000000 | X39: جهت راهنمایی | AR39: مجموع | AS39: =IFERROR(VLOOKUP(E39,Int!$D$7:$I$3368,2,0),"") ->  | AX39: =SUM(AX26:AX36) -> 100000000000 | AZ39: =IFERROR(VLOOKUP(E39,Int!$D$7:$I$3368,3,0),"") ->  | BA39: =SUM(BA26:BA36) -> 2744000000
D41: محاسبه مالیات | G41: =AT164 -> درصد سهم | H41: =AX164 -> درآمد مشمول مالیات قبل معافیت | K41: معافیت ماده 101 : | M41: تعدیل معافیت | O41: تبصره 186 + سهم اتاق بازرگانی | P41: =AU164 -> درآمد مشمول مالیات | R41: =AV164 -> مالیات | V41: نوع پرونده
K42: =AY160 -> (مشمول معافیت) | M42: استفاده در پرونده دیگر ، زوجیت شرکا و …
D43: =AS191 ->  | G43: 50 | H43: =AY166 -> 0 | K43: =AV166 -> 0 | M43: 0 | O43: =IF(AT166+AS166=0,"",AT166+AS166) ->  | P43: =AR166 -> 0 | R43: =MAX(0,AV191) -> 0 | V43: ='1'!G13 -> انفرادی
D44: =AS192 ->  | G44: 30 | H44: =AY167 -> 0 | K44: =AV167 -> 0 | M44: 0 | P44: =AR167 -> 0 | R44: =MAX(0,AV192) -> 0
G45: 20 | H45: =AY168 -> 0 | K45: =AV168 -> 0 | M45: 0 | O45: =IF(AT168+AS168=0,"",AT168+AS168) ->  | P45: =AR168 -> 0 | R45: =MAX(0,AV193) -> 0 | V45: =AW164 -> تعداد اعضا
G46: 20 | H46: 0 | K46: 0 | M46: 0 | O46: =IF(AT169+AS169=0,"",AT169+AS169) ->  | P46: 0 | R46: =MAX(0,AV194) -> 0 | V46: =AY164 -> 1
G47: 25 | H47: 0 | K47: 0 | M47: 0 | P47: 0 | R47: =MAX(0,AV195) -> 0 | V47: کارت بازرگانی
D48: =AS196 ->  | G48: 21 | H48: 0 | K48: 0 | P48: 0 | R48: =MAX(0,AV196) -> 0 | V48: =IF(AV155=1,AW153,AW154) -> ندارد
D49: =AS197 ->  | G49: 15 | H49: 0 | K49: 0 | P49: 0 | R49: 0 | V49: مجموع خرید و هزینه : (جهت ثبت در اریس)
D50: =AS198 ->  | G50: 11 | H50: 0 | K50: 0 | P50: 0 | R50: 0
D51: =AS199 ->  | G51: 10 | H51: 0 | K51: 0 | P51: 0 | R51: 0 | V51: ='5'!H27+'5'!H28+'5'!H29 -> 31556000000
D52: =AS200 ->  | G52: 5 | H52: 0 | K52: 0 | P52: 0 | R52: 0
D53: =IF(AR164=2,"مجموع","مجموع") -> مجموع | G53: =IF(AR164=2,"100",IF(AZ178*100=100,100,"جمع 100 شود")) -> 100 | H53: =AY178 -> 2744000000 | K53: =$AR$236 -> 1000000000 | M53: 0 | O53: =AT178+AS178 -> 1744000 | P53: =IF(V53='1'!O72,AR178,"copy right") -> 1742256000 | R53: =AV203 -> 261338400 | V53: Yaser Nazemi Ardabil Provience
D56: توضیحات : مودی محترم برای عملکرد 1402 در موعد قانونی در شغل دندانپزشکی تجربی اقدام به تسلیم اظهارنامه مالیاتی نموده است. مودی علاوه بر شغل دندانپزشکی تجربی مشغول به فعالیت در جایگاه سوخت نیز می باشد. مودی قسمتی از اسناد و مدارک مربوط به حساب را ارائه نمود . میزان فروش یا خدمات ابرازی مودی در اظهارنامه عملکرد مبلغ 27،000،000،000 ريال می باشد. گردش حساب بانکی مربوط به پرونده مبلغ 46،042،624،356 ريال و گردش دستگاه پوز مبلغ 28،472،801،306 ريال و فروش در سامانه ارسال صورت معاملات مبلغ 0 ريال و مبلغ فروش در سامانه استخراج اطلاعاتی و پیمان های بلندمدت مبلغ 0 ريال و سایر فروش0 ريال می باشد. مبلغ خرید در سامانه استخراج اطلاعات سازمان مبلغ 0 ريال می باشد. با برسی و آنالیز حساب ها مبالغ ذیل تحت گردش حساب تجاری مودی لحاظ گردید : (1. حساب بانکی شماره IR210170000000107384022002 مربوط به بانک ملی با گردش حساب 24،728،837،002 ريال که تماما تجاری لحاظ گردید 2. حساب بانکی شماره IR280600220901015204478001 مربوط به بانک مهر با گردش 21،313،787،354 ريال که با آنالیز حساب ها طبق مدارک یوست مبلغ 9،524،398،604 ريال تحت فعالیت تجاری مربوط به پرونده لحاظ گردید . مبنای رسیدگی فعالیت مودی بر اساس اطلاعات سامانه کد اقتصادی و ابرازی مودی در اظهارنامه قرار گرفته است . بنابراین رسیدگی با استناد به دستورالعمل 200/99/522 مورخ 1399/11/27 به علت عدم ارائه اسناد هزینه ای فروش و با در نظر گرفتن نرخ سود فعالیت به شرح اطلاعلات جداول فوق تعیین درآمد می گردد .
D64: تاریخ شروع تنظیم کاربرگ حسابرسی : | H64: 140-/--/-- | J64: تاریخ پایان تنظیم کاربرگ حسابرسی : | N64: 140-/--/-- | R64: نام و نام‌خانوادگی تایید کننده :
D65: نام و نام‌خانوادگی حسابرس : | H65: ='1'!F65 -> یاسر ناظمی | J65: نام و نام‌خانوادگی حسابرس مسئول : | N65: ='1'!J65 -> علی بخشی | R65: ='1'!O65 -> حسن حامدی
D66: سمت : | H66: حسابرس ارشد | J66: سمت : | N66: رئیس گروه مالیاتی | R66: سمت : رئیس امور مالیاتی
D70: جریمه کتمان - روش اول ( فقط برای پرونده های انفرادی فرمول هاش نوشتم )
D71: برای کتمان هر استان یه روشی استفاده میکنه من طبق دو روش محاسباتش گذاشتم به نظر من از روش استان اردبیل یا همان روش دوم استفاده کنین چون واسه هر حالتی جواب منطقیه
D74: روش اول : جریمه کتمان ( برای چاپ اینجا کلیک کنید ) - به نظر من از روش دوم استفاه کنید
D76: فروش مستند : | G76: =$M$23 -> 0 | K76: فروش ابرازی : | M76: =$IX$31 -> 0 | Q76: مانده ابراز نشده : | R76: =G76-M76 -> 0
M78: نسبت درآمد | N78: فروش طبق مستندات | Q78: سهم فروش ابرازی | R78: درآمد کتمان شده مستند
D79: درآمد مشمول اظهار نشده | G79: =G26 -> لابراتوار دندان سازی و دندانساز تجربی | M79: =M119 -> 1 | N79: =$N$90*M79 -> 0 | P79: =$P$90*M79 -> 0 | R79: =$R$76*P26%*M79 -> 0
D80: درآمد مشمول اظهار نشده | M80: =M120 -> 0 | N80: 0 | P80: 0 | R80: 0
D81: درآمد مشمول اظهار نشده | M81: 0 | N81: 0 | P81: 0 | R81: 0
D82: درآمد مشمول اظهار نشده | M82: 0 | N82: 0 | P82: 0 | R82: 0
D83: درآمد مشمول اظهار نشده | M83: 0 | N83: 0 | P83: 0 | R83: 0
D84: درآمد مشمول اظهار نشده | M84: 0 | N84: 0 | P84: 0 | R84: 0
D85: درآمد مشمول اظهار نشده | M85: 0 | N85: 0 | P85: 0 | R85: 0
D86: درآمد مشمول اظهار نشده | M86: 0 | N86: 0 | P86: 0 | R86: 0
D87: درآمد مشمول اظهار نشده | M87: 0 | N87: 0 | P87: 0 | R87: 0
D88: درآمد مشمول اظهار نشده | M88: 0 | N88: 0 | P88: 0 | R88: 0
D89: درآمد مشمول اظهار نشده | M89: =M129 -> 0 | N89: 0 | P89: 0 | R89: 0
D90: مجموع درآمد مشمول کتمان شده | M90: =SUM(M79:M89) -> 1 | N90: =G76 -> 0 | P90: =M76 -> 0 | R90: =SUM(R79:U89) -> 0
D92: درآمد مشمول اظهار شده | I92: =G15 -> 0 | K92: هزینه های غیرواقعی | M92: 0 | O92: کل درآمد مشمول | Q92: =I94+R90+M92+M93 -> 0 | T92: ماخذ کتمان ( محاسبه بر اساس نرخ ماده 131 بدون تبصره 131)
D93: معافیت و کسورات | I93: =MAX(0,MIN(BA176,K53)+'1'!N37) -> 0 | K93: برآوردی | M93: 0 | O93: معافیت و کسورات | Q93: =MAX(0,MIN(BA176,K53)) -> 0
D94: مانده درآمد | I94: =MAX(0,I92-I93) -> 0 | O94: مانده درآمد | Q94: =MAX(0,Q92-Q93) -> 0
D95: مانده درآمد پس از کسر تبصره 186 | I95: =I94*(1-0.001) -> 0 | O95: مانده درآمد پس از کسر تبصره 186 | Q95: =Q94*(1-0.001) -> 0
D96: مالیات ابرازی | I96: =BB239 -> 0 | O96: مالیات درآمد کتمان شده | Q96: =BB238 -> 0 | T96: =MAX(0,Q96-I96) -> 0
D108: جریمه کتمان - روش دوم و به نظر من روش منطقی
D109: روش دوم (اردبیل)
D110: روش دوم : جریمه کتمان ( برای چاپ اینجا کلیک کنید ) - (به نظر من از این روش استفاده کنید)
E111: فروش طبق مستندات | I111: =M23 -> 0 | K111: درامد مشمول مستند : | O111: =R144 -> 0 | Q111: مالیات طبق درآمد مستند :(بدون معافیت) | V111: =BB236 -> 0
E112: فروش ابرازی : | I112: =G14 -> 0 | K112: درامد مشمول طبق فروش ابرازی : | O112: =MAX(R130,I114,I115) -> 1000000000 | Q112: مالیات طبق درآمد ابرازی : | V112: =BB237 -> 149850000
E113: مانده فروش اظهار نشده : | I113: =MAX(0,I111-I112) -> 0 | K113: درامد مشمول مستند پس از کسر معافیت : | O113: =MAX(0,O111-I115) -> 0 | Q113: ماخذ کتمان : | V113: =MAX(0,V111-V112) -> 0
E114: سود ابرازی : | I114: =G15 -> 0 | K114: درامد مشمول ابرازی پس از کسر معافیت : | O114: =MAX(0,O112-I115) -> 0 | Q114: جریمه کتمان : | V114: =V113*30% -> 0
E115: معافیت ماده 101 : | I115: =K53 -> 1000000000 | K115: تفاوت درآمد مستند با ابرازی : | O115: =MAX(0,O111-O112) -> 0
T117: =G15 -> 0
E118: ردیف | F118: عنوان | M118: درصد فروش هر فعالیت | N118: فروش هر فعالیت | Q118: ضریب سود/هزینه | R118: درامد مشمول طبق فروش ابرازی
E119: 1 | F119: =G26 -> لابراتوار دندان سازی و دندانساز تجربی | M119: =IFERROR(($M26/SUM($M$26:$O$36)),0) -> 1 | N119: =IFERROR($I$112*M119,0) -> 0 | Q119: =IFERROR(P26,0) -> 8 | R119: =IFERROR(IF('2'!$AR$155=1,I114,N119*Q119%),0) -> 0
E120: 2 | M120: 0 | N120: 0 | Q120: 0 | R120: =IFERROR(N120*Q120%,0) -> 0
E121: 3 | M121: 0 | N121: 0 | Q121: 0 | R121: 0
E122: 4 | M122: 0 | N122: 0 | Q122: 0 | R122: 0
E123: 5 | M123: 0 | N123: 0 | Q123: 0 | R123: 0
E124: 6 | M124: 0 | N124: 0 | Q124: 0 | R124: 0
E125: 7 | M125: 0 | N125: 0 | Q125: 0 | R125: 0
E126: 8 | M126: 0 | N126: 0 | Q126: 0 | R126: 0
E127: 9 | M127: 0 | N127: 0 | Q127: 0 | R127: 0
E128: 10 | M128: 0 | N128: 0 | Q128: 0 | R128: 0
E129: 11 | M129: 0 | N129: 0 | Q129: 0 | R129: 0 | X129: =IF(O114>X132,0,IF(#REF!<X132,#REF!,0)) -> 
M130: =SUM(M119:M129) -> 1 | N130: =SUM(N119:P129) -> 0 | R130: =SUM(R119:T129) -> 0
E132: =E118 -> ردیف | F132: عنوان | M132: درصد فروش هر فعالیت | N132: فروش هر فعالیت | Q132: ضریب سود | R132: درامد مشمول مستند | X132: =AV290 -> 2000000000
E133: 1 | F133: =G26 -> لابراتوار دندان سازی و دندانساز تجربی | M133: =M119 -> 1 | N133: =$I$111*M133 -> 0 | Q133: =Q119 -> 8 | R133: =IFERROR(IF('2'!$AR$155=1,U26,N133*Q133%),0) -> 0 | X133: =AX290 -> 4000000000
E134: 2 | M134: 0 | N134: 0 | Q134: 0 | R134: =IFERROR(N134*Q134%,0) -> 0 | X134: =IF(R144>R130,15%,0) -> 0
E135: 3 | M135: 0 | N135: 0 | Q135: 0 | R135: 0 | X135: =IF(O115>X132,20%,0) -> 0
E136: 4 | M136: 0 | N136: 0 | Q136: 0 | R136: 0 | X136: =IF(O115>X133,25%,0) -> 0
E137: 5 | M137: 0 | N137: 0 | Q137: 0 | R137: 0 | X137: =IF(O114>R144,0,IF(O114>X132,0,IF(AND(O114,O115)>X132,O115,5))) -> 0
E138: 6 | M138: 0 | N138: 0 | Q138: 0 | R138: 0 | X138: =IF(O114>Y132,0,MAX(0,Y132-X132)) -> 0
E139: 7 | M139: 0 | N139: 0 | Q139: 0 | R139: 0 | X139: =MAX(0,Y132-X138-X137) -> 0
E140: 8 | M140: 0 | N140: 0 | Q140: 0 | R140: 0
E141: 9 | M141: 0 | N141: 0 | Q141: 0 | R141: 0
E142: 10 | M142: 0 | N142: 0 | Q142: 0 | R142: 0 | X142: =(X137*X134)+(X138*X135)+(X139*X136) -> 0
E143: 11 | M143: 0 | N143: 0 | Q143: 0 | R143: 0
F144: =I111 -> 0 | M144: =SUM(M133:M143) -> 1 | N144: =SUM(N133:P143) -> 0 | R144: =SUM(R133:T143) -> 0
AX148: سود ابرازی بیشتر است
AX149: ="" -> 
AX150: =IF('1'!G29>U39,AX148,AX149) -> 
AS152: investigation type | AT152: investigation type | AU152: investigation type | AV152: merchant | AW152: merchant | AX152: tax return | AY152: tax return | AZ152: transaction | BA152: transaction
AR153: 1 | AS153: رسیدگی به دفاتر | AT153: خرید و هزینه/سود فعالیت | AU153: ="" ->  | AV153: 1 | AW153: دارد | AX153: 1 | AY153: ارائه | AZ153: ='1'!$C$215 -> 2 | BA153: مشمول | BB153: در رسیدگی به دفاتر در ردیف اول فروش و خرید و هزینه مورد تایید و بقیه ردیف ها ضریب اینتاکد وارد شود
AR154: 2 | AS154: فروش برآوردی | AT154: نرخ سود فعالیت/ ویژه | AU154: درصد سود فعالیت / ویژه | AV154: 2 | AW154: ندارد | AX154: 2 | AY154: عدم ارائه | AZ154: 2 | BA154: غیرمشمول | BB154: ="" -> 
AR155: 2 | AS155: =LOOKUP($AR$155,$AR$153:$AR$154,AS153:AS154) -> فروش برآوردی | AT155: =LOOKUP($AR$155,$AR$153:$AR$154,AT153:AT154) -> نرخ سود فعالیت/ ویژه | AU155: =LOOKUP($AR$155,$AR$153:$AR$154,AU153:AU154) -> درصد سود فعالیت / ویژه | AV155: 2 | AW155: =LOOKUP(AV155,AV153:AV154,AW153:AW154) -> ندارد | AX155: ='1'!C211 -> 1 | AY155: =LOOKUP(AX155,AX153:AX154,AY153:AY154) -> ارائه | AZ155: ='1'!$C$215 -> 2 | BA155: =LOOKUP(AZ155,AZ153:AZ154,BA153:BA154) -> غیرمشمول | BB155: =LOOKUP($AR$155,$AR$153:$AR$154,BB153:BB154) -> 
D156: توضیحات : مودی محترم برای عملکرد 1402 در موعد قانونی اقدام به تسلیم اظهارنامه مالیاتی نموده است. مودی اسناد و مدارک مربوطه را به علت عدم حضور ارائه ننمود . میزان فروش یا خدمات ابرازی مودی در اظهارنامه عملکرد مبلغ 15،622،356،000 ريال و گردش حساب بانکی مبلغ 315،417،273،001 ريال و گردش دستگاه پوز مبلغ 173،581،743،001 ريال و فروش در سامانه ارسال صورت معاملات مبلغ 0 ريال و مبلغ فروش در سامانه استخراج اطلاعاتی و پیمان های بلندمدت مبلغ 0 ريال و سایر فروش 0 ريال می باشد. با بررسی درگاه های اطلاعاتی سازمان اطلاعاتی مبنی بر اشتغال به سایر فعالیت ها واصل نگردید و مبنای رسیدگی فعالیت مودی بر اساس اطلاعات سامانه کد اقتصادی و ابرازی مودی در اظهارنامه مودی قرار گرفته است . بنابراین رسیدگی با استناد به دستورالعمل 200/99/522 مورخ 1399/11/27 با در نظر گرفتن نرخ سود فعالیت به شرح اطلاعلات جداول فوق تعیین درآمد می گردد . | AR156: group | AS156: group | AT156: 1 | AU156: عادی | AV156: 1 | AW156: میدانی | AX156: معافیت | AY156: معافیت
AR157: 1 | AS157: اول | AT157: 2 | AU157: اصلاحی | AV157: 2 | AW157: اداری (پشت میزی) | AX157: 1 | AY157: (مشمول معافیت)
B158: ( | AR158: 1 | AS158: دوم | AT158: 3 | AU158: جایگزین | AV158: 3 | AW158: علی‌الرأس | AX158: 2 | AY158: (عدم معافیت)
AR159: 3 | AS159: سوم | AT159: 4 | AU159: سایر | AV159: 4 | AW159: بازرسی | AX159: 3 | AY159: (سایر)
AR160: 3 | AS160: =IF(AR160=1,AS157,IF(AR160=2,AS158,AS159)) -> سوم | AT160: ='1'!C213 -> 1 | AU160: =LOOKUP(AT160,AT156:AT159,AU156:AU159) -> عادی | AV160: ='1'!C214 -> 2 | AW160: =LOOKUP(AV160,AV156:AV159,AW156:AW159) -> اداری (پشت میزی) | AX160: 1 | AY160: =IF(AX155=2,AY158,LOOKUP(AX160,AX157:AX159,AY157:AY159)) -> (مشمول معافیت)
AR161: determiner | AS161: file type | AT161: partnership | AU161: partnership | AV161: partnership
AR162: 1 | AS162: مشارکتی | AT162: درصد شراکت | AU162: درآمد مشمول مالیات هر شریک | AV162: مالیات هرشریک | AW162: تعداد شرکا | AX162: درآمد مشمول مالیات هر شریک قبل معافیت: | AY162: 2
AR163: 2 | AS163: انفرادی | AT163: درصد سهم | AU163: درآمد مشمول مالیات | AV163: مالیات | AW163: تعداد اعضا | AX163: درآمد مشمول مالیات قبل معافیت | AY163: 1
D164: توضیحات : مودی محترم برای عملکرد 1402 در موعد قانونی اقدام به تسلیم اظهارنامه مالیاتی نموده است. مودیقسمتی از اسناد و مدارک مربوطه درخواستی را ارائه نمود . میزان فروش یا خدمات ابرازی مودی در اظهارنامه عملکرد مبلغ 19،161،920،000 ريال و گردش حساب بانکی مبلغ 19،161،920،000 ريال و گردش دستگاه پوز مبلغ 8،786،920،000 ريال و فروش در سامانه ارسال صورت معاملات مبلغ 0 ريال و مبلغ فروش در سامانه استخراج اطلاعاتی و پیمان های بلندمدت مبلغ 874،470،000 ريال و سایر فروش 0 ريال می باشد. با بررسی اسناد و مدارک تسلیمی مودی و تعداد معاملات و بازدید میدانی از محل کسب و پرس و جو از مطلعان مشخص گردید میزان کمیسیون دریافتی از خریداران و فروشندگان مبلغ 1،700،000،000 ريال می باشد و مابقی مبالغ مربوط به اشخاص بوده که به صورت امانی به حساب مودی واریز شده است. با بررسی درگاه های اطلاعاتی سازمان اطلاعاتی مبنی بر اشتغال به سایر فعالیت ها واصل نگردید و مبنای رسیدگی فعالیت مودی بر اساس اطلاعات سامانه کد اقتصادی و ابرازی مودی در اظهارنامه مودی قرار گرفته است . بنابراین رسیدگی با استناد به دستورالعمل 200/99/522 مورخ 1399/11/27 با در نظر گرفتن نرخ سود فعالیت به شرح اطلاعلات جداول فوق تعیین درآمد می گردد . | AR164: 2 | AS164: =LOOKUP($AR$164,$AR$162:$AR$163,AS162:AS163) -> انفرادی | AT164: درصد سهم | AU164: درآمد مشمول مالیات | AV164: مالیات | AW164: تعداد اعضا | AX164: درآمد مشمول مالیات قبل معافیت | AY164: 1
AR165: net 4 compute | AS165: merchant | AT165: remark 186 | AU165: inc af exem | AV165: exem aft adj | AW165: exem adj | AX165: Exem | AY165: income | AZ165: PERCENTAGE | BA165: MAX INC
AR166: =AU166-AT166-AS166 -> 0 | AS166: =IF($AV$155=1,AU166*3/1000,0) -> 0 | AT166: =AU166/1000 -> 0 | AU166: =IF($AR$164=1,AY166-AV166,0) -> 0 | AV166: =MIN(AY166,MAX(0,AX166-AW166)) -> 0 | AW166: =M43 -> 0 | AX166: =IF(AX155=2,0,MAX(0,IF(AR164=2,0,IF(AX160=1,((AR233/'2'!AY162)),0)))) -> 0 | AY166: =IF(AR164=1,$BA$178*AZ166,0) -> 0 | AZ166: =IF(AR164=1,G43%,0) -> 0 | BB166: 1
AR167: =AU167-AT167-AS167 -> 0 | AS167: =IF($AV$155=1,AU167*3/1000,0) -> 0 | AT167: =AU167/1000 -> 0 | AU167: =IF($AR$164=1,AY167-AV167,0) -> 0 | AV167: =MIN(AY167,MAX(0,AX167-AW167)) -> 0 | AW167: 0 | AX167: =IF(AX155=2,0,MAX(0,IF(AR164=2,0,IF(AX160=1,((AR233/'2'!AY162)),0)))) -> 0 | AY167: =IF(AR164=1,$BA$178*AZ167,0) -> 0 | AZ167: =IF(AR164=1,G44%,0) -> 0 | BB167: 2
AR168: =AU168-AT168-AS168 -> 0 | AS168: =IF($AV$155=1,AU168*3/1000,0) -> 0 | AT168: =AU168/1000 -> 0 | AU168: =IF($AR$164=1,AY168-AV168,0) -> 0 | AV168: =MIN(AY168,MAX(0,AX168-AW168)) -> 0 | AW168: 0 | AX168: =IF(AX155=2,0,IF(AR164=2,0,IF(AY162<BB168,0,MAX(0,IF(AX160=1,((AR233/'2'!AY162)),0))))) -> 0 | AY168: =IF(AR164=1,$BA$178*AZ168,0) -> 0 | AZ168: =IF(AR164=1,IF($AY$162>2,G45%,0),0) -> 0 | BB168: 3
AR169: =AU169-AT169-AS169 -> 0 | AS169: =IF($AV$155=1,AU169*3/1000,0) -> 0 | AT169: =AU169/1000 -> 0 | AU169: =IF($AR$164=1,AY169-AV169,0) -> 0 | AV169: =MIN(AY169,MAX(0,AX169-AW169)) -> 0 | AW169: 0 | AX169: =IF(AX155=2,0,IF(AR164=2,0,IF(AY162<BB169,0,MAX(0,IF(AX160=1,((AR233/'2'!AY162)),0))))) -> 0 | AY169: =IF($AR$164=1,$BA$178*AZ169,0) -> 0 | AZ169: =IF(AR164=1,IF($AY$162>3,G46%,0),0) -> 0 | BB169: 4
AR170: =AU170-AT170-AS170 -> 0 | AS170: =IF($AV$155=1,AU170*3/1000,0) -> 0 | AT170: =AU170/1000 -> 0 | AU170: =IF($AR$164=1,AY170-AV170,0) -> 0 | AV170: =MIN(AY170,MAX(0,AX170-AW170)) -> 0 | AW170: 0 | AX170: =IF(AX155=2,0,IF(AR164=2,0,IF(AY162<BB170,0,MAX(0,IF(AX160=1,((AR233/'2'!AY162)),0))))) -> 0 | AY170: =IF($AR$164=1,$BA$178*AZ170,0) -> 0 | AZ170: =IF($AR$164=1,IF($AY$162>4,G47%,0),0) -> 0 | BB170: 5
AR171: =AU171-AT171-AS171 -> 0 | AS171: =IF($AV$155=1,AU171*3/1000,0) -> 0 | AT171: =AU171/1000 -> 0 | AU171: =IF($AR$164=1,AY171-AV171,0) -> 0 | AV171: =MIN(AY171,MAX(0,AX171-AW171)) -> 0 | AW171: 0 | AX171: =IF(AX155=2,0,IF(AR164=2,0,IF(AY162<BB171,0,MAX(0,IF(AX160=1,((AR233/'2'!AY162)),0))))) -> 0 | AY171: =IF($AR$164=1,$BA$178*AZ171,0) -> 0 | AZ171: =IF($AR$164=1,IF($AY$162>5,G48%,0),0) -> 0 | BB171: 6
D172: توضیحات : مودی محترم برای عملکرد 1402 در موعد قانونی اقدام به تسلیم اظهارنامه مالیاتی نموده است. مودی قسمتی از اسناد و مدارک مربوطه درخواستی را ارائه نمود . میزان فروش یا خدمات ابرازی مودی در اظهارنامه عملکرد مبلغ 12،900،000،000 ريال و گردش حساب بانکی مبلغ 94،256،975،814 ريال و گردش دستگاه پوز مبلغ 77،940،264،814 ريال و فروش در سامانه ارسال صورت معاملات مبلغ 0 ريال و مبلغ فروش در سامانه استخراج اطلاعاتی و پیمان های بلندمدت مبلغ 214،950،000 ريال و سایر فروش 0 ريال و مبلغ خرید در سامانه استخراج اطلاعات سازمان مبلغ 3،014،325،438 ريال می باشد. با بررسی اسناد و مدارک تسلیمی مودی و تعداد معاملات و بازدید میدانی از محل کسب و پرس و جو از مطلعان مشخص گردید میزان کمیسیون دریافتی از خریداران و فروشندگان مبلغ 1،700،000،000 ريال می باشد و مابقی مبالغ مربوط به اشخاص بوده که به صورت امانی به حساب مودی واریز شده است. با بررسی درگاه های اطلاعاتی سازمان اطلاعاتی مبنی بر اشتغال به سایر فعالیت ها واصل نگردید و مبنای رسیدگی فعالیت مودی بر اساس اطلاعات سامانه کد اقتصادی و ابرازی مودی در اظهارنامه مودی قرار گرفته است . بنابراین رسیدگی با استناد به دستورالعمل 200/99/522 مورخ 1399/11/27 با در نظر گرفتن نرخ سود فعالیت به شرح اطلاعلات جداول فوق تعیین درآمد می گردد | AR172: 0 | AS172: 0 | AT172: 0 | AU172: 0 | AV172: 0 | AW172: 0 | AX172: =IF(AX155=2,0,IF(AR164=2,0,IF(AY162<BB172,0,MAX(0,IF(AX160=1,((AR233/'2'!AY162)),0))))) -> 0 | AY172: 0 | AZ172: =IF($AR$164=1,IF($AY$162>6,G49%,0),0) -> 0 | BB172: 7
AR173: 0 | AS173: 0 | AT173: 0 | AU173: 0 | AV173: 0 | AW173: 0 | AX173: =IF(AX155=2,0,IF(AR164=2,0,IF(AY162<BB173,0,MAX(0,IF(AX160=1,((AR233/'2'!AY162)),0))))) -> 0 | AY173: 0 | AZ173: =IF($AR$164=1,IF($AY$162>7,G50%,0),0) -> 0 | BB173: 8
AR174: 0 | AS174: 0 | AT174: 0 | AU174: 0 | AV174: 0 | AW174: 0 | AX174: =IF(AX155=2,0,IF(AR164=2,0,IF(AY162<BB174,0,MAX(0,IF(AX160=1,((AR233/'2'!AY162)),0))))) -> 0 | AY174: 0 | AZ174: =IF($AR$164=1,IF($AY$162>8,G51%,0),0) -> 0 | BB174: 9
AR175: 0 | AS175: 0 | AT175: 0 | AU175: 0 | AV175: 0 | AW175: 0 | AX175: =IF(AX155=2,0,IF(AR164=2,0,IF(AY162<BB175,0,MAX(0,IF(AX160=1,((AR233/'2'!AY162)),0))))) -> 0 | AY175: 0 | AZ175: =IF($AR$164=1,IF($AY$162>9,G52%,0),0) -> 0 | BB175: 10
AY176: =$BA$178*AZ176 -> 0 | AZ176: 0 | BA176: =IF('1'!$C$211=1,'1'!G29-'5'!T118,0) -> 0 | BB176: tax return
AY177: =$BA$178*AZ177 -> 0 | AZ177: 0 | BA177: =U39+'5'!U109+'5'!U110-'5'!U118 -> 2744000000 | BB177: net inc after adj
AR178: =AU178-AT178-AS178 -> 1742256000 | AS178: =IF($AV$155=1,AU178*3/1000,0) -> 0 | AT178: =AU178/1000 -> 1744000 | AU178: =AY178-AV178 -> 1744000000 | AV178: =IF(AR164=2,MIN(AY178,MAX(0,AX178-AW178)),SUM(AV166:AV175)) -> 1000000000 | AW178: =M53 -> 0 | AX178: =AR236 -> 1000000000 | AY178: =$BA$178*AZ178 -> 2744000000 | AZ178: =IF(AR164=1,SUMIF(BB166:BB175,"<="&AY162,AZ166:AZ175),1) -> 1 | BA178: =MAX(BA177,BA176) -> 2744000000 | BB178: TOTAL
AV179: new | AW179: =P10 -> 1403 | AX179: 1400 | AY179: perc af adj | AZ179: adj 131 | BA179: perc | BB179: num
D180: توضیحات : مودی محترم برای عملکرد 1402 در موعد قانونی اقدام به تسلیم اظهارنامه مالیاتی نمود. مودی قسمتی از اسناد و مدارک مربوط به حساب خود را ارائه نمود . میزان فروش یا خدمات ابرازی مودی در اظهارنامه عملکرد مبلغ 58،00،000،000 ريال و گردش حساب بانکی مبلغ 99،044،143،100 ريال و گردش دستگاه پوز مبلغ 48،529،143،100 ريال و فروش در سامانه ارسال صورت معاملات مبلغ 0 ريال و مبلغ فروش در سامانه استخراج اطلاعات ( مبلغ پیمان های بلندمدت ) مبلغ 0 ريال و سایر فروش 0 ريال می باشد. با بررسی درگاه های اطلاعاتی سازمان اطلاعاتی مبنی بر اشتغال به سایر فعالیت ها واصل نگردید و مبنای رسیدگی فعالیت مودی بر اساس اطلاعات سامانه کد اقتصادی و ابرازی مودی در اظهارنامه مودی قرار گرفته است . با بررسی به عمل آمده معلوم گردید مودی علاوه بر فروش دام، رد شغل پرورش دام سبک (دامداری) نیز فعالیت داشته و مبلغ 25،000،000،000 ريال تحت عنوان ماده 81 لحاظ گردید . طبق نامه میدان دواب و بررسی های به عمل آمده مودی فروش کاه و کلش داشته است . بنابراین رسیدگی با استناد به دستورالعمل 200/99/522 مورخ 1399/11/27 با در نظر گرفتن نرخ سود فعالیت به شرح اطلاعلات جداول فوق تعیین درآمد می گردد . | AV180: 0 | AW180: 2000000000 | AX180: 500000000 | AY180: =(BA180-AZ180)% -> 0.15 | AZ180: 0 | BA180: 15 | BB180: 1
AV181: 0 | AW181: 4000000000 | AX181: 1000000000 | AY181: =(BA181-AZ181)% -> 0.2 | AZ181: 0 | BA181: 20 | BB181: 2
AV182: 0 | AW182: 0 | AX182: 0 | AY182: =(BA182-AZ182)% -> 0.25 | AZ182: 0 | BA182: 25 | BB182: 3
AV183: 0 | AW183: 0 | AX183: 0 | AY183: 0 | AZ183: 0 | BA183: 0 | BB183: 4
AV184: 0 | AW184: 0 | AX184: 0 | AY184: 0 | AZ184: 0 | BA184: 0 | BB184: 5
BB185: 6
BB186: 7
BB187: 8
BB188: 9
BB189: 10
AS190: ="" ->  | AV190: =IF(BB190<=1400,1400,BB190) -> 1403 | AZ190: =BB190 -> 1403 | BA190: 1400 | BB190: =AW179 -> 1403
AR191: سهم شریک اول | AS191: =IF($AR$164=1,AR191,$AS$190) ->  | AV191: =LOOKUP(AV190,AZ190:BA190,AZ191:BA191) -> 0 | AZ191: =IF(AR166<=$AW$180,AR166*$AY$180,IF(AR166<=$AW$181,($AW$180*$AY$180)+(AR166-$AW$180)*$AY$181,($AW$180*$AY$180)+(($AW$181-$AW$180)*$AY$181)+(AR166-$AW$181)*$AY$182)) -> 0 | BA191: =IF(AR166<=$AX$180,AR166*$AY$180,IF(AR166<=$AX$181,($AX$180*$AY$180)+(AR166-$AX$180)*$AY$181,($AX$180*$AY$180)+(($AX$181-$AX$180)*$AY$181)+(AR166-$AX$181)*$AY$182)) -> 0 | BB191: =BB166 -> 1
AR192: سهم شریک دوم | AS192: =IF($AR$164=1,AR192,$AS$190) ->  | AV192: =LOOKUP($AV$190,$AZ$190:$BA$190,AZ192:BA192) -> 0 | AZ192: =IF(AR167<=$AW$180,AR167*$AY$180,IF(AR167<=$AW$181,($AW$180*$AY$180)+(AR167-$AW$180)*$AY$181,($AW$180*$AY$180)+(($AW$181-$AW$180)*$AY$181)+(AR167-$AW$181)*$AY$182)) -> 0 | BA192: =IF(AR167<=$AX$180,AR167*$AY$180,IF(AR167<=$AX$181,($AX$180*$AY$180)+(AR167-$AX$180)*$AY$181,($AX$180*$AY$180)+(($AX$181-$AX$180)*$AY$181)+(AR167-$AX$181)*$AY$182)) -> 0 | BB192: 2
AR193: سهم شریک سوم | AS193: =IF(AND($AR$164=1,'2'!$AY$162>BB192),AR193,$AS$190) ->  | AV193: =LOOKUP($AV$190,$AZ$190:$BA$190,AZ193:BA193) -> 0 | AZ193: =IF(AR168<=$AW$180,AR168*$AY$180,IF(AR168<=$AW$181,($AW$180*$AY$180)+(AR168-$AW$180)*$AY$181,($AW$180*$AY$180)+(($AW$181-$AW$180)*$AY$181)+(AR168-$AW$181)*$AY$182)) -> 0 | BA193: =IF(AR168<=$AX$180,AR168*$AY$180,IF(AR168<=$AX$181,($AX$180*$AY$180)+(AR168-$AX$180)*$AY$181,($AX$180*$AY$180)+(($AX$181-$AX$180)*$AY$181)+(AR168-$AX$181)*$AY$182)) -> 0 | BB193: 3
AR194: سهم شریک چهارم | AS194: =IF(AND($AR$164=1,'2'!$AY$162>BB193),AR194,$AS$190) ->  | AV194: =LOOKUP($AV$190,$AZ$190:$BA$190,AZ194:BA194) -> 0 | AZ194: =IF(AR169<=$AW$180,AR169*$AY$180,IF(AR169<=$AW$181,($AW$180*$AY$180)+(AR169-$AW$180)*$AY$181,($AW$180*$AY$180)+(($AW$181-$AW$180)*$AY$181)+(AR169-$AW$181)*$AY$182)) -> 0 | BA194: =IF(AR169<=$AX$180,AR169*$AY$180,IF(AR169<=$AX$181,($AX$180*$AY$180)+(AR169-$AX$180)*$AY$181,($AX$180*$AY$180)+(($AX$181-$AX$180)*$AY$181)+(AR169-$AX$181)*$AY$182)) -> 0 | BB194: 4
AR195: سهم شریک پنجم | AS195: =IF(AND($AR$164=1,'2'!$AY$162>BB194),AR195,$AS$190) ->  | AV195: =LOOKUP($AV$190,$AZ$190:$BA$190,AZ195:BA195) -> 0 | AZ195: =IF(AR170<=$AW$180,AR170*$AY$180,IF(AR170<=$AW$181,($AW$180*$AY$180)+(AR170-$AW$180)*$AY$181,($AW$180*$AY$180)+(($AW$181-$AW$180)*$AY$181)+(AR170-$AW$181)*$AY$182)) -> 0 | BA195: =IF(AR170<=$AX$180,AR170*$AY$180,IF(AR170<=$AX$181,($AX$180*$AY$180)+(AR170-$AX$180)*$AY$181,($AX$180*$AY$180)+(($AX$181-$AX$180)*$AY$181)+(AR170-$AX$181)*$AY$182)) -> 0 | BB195: 5
AR196: سهم شریک ششم | AS196: =IF(AND($AR$164=1,'2'!$AY$162>BB195),AR196,$AS$190) ->  | AV196: =LOOKUP($AV$190,$AZ$190:$BA$190,AZ196:BA196) -> 0 | AZ196: =IF(AR171<=$AW$180,AR171*$AY$180,IF(AR171<=$AW$181,($AW$180*$AY$180)+(AR171-$AW$180)*$AY$181,($AW$180*$AY$180)+(($AW$181-$AW$180)*$AY$181)+(AR171-$AW$181)*$AY$182)) -> 0 | BA196: =IF(AR171<=$AX$180,AR171*$AY$180,IF(AR171<=$AX$181,($AX$180*$AY$180)+(AR171-$AX$180)*$AY$181,($AX$180*$AY$180)+(($AX$181-$AX$180)*$AY$181)+(AR171-$AX$181)*$AY$182)) -> 0 | BB196: 6
AR197: سهم شریک هفتم | AS197: =IF(AND($AR$164=1,'2'!$AY$162>BB196),AR197,$AS$190) ->  | AV197: 0 | AZ197: 0 | BA197: 0 | BB197: 7
AR198: سهم شریک هشتم | AS198: =IF(AND($AR$164=1,'2'!$AY$162>BB197),AR198,$AS$190) ->  | AV198: 0 | AZ198: 0 | BA198: 0 | BB198: 8
AR199: سهم شریک نهم | AS199: =IF(AND($AR$164=1,'2'!$AY$162>BB198),AR199,$AS$190) ->  | AV199: 0 | AZ199: 0 | BA199: 0 | BB199: 9
AR200: سهم شریک دهم | AS200: =IF(AND($AR$164=1,'2'!$AY$162>BB199),AR200,$AS$190) ->  | AV200: 0 | AZ200: 0 | BA200: 0 | BB200: 10
AV201: =LOOKUP($AV$190,$AZ$190:$BA$190,AZ201:BA201) -> 261338400 | AY201: 2 | AZ201: =IF(AR178<=AW180,AR178*$AY$180,IF(AR178<=AW181,(AW180*$AY$180)+(AR178-AW180)*$AY$181,(AW180*$AY$180)+((AW181-AW180)*$AY$181)+(AR178-AW181)*$AY$182)) -> 261338400 | BA201: =IF(AR178<=AX180,AR178*$AY$180,IF(AR178<=AX181,(AX180*$AY$180)+(AR178-AX180)*$AY$181,(AX180*$AY$180)+((AX181-AX180)*$AY$181)+(AR178-AX181)*$AY$182)) -> 360564000 | BB201: solitar
AV202: =LOOKUP($AV$190,$AZ$190:$BA$190,AZ202:BA202) -> 0 | AY202: 1 | AZ202: =SUM(AZ191:AZ200) -> 0 | BA202: =SUM(BA191:BA200) -> 0 | BB202: partnershi
AV203: =IF(AR164=1,AV202,AV201) -> 261338400 | BB203: result
AR207: 66000000 | AS207: 1391 | AT207: =M43 -> 0 | AU207: PERCENTAGE | AV207: 1 | AW207: income | AX207: tax return statement
AR208: 100000000 | AS208: 1392 | AT208: =M44 -> 0 | AU208: =G43 -> 50 | AV208: 2 | AW208: - | AX208: 1393 | AZ208: 500000000 | BB208: 1000000000
AR209: 120000000 | AS209: 1393 | AT209: =M45 -> 0 | AU209: =G44 -> 30 | AV209: 3 | AW209: - | AX209: 1394 | AY209: 500000000 | AZ209: 500000000 | BB209: 1000000000
AR210: 138000000 | AS210: 1394 | AT210: =M46 -> 0 | AU210: =G45 -> 20 | AV210: 4 | AW210: - | AX210: 1395 | AY210: 1000000000 | AZ210: 500000000 | BB210: 1000000000
AR211: 156000000 | AS211: 1395 | AT211: =M47 -> 0 | AU211: =G46 -> 20 | AV211: 5 | AW211: - | AX211: 1396 | AZ211: 500000000 | BB211: 1000000000
AR212: 180000000 | AS212: 1396 | AT212: =M53 -> 0 | AU212: =G53 -> 100 | AV212: 6 | AW212: - | AX212: 1397 | AY212: 0.15 | AZ212: 500000000 | BB212: 1000000000
O213: =A213:J2082060011عمده فروشی روغن ->  | AR213: 216000000 | AS213: 1397 | AV213: 7 | AW213: - | AX213: 1398 | AY213: 0.2 | AZ213: 500000000 | BB213: 1000000000
AR214: 258000000 | AS214: 1398 | AV214: 8 | AW214: - | AX214: 1399 | AY214: 0.25 | AZ214: 500000000 | BB214: 1000000000
AR215: 288000000 | AS215: 1399 | AV215: 9 | AW215: - | AX215: 1400 | AZ215: 500000000 | BB215: 1000000000
AR216: 360000000 | AS216: 1400 | AV216: 10 | AW216: - | AX216: 1401 | AZ216: 2000000000 | BB216: 4000000000
AR217: 396000000 | AS217: 1401 | AV217: 11 | AW217: - | AX217: 1402 | AZ217: 2000000000 | BB217: 4000000000
AR218: ='1'!K148 -> 475000000 | AS218: 1402 | AV218: 12 | AW218: - | AX218: 1403 | AZ218: 2000000000 | BB218: 4000000000
AR219: ='1'!K149 -> 1000000000 | AS219: 1403 | AV219: 13 | AW219: - | AX219: 1404 | AZ219: 2000000000 | BB219: 4000000000
AR220: ='1'!K150 -> 2000000000 | AS220: 1404 | AV220: 14 | AW220: - | AX220: 1405 | AZ220: 2000000000 | BB220: 4000000000
AR221: ='1'!K151 -> 0 | AS221: 1405 | AV221: 15 | AW221: - | AX221: 1406 | AZ221: 2000000000 | BB221: 4000000000
AR222: ='1'!K152 -> 0 | AS222: 1406 | AV222: 16 | AW222: - | AX222: 1407 | AZ222: 2000000000 | BB222: 4000000000
AR223: ='1'!K153 -> 0 | AS223: 1407 | AV223: 17 | AW223: - | AX223: 1408 | AZ223: 2000000000 | BB223: 4000000000
AR224: ='1'!K154 -> 0 | AS224: 1408 | AV224: 18 | AW224: - | AX224: 1409 | AZ224: 2000000000 | BB224: 4000000000
AR225: ='1'!#REF! ->  | AS225: 1409 | AV225: 19 | AW225: - | AX225: 1410 | AZ225: 2000000000 | BB225: 4000000000
AR226: ='1'!#REF! ->  | AS226: 1410 | AV226: 20 | AW226: - | AX226: 1411 | AZ226: 2000000000 | BB226: 4000000000
AR227: ='1'!#REF! ->  | AS227: 1411 | AV227: 21 | AW227: - | AX227: 1412 | AZ227: 2000000000 | BB227: 4000000000
AR228: ='1'!#REF! ->  | AS228: 1412 | AV228: 22 | AW228: - | AX228: 1413 | AZ228: 2000000000 | BB228: 4000000000
AR229: ='1'!#REF! ->  | AS229: 1413 | AV229: 23 | AW229: - | AX229: 1414 | AZ229: 2000000000 | BB229: 4000000000
AR230: ='1'!K157 -> 0 | AS230: 1414 | AV230: 24 | AW230: - | AX230: 1415 | AZ230: 2000000000 | BB230: 4000000000
AR231: ='1'!K158 -> 0 | AS231: 1415 | AV231: 25 | AW231: - | AX231: 1416 | AZ231: 2000000000 | BB231: 4000000000
AR232: =LOOKUP(AS232,AS207:AS222,AR207:AR222) -> 1000000000 | AS232: =P10 -> 1403 | AV232: solitary | AW232: - | AX232: 1417 | AZ232: 2000000000 | BB232: 4000000000
AR233: =AR232*2 -> 2000000000 | AS233: =P10 -> 1403 | AV233: partnership | AW233: - | AX233: ='1'!E9 -> 1403 | AZ233: =LOOKUP(AX233,AX208:AX232,AZ208:AZ232) -> 2000000000 | BB233: =LOOKUP(AX233,AX208:AX218,BB208:BB218) -> 4000000000
AR234: =IF(AR164=2,AR232-M53,((AR232*2)-SUM(AD44:AD48))) -> 1000000000 | AS234: =P10 -> 1403 | AV234: adjustment | AW234: ='5'!T124 -> 0 | AX234: tax return | AZ234: =MAX(0,AW234) -> 0 | BB234: =IF(AZ234<=$AZ$233,AZ234*15%,IF(AZ234<=$BB$233,($AZ$233*15%)+(AZ234-$AZ$233)*20%,($AZ$233*15%)+(($BB$233-$AZ$233)*20%)+(AZ234-$BB$233)*25%)) -> 0
D235: توضیحات : مودی محترم برای عملکرد 1401 در موعد قانونی در شغل عمده فروشی روغن اقدام به تسلیم اظهارنامه مالیاتی نموده و با توجه به بررسی ها و تحقیقات میدانی و اینکه با جستجو در درگاه های اطلاعاتی سازمان مبنی بر اشتغال به سایر فعالیت ها موردی یافت نشد بنابراین مبنای رسیدگی فعالیت مودی بر اساس اینتاکد سامانه کد اقتصادی و مدارک ارائه شده مودی (علافی) قرار گرفته و رسیدگی با استناد به دستورالعمل 200/99/522 مورخ 1399/11/27 با در نظر گرفتن نرخ سود فعالیت به شرح جدول فوق تعیین درآمد می گردد. 1. با بررسی صورتحساب های بانکی مبلغ ....................... ریال از بابت انتقال پول مابین حساب های شخصی خویش بوده است 2. برابر صورتحساب ارائه شده بانک یک فقره تسهیلات به مبلغ ................... ریال به حساب مودی واریز شده است 3. بنا به اعلام مودی مبنی بر اینکه فروش نهاده های کشاورزی شرکت کشت و صنعت قره آغاج به شناسه ملی ................ را به مبلغ .................... ریال را به کارتخوان شخص حقیقی کشیده در حالی که فروش مزبور به صورت کارمزدی بوده که کارمزد آن به نام شرکت طی نامه شماره ................... مورخ 1402/08/23 واصل شده است و برابر گزارش شماره ............ مورخ 1402/09/05 کارشناس ارشد مالیاتی صحت ادعای مودی به علت یکسان بودن محل فعالیت شرکت و شخص حقیقی مورد تایید قرار گرفته است که مبلغ فوق غیر تجاری لحاظ می گردد 4. مبلغ ........................ برابر نامه شماره 18561 مورخ 1402/09/15 توزیع بذر کارمزدی داشته و به علت اینکه خریدار و فروشنده هیچ کدام در صورت معاملات فصلی ثبت ننموده اند به صورت عمده فروشی در گزارش لحاظ می گردد. | AR235: =IF(OR(AX160=2,AX155=2),0,AR234) -> 1000000000 | AS235: =P10 -> 1403 | AV235: =K42 -> (مشمول معافیت) | AW235: =Q95 -> 0 | AX235: hide | AZ235: =MAX(0,AW235-$AR$236) -> 0 | BB235: 0
AR236: =IF(AR164=2,IF(AR235>BA178,MAX(0,BA178),MAX(0,AR235)),IF(AR235>BA178,MAX(0,BA178),MAX(0,AR235))) -> 1000000000 | AS236: =P10 -> 1403 | AV236: last | AW236: =O111*999/1000 -> 0 | AX236: hide artax-m | AZ236: =MAX(0,AW236) -> 0 | BB236: 0
AW237: =O112*0.999 -> 999000000 | AX237: hide artax-e | AZ237: =MAX(0,AW237) -> 999000000 | BB237: 149850000
AW238: =Q92 -> 0 | AX238: hide az | AZ238: =MAX(0,AW238-$AR$236) -> 0 | BB238: 0
AW239: =MAX(0,I92) -> 0 | AX239: hide az | AZ239: 0 | BB239: 0
AZ240: 0 | BB240: 0
AZ241: 0 | BB241: 0
AZ242: 0 | BB242: 0
AZ243: 0 | BB243: 0
AZ244: 0 | BB244: 0
AZ245: 0 | BB245: 0
... 46 more rows

Sheet 3
C2: صفحه اصلی | F2: گام بعدی | J2: سود و زیان | L2: ماده 169 و سامانه مودیان | N2: پیشرفته | P2: کاربرگ جرائم | R2: مهم | S2: مهم | U2: کاربرگ نهایی
F5: کاربرگ محاسبات حسابرسی - شرکت | V5: ویرایش صفر | Z5: کاربرگ توضیحات حسابرسی
F7: F | V7: صفحه 1 از 1
C9: مشخصات مؤدی : | H9: نام شخص حقوقی : | L9: ='1'!I7 -> یاسر ناظمی | P9: شناسه مؤدی : | R9: ='1'!I9 -> 16218196470001 | U9: نوع شخصیت: | V9: ='1'!O9 -> حقیقی | Z9: برای باز کردن قفل و انجام تغییرات دلخواه در فرمول ها از تب Review گزینه unprotect sheet را انتخاب نمایید
H10: اداره کل امور مالیاتی : | L10: ='1'!E63 -> اردبيل | P10: واحد مالیاتی : | R10: ='1'!I63 -> 610400 | U10: نوع فعالیت : | V10: ='1'!G11 -> دندانپزشکی
C11: جزییات مورد حسابرسی : | H11: نوع اظهارنامه : | J11: ='1'!G19 -> عادی | L11: منبع مالیاتی : | N11: شرکت ها | P11: سال عملکرد : | R11: ='1'!E9 -> 1403 | U11: شماره اظهارنامه : | V11: =IF('1'!C211=1,'1'!G21,"عدم تسلیم") -> 3247124679
H12: نوع حسابرسی : | J12: ='1'!O25 -> اداری (پشت میزی) | L12: ابرازی سال قبل : | N12: ='1'!O19 -> 0 | P12: دوره مالیاتی : | R12: 1 | U12: تاریخ اظهارنامه : | V12: ='1'!G23 -> 1402/02/29
C13: ='10'!D12 -> کد پستی و آدرس : | E13: ='1'!G33 -> 5618694316 | H13: ='1'!H33 -> مرکزی شهرک آیت الله کاشانی کوچه ((احد اصولی)) کوچه شهیدنجف کوشش پلاک 0 طبقه همکف | U13: موبایل : | V13: ='1'!O11 -> 9127212385
D14: 1
C15: فروش ابرازی - اظهارنامه | E15: فروش -صورت معاملات | G15: فروش سیستم استخراج | J15: کد رهگیری | K15: فروش (ارزش افزوده) | N15: فروش - سامانه مودیان | P15: گردش حساب بانکی | R15: دفاتر روزنامه و کل | U15: نرخ تخفیف در ضریب | W15: ضریب مالیات
C16: ='1'!G25 -> 0 | E16: ='1'!J50 -> 0 | G16: ='1'!K17 -> 0 | J16: 0 | K16: ='1'!J60 -> 0 | N16: ='1'!K21 -> 0 | P16: ='1'!K13 -> 0 | R16: ='1'!O13 -> غیر مشمول | U16: 0 | W16: =('1'!I216*(1-U16%))-U19 -> 25
C18: ='1'!E29 -> سود ابرازی : | E18: خرید - صورت معاملات | G18: خرید سیستم استخراج | J18: کد رهگیری | K18: خرید ارزش افزوده | N18: خرید - سامانه مودیان | P18: گردش POS | R18: ترازنامه و سود و زیان | U18: نرخ تخفیف در ضریب | W18: معافیت های مقرر در ماده 133
C19: ='1'!G29 -> 0 | E19: ='1'!L50 -> 0 | G19: ='1'!K19 -> 0 | J19: 0 | K19: ='1'!L60 -> 0 | N19: ='1'!K23 -> 0 | P19: ='1'!K15 -> 0 | R19: ='1'!O15 -> ارائه | U19: 0 | W19: 0
C21: نحوه رسیدگی | F21: کارت بازرگانی | H21: نوع شرکت | J21: تعدیلات | K21: تعدیلات سود (زیان) سنواتی | M21: سود درآمدهای مشمول مالیات مقطوع | P21: درآمد (هزینه)های معاف،نرخ صفر ، ماده 81 ، ... | Q21: کمک های پرداختی و خسارات ( ماده 165،172، ... ) | U21: استهلاک زیان انباشته از سنوات قبل | W21: مجموع تعدیلات
C22: ='1'!O23 -> فروش برآوردی | F22: ='1'!$O$29 -> ندارد | H22: =IF('1'!$C$170=2,'1'!O27,0) -> 0 | J22: ابرازی : | K22: ='1'!E37 -> 0 | M22: ='1'!F37 -> 0 | P22: ='1'!I37 -> 0 | Q22: ='1'!K37 -> 0 | U22: ='1'!M37 -> 0 | W22: =SUM(K22:V22) -> 0
J23: تشخیصی : | K23: 0 | M23: 0 | P23: =V38+V39 -> 0 | Q23: 0 | U23: 0 | W23: =SUM(K23:V23) -> 0
C25: فروش | D25: اینتاکد | E25: شرح | O25: فروش / ارائه خدمات | R25: =BV87 -> نرخ سود(درصد) | T25: توضیحات | V25: درآمد مشمول | Z25: ضرایب 1401 جهت راهنمایی
C26: فروش اصلی | D26: 3120070 | E26: =EA26 -> فنی و تأسیساتی ( در صورتیکه مصالح ، لوازم و تجهیزات موردنی از توسط کارفرما تأمین شودو مابقی هزینه های اجرای پروژه توسط | O26: 34155873760 | R26: 20 | T26: دست اول | V26: =IFERROR(IF('2'!$AR$155=2,O26*R26%,O26-R26),0) -> 6831174752 | Z26: =IFERROR(IF('2'!$AR$155=1,"طبق دفاتر",DZ26),0) -> 20 | DZ26: =IFERROR(VLOOKUP(D26,Int!$D$7:$I$3368,3,0),"") -> 20 | EA26: =IFERROR(VLOOKUP(D26,Int!$D$7:$I$3368,2,0),"") -> فنی و تأسیساتی ( در صورتیکه مصالح ، لوازم و تجهیزات موردنی از توسط کارفرما تأمین شودو مابقی هزینه های اجرای پروژه توسط
C27: سایر مبالغ فروش | O27: 0 | V27: =O27*R27% -> 0 | Z27: =DZ27 ->  | DZ27: =IFERROR(VLOOKUP(D27,Int!$D$7:$I$3368,3,0),"") ->  | EA27: =IFERROR(VLOOKUP(D27,Int!$D$7:$I$3368,2,0),"") -> 
U28: ماده 81 | V28: =O28*R28% -> 0 | DZ28: =IFERROR(VLOOKUP(D28,Int!$D$7:$I$3368,3,0),"") ->  | EA28: =IFERROR(VLOOKUP(D28,Int!$D$7:$I$3368,2,0),"") -> 
V29: 0 | DZ29: =IFERROR(VLOOKUP(D29,Int!$D$7:$I$3368,3,0),"") ->  | EA29: =IFERROR(VLOOKUP(D29,Int!$D$7:$I$3368,2,0),"") -> 
V30: 0 | DZ30: =IFERROR(VLOOKUP(D30,Int!$D$7:$I$3368,3,0),"") ->  | EA30: =IFERROR(VLOOKUP(D30,Int!$D$7:$I$3368,2,0),"") -> 
V31: 0 | DZ31: =IFERROR(VLOOKUP(D31,Int!$D$7:$I$3368,3,0),"") ->  | EA31: =IFERROR(VLOOKUP(D31,Int!$D$7:$I$3368,2,0),"") -> 
V32: 0 | DZ32: =IFERROR(VLOOKUP(D32,Int!$D$7:$I$3368,3,0),"") ->  | EA32: =IFERROR(VLOOKUP(D32,Int!$D$7:$I$3368,2,0),"") -> 
V33: 0 | DZ33: =IFERROR(VLOOKUP(D33,Int!$D$7:$I$3368,3,0),"") ->  | EA33: =IFERROR(VLOOKUP(D33,Int!$D$7:$I$3368,2,0),"") -> 
V34: 0 | DZ34: =IFERROR(VLOOKUP(D34,Int!$D$7:$I$3368,3,0),"") ->  | EA34: =IFERROR(VLOOKUP(D34,Int!$D$7:$I$3368,2,0),"") -> 
E35: =EA35 ->  | V35: 0 | DZ35: =IFERROR(VLOOKUP(D35,Int!$D$7:$I$3368,3,0),"") ->  | EA35: =IFERROR(VLOOKUP(D35,Int!$D$7:$I$3368,2,0),"") -> 
E36: =EA36 ->  | V36: 0 | DZ36: =IFERROR(VLOOKUP(D36,Int!$D$7:$I$3368,3,0),"") ->  | EA36: =IFERROR(VLOOKUP(D36,Int!$D$7:$I$3368,2,0),"") -> 
E37: =EA37 ->  | V37: =O37*R37% -> 0 | DZ37: =IFERROR(VLOOKUP(D37,Int!$D$7:$I$3368,3,0),"") ->  | EA37: =IFERROR(VLOOKUP(D37,Int!$D$7:$I$3368,2,0),"") -> 
C38: فروش معاف | E38: =EA38 ->  | F38: =EA38 ->  | R38: 0 | V38: =IFERROR(O38*R38%,0) -> 0 | DZ38: =IFERROR(VLOOKUP(D38,Int!$D$7:$I$3368,3,0),"") ->  | EA38: =IFERROR(VLOOKUP(D38,Int!$D$7:$I$3368,2,0),"") -> 
E39: =EA39 ->  | F39: =EA39 ->  | R39: 0 | V39: =IFERROR(O39*R39%,0) -> 0 | DZ39: =IFERROR(VLOOKUP(D39,Int!$D$7:$I$3368,3,0),"") ->  | EA39: =IFERROR(VLOOKUP(D39,Int!$D$7:$I$3368,2,0),"") -> 
C40: مجموع | O40: =SUM(O26:Q39) -> 34155873760 | R40: =IF('2'!$AR$155=1,SUM(R26:R37),"") ->  | V40: =SUM(V26:X39) -> 6831174752
C42: درآمد اتفاقی به نرخ ماده 131 | H42: ابرازی | J42: تشخیصی | L42: تعدیلات هزینه های برگشتی | Q42: مجموع فروش و خدمات (به جز اتفاقی ) : | R42: مجموع فروش و خدمات (به جز اتفاقی ) : | V42: ='3'!O40+'3'!O38+'3'!O39 -> 34155873760
C43: درآمد (فروش) | H43: 0 | J43: 0 | L43: تعدیلات هزینه های برگشتی اداری : | P43: ='4'!J32 -> 0 | R43: مجموع خرید و هزینه ها ( جهت ثبت در اریس ) : | V43: =V42-V44 -> 27324699008
C44: هزینه | H44: 0 | J44: 0 | L44: تعدیلات هزینه های برگشتی عملیاتی : | P44: ='4'!J33 -> 0 | R44: درآمد مشمول مالیات بعد از کسر تعدیلات و معافیت ها : | V44: ='5'!X121 -> 6831174752
C45: سود | H45: =MAX(0,H43-H44) -> 0 | J45: =MAX(0,J43-J44) -> 0 | L45: مجموع تعدیلات : | P45: =SUM(P43:P44) -> 0 | R45: مالیات متعلقه :( به جز اتفاقی ) | V45: ='5'!X124 -> 1707793688
C46: مالیات متعلقه | H46: =BQ113 -> 0 | J46: =BQ112 -> 0 | L46: Designed By Yaser Nazemi - Ardabil Provience | R46: مجموع مالیات متعلقه : | V46: =V45+J46 -> 1707793688
C48: توضیحات : مودی محترم برای عملکرد 1402 در موعد قانونی برای شغل نسوزکاری اقدام به تسلیم اظهارنامه مالیاتی نموده ولی اسناد و مدارک حسابداری و دفاتر از طرف مودی ارائه نگردید . میزان فروش یا خدمات ابرازی مودی در اظهارنامه عملکرد مبلغ 14،257،561،756 ريال و ابرازی در اظهارنامه ارزش افرزش دوره های مالیاتی سال 1402 مبلغ 34،155،873،760 ريال و گردش حساب بانکی مبلغ 8،579،099،357 ريال و فروش در سامانه ارسال صورت معاملات مبلغ 27،470،912،760 ريال و مبلغ فروش در سامانه استخراج اطلاعات مبلغ 0 ريال می باشد. با بررسی درگاه های اطلاعاتی سازمان و تحقیقات میدانی اطلاعاتی مبنی بر اشتغال به سایر فعالیت ها واصل نگردید بنابراین مبنای رسیدگی فعالیت مودی بر اساس ابرازی مودی در اظهارنامه ارزش افرزش افزوده مودی قرار گرفته و رسیدگی با استناد به دستورالعمل 200/99/522 مورخ 1399/11/27 با در نظر گرفتن نرخ سود فعالیت به شرح جدول فوق تعیین درآمد می گردد .
C56: تاریخ شروع تنظیم کاربرگ حسابرسی : | K56: تاریخ پایان تنظیم کاربرگ حسابرسی: | S56: تایید کننده نهایی :
C57: نام و نام‌خانوادگی حسابرس: | H57: ='1'!F65 -> یاسر ناظمی | K57: نام و نام‌خانوادگی حسابرس مسئول : | P57: ='1'!J65 -> علی بخشی | S57: ='1'!O65 -> حسن حامدی
C58: سمت : | H58: حسابرس | K58: سمت : | P58: رئیس گروه | S58: رئیس امور مالیاتی
BL64: ارسال شده است | BM64: ='10'!BM464 -> فروش برآوردی | BN64: 1 | BO64: سهامی | BQ64: 0.25
BL65: ارسال نشده است | BM65: ='10'!BM463 -> رسیدگی به دفاتر | BN65: 2 | BO65: با مسئولیت محدود | BQ65: 0.25
BL66: دارد | BM66: ='10'!BL465 -> 1 | BN66: 3 | BO66: تضامنی | BQ66: 0.25 | BU66: جمع مالیات
BL67: ندارد | BM67: =IF(BM66=2,BM64,BM65) -> رسیدگی به دفاتر | BN67: 4 | BO67: مختلط غیر سهامی | BQ67: 0.25 | BU67: =#REF!+#REF! -> 
BL68: ارائه شده است | BN68: 5 | BO68: مختلط سهامی | BQ68: 0.25
BL69: ارئه نشده است | BN69: 6 | BO69: نسبی | BQ69: 0.25
BN70: 7 | BO70: تعاونی | BQ70: =BQ65*75% -> 0.1875
BO72: 7
BO73: =LOOKUP(BO72,BN64:BN70,BO64:BO70) -> تعاونی
BO74: =LOOKUP(BO72,BN64:BN70,BQ64:BQ70) -> 0.1875 | BT74: کب | BU74: ='2'!$AV$155 -> 2
BK75: اظهارنامه : | BL75: ='1'!G17 -> ارائه
BK77: 1 | BL77: تعدیلات سنواتی : | BQ77: =K23 -> 0
BK78: 2 | BL78: سود درآمدهایی که مالیات آن قبلا بطور مقطوع پرداخت شده : | BQ78: =M23 -> 0 | BU78: 4
AV79: 1 | BK79: 3 | BL79: درآمد(هزینه)های معاف ، پزشکی،ماده 165،137 و … : | BQ79: =P23 -> 0
BK80: 4 | BL80: کمک های پرداختی (ماده 172) : | BQ80: =Q23 -> 0
BK81: 5 | BL81: استهلاک زیان انباشته : | BQ81: =U23 -> 0
BK82: 6 | BL82: مجموع تعدیلات : | BQ82: =SUM(BQ77:BQ81) -> 0
BT85: 1 | BU85: خرید و هزینه | BV85: خرید و هزینه /ضریب
BT86: 2 | BU86: اینتاکد | BV86: نرخ سود(درصد)
BT87: ='2'!$AR$155 -> 2 | BU87: =LOOKUP($BT$87,$BT$85:$BT$86,BU85:BU86) -> اینتاکد | BV87: =LOOKUP($BT$87,$BT$85:$BT$86,BV85:BV86) -> نرخ سود(درصد)
D88: فروش ابرازی | F88: مستند | H88: تفاوت | N88: percentage | P88: sale | R88: rate | U88: net income | W88: hide | BM88: کتمان | BT88: ='2'!$AR$155 -> 2 | BU88: نحوه رسیدگی
D89: =C16-O38-O39 -> 0 | F89: =SUM(O26:Q37) -> 34155873760 | H89: =MAX(0,F89-D89) -> 34155873760 | W89: =(U104)*25% -> 1707793688 | BM89: 1393 | BO89: 500000000 | BQ89: 1000000000
L90: 1 | N90: =O26/SUM($O$26:$Q$37) -> 1 | P90: =$H$89*N90 -> 34155873760 | Q90: =P26 -> 0 | R90: =R26 -> 20 | U90: =P90*R90% -> 6831174752 | BM90: 1394 | BO90: 500000000 | BQ90: 1000000000 | BT90: inv type | BU90: ='2'!$AR$155 -> 2
L91: 2 | N91: =O27/SUM($O$26:$Q$37) -> 0 | P91: =$H$89*N91 -> 0 | R91: =R27 -> 0 | U91: =P91*R91% -> 0 | BM91: 1395 | BO91: 500000000 | BQ91: 1000000000
L92: 3 | N92: 0 | P92: 0 | R92: 0 | U92: 0 | BM92: 1396 | BO92: 500000000 | BQ92: 1000000000
L93: 4 | N93: 0 | P93: 0 | R93: 0 | U93: 0 | BM93: 1397 | BO93: 500000000 | BQ93: 1000000000
L94: 5 | N94: 0 | P94: 0 | R94: 0 | U94: 0 | BM94: 1398 | BO94: 500000000 | BQ94: 1000000000
L95: 6 | N95: 0 | P95: 0 | R95: 0 | U95: 0 | BM95: 1399 | BO95: 500000000 | BQ95: 1000000000 | BU95: ='1'!#REF! ->  | BV95: مشمول
L96: 7 | N96: 0 | P96: 0 | R96: 0 | U96: 0 | BK96: 0.15 | BM96: 1400 | BO96: 500000000 | BQ96: 1000000000 | BV96: غیرمشمول
L97: 8 | N97: 0 | P97: 0 | R97: 0 | U97: 0 | BK97: 0.2 | BM97: 1401 | BO97: 2000000000 | BQ97: 4000000000 | BV97: =IF(BU95=1,BV95,BV96) -> 
L98: 9 | N98: 0 | P98: 0 | R98: 0 | U98: 0 | BK98: 0.25 | BM98: 1402 | BO98: 2000000000 | BQ98: 4000000000
L99: 10 | N99: 0 | P99: 0 | R99: 0 | U99: 0 | BM99: 1403 | BO99: 2000000000 | BQ99: 4000000000 | BU99: =#REF! -> 
L100: 11 | N100: 0 | P100: 0 | R100: 0 | U100: 0 | BM100: 1404 | BO100: 2000000000 | BQ100: 4000000000
L101: 12 | N101: 0 | P101: 0 | R101: 0 | U101: 0 | BM101: 1405 | BO101: 2000000000 | BQ101: 4000000000
L102: 13 | N102: 0 | P102: 0 | R102: 0 | U102: 0 | BM102: 1406 | BO102: 2000000000 | BQ102: 4000000000
L103: 14 | N103: 0 | P103: 0 | R103: 0 | U103: 0 | BM103: 1407 | BO103: 2000000000 | BQ103: 4000000000
U104: =SUM(U90:U103) -> 6831174752 | BM104: 1408 | BO104: 2000000000 | BQ104: 4000000000
BM105: 1409 | BO105: 2000000000 | BQ105: 4000000000
BM106: 1410 | BO106: 2000000000 | BQ106: 4000000000
BM107: 1411 | BO107: 2000000000 | BQ107: 4000000000
BM108: 1412 | BO108: 2000000000 | BQ108: 4000000000
BM109: 1413 | BO109: 2000000000 | BQ109: 4000000000
BM110: 1414 | BO110: 2000000000 | BQ110: 4000000000
BL111: 0 | BM111: ='1'!E9 -> 1403 | BO111: =LOOKUP(BM111,BM89:BM110,BO89:BO110) -> 2000000000 | BQ111: =LOOKUP(BM111,BM89:BM110,BQ89:BQ110) -> 4000000000 | BU111: =BV95 -> مشمول
BM112: مالیات | BO112: =J45 -> 0 | BQ112: =IF(BO112<=$BO$111,BO112*15%,IF(BO112<=$BQ$111,($BO$111*15%)+(BO112-$BO$111)*20%,($BO$111*15%)+(($BQ$111-$BO$111)*20%)+(BO112-$BQ$111)*25%)) -> 0
BM113: مالیات | BO113: =H45 -> 0 | BQ113: =IF(BO113<=$BO$111,BO113*15%,IF(BO113<=$BQ$111,($BO$111*15%)+(BO113-$BO$111)*20%,($BO$111*15%)+(($BQ$111-$BO$111)*20%)+(BO113-$BQ$111)*25%)) -> 0
AM459: 1

Sheet 4
C1: صفحه اصلی | E1: گام بعدی / رد شدن | H1: تهیه شده در اداره کل امور مالیاتی استان اردبیل - یاسر ناظمی | J1: مشاغل | L1: مهم | M1: شرکت
E3: کاربرگ فرعی حسابرسی ( تعدیلات هزینه ها و بهای تمام شده ) | O3: ویرایش صفر
E4: F | O4: صفحه 1 از
C6: مشخصات مؤدی | E6: نام شخص حقوقی/ نام و نام‌خانوادگی: | G6: ='1'!I7 -> یاسر ناظمی | J6: شناسه مؤدی: | K6: ='1'!I9 -> 16218196470001 | M6: نوع شخصیت: | N6: ='1'!O9 -> حقیقی
C7: اداره کل امور مالیاتی | E7: ='1'!E63 -> اردبيل | G7: اداره امور مالیاتی | J7: ='1'!I63 -> 610400 | M7: واحد مالیاتی : | N7: ='1'!J63 -> 0
C8: جزییات مورد حسابرسی | F8: نوع حسابرسی : | G8: ='1'!O25 -> اداری (پشت میزی) | I8: سال عملکرد : | J8: ='1'!$E$9 -> 1403 | K8: ='1'!M27 -> گروه : | M8: ='1'!O27 -> سوم | N8: نوع فعالیت : | O8: ='1'!G11 -> دندانپزشکی
C9: نوع اظهارنامه : | D9: ='1'!G19 -> عادی | F9: منبع مالیاتی : | G9: مشاغل | I9: دوره | J9: 0 | K9: شماره اظهارنامه : | M9: ='1'!G21 -> 3247124679 | N9: تاریخ اظهارنامه : | O9: ='1'!G23 -> 1402/02/29
C11: ردیف | D11: شماره سند/کد حساب | E11: تاریخ سند | F11: شرح سند | H11: اداری / عملیاتی | I11: مبلغ سند | J11: مبلغ قابل تعدیل/غیر قابل قبول | K11: دلیل تعدیل/برگشت
C12: 1 | D12: 225555 | E12: 1402/07/12 | F12: برگشت هزینه | H12: اداری | I12: 20000 | J12: 0
C13: 2 | H13: اداری | I13: 22000
C14: 3 | H14: اداری | I14: 20000 | J14: 0
C15: 4 | H15: عملیاتی
C16: 5 | H16: عملیاتی
C17: 6
C18: 7 | H18: عملیاتی | I18: 22
C19: 8 | I19: 22
C20: 9
C21: 10
C22: 11
C23: 12
C24: 13
C25: 14
C26: 15
C27: 16
C28: 17
C29: 18
C30: 19
C31: 20
C32: مجموع هزینه های برگشتی اداری | I32: =SUMIF(H12:H31,T53,I12:I31) -> 62000 | J32: =SUMIF(H12:H31,T53,J12:J31) -> 0
C33: مجموع هزینه های برگشتی عملیاتی | I33: =SUMIF(H12:H31,T54,I12:I31) -> 22 | J33: =SUMIF(H12:H31,T54,J12:J31) -> 0
C34: جمع کل : | I34: =SUM(I32:I33) -> 62022 | J34: =SUM(J32:J33) -> 0
C36: توضیحات :
C40: تاریخ شروع تنظیم کاربرگ حسابرسی | F40: 14--/--/-- | I40: تاریخ پایان تنظیم کاربرگ حسابرسی | K40: 14--/--/-- | N40: توضیحات: انتقال به گزارش شماره:
C41: نام و نام‌خانوادگی حسابرس | F41: ='1'!F65 -> یاسر ناظمی | I41: نام و نام‌خانوادگی حسابرس مسئول | K41: ='1'!J65 -> علی بخشی | N41: ='1'!O65 -> حسن حامدی
C42: سمت | F42: ='2'!H66 -> حسابرس ارشد | H42: مهر و امضاء | I42: سمت | K42: ='2'!N66 -> رئیس گروه مالیاتی | M42: مهر و امضاء | N42: ='2'!R66 -> سمت : رئیس امور مالیاتی
T53: اداری
T54: عملیاتی

Sheet 5
C1: صفحه اصلی | E1: گام بعدی / رد شدن | G1: مشاغل | H1: شرکت | N1: کاربرگ شرکت ها | P1: برگشت هزینه ها
C2: در صورت نیاز به چاپ صورت سود و زیان فقط موارد آبی تکمیل شود بقیه موارد اتوماتیک تکمیل می باشد
C4: اعمال تغییرات در صورت مغایرت : | E4: مالیات ابرازی در اظهارنامه : ( خودکار محاسبه می شود ولی باز هم در صورت مغایرت مبلغ قرمز رنگ دستی وارد شود ) | I4: =IF(J4=0,IF('1'!$C$170=1,MAX(0,'2'!BB234),W124),J4) -> 0 | J4: 0
C7: کاربرگ نهایی سود و زیان | J7: ویرایش صفر
J8: صفحه 1 از
C9: مشخصات مؤدی | E9: نام و نام‌خانوادگی: | F9: ='10'!K8 -> یاسر ناظمی | G9: شناسه مؤدی: | H9: ='1'!$I$9 -> 16218196470001 | I9: نوع شخصیت: | J9: ='1'!O9 -> حقیقی
C10: جزییات مورد حسابرسی | E10: نوع حسابرسی : | F10: ='10'!K10 -> اداری (پشت میزی) | G10: سال عملکرد: | H10: ='10'!Q10 -> 1403 | I10: دوره مالیاتی: | J10: 1
C11: ='1'!G33 -> 5618694316 | E11: ='1'!H33 -> مرکزی شهرک آیت الله کاشانی کوچه ((احد اصولی)) کوچه شهیدنجف کوشش پلاک 0 طبقه همکف | J11: ='1'!O11 -> 9127212385
C13: ردیف | D13: شرح | G13: ابرازی مودی | H13: نتیجه حسابرسی | I13: توضیحات
C14: 1 | D14: فروش کالا | G14: 0 | H14: 0
C15: 2 | D15: درآمد حاصل از ارائه خدمات | G15: 0 | H15: 0
C16: 3 | D16: درآمد حاصل از فروش دارائیها | G16: 0 | H16: 0
C17: 4 | D17: سایر درآمدها | G17: 0 | H17: 0
C18: 5 | D18: مجموع فروش و درآمدها | G18: =Z107 -> 0 | H18: =AA107 -> 34300000000
C19: 6 | D19: خرید کالا | G19: 0 | H19: 0
C20: 7 | D20: هزینه اجاره محل | G20: 0 | H20: 0
C21: 8 | D21: هزینه حقوق و دستمزد | G21: 0 | H21: 0
C22: 9 | D22: هزینه استهلاک داراییها | G22: 0 | H22: 0
C23: 10 | D23: هزینه آب و برق و ... | G23: 0 | H23: 0
C24: 11 | D24: سایر هزینه ها | G24: 0 | H24: 0
C25: 12 | D25: موجودی کالا در اول دوره | G25: 0 | H25: 0
C26: 13 | D26: موجودی کالا در پایان دوره | G26: 0 | H26: 0
C27: 14 | D27: مجموع خرید و هزینه ها | G27: =Z108 -> 0 | H27: =AA108 -> 31556000000
C28: 15 | D28: تعدیلات هزینه های برگشتی اداری : | G28: - | H28: =AA109 -> 0
C29: 16 | D29: تعدیلات هزینه های برگشتی عملیاتی : | G29: - | H29: 0
C30: 17 | D30: =Y111 -> سود زیان ویژه | G30: =Z111 -> 0 | H30: 2744000000
C31: 18 | D31: اضافه(کسر) می شود به (از) سود زیان خالص
C32: 19 | D32: تعدیلات سود (زیان) سنواتی | G32: 0 | H32: 0
C33: 20 | D33: سود درآمدهای مشمول مالیات مقطوع | G33: 0 | H33: 0
C34: 21 | D34: درآمد(هزینه)های معاف،نرخ صفر ، ماده 81، ... | G34: 0 | H34: 0
C35: 22 | D35: کمک های پرداختی و خسارات ( ماده 165،172) | G35: 0 | H35: 0
C36: 23 | D36: استهلاک زیان انباشته از سنوات قبل | G36: 0 | H36: 0
C37: 24 | D37: جمع تعدیلات : | G37: 0 | H37: 0
C38: 25 | D38: درامدمشمول مالیات قبل از معافیت ماده 101 | G38: 0 | H38: 2744000000
C39: 26 | D39: معافیت ماده 101 ق .م .م . | G39: 0 | H39: 1000000000
C40: 27 | D40: درآمد مشمول مالیات بعد از معافیت 101 | G40: 0 | H40: 1744000000
C41: 28 | D41: سهم اتاق بازرگانی ( کارت بازرگانی) | G41: 0 | H41: 0
C42: 29 | D42: موضوع تبصره 2 ماده 186ق.م.م | G42: 0 | H42: 1744000
C43: 30 | D43: درآمد مشمول مالیات خالص | G43: 0 | H43: 1742256000
C44: 31 | D44: مالیات متعلقه | G44: 0 | H44: 261338400
C45: 32 | D45: =Y127 -> مالیات پرداختی در سایر کشورها | G45: 0 | H45: 0
C46: 33 | D46: =Y126 -> تخفیف تبصره ماده 131 | G46: 0 | H46: 0
C47: 34 | D47: مالیات پرداخت شده | G47: 0 | H47: 0
C48: 34 | D48: مالیات قابل پرداخت | G48: 0 | H48: 261338400
C50: =AC134 -> 0
C54: تاریخ شروع تنظیم کاربرگ حسابرسی : | F54: تاریخ پایان کاربرگ حسابرسی : | I54: ='2'!R64 -> نام و نام‌خانوادگی تایید کننده :
C55: نام و نام‌خانوادگی حسابرس: | E55: ='10'!H52 -> یاسر ناظمی | F55: نام و نام‌خانوادگی حسابرس مسئول: | H55: ='10'!Q52 -> علی بخشی | I55: ='2'!R65 -> حسن حامدی
C56: سمت: | E56: ='10'!H53 -> حسابرس | F56: سمت: | H56: مهر و امضاء | I56: ='2'!R66 -> سمت : رئیس امور مالیاتی
AH71: ='10'!I36 -> 0
O72: =H10 -> 1403 | AF72: ='1'!G17 -> ارائه | AG72: ارائه | AH72: دارد
O73: =MAX(IF(#REF!<=500000000,#REF!*0.15,IF(#REF!<=1000000000,75000000+(#REF!-500000000)*0.2,175000000+(#REF!-1000000000)*0.25)),0) ->  | P73: =MAX(IF(#REF!<=500000000,#REF!*0.15,IF(#REF!<=1000000000,75000000+(#REF!-500000000)*0.2,175000000+(#REF!-1000000000)*0.25)),0) ->  | AF73: ='10'!#REF! -> 
O74: =MAX(IF(#REF!<=2000000000,#REF!*0.15,IF(#REF!<=4000000000,300000000+(#REF!-2000000000)*0.2,700000000+(#REF!-4000000000)*0.25)),0) ->  | P74: =MAX(IF(#REF!<=2000000000,#REF!*0.15,IF(#REF!<=4000000000,300000000+(#REF!-2000000000)*0.2,700000000+(#REF!-4000000000)*0.25)),0) -> 
O76: =IF(O72>1400,O74,O73) ->  | P76: =IF(O72>1400,P74,P73) -> 
O79: ='10'!BR465 -> 1
E98: تغییر انجام ندهید
E99: =IF(G100=0,(IF('1'!$C$170=1,MAX(0,MIN(T119,IF('1'!$C$170=1,'2'!AR234,0))),'3'!W19)),G100) -> 0
E100: معافیت ابرازی در اظهارنامه : ( خودکار محاسبه می شود ولی باز هم در صورت مغایرت مبلغ در کادر آبی وارد شود ) | F100: ='1'!G31 -> 0 | G100: 0
R106: ='1'!$C$170 -> 1 | S106: 1 | T106: 1 | U106: 1 | V106: 2 | W106: 2 | X106: 2 | Y106: title | Z106: t.ret | AA106: investigate
R107: ='10'!D21 -> 1 | S107: مجموع فروش و خدمات | T107: ='1'!G25 -> 0 | U107: ='2'!M39 -> 34300000000 | V107: مجموع فروش و خدمات (به جز اتفاقی ) | W107: =T107 -> 0 | X107: ='3'!O40+'3'!O38+'3'!O39 -> 34155873760 | Y107: =IF($R$106=1,S107,V107) -> مجموع فروش و خدمات | Z107: =IF($R$106=1,T107,W107) -> 0 | AA107: 34300000000
R108: ='10'!D22 -> 2 | S108: مجموع خرید و هزینه ها | T108: =T107-T111 -> 0 | U108: =U107-U111 -> 31556000000 | V108: مجموع خرید و هزینه ها قابل قبول | W108: =T108 -> 0 | X108: =X107-X111 -> 27324699008 | Y108: مجموع خرید و هزینه ها | Z108: 0 | AA108: 31556000000
R109: ='10'!D23 -> 3 | S109: تعدیلات هزینه های برگشتی اداری : | U109: ='4'!J32 -> 0 | V109: تعدیلات هزینه های برگشتی اداری : | W109: 0 | X109: ='4'!J32 -> 0 | Y109: تعدیلات هزینه های برگشتی اداری : | Z109: 0 | AA109: 0
R110: ='10'!D24 -> 4 | S110: تعدیلات هزینه های برگشتی عملیاتی : | U110: ='4'!J33 -> 0 | V110: تعدیلات هزینه های برگشتی عملیاتی : | W110: 0 | X110: ='4'!J33 -> 0 | Y110: تعدیلات هزینه های برگشتی عملیاتی : | Z110: 0 | AA110: 0
R111: ='10'!D25 -> 5 | S111: سود زیان ویژه | T111: ='1'!G29 -> 0 | U111: ='2'!U39+'5'!U109+'5'!U110 -> 2744000000 | V111: سود زیان ویژه (پس از کسر خالص درآمد اتفاقی) | W111: 0 | X111: ='3'!V40+X110+X109 -> 6831174752 | Y111: سود زیان ویژه | Z111: 0 | AA111: 2744000000
R112: ='10'!D26 -> 6 | S112: اضافه(کسر) می شود به (از) سود زیان خالص | V112: اضافه(کسر) می شود به (از) سود زیان خالص ( تعدیلات) | Y112: اضافه(کسر) می شود به (از) سود زیان خالص
R113: ='10'!D27 -> 7 | S113: تعدیلات سود (زیان) سنواتی | T113: ='1'!E37 -> 0 | U113: ='2'!T15 -> 0 | V113: تعدیلات سود (زیان) سنواتی | W113: 0 | X113: ='3'!K23 -> 0 | Y113: تعدیلات سود (زیان) سنواتی | Z113: =IF($R$106=1,T113,W113) -> 0 | AA113: =IF($R$106=1,U113,X113) -> 0
R114: ='10'!D28 -> 8 | S114: سود درآمدهای مشمول مالیات مقطوع | T114: ='1'!F37 -> 0 | U114: ='2'!T16 -> 0 | V114: سود درآمدهایی مشمول مالیات مقطوع | W114: 0 | X114: ='3'!M23 -> 0 | Y114: سود درآمدهای مشمول مالیات مقطوع | Z114: 0 | AA114: 0
R115: ='10'!D29 -> 9 | S115: درآمد(هزینه)های معاف،نرخ صفر ، ماده 81، ... | T115: ='1'!I37 -> 0 | U115: ='2'!T17 -> 0 | V115: درآمد(هزینه)های معاف،نرخ صفر ، پزشکی،ماده 81، ماده 137 و … : | W115: 0 | X115: ='3'!P23 -> 0 | Y115: درآمد(هزینه)های معاف،نرخ صفر ، ماده 81، ... | Z115: 0 | AA115: 0
R116: ='10'!D30 -> 10 | S116: کمک های پرداختی و خسارات ( ماده 165،172) | T116: ='1'!K37 -> 0 | U116: ='2'!T18 -> 0 | V116: کمک های پرداختی (ماده 172) ، خسارت ( ماده 165) | W116: 0 | X116: ='3'!Q23 -> 0 | Y116: کمک های پرداختی و خسارات ( ماده 165،172) | Z116: 0 | AA116: 0
R117: ='10'!D31 -> 11 | S117: استهلاک زیان انباشته از سنوات قبل | T117: ='1'!M37 -> 0 | U117: ='2'!T19 -> 0 | V117: استهلاک زیان انباشته از سنوات قبل | W117: 0 | X117: ='3'!U23 -> 0 | Y117: استهلاک زیان انباشته از سنوات قبل | Z117: 0 | AA117: 0
R118: ='10'!D32 -> 12 | S118: جمع تعدیلات : | T118: =SUM(T113:T117) -> 0 | U118: =SUM(U112:U117) -> 0 | V118: جمع تعدیلات | W118: =SUM(W113:W117) -> 0 | X118: =SUM(X113:X117) -> 0 | Y118: جمع تعدیلات : | Z118: 0 | AA118: 0
R119: ='10'!D33 -> 13 | S119: درامدمشمول مالیات قبل از معافیت ماده 101 | T119: =T111-T118 -> 0 | U119: ='2'!AY178 -> 2744000000 | V119: درامدمشمول مالیات قبل از کسر معافیت ها | W119: 0 | X119: =X111-X118 -> 6831174752 | Y119: درامدمشمول مالیات قبل از معافیت ماده 101 | Z119: 0 | AA119: 2744000000
R120: ='10'!D34 -> 14 | S120: معافیت ماده 101 ق .م .م . | T120: =F100 -> 0 | U120: ='2'!K53 -> 1000000000 | V120: معافیت های مقرر درماده 133 ق.م.م ،... | W120: =F100 -> 0 | X120: ='3'!W19 -> 0 | Y120: معافیت ماده 101 ق .م .م . | Z120: 0 | AA120: 1000000000
R121: ='10'!D35 -> 15 | S121: درآمد مشمول مالیات بعد از معافیت 101 | T121: =T119-T120 -> 0 | U121: ='2'!AU178 -> 1744000000 | V121: درآمد مشمول مالیات بعد از کسر معافیت ها | W121: =W119-W120 -> 0 | X121: =X119-X120 -> 6831174752 | Y121: درآمد مشمول مالیات بعد از معافیت 101 | Z121: 0 | AA121: 1744000000
R122: ='10'!D36 -> 16 | S122: سهم اتاق بازرگانی ( کارت بازرگانی) | T122: =MAX(0,IF('2'!AV155=1,T121*3/1000,0)) -> 0 | U122: ='2'!AS178 -> 0 | V122: سهم اتاق بازرگانی | W122: =IF('2'!$AV$155=1,W121*3/1000,0) -> 0 | X122: =IF('2'!$AV$155=1,X121*3/1000,0) -> 0 | Y122: سهم اتاق بازرگانی ( کارت بازرگانی) | Z122: 0 | AA122: 0
R123: ='10'!D37 -> 17 | S123: موضوع تبصره 2 ماده 186ق.م.م | T123: =MAX(0,T121/1000) -> 0 | U123: ='2'!AT178 -> 1744000 | V123: درآمد مشمول مالیات خالص | W123: =W121-W122 -> 0 | X123: =X121-X122 -> 6831174752 | Y123: موضوع تبصره 2 ماده 186ق.م.م | Z123: 0 | AA123: 1744000
R124: ='10'!D38 -> 18 | S124: درآمد مشمول مالیات خالص | T124: =T121-T122-T123 -> 0 | U124: ='2'!AR178 -> 1742256000 | V124: مالیات متعلقه به نرخ ماده 105 | W124: =MAX(0,W123*'3'!W16%) -> 0 | X124: =MAX(0,X123*'3'!W16%) -> 1707793688 | Y124: درآمد مشمول مالیات خالص | Z124: 0 | AA124: 1742256000
R125: ='10'!D39 -> 19 | S125: مالیات متعلقه | T125: =MAX(0,I4) -> 0 | U125: ='2'!R53 -> 261338400 | V125: مالیات درآمد اتفاقی به نرخ ماده 131 | W125: ='3'!H46 -> 0 | X125: ='3'!J46 -> 0 | Y125: مالیات متعلقه | Z125: 0 | AA125: 261338400
R126: ='10'!D40 -> 20 | S126: تخفیف تبصره ماده 131 | T126: =G45 -> 0 | U126: 0 | V126: موضوع تبصره 7 ماده 105 ق م م | W126: =G45 -> 0 | X126: 0 | Y126: تخفیف تبصره ماده 131 | Z126: 0 | AA126: 0
R127: ='10'!D41 -> 21 | S127: مالیات پرداختی در سایر کشورها | T127: 0 | U127: 0 | V127: مالیات پرداختی در سایر کشورها | W127: 0 | X127: 0 | Y127: مالیات پرداختی در سایر کشورها | Z127: 0 | AA127: 0
R128: ='10'!D42 -> 22 | S128: مالیات پرداخت شده | T128: 0 | U128: 0 | V128: مالیات پرداخت شده | W128: 0 | X128: 0 | Y128: مالیات پرداخت شده | Z128: 0 | AA128: 0
R129: ='10'!D44 -> 23 | S129: مالیات قابل پرداخت | T129: =T125-T126-T127-T128 -> 0 | U129: =U125-U126-U127-U128 -> 261338400 | V129: مالیات قابل پرداخت | W129: =W124+W125-W126-W127-W128 -> 0 | X129: =X124+X125-X126-X127-X128 -> 1707793688 | Y129: مالیات قابل پرداخت | Z129: 0 | AA129: 261338400
AC132: ='10'!D46 -> 0
AC133: ='3'!C48 -> توضیحات : مودی محترم برای عملکرد 1402 در موعد قانونی برای شغل نسوزکاری اقدام به تسلیم اظهارنامه مالیاتی نموده ولی اسناد و مدارک حسابداری و دفاتر از طرف مودی ارائه نگردید . میزان فروش یا خدمات ابرازی مودی در اظهارنامه عملکرد مبلغ 14،257،561،756 ريال و ابرازی در اظهارنامه ارزش افرزش دوره های مالیاتی سال 1402 مبلغ 34،155،873،760 ريال و گردش حساب بانکی مبلغ 8،579،099،357 ريال و فروش در سامانه ارسال صورت معاملات مبلغ 27،470،912،760 ريال و مبلغ فروش در سامانه استخراج اطلاعات مبلغ 0 ريال می باشد. با بررسی درگاه های اطلاعاتی سازمان و تحقیقات میدانی اطلاعاتی مبنی بر اشتغال به سایر فعالیت ها واصل نگردید بنابراین مبنای رسیدگی فعالیت مودی بر اساس ابرازی مودی در اظهارنامه ارزش افرزش افزوده مودی قرار گرفته و رسیدگی با استناد به دستورالعمل 200/99/522 مورخ 1399/11/27 با در نظر گرفتن نرخ سود فعالیت به شرح جدول فوق تعیین درآمد می گردد .
AC134: =IF($R$106=1,AC132,AC133) -> 0

Sheet 6
C1: صفحه اصلی | F1: گام بعدی / رد شدن | H1: مشاغل | I1: شرکت | J1: کاربرگ نهایی | K1: مهم | L1: سامانه مودیان-ارزش افزوده
C3: کاربرگ جرایم مالیاتی ماده 169 و سامانه مودیان | M3: ='1'!N53 -> (غیرمشمول) | N3: ویرایش صفر
C4: F | N4: صفحه 1 از
C5: مشخصات مؤدی | F5: نام شخص حقوقی/ نام و نام‌خانوادگی: | H5: ='10'!K8 -> یاسر ناظمی | J5: شناسه مؤدی: | K5: ='10'!Q8 -> 16218196470001 | M5: نوع شخصیت: | N5: ='1'!O9 -> حقیقی
F6: اداره کل امور مالیاتی : | H6: ='1'!E63 -> اردبيل | J6: اداره امور مالیاتی : | K6: ='1'!I63 -> 610400 | M6: شماره عطف :
C7: جزییات حسابرسی | F7: نوع حسابرسی : | H7: ='10'!K10 -> اداری (پشت میزی) | J7: سال عملکرد : | K7: ='10'!Q10 -> 1403 | M7: دوره مالیاتی: | N7: 1
F8: منبع مالیاتی: | H8: ='10'!K11 -> مشاغل | J8: شماره اظهارنامه : | K8: ='10'!Q11 -> 3247124679 | M8: تاریخ اظهارنامه: | N8: ='1'!G23 -> 1402/02/29
C10: موارد مشمول ارسال فهرست معاملات
D11: در آمدهای مشمول | H11: مبلغ | J11: خرید ها و هزینه های مشمول | M11: مبلغ
C12: 1 | D12: فروش کالا | H12: 0 | J12: خرید کالا | M12: 0
C13: 2 | D13: درآمد حاصل از ارائه خدمات | H13: 0 | J13: بهای تمام شده پیمانکاری و خدمات | M13: 0
C14: 3 | D14: درآمد حاصل از فروش دارائیها | H14: 0 | J14: هزینه های اداری و فروش | M14: 0
C15: 4 | D15: ناخالص فروش مواد اولیه | H15: 0 | J15: ناخالص سایر هزینه های عملیاتی | M15: 0
C16: 5 | D16: ناخالص فروش ضایعات | H16: 0 | J16: ناخالص سایر هزینه های غیرعملیاتی | M16: 0
C17: 6 | D17: ناخالص درآمد اجاره | H17: 0 | J17: خرید دارایی ثابت | M17: 0
C18: 7 | D18: اطلاعیه های درآمدی | H18: 0 | J18: هزینه اجاره | M18: 0
C19: 8 | D19: فروش ارز | H19: 0 | J19: خرید ارز | M19: 0
C20: 9 | D20: سایر درآمدها | H20: 0 | J20: سایر هزینه ها | M20: 0
C21: مجموع | H21: =SUM(H12:H20) -> 0 | J21: مجموع | M21: =SUM(M12:N20) -> 0
C23: دوره | H23: وضعیت ارائه | I23: تاریخ ارائه | J23: فروش | K23: خرید | M23: مجموع
C24: 1 | H24: ='1'!G46 ->  | I24: =IF('1'!$C$216=1,'1'!I46,"") ->  | J24: =IF('1'!$C$216=1,'1'!J46,"") ->  | K24: =IF('1'!$C$216=1,'1'!L46,"") ->  | M24: =IF('1'!$C$216=1,'1'!N46,"") -> 
C25: 2 | H25: ='1'!G47 ->  | I25: =IF('1'!$C$216=1,'1'!I47,"") ->  | J25: =IF('1'!$C$216=1,'1'!J47,"") ->  | K25: =IF('1'!$C$216=1,'1'!L47,"") ->  | M25: =IF('1'!$C$216=1,'1'!N47,"") -> 
C26: 3 | H26: ='1'!G48 ->  | I26: =IF('1'!$C$216=1,'1'!I48,"") ->  | J26: =IF('1'!$C$216=1,'1'!J48,"") ->  | K26: =IF('1'!$C$216=1,'1'!L48,"") ->  | M26: =IF('1'!$C$216=1,'1'!N48,"") -> 
C27: 4 | H27: ='1'!G49 ->  | I27: =IF('1'!$C$216=1,'1'!I49,"") ->  | J27: =IF('1'!$C$216=1,'1'!J49,"") ->  | K27: =IF('1'!$C$216=1,'1'!L49,"") ->  | M27: =IF('1'!$C$216=1,'1'!N49,"") -> 
C28: مجموع معاملات ارسالی | J28: =IF('1'!$C$216=1,'1'!J50,"") ->  | K28: =IF('1'!$C$216=1,'1'!L50,"") ->  | M28: =SUM(J28:L28) -> 0
C29: مجموع معاملات ارسالی ( قابل قبول ) | J29: =SUMIF(H24:H27,'1'!G171,J24:J27) -> 0 | K29: =SUMIF(H24:H27,'1'!G171,K24:L27) -> 0 | M29: =SUM(J29:L29) -> 0
C30: جمع کل معاملات مشمول ارسال | J30: =H21 -> 0 | K30: =M21 -> 0 | M30: =SUM(J30:L30) -> 0
C31: مجموع معاملات ارسال نشده یا ارسالی خارج از موعد | J31: =MAX(J30-J29,0) -> 0 | K31: =MAX(K30-K29,0) -> 0 | M31: =MAX(M30-M29,0) -> 0
C32: صورتحساب ارائه شده : | M32: 0
C34: ردیف | D34: مصادیق عدم رعایت ضوابط | I34: تعداد صورتحساب | J34: مبلغ موردمعامله/صورتحساب مشمول جریمه | K34: نرخ | L34: مبلغ جریمه موضوع ماده 169مکرر | N34: کاربرگ عطفی / سایر توضیحات
C35: 1 | D35: عدم صدور صورتحساب فروش | J35: =J30-M32 -> 0 | K35: 0.02 | L35: =J35*K35 -> 0
C36: 2 | D36: عدم درج شماره اقتصادی مودی یا طرف معامله بر روی صورتحسابهای فروش | J36: 0 | K36: 0.02 | L36: =J36*K36 -> 0
C37: 3 | D37: عدم درج شماره اقتصادی مودی یا طرف معامله بر روی صورتحسابهای مربوط به خرید | J37: 0 | K37: 0.02 | L37: 0
C38: 4 | D38: عدم درج شماره اقتصادی بر روی قراردادها،اوراق و فرمها | J38: 0 | K38: 0.02 | L38: 0
C39: 5 | D39: استفاده از شماره اقتصادی دیگران برای معاملات مودی | J39: 0 | K39: 0.02 | L39: 0
C40: 6 | D40: استفاده از شماره اقتصادی مودی برای معاملات دیگران | J40: 0 | K40: 0.02 | L40: 0
C41: 7 | D41: عدم ارائه فهرست معاملات در موعد مقرر | J41: =M31 -> 0 | K41: 0.01 | L41: 0
C42: جمع | I42: =SUM(I35:I41) -> 0 | L42: =SUM(L35:M41) -> 0 | N42: -
C44: جرائم مربوط به سامانه مودیان
C45: ردیف | D45: مصادیق عدم رعایت ضوابط | H45: حداقل جریمه | I45: تعداد صورتحساب | J45: ماخذ جریمه | K45: نرخ | L45: مبلغ جریمه موضوع ماده 22 | N45: کاربرگ عطفی / سایر توضیحات
C46: 1 | D46: الف- عدم صدور و ارسال صورتحساب الکترونیکی به سامانه مودیان | H46: 20000000 | J46: 0 | K46: 0.1 | L46: =IF(J46=0,0,MAX((J46*K46),H46)) -> 0
C47: 2 | D47: ب - عدم عضویت، عدم استفاده از پایانه های فروشگاهی،حافظه مالیاتی و سوء استفاده | H47: 20000000 | J47: 0 | K47: 0.1 | L47: =IF(J47=0,0,MAX((J47*K47),H47)) -> 0
C48: 3 | D48: پ - عدم اعلام شماره حساب و حساب های بانکی واحد اقتصادی | H48: 20000000 | J48: 0 | K48: 0.1 | L48: =IF(J48=0,0,MAX((J48*K48),H48)) -> 0
C49: 4 | D49: ت -عدم تحویل صورتحساب چاپی به خریدار ، حذف یا مخدوش نمودن صورتحساب | H49: 20000000 | J49: 0 | K49: 0.02 | L49: =IF(J49=0,0,MAX((J49*K49),H49)) -> 0
C50: 5 | D50: ث -عدم اعلام تغییر شغل یا محل فعالیت و مالکیت ظرف 10 روز | H50: 10000000 | J50: 0 | K50: 0.01 | L50: =IF(J50=0,0,MAX((J50*K50),H50)) -> 0
C51: جمع | L51: =SUM(L46:M50) -> 0
C53: توضیحات :
C56: Designed By Yaser Nazemi
C57: تاریخ شروع تنظیم کاربرگ حسابرسی | F57: 14--/--/-- | H57: ='2'!$J$64 -> تاریخ پایان تنظیم کاربرگ حسابرسی : | J57: 14--/--/-- | L57: ='2'!$R$64 -> نام و نام‌خانوادگی تایید کننده :
C58: نام و نام‌خانوادگی حسابرس | F58: ='10'!H52 -> یاسر ناظمی | H58: ='2'!$J$65 -> نام و نام‌خانوادگی حسابرس مسئول : | J58: ='10'!Q52 -> علی بخشی | L58: ='1'!O65 -> حسن حامدی
C59: سمت: | F59: ='2'!H66 -> حسابرس ارشد | H59: =C59 -> سمت: | J59: ='2'!$N$66 -> رئیس گروه مالیاتی | L59: ='2'!$R$66 -> سمت : رئیس امور مالیاتی
X62: day | Y62: mounth | Z62: year | AC62: وضعیت ارائه | AD62: ایزن | AE62: نوع شخص | AG62: حقیقی | AH62: مشاغل | AK62: ='10'!AP455 -> 0
C63: موارد عدم شمول ارسال فهرست معاملات
C64: 1 | D64: - خريدوفروش و سود و كارمزد اوراق بهادار؛ | M64: 0
C65: 2 | D65: - خريدوفروش سهام و سهم الشركه و حق تقدم سهام يا سهم الشركه؛ | M65: 0
C66: 3 | D66: - سود و كارمزد و جريمه هاي بانك ها، صندوق تعاون، صندوق هاي حمايت از توسعه بخش كشاورزي، مؤسسات اعتباري غير بانكي | M66: 0
C67: 4 | D67: - سود سهام و سهم الشركه؛ | M67: 0
C68: 5 | D68: حق عضويت اعضاء مجامع حرفه اي، احزاب و انجمن ها و تشكل هاي غيردولتي داراي مجوز از مراجع ذي صلاح؛ | M68: 0
C69: 6 | D69: - كمك ها، جوايز و هداياي بلاعوض؛ | M69: 0
C70: 7 | D70: جريمه يا خسارت، انواع عوارض و ماليات (به استثناء ماليات و عوارض قانون ماليات بر ارزش افزوده) حق ثبت، حق تمبر، حقوق گمركي و موارد مشابه، به دستگاه هاي اجرائي پرداخت مي گردد؛ | M70: 0
C71: 8 | D71: - حقوق و دستمزد پرداختي موضوع فصل سوم از باب سوم قانون ماليات هاي مستقيم؛ | M71: 0
C72: 9 | D72: وجوه پرداختي بابت حق نگهداري (شارژ) ساختمان محل فعاليت و آبونمان هاي پرداختي. | M72: 0
C73: مجموع | M73: =SUM(M64:N72) -> 0
X74: 1 | Y74: 1 | Z74: 1391 | AC74: ارائه | AD74: / | AE74: حقیقی | AK74: علی الراس
AK75: رسیدگی به دفاتر
E76: 1396 | X76: 2 | Y76: 2 | Z76: 1392 | AC76: عدم ارائه | AE76: حقوقی
BM78: 1
BM79: 2
BM80: 3
BM81: 4
BM82: 5
BM83: 6
BM84: 7
BM85: 8
BM86: 9
X97: 21
X99: 22
X100: 23
X101: 24
X102: 25
X103: 26
X104: 27
X105: 28
X106: 29
X107: 30
X108: 31
R110: 2
R111: 1
R112: 2
R114: 1
C221: 1
E224: 0 | F224: 20000000
E225: 0 | F225: 0
E226: 0 | F226: 0
E227: 0 | F227: 0
E228: 0
E229: 0

Sheet 7
D2: صفحه اصلی | H2: گام بعدی / رد شدن | L2: مشاغل | N2: نهایی | P2: برای انجام تغییرات به کاربرگ مشاغل رجوع شود - بسته به روش استفاده صفحه اول یا دوم پرینت گرفته شود که به نظر من صفحه اول منطقی تره
E4: جریمه کتمان مشاغل | S4: ='2'!V5 -> ویرایش صفر
S5: ='2'!V7 -> صفحه 1
C6: مشخصات مؤدی : | H6: نام مودی : | J6: ='1'!I7 -> یاسر ناظمی | L6: شناسه مؤدی : | M6: ='1'!I9 -> 16218196470001 | P6: نوع شخصیت : | S6: ='1'!O9 -> حقیقی
H7: اداره کل امور مالیاتی : | J7: ='1'!E63 -> اردبيل | L7: اداره امور مالیاتی : | M7: ='1'!M63 -> شهرستان گرمی | P7: نوع فعالیت : | S7: ='1'!G11 -> دندانپزشکی
C8: جزییات مورد حسابرسی : | E8: وضعیت اظهارنامه: | H8: نوع حسابرسی : | J8: ='1'!O25 -> اداری (پشت میزی) | L8: سال عملکرد : | M8: ='1'!$E$9 -> 1403 | P8: گروه : | S8: ='1'!O27 -> سوم
E9: ='1'!G17 -> ارائه | H9: منبع مالیاتی : | J9: ='1'!M9 -> مشاغل | L9: شماره اظهارنامه : | M9: ='1'!G21 -> 3247124679 | P9: تاریخ اظهارنامه : | S9: ='1'!G23 -> 1402/02/29
C10: کد پستی و آدرس : | H10: ='1'!G33 -> 5618694316 | J10: ='1'!H33 -> مرکزی شهرک آیت الله کاشانی کوچه ((احد اصولی)) کوچه شهیدنجف کوشش پلاک 0 طبقه همکف | P10: موبایل : | S10: ='1'!O11 -> 9127212385
C11: روش اردبیل
D12: ='2'!E111 -> فروش طبق مستندات | G12: ='2'!I111 -> 0 | J12: ='2'!K111 -> درامد مشمول مستند : | M12: ='2'!O111 -> 0 | P12: ='2'!Q111 -> مالیات طبق درآمد مستند :(بدون معافیت) | S12: ='2'!V111 -> 0
D13: ='2'!E112 -> فروش ابرازی : | G13: ='2'!I112 -> 0 | J13: ='2'!K112 -> درامد مشمول طبق فروش ابرازی : | M13: ='2'!O112 -> 1000000000 | P13: ='2'!Q112 -> مالیات طبق درآمد ابرازی : | S13: ='2'!V112 -> 149850000
D14: ='2'!E113 -> مانده فروش اظهار نشده : | G14: ='2'!I113 -> 0 | J14: ='2'!K113 -> درامد مشمول مستند پس از کسر معافیت : | M14: ='2'!O113 -> 0 | P14: ='2'!Q113 -> ماخذ کتمان : | S14: =MAX(0,'2'!V113) -> 0
D15: ='2'!E114 -> سود ابرازی : | G15: ='2'!I114 -> 0 | J15: ='2'!K114 -> درامد مشمول ابرازی پس از کسر معافیت : | M15: ='2'!O114 -> 0 | P15: ='2'!Q114 -> جریمه کتمان : | S15: =MAX(0,'2'!V114) -> 0
D16: ='2'!E115 -> معافیت ماده 101 : | G16: ='2'!I115 -> 1000000000 | J16: ='2'!K115 -> تفاوت درآمد مستند با ابرازی : | M16: ='2'!O115 -> 0
C18: طبق ابرازی
C19: ='2'!E118 -> ردیف | D19: ='2'!F118 -> عنوان | L19: ='2'!M118 -> درصد فروش هر فعالیت | M19: ='2'!N118 -> فروش هر فعالیت | P19: ='2'!Q118 -> ضریب سود/هزینه | Q19: ='2'!R118 -> درامد مشمول طبق فروش ابرازی
C20: ='2'!E119 -> 1 | D20: ='2'!F119 -> لابراتوار دندان سازی و دندانساز تجربی | L20: ='2'!M119 -> 1 | M20: ='2'!N119 -> 0 | P20: ='2'!Q119 -> 8 | Q20: ='2'!R119 -> 0
C21: ='2'!E120 -> 2 | D21: ='2'!F120 ->  | L21: ='2'!M120 -> 0 | M21: ='2'!N120 -> 0 | P21: ='2'!Q120 -> 0 | Q21: ='2'!R120 -> 0 | T21: ='2'!U120 -> 0 | U21: ='2'!V120 -> 0
C22: ='2'!E121 -> 3 | D22: ='2'!F121 ->  | L22: ='2'!M121 -> 0 | M22: ='2'!N121 -> 0 | P22: ='2'!Q121 -> 0 | Q22: ='2'!R121 -> 0 | T22: ='2'!U121 -> 0 | U22: ='2'!V121 -> 0
C23: ='2'!E122 -> 4 | D23: ='2'!F122 ->  | L23: ='2'!M122 -> 0 | M23: ='2'!N122 -> 0 | P23: ='2'!Q122 -> 0 | Q23: ='2'!R122 -> 0 | T23: ='2'!U122 -> 0 | U23: ='2'!V122 -> 0
C24: ='2'!E123 -> 5 | D24: ='2'!F123 ->  | L24: ='2'!M123 -> 0 | M24: ='2'!N123 -> 0 | P24: ='2'!Q123 -> 0 | Q24: ='2'!R123 -> 0 | T24: ='2'!U123 -> 0 | U24: ='2'!V123 -> 0
C25: ='2'!E124 -> 6 | D25: ='2'!F124 ->  | L25: ='2'!M124 -> 0 | M25: ='2'!N124 -> 0 | P25: ='2'!Q124 -> 0 | Q25: ='2'!R124 -> 0 | T25: ='2'!U124 -> 0 | U25: ='2'!V124 -> 0
C26: ='2'!E125 -> 7 | D26: ='2'!F125 ->  | L26: ='2'!M125 -> 0 | M26: ='2'!N125 -> 0 | P26: ='2'!Q125 -> 0 | Q26: ='2'!R125 -> 0 | T26: ='2'!U125 -> 0 | U26: ='2'!V125 -> 0
C27: ='2'!E126 -> 8 | D27: ='2'!F126 ->  | L27: ='2'!M126 -> 0 | M27: ='2'!N126 -> 0 | P27: ='2'!Q126 -> 0 | Q27: ='2'!R126 -> 0 | T27: ='2'!U126 -> 0 | U27: ='2'!V126 -> 0
C28: ='2'!E127 -> 9 | D28: ='2'!F127 ->  | L28: ='2'!M127 -> 0 | M28: ='2'!N127 -> 0 | P28: ='2'!Q127 -> 0 | Q28: ='2'!R127 -> 0 | T28: ='2'!U127 -> 0 | U28: ='2'!V127 -> 0
C29: ='2'!E128 -> 10 | D29: ='2'!F128 ->  | L29: ='2'!M128 -> 0 | M29: ='2'!N128 -> 0 | P29: ='2'!Q128 -> 0 | Q29: ='2'!R128 -> 0 | T29: ='2'!U128 -> 0 | U29: ='2'!V128 -> 0
C30: ='2'!E129 -> 11 | D30: ='2'!F129 ->  | L30: ='2'!M129 -> 0 | M30: ='2'!N129 -> 0 | P30: ='2'!Q129 -> 0 | Q30: ='2'!R129 -> 0 | T30: ='2'!U129 -> 0 | U30: ='2'!V129 -> 0
C31: مجموع | L31: ='2'!M130 -> 1 | M31: ='2'!N130 -> 0 | P31: ='2'!Q130 -> 0 | Q31: ='2'!R130 -> 0 | T31: ='2'!U130 -> 0 | U31: ='2'!V130 -> 0
C32: ='2'!E131 -> 0 | D32: ='2'!F131 -> 0 | E32: ='2'!G131 -> 0 | F32: ='2'!H131 -> 0 | G32: ='2'!I131 -> 0 | H32: ='2'!J131 -> 0 | I32: ='2'!K131 -> 0 | J32: ='2'!L131 -> 0 | L32: ='2'!M131 -> 0 | M32: ='2'!N131 -> 0 | N32: ='2'!O131 -> 0 | O32: ='2'!P131 -> 0 | P32: ='2'!Q131 -> 0 | Q32: ='2'!R131 -> 0 | R32: ='2'!S131 -> 0 | S32: ='2'!T131 -> 0 | T32: ='2'!U131 -> 0 | U32: ='2'!V131 -> 0
C33: طبق فروش مستند
C34: ='2'!E132 -> ردیف | D34: ='2'!F132 -> عنوان | L34: ='2'!M132 -> درصد فروش هر فعالیت | M34: ='2'!N132 -> فروش هر فعالیت | P34: ='2'!Q132 -> ضریب سود | Q34: ='2'!R132 -> درامد مشمول مستند
C35: ='2'!E133 -> 1 | D35: ='2'!F133 -> لابراتوار دندان سازی و دندانساز تجربی | L35: ='2'!M133 -> 1 | M35: ='2'!N133 -> 0 | P35: ='2'!Q133 -> 8 | Q35: ='2'!R133 -> 0
C36: ='2'!E134 -> 2 | D36: ='2'!F134 ->  | L36: ='2'!M134 -> 0 | M36: ='2'!N134 -> 0 | P36: ='2'!Q134 -> 0 | Q36: ='2'!R134 -> 0 | T36: ='2'!U134 -> 0 | U36: ='2'!V134 -> 0
C37: ='2'!E135 -> 3 | D37: ='2'!F135 ->  | L37: ='2'!M135 -> 0 | M37: ='2'!N135 -> 0 | P37: ='2'!Q135 -> 0 | Q37: ='2'!R135 -> 0 | T37: ='2'!U135 -> 0 | U37: ='2'!V135 -> 0
C38: ='2'!E136 -> 4 | D38: ='2'!F136 ->  | L38: ='2'!M136 -> 0 | M38: ='2'!N136 -> 0 | P38: ='2'!Q136 -> 0 | Q38: ='2'!R136 -> 0 | T38: ='2'!U136 -> 0 | U38: ='2'!V136 -> 0
C39: ='2'!E137 -> 5 | D39: ='2'!F137 ->  | L39: ='2'!M137 -> 0 | M39: ='2'!N137 -> 0 | P39: ='2'!Q137 -> 0 | Q39: ='2'!R137 -> 0 | T39: ='2'!U137 -> 0 | U39: ='2'!V137 -> 0
C40: ='2'!E138 -> 6 | D40: ='2'!F138 ->  | L40: ='2'!M138 -> 0 | M40: ='2'!N138 -> 0 | P40: ='2'!Q138 -> 0 | Q40: ='2'!R138 -> 0 | T40: ='2'!U138 -> 0 | U40: ='2'!V138 -> 0
C41: ='2'!E139 -> 7 | D41: ='2'!F139 ->  | L41: ='2'!M139 -> 0 | M41: ='2'!N139 -> 0 | P41: ='2'!Q139 -> 0 | Q41: ='2'!R139 -> 0 | T41: ='2'!U139 -> 0 | U41: ='2'!V139 -> 0
C42: ='2'!E140 -> 8 | D42: ='2'!F140 ->  | L42: ='2'!M140 -> 0 | M42: ='2'!N140 -> 0 | P42: ='2'!Q140 -> 0 | Q42: ='2'!R140 -> 0 | T42: ='2'!U140 -> 0 | U42: ='2'!V140 -> 0
C43: ='2'!E141 -> 9 | D43: ='2'!F141 ->  | L43: ='2'!M141 -> 0 | M43: ='2'!N141 -> 0 | P43: ='2'!Q141 -> 0 | Q43: ='2'!R141 -> 0 | T43: ='2'!U141 -> 0 | U43: ='2'!V141 -> 0
C44: ='2'!E142 -> 10 | D44: ='2'!F142 ->  | L44: ='2'!M142 -> 0 | M44: ='2'!N142 -> 0 | P44: ='2'!Q142 -> 0 | Q44: ='2'!R142 -> 0 | T44: ='2'!U142 -> 0 | U44: ='2'!V142 -> 0
C45: ='2'!E143 -> 11 | D45: ='2'!F143 ->  | L45: ='2'!M143 -> 0 | M45: ='2'!N143 -> 0 | P45: ='2'!Q143 -> 0 | Q45: ='2'!R143 -> 0 | T45: ='2'!U143 -> 0 | U45: ='2'!V143 -> 0
C46: مجموع | L46: ='2'!M144 -> 1 | M46: ='2'!N144 -> 0 | P46: ='2'!Q144 -> 0 | Q46: ='2'!R144 -> 0 | T46: ='2'!U144 -> 0 | U46: ='2'!V144 -> 0
C48: توضیحات :
C51: تاریخ شروع تنظیم کاربرگ حسابرسی : | G51: مهر و امضاء | L51: تاریخ پایان تنظیم کاربرگ حسابرسی : | Q51: تایید کننده نهایی
C52: نام و نام‌خانوادگی حسابرس : | G52: ='1'!F65 -> یاسر ناظمی | L52: نام و نام‌خانوادگی حسابرس مسئول : | O52: ='1'!J65 -> علی بخشی | Q52: ='1'!O65 -> حسن حامدی
C53: سمت : | G53: حسابرس | L53: سمت : | O53: رئیس گروه مالیاتی | Q53: ='2'!$R$66 -> سمت : رئیس امور مالیاتی
C54: روش دوم - در صورتی که از روش پایینی استفاده می کنین جهت پرینت محدوده را تغییر دهید
C55: ='2'!D75 -> 0
C56: ='2'!D76 -> فروش مستند : | F56: ='2'!G76 -> 0 | J56: ='2'!K76 -> فروش ابرازی : | L56: ='2'!M76 -> 0 | P56: ='2'!Q76 -> مانده ابراز نشده : | Q56: ='2'!R76 -> 0
C58: ='2'!F118 -> عنوان | L58: ='2'!M78 -> نسبت درآمد | M58: ='2'!N78 -> فروش طبق مستندات | O58: ='2'!Q78 -> سهم فروش ابرازی | Q58: ='2'!R78 -> درآمد کتمان شده مستند
C59: ='2'!G79 -> لابراتوار دندان سازی و دندانساز تجربی | L59: ='2'!M79 -> 1 | M59: ='2'!N79 -> 0 | O59: ='2'!P79 -> 0 | Q59: ='2'!R79 -> 0
C60: ='2'!G80 ->  | L60: ='2'!M80 -> 0 | M60: ='2'!N80 -> 0 | O60: ='2'!P80 -> 0 | Q60: ='2'!R80 -> 0
C61: ='2'!G81 ->  | L61: ='2'!M81 -> 0 | M61: ='2'!N81 -> 0 | O61: ='2'!P81 -> 0 | Q61: ='2'!R81 -> 0
C62: ='2'!G82 ->  | L62: ='2'!M82 -> 0 | M62: ='2'!N82 -> 0 | O62: ='2'!P82 -> 0 | Q62: ='2'!R82 -> 0
C63: ='2'!G83 ->  | L63: ='2'!M83 -> 0 | M63: ='2'!N83 -> 0 | O63: ='2'!P83 -> 0 | Q63: ='2'!R83 -> 0
C64: ='2'!G84 ->  | L64: ='2'!M84 -> 0 | M64: ='2'!N84 -> 0 | O64: ='2'!P84 -> 0 | Q64: ='2'!R84 -> 0
C65: ='2'!G85 ->  | L65: ='2'!M85 -> 0 | M65: ='2'!N85 -> 0 | O65: ='2'!P85 -> 0 | Q65: ='2'!R85 -> 0
C66: ='2'!G86 ->  | L66: ='2'!M86 -> 0 | M66: ='2'!N86 -> 0 | O66: ='2'!P86 -> 0 | Q66: ='2'!R86 -> 0
C67: ='2'!G87 ->  | L67: ='2'!M87 -> 0 | M67: ='2'!N87 -> 0 | O67: ='2'!P87 -> 0 | Q67: ='2'!R87 -> 0
C68: ='2'!G88 ->  | L68: ='2'!M88 -> 0 | M68: ='2'!N88 -> 0 | O68: ='2'!P88 -> 0 | Q68: ='2'!R88 -> 0
C69: ='2'!G89 ->  | L69: ='2'!M89 -> 0 | M69: ='2'!N89 -> 0 | O69: ='2'!P89 -> 0 | Q69: ='2'!R89 -> 0
C70: ='2'!D90 -> مجموع درآمد مشمول کتمان شده | L70: ='2'!M90 -> 1 | M70: ='2'!N90 -> 0 | O70: ='2'!P90 -> 0 | Q70: ='2'!R90 -> 0
C71: ='2'!D91 -> 0
C72: ='2'!D92 -> درآمد مشمول اظهار شده | H72: ='2'!I92 -> 0 | I72: ='2'!J92 -> 0 | J72: ='2'!K92 -> هزینه های غیرواقعی | K72: ='2'!L92 -> 0 | L72: ='2'!M92 -> 0 | N72: ='2'!O92 -> کل درآمد مشمول | P72: ='2'!Q92 -> 0 | S72: ='2'!T92 -> ماخذ کتمان ( محاسبه بر اساس نرخ ماده 131 بدون تبصره 131)
C73: ='2'!D93 -> معافیت و کسورات | H73: ='2'!I93 -> 0 | I73: ='2'!J93 -> 0 | J73: ='2'!K93 -> برآوردی | K73: ='2'!L93 -> 0 | L73: ='2'!M93 -> 0 | N73: ='2'!O93 -> معافیت و کسورات | P73: ='2'!Q93 -> 0
C74: ='2'!D94 -> مانده درآمد | H74: ='2'!I94 -> 0 | I74: ='2'!J94 -> 0 | J74: ='2'!K94 -> 0 | K74: ='2'!L94 -> 0 | N74: ='2'!O94 -> مانده درآمد | P74: ='2'!Q94 -> 0 | S74: ='2'!T94 -> 0
C75: ='2'!D95 -> مانده درآمد پس از کسر تبصره 186 | H75: ='2'!I95 -> 0 | J75: ='2'!K95 -> 0 | K75: ='2'!L95 -> 0 | N75: ='2'!O95 -> مانده درآمد پس از کسر تبصره 186 | P75: ='2'!Q95 -> 0
C76: ='2'!D96 -> مالیات ابرازی | H76: ='2'!I96 -> 0 | J76: ='2'!K96 -> 0 | K76: ='2'!L96 -> 0 | N76: ='2'!O96 -> مالیات درآمد کتمان شده | P76: ='2'!Q96 -> 0 | S76: ='2'!T96 -> 0
C79: توضیحات :
C83: تاریخ شروع تنظیم کاربرگ حسابرسی : | J83: مهر و امضاء | L83: تاریخ پایان تنظیم کاربرگ حسابرسی : | Q83: مهر و امضاء
C84: نام و نام‌خانوادگی حسابرس : | H84: ='1'!F65 -> یاسر ناظمی | L84: نام و نام‌خانوادگی حسابرس مسئول : | P84: ='1'!J65 -> علی بخشی
C85: سمت : | H85: حسابرس | L85: سمت : | P85: رئیس گروه مالیاتی

Sheet 8
D2: صفحه اصلی | F2: گام بعدی/رد شدن | I2: مشاغل | J2: شرکت | L2: نهایی
F4: کاربرگ جرایم مالیاتی | M4: ویرایش صفر
F5: F | M5: صفحه 1 از
D7: مشخصات مؤدی | G7: =AE15 -> نام و نام‌خانوادگی: | I7: ='10'!K8 -> یاسر ناظمی | J7: شناسه مؤدی: | K7: ='10'!Q8 -> 16218196470001 | L7: نوع شخصیت: | M7: ='1'!$O$9 -> حقیقی
G8: اداره کل امور مالیاتی : | I8: ='1'!E63 -> اردبيل | J8: اداره امور مالیاتی : | K8: ='1'!I63 -> 610400 | L8: شماره عطف به کاربرگ حسابرسی : | M8: 0
D10: جزییات مورد حسابرسی | G10: نوع حسابرسی : | I10: ='1'!O25 -> اداری (پشت میزی) | J10: سال عملکرد : | K10: ='10'!$Q$10 -> 1403 | L10: دوره مالیاتی : | M10: 1
G11: منبع مالیاتی: | I11: ='1'!M9 -> مشاغل | J11: شماره اظهارنامه: | K11: ='10'!Q11 -> 3247124679 | L11: تاریخ اظهارنامه : | M11: ='1'!G23 -> 1402/02/29 | AD11: ع ا
D13: ردیف | E13: موضوع ماده قانونی | F13: شرح | I13: مبلغ ماخذ محاسبه | J13: نرخ | K13: مبلغ جریمه | L13: توضیحات | M13: شماره عطف کاربرگ مربوطه | O13: در صورت مغایرت دستی وارد شود | AA13: 1 | AB13: حقیقی | AC13: ='10'!#REF! ->  | AD13: 0 | AE13: نام و نام‌خانوادگی: | NA13: r | NB13: m | NE13: r | NF13: m | NI13: r | NJ13: m
D14: 1 | E14: 192 | F14: =NH14 -> عدم تسلیم اظهارنامه مالیاتی | I14: =NJ14 -> 0 | J14: 30 | K14: =I14*J14/100 -> 0 | O14: کتمان مشاغل جهت راهنمایی | AA14: 2 | AB14: حقوقی | AC14: ='3'!#REF! ->  | AD14: =AC15 ->  | AE14: نام شخص حقوقی : | AM14: ماخذ کتمان مشاغل ( صرفآ جهت راهنمایی ) | MY14: =D14 -> 1 | MZ14: عدم تسلیم اظهارنامه مالیاتی | NA14: =J14 -> 30 | NB14: =IF('1'!$C$211=2,'2'!R53,0) -> 0 | NC14: 0 | ND14: =MZ14 -> عدم تسلیم اظهارنامه مالیاتی | NE14: =J14 -> 30 | NF14: =IF('1'!$C$211=2,'3'!V46,0) -> 0 | NG14: 0 | NH14: =IF('1'!$C$170=1,MZ14,ND14) -> عدم تسلیم اظهارنامه مالیاتی | NI14: =J14 -> 30 | NJ14: =IF('1'!$C$170=1,NB14,NF14) -> 0
D15: 2 | E15: 192 | F15: جریمه کتمان درآمد یا هزینه های غیر واقع | I15: =IF('1'!$C$211=2,0,IF('1'!$C$170=1,O18,O20)) -> 0 | J15: 30 | K15: =I15*J15/100 -> 0 | O15: ماخذ کتمان طبق روش اول - آذرباجان شرقی | AA15: ='1'!$C$170 -> 1 | AB15: =LOOKUP($AA$15,AA13:AA14,AB13:AB14) -> حقیقی | AC15: =LOOKUP($AA$15,$AA$13:$AA$14,AC13:AC14) ->  | AD15: =LOOKUP($AA$15,$AA$13:$AA$14,AD13:AD14) -> 0 | AE15: =LOOKUP($AA$15,$AA$13:$AA$14,AE13:AE14) -> نام و نام‌خانوادگی: | AF15: =LOOKUP($AA$15,$AA$13:$AA$14,AF13:AF14) -> 0 | AM15: ='10'!T81 -> 0 | MY15: 2 | MZ15: جریمه کتمان درآمد یا هزینه های غیر واقع | NA15: 30 | NB15: =I15 -> 0 | NC15: 0 | ND15: =MZ15 -> جریمه کتمان درآمد یا هزینه های غیر واقع | NE15: =J15 -> 30 | NF15: =I15 -> 0 | NG15: 0 | NH15: =IF('1'!$C$170=1,MZ15,ND15) -> جریمه کتمان درآمد یا هزینه های غیر واقع | NI15: =J15 -> 30 | NJ15: =IF('1'!$C$170=1,NB15,NF15) -> 0
D16: 3 | E16: 193 | F16: عدم ارائه ترازنامه و سود و زیان | I16: =NJ16 -> 0 | J16: 20 | K16: 0 | O16: =IF('1'!C170=1,'2'!T96,"") -> 0 | X16: ='1'!$C$210 -> 1 | AA16: ='1'!$C$211 -> 1 | MY16: 3 | MZ16: عدم ارائه ترازنامه و سود و زیان | NA16: 20 | NB16: =IF('1'!$C$210=2,'2'!R53,0) -> 0 | NC16: 0 | ND16: عدم ارائه ترازنامه و سود و زیان | NE16: 20 | NF16: =IF('1'!$C$210=2,'3'!V46,0) -> 0 | NG16: 0 | NH16: =IF('1'!$C$170=1,MZ16,ND16) -> عدم ارائه ترازنامه و سود و زیان | NI16: 20 | NJ16: =IF('1'!$C$170=1,NB16,NF16) -> 0
D17: 4 | E17: 193 | F17: عدم ارائه دفاتر قانونی | I17: =NJ17 -> 0 | J17: 20 | K17: 0 | O17: ماخذ کتمان طبق روش دوم - اردبیل | X17: ='1'!$C$209 -> 3 | MY17: 4 | MZ17: عدم ارائه دفاتر قانونی | NA17: 20 | NB17: =IF('1'!$C$209=2,'2'!R53,0) -> 0 | NC17: 0 | ND17: عدم ارائه دفاتر قانونی | NE17: 20 | NF17: =IF('1'!$C$209=2,'3'!V46,0) -> 0 | NG17: 0 | NH17: =IF('1'!$C$170=1,MZ17,ND17) -> عدم ارائه دفاتر قانونی | NI17: 20 | NJ17: =IF('1'!$C$170=1,NB17,NF17) -> 0
D18: 5 | E18: 193 | F18: رد دفتر | I18: =NJ18 -> 0 | J18: 10 | K18: 0 | O18: ='2'!V113 -> 0 | X18: ='1'!E194 -> 1 | AO18: =AC15 ->  | MY18: 5 | MZ18: رد دفتر | NA18: 10 | NB18: =IF('1'!E194=2,'2'!R53,0) -> 0 | NC18: 0 | ND18: رد دفتر | NE18: 10 | NF18: =IF('1'!$E$194=2,'3'!V46,0) -> 0 | NG18: 0 | NH18: =IF('1'!$C$170=1,MZ18,ND18) -> رد دفتر | NI18: 10 | NJ18: =IF('1'!$C$170=1,NB18,NF18) -> 0
D19: 6 | E19: 197 | F19: عدم ارائه فهرست قراردادها | I19: 0 | J19: 1 | K19: 0 | O19: کتمان شرکت جهت راهنمایی | MY19: 6 | MZ19: عدم ارائه فهرست قراردادها | NA19: 1 | NB19: =I19 -> 0 | NC19: 0 | ND19: عدم ارائه فهرست قراردادها | NE19: 1 | NF19: 0 | NG19: 0 | NH19: =IF('1'!$C$170=1,MZ19,ND19) -> عدم ارائه فهرست قراردادها | NI19: 1 | NJ19: =IF('1'!$C$170=1,NB19,NF19) -> 0
D20: 7 | E20: 197 | F20: عدم پرداخت مالیات حقوق ماده 192 | I20: 0 | J20: 2 | K20: 0 | O20: ='3'!W89 -> 1707793688 | MY20: 7 | MZ20: عدم پرداخت مالیات حقوق ماده 192 | NA20: 2 | NB20: =I20 -> 0 | NC20: 0 | ND20: عدم پرداخت مالیات حقوق ماده 192 | NE20: 2 | NF20: 0 | NG20: 0 | NH20: =IF('1'!$C$170=1,MZ20,ND20) -> عدم پرداخت مالیات حقوق ماده 192 | NI20: 2 | NJ20: =IF('1'!$C$170=1,NB20,NF20) -> 0
D21: 8 | E21: 199 | F21: عدم ارائه فهرست حقوق | I21: 0 | J21: 10 | K21: 0 | MY21: 8 | MZ21: عدم ارائه فهرست حقوق | NA21: 10 | NB21: 0 | NC21: 0 | ND21: عدم ارائه فهرست حقوق | NE21: 10 | NF21: 0 | NG21: 0 | NH21: =IF('1'!$C$170=1,MZ21,ND21) -> عدم ارائه فهرست حقوق | NI21: 10 | NJ21: =IF('1'!$C$170=1,NB21,NF21) -> 0
D22: 9 | E22: 169 | F22: عدم نصب صندوق،استفاده یا ثبت صورتحساب | I22: 0 | J22: 2 | K22: 0 | X22: FALSE | MY22: 9 | MZ22: عدم نصب صندوق،استفاده یا ثبت صورتحساب | NA22: 2 | NB22: 0 | NC22: 0 | ND22: عدم نصب صندوق،استفاده یا ثبت صورتحساب | NE22: 2 | NF22: 0 | NG22: 0 | NH22: =IF('1'!$C$170=1,MZ22,ND22) -> عدم نصب صندوق،استفاده یا ثبت صورتحساب | NI22: 2 | NJ22: =IF('1'!$C$170=1,NB22,NF22) -> 0
D23: 10 | E23: 272 | F23: جریمه ماده 272 | I23: 0 | J23: 20 | K23: 0 | MY23: 10 | MZ23: جریمه ماده 272 | NA23: 20 | NB23: 0 | NC23: 0 | ND23: جریمه ماده 272 | NE23: 20 | NF23: 0 | NG23: 0 | NH23: =IF('1'!$C$170=1,MZ23,ND23) -> جریمه ماده 272 | NI23: 20 | NJ23: =IF('1'!$C$170=1,NB23,NF23) -> 0
D24: 11 | E24: 22 | F24: ='6'!D46 -> الف- عدم صدور و ارسال صورتحساب الکترونیکی به سامانه مودیان | I24: ='6'!J46 -> 0 | J24: 10 | K24: 0 | MY24: 11 | MZ24: بند الف ،ب ، پ ماده 22 قانون سامانه مودیان | NA24: 10 | NB24: 0 | NC24: 0 | ND24: بند الف ،ب ، پ ماده 22 قانون سامانه مودیان | NE24: 10 | NF24: 0 | NG24: 0 | NH24: =IF('1'!$C$170=1,MZ24,ND24) -> بند الف ،ب ، پ ماده 22 قانون سامانه مودیان | NI24: 10 | NJ24: =IF('1'!$C$170=1,NB24,NF24) -> 0
D25: 12 | E25: 22 | F25: ='6'!D47 -> ب - عدم عضویت، عدم استفاده از پایانه های فروشگاهی،حافظه مالیاتی و سوء استفاده | I25: ='6'!J47 -> 0 | J25: 10 | K25: 0 | MY25: 12 | MZ25: بند الف ،ب ، پ ماده 22 قانون سامانه مودیان | NA25: 10 | NB25: 0 | NC25: 0 | ND25: بند الف ،ب ، پ ماده 22 قانون سامانه مودیان | NE25: 10 | NF25: 0 | NG25: 0 | NH25: =IF('1'!$C$170=1,MZ25,ND25) -> بند الف ،ب ، پ ماده 22 قانون سامانه مودیان | NI25: 10 | NJ25: =IF('1'!$C$170=1,NB25,NF25) -> 0
D26: 13 | E26: 22 | F26: ='6'!D48 -> پ - عدم اعلام شماره حساب و حساب های بانکی واحد اقتصادی | I26: ='6'!J48 -> 0 | J26: 2 | K26: 0 | MY26: 13 | MZ26: بند ت ماده 22 قانون سامانه مودیان | NA26: 2 | NB26: 0 | NC26: 0 | ND26: بند ت ماده 22 قانون سامانه مودیان | NE26: 2 | NF26: 0 | NG26: 0 | NH26: =IF('1'!$C$170=1,MZ26,ND26) -> بند ت ماده 22 قانون سامانه مودیان | NI26: 2 | NJ26: =IF('1'!$C$170=1,NB26,NF26) -> 0
D27: 14 | E27: 22 | F27: ='6'!D49 -> ت -عدم تحویل صورتحساب چاپی به خریدار ، حذف یا مخدوش نمودن صورتحساب | I27: ='6'!J49 -> 0 | J27: 1 | K27: 0 | MY27: 14 | MZ27: بند ث ماده 22 قانون سامانه مودیان | NA27: 1 | NB27: 0 | NC27: 0 | ND27: بند ث ماده 22 قانون سامانه مودیان | NE27: 1 | NF27: 0 | NG27: 0 | NH27: =IF('1'!$C$170=1,MZ27,ND27) -> بند ث ماده 22 قانون سامانه مودیان | NI27: 1 | NJ27: =IF('1'!$C$170=1,NB27,NF27) -> 0
D28: 15 | E28: 22 | F28: ='6'!D50 -> ث -عدم اعلام تغییر شغل یا محل فعالیت و مالکیت ظرف 10 روز | I28: ='6'!J50 -> 0 | J28: 0 | K28: =I28*J28/100 -> 0 | MY28: 15 | MZ28: سایر جرائم | NA28: 0 | NB28: 0 | NC28: 0 | ND28: سایر جرائم | NE28: 0 | NF28: 0 | NG28: 0 | NH28: =IF('1'!$C$170=1,MZ28,ND28) -> سایر جرائم | NI28: 0 | NJ28: =IF('1'!$C$170=1,NB28,NF28) -> 0
D30: توضیحات:
D34: تاریخ شروع تنظیم کاربرگ حسابرسی | I34: تاریخ پایان تنظیم کاربرگ حسابرسی : | L34: ='2'!R64 -> نام و نام‌خانوادگی تایید کننده :
D35: نام و نام‌خانوادگی حسابرس | G35: ='10'!H52 -> یاسر ناظمی | I35: نام و نام‌خانوادگی حسابرس مسئول : | J35: ='10'!Q52 -> علی بخشی | L35: ='2'!R65 -> حسن حامدی
D36: سمت: | G36: مهر و امضاء | I36: سمت: | L36: ='2'!R66 -> سمت : رئیس امور مالیاتی
Z77: 1

Sheet 9
D1: صفحه اصلی | K1: گام بعدی/رد شدن | P1: مشاغل | S1: شرکت ها | U1: نهایی
F3: کاربرگ توضیحات حسابرسی | W3: ویرایش صفر
F4: F | W4: صفحه 1 از 1
C5: مشخصات مؤدی | H5: نام شخص حقوقی/ نام و نام‌خانوادگی : | L5: ='1'!I7 -> یاسر ناظمی | P5: شناسه مؤدی : | R5: ='1'!I9 -> 16218196470001 | U5: نوع شخصیت: | V5: ='1'!O9 -> حقیقی
H6: اداره کل امور مالیاتی استان : | L6: ='1'!E63 -> اردبيل | P6: واحد مالیاتی : | R6: ='1'!I63 -> 610400 | U6: نوع فعالیت : | V6: ='1'!G11 -> دندانپزشکی
C7: کد پستی : | E7: ='1'!G33 -> 5618694316 | H7: ='1'!H33 -> مرکزی شهرک آیت الله کاشانی کوچه ((احد اصولی)) کوچه شهیدنجف کوشش پلاک 0 طبقه همکف | U7: موبایل : | V7: ='1'!O11 -> 9127212385
C8: جزییات مورد حسابرسی | H8: نوع اظهارنامه : | J8: ='1'!G19 -> عادی | L8: منبع مالیاتی : | N8: ='1'!M9 -> مشاغل | P8: سال عملکرد : | R8: ='1'!E9 -> 1403 | U8: شماره اظهارنامه : | V8: ='1'!G21 -> 3247124679
C9: اظهارنامه : | E9: ='1'!G17 -> ارائه | H9: نوع حسابرسی : | J9: ='1'!O25 -> اداری (پشت میزی) | L9: ابرازی سال قبل : | P9: دوره مالیاتی : | R9: 1 | U9: تاریخ اظهارنامه : | V9: ='1'!G23 -> 1402/02/29
D10: 1
C12: توضیحات : مودی محترم برای عملکرد 1401 در موعد قانونی در شغل ..... اقدام به تسلیم اظهارنامه مالیاتی نموده و با توجه به بررسی ها و تحقیقات میدانی و اینکه از درگاه های سازمان اطلاعاتی مبنی بر اشتغال به سایر فعالیت ها واصل نگردید بنابراین مبنای رسیدگی فعالیت مودی بر اساس مدارک ارائه شده مودی قرار گرفته و رسیدگی با استناد به دستورالعمل 200/99/522 مورخ 1399/11/27 با در نظر گرفتن نرخ سود فعالیت به شرح جدول فوق تعیین درآمد می گردد .
C28: *
C29: *
C31: تاریخ شروع تنظیم کاربرگ حسابرسی : | K31: تاریخ پایان تنظیم کاربرگ حسابرسی: | R31: توضیحات: انتقال به گزارش شماره:
C32: نام و نام‌خانوادگی حسابرس: | H32: ='1'!F65 -> یاسر ناظمی | K32: نام و نام‌خانوادگی حسابرس مسئول : | O32: ='1'!J65 -> علی بخشی | R32: تایید کننده نهایی:
C33: سمت : | H33: حسابرس | K33: سمت | O33: رئیس گروه | R33: حسن حامدی

Sheet 10
D2: صفحه اصلی | G2: برگشت هزینه | I2: صورت سود و زیان | K2: کاربرگ جرائم | M2: ماده 169 و سامانه مودیان | O2: جریمه کتمان | Q2: مشاغل | R2: مهم | T2: شرکت ها | Y2: ='1'!E72 -> یاسر ناظمی
G5: کاربرگ نهایی محاسبات حسابرسی | V5: ویرایش صفر | Y5: ='1'!G72 -> 09127212385
G6: F | V6: صفحه 1 | Y6: مهم
D8: مشخصات مؤدی : | G8: نام مودی : | K8: ='1'!I7 -> یاسر ناظمی | O8: شناسه مؤدی : | Q8: ='1'!I9 -> 16218196470001 | S8: نوع شخصیت : | U8: ='1'!O9 -> حقیقی
G9: اداره کل امور مالیاتی : | K9: ='1'!E63 -> اردبيل | O9: اداره امور مالیاتی : | Q9: ='1'!I63 -> 610400 | S9: نوع فعالیت : | U9: ='1'!G11 -> دندانپزشکی
D10: جزییات مورد حسابرسی: | G10: نوع حسابرسی : | K10: ='1'!O25 -> اداری (پشت میزی) | O10: سال عملکرد : | Q10: ='1'!$E$9 -> 1403 | S10: گروه : | U10: ='1'!O27 -> سوم
C11: 1 | G11: منبع مالیاتی : | K11: ='1'!F4 -> مشاغل | O11: شماره اظهارنامه : | Q11: ='1'!G21 -> 3247124679 | S11: تاریخ اظهارنامه : | U11: ='1'!G23 -> 1402/02/29
D12: کد پستی و آدرس : | G12: ='1'!G33 -> 5618694316 | H12: ='1'!H33 -> مرکزی شهرک آیت الله کاشانی کوچه ((احد اصولی)) کوچه شهیدنجف کوشش پلاک 0 طبقه همکف | S12: موبایل : | U12: ='1'!O11 -> 9127212385
D14: فروش (ابرازی) | F14: فروش ( ارزش افزوده) | I14: فروش استخراج | K14: فروش (صورت معاملات) | M14: ='2'!J16 -> فروش -سامانه مودیان: | O14: گردش حساب بانکی | Q14: ='1'!I25 -> فروش - پولشویی : | S14: ='1'!I29 -> قرارداد پیمانکاری :
D15: ='1'!G25 -> 0 | F15: ='1'!J60 -> 0 | I15: ='1'!K17 -> 0 | K15: ='1'!J50 -> 0 | M15: ='2'!M16 -> 0 | O15: ='1'!K13 -> 0 | Q15: ='1'!K25 -> 0 | S15: ='1'!K29 -> 0
D16: سود (ابرازی) | F16: خرید ( ارزش افزوده) | I16: خرید استخراج | K16: خرید (صورت معاملات) | M16: ='2'!J17 -> خرید -سامانه مودیان: | O16: گردش Pos | Q16: =AI77 -> مبالغ غیر درآمدی : | S16: ='1'!I31 -> فروش - سایر منابع : | T16: =AI83 -> فروش کتمان شده :
D17: ='1'!G29 -> 0 | F17: ='1'!$L$60 -> 0 | I17: ='1'!K19 -> 0 | K17: ='1'!L50 -> 0 | M17: ='2'!M17 -> 0 | O17: ='1'!K15 -> 0 | Q17: =AI78 -> 0 | S17: ='1'!K31 -> 0
D19: ردیف | E19: کاربرگ نهایی محاسبه مالیات | O19: کاربرگ نهایی جرائم مالیاتی
E20: شرح | J20: ابرازی مودی | L20: نتیجه حسابرسی | O20: شرح | R20: نرخ | T20: ماخذ محاسبه | V20: مبلغ جریمه
D21: 1 | E21: مجموع فروش و خدمات | J21: ='5'!G18 -> 0 | L21: ='5'!H18 -> 34300000000 | O21: ='8'!F14 -> عدم تسلیم اظهارنامه مالیاتی | R21: ='8'!J14 -> 30 | T21: ='8'!I14 -> 0 | V21: =T21*R21% -> 0
D22: 2 | E22: مجموع خرید و هزینه ها | J22: ='5'!G27 -> 0 | L22: ='5'!H27 -> 31556000000 | O22: ='8'!F15 -> جریمه کتمان درآمد یا هزینه های غیر واقع | R22: ='8'!J15 -> 30 | T22: ='8'!I15 -> 0 | V22: =T22*R22% -> 0
D23: 3 | E23: تعدیلات هزینه های برگشتی اداری : | L23: ='5'!H28 -> 0 | O23: ='8'!F16 -> عدم ارائه ترازنامه و سود و زیان | R23: ='8'!J16 -> 20 | T23: ='8'!I16 -> 0 | V23: 0
D24: 4 | E24: تعدیلات هزینه های برگشتی عملیاتی : | L24: ='5'!H29 -> 0 | O24: ='8'!F17 -> عدم ارائه دفاتر قانونی | R24: ='8'!J17 -> 20 | T24: ='8'!I17 -> 0 | V24: 0
D25: 5 | E25: سود زیان ویژه | J25: ='5'!G30 -> 0 | L25: ='5'!H30 -> 2744000000 | O25: ='8'!F18 -> رد دفتر | R25: ='8'!J18 -> 10 | T25: ='8'!I18 -> 0 | V25: 0
D26: 6 | E26: ='5'!D31 -> اضافه(کسر) می شود به (از) سود زیان خالص | O26: ='8'!F19 -> عدم ارائه فهرست قراردادها | R26: ='8'!J19 -> 1 | T26: ='8'!I19 -> 0 | V26: 0
D27: 7 | E27: ='5'!D32 -> تعدیلات سود (زیان) سنواتی | J27: ='5'!G32 -> 0 | L27: ='5'!H32 -> 0 | O27: ='8'!F20 -> عدم پرداخت مالیات حقوق ماده 192 | R27: ='8'!J20 -> 2 | T27: ='8'!I20 -> 0 | V27: 0
D28: 8 | E28: ='5'!D33 -> سود درآمدهای مشمول مالیات مقطوع | J28: ='5'!G33 -> 0 | L28: ='5'!H33 -> 0 | O28: ='8'!F21 -> عدم ارائه فهرست حقوق | R28: ='8'!J21 -> 10 | T28: ='8'!I21 -> 0 | V28: 0
D29: 9 | E29: ='5'!D34 -> درآمد(هزینه)های معاف،نرخ صفر ، ماده 81، ... | J29: ='5'!G34 -> 0 | L29: ='5'!H34 -> 0 | O29: ='8'!F22 -> عدم نصب صندوق،استفاده یا ثبت صورتحساب | R29: ='8'!J22 -> 2 | T29: ='8'!I22 -> 0 | V29: 0
D30: 10 | E30: ='5'!D35 -> کمک های پرداختی و خسارات ( ماده 165،172) | J30: ='5'!G35 -> 0 | L30: ='5'!H35 -> 0 | O30: ='8'!F23 -> جریمه ماده 272 | R30: ='8'!J23 -> 20 | T30: ='8'!I23 -> 0 | V30: 0
D31: 11 | E31: ='5'!D36 -> استهلاک زیان انباشته از سنوات قبل | J31: ='5'!G36 -> 0 | L31: ='5'!H36 -> 0 | O31: جرائم سامانه مودیان | Q31: ='1'!I252 -> غیرمشمول | R31: نرخ | T31: ماخذ محاسبه | V31: مبلغ جریمه
D32: 12 | E32: ='5'!D37 -> جمع تعدیلات : | J32: ='5'!G37 -> 0 | L32: ='5'!H37 -> 0 | O32: ='8'!F24 -> الف- عدم صدور و ارسال صورتحساب الکترونیکی به سامانه مودیان | R32: ='8'!J24 -> 10 | T32: =IF('1'!G252=1,'8'!I24,0) -> 0 | V32: 0
D33: 13 | E33: ='5'!D38 -> درامدمشمول مالیات قبل از معافیت ماده 101 | J33: ='5'!G38 -> 0 | L33: ='5'!H38 -> 2744000000 | O33: ='8'!F25 -> ب - عدم عضویت، عدم استفاده از پایانه های فروشگاهی،حافظه مالیاتی و سوء استفاده | R33: ='8'!J25 -> 10 | T33: =IF('1'!G252=1,'8'!I25,0) -> 0 | V33: 0
D34: 14 | E34: ='5'!D39 -> معافیت ماده 101 ق .م .م . | J34: ='5'!G39 -> 0 | L34: ='5'!H39 -> 1000000000 | O34: ='8'!F26 -> پ - عدم اعلام شماره حساب و حساب های بانکی واحد اقتصادی | R34: 10 | T34: =IF('1'!G252=1,'8'!I26,0) -> 0 | V34: 0
D35: 15 | E35: ='5'!D40 -> درآمد مشمول مالیات بعد از معافیت 101 | J35: ='5'!G40 -> 0 | L35: ='5'!H40 -> 1744000000 | O35: ='8'!F27 -> ت -عدم تحویل صورتحساب چاپی به خریدار ، حذف یا مخدوش نمودن صورتحساب | R35: 2 | T35: =IF('1'!G252=1,'8'!I27,0) -> 0 | V35: 0
D36: 16 | E36: ='5'!D41 -> سهم اتاق بازرگانی ( کارت بازرگانی) | J36: ='5'!G41 -> 0 | L36: ='5'!H41 -> 0 | O36: ='8'!F28 -> ث -عدم اعلام تغییر شغل یا محل فعالیت و مالکیت ظرف 10 روز | R36: 1 | T36: =IF('1'!G252=1,'8'!K28,0) -> 0 | V36: 0
D37: 17 | E37: ='5'!D42 -> موضوع تبصره 2 ماده 186ق.م.م | J37: ='5'!G42 -> 0 | L37: ='5'!H42 -> 1744000 | O37: جرائم ماده 169 ق.م.م | Q37: ='1'!F215 -> ( غیر مشمول ) | R37: نرخ | T37: ماخذ محاسبه | V37: مبلغ جریمه
D38: 18 | E38: ='5'!D43 -> درآمد مشمول مالیات خالص | J38: ='5'!G43 -> 0 | L38: ='5'!H43 -> 1742256000 | O38: عدم صدور صورتحساب فروش | R38: 2 | T38: =IF('1'!$C$215=1,'6'!J35,"") ->  | V38: =R38*T38% -> 
D39: 19 | E39: ='5'!D44 -> مالیات متعلقه | J39: ='5'!G44 -> 0 | L39: ='5'!H44 -> 261338400 | O39: عدم درج شماره اقتصادی طرف معامله روی صورتحساب های فروش | R39: 2 | T39: =IF('1'!$C$215=1,'6'!J36,"") -> 
D40: 20 | E40: ='5'!D45 -> مالیات پرداختی در سایر کشورها | J40: ='5'!G45 -> 0 | L40: ='5'!H45 -> 0 | O40: عدم درج شماره اقتصادی طرف معامله روی صورتحسابهای خرید | R40: 2 | T40: =IF('1'!$C$215=1,'6'!J37,"") -> 
D41: 21 | E41: ='5'!D46 -> تخفیف تبصره ماده 131 | J41: ='5'!G46 -> 0 | L41: ='5'!H46 -> 0 | O41: عدم درج شماره اقتصادی بر روی قراردادها،اوراق و فرمها | R41: 2 | T41: =IF('1'!$C$215=1,'6'!J38,"") -> 
D42: 22 | E42: ='5'!D47 -> مالیات پرداخت شده | J42: ='5'!G47 -> 0 | L42: ='5'!H47 -> 0 | O42: استفاده از شماره اقتصادی دیگران برای معاملات مودی | R42: 2 | T42: =IF('1'!$C$215=1,'6'!J39,"") -> 
O43: استفاده از شماره اقتصادی مودی برای معاملات دیگران | R43: 2 | T43: =IF('1'!$C$215=1,'6'!J40,"") -> 
D44: 23 | E44: ='5'!D48 -> مالیات قابل پرداخت | J44: ='5'!G48 -> 0 | L44: ='5'!H48 -> 261338400 | O44: عدم ارائه فهرست معاملات در موعد مقرر | R44: 1 | T44: =IF('1'!$C$215=1,'6'!J41,"") ->  | V44: =T44*R44% -> 
D51: تاریخ شروع تنظیم کاربرگ حسابرسی : | L51: تاریخ پایان تنظیم کاربرگ حسابرسی : | T51: نام و نام خانوادگی تایید کننده :
D52: نام و نام‌خانوادگی حسابرس : | H52: ='1'!F65 -> یاسر ناظمی | L52: نام و نام‌خانوادگی حسابرس مسئول : | Q52: ='1'!J65 -> علی بخشی | T52: ='2'!R65 -> حسن حامدی
D53: سمت : | H53: حسابرس | L53: سمت : | Q53: رئیس گروه مالیاتی | T53: رئیس امور مالیاتی
AD74: m | AE74: c | AI74: last
AD75: ='2'!#REF! ->  | AE75: ='3'!R15 -> دفاتر روزنامه و کل | AI75: =IF('1'!$C$170=1,AD75,AE75) -> 
AD76: ='2'!#REF! ->  | AE76: ='3'!R16 -> غیر مشمول | AI76: =IF('1'!$C$170=1,AD76,AE76) -> 
AD77: ='2'!D23 -> مبالغ غیر درآمدی : | AE77: ='3'!R18 -> ترازنامه و سود و زیان | AI77: =IF('1'!$C$170=1,AD77,AE77) -> مبالغ غیر درآمدی : | AS77: 4
AD78: ='2'!G23 -> 0 | AE78: ='3'!R19 -> ارائه | AI78: =IF('1'!$C$170=1,AD78,AE78) -> 0
AC79: =V14 -> 0 | AD79: ='2'!M20 -> 0 | AE79: ='3'!J16 -> 0 | AI79: =IF('1'!$C$170=1,AD79,AE79) -> 0
AC80: =AC79 -> 0 | AD80: ='2'!#REF! ->  | AE80: ='3'!J19 -> 0 | AI80: =IF('1'!$C$170=1,AD80,AE80) -> 
AD81: ='2'!#REF! ->  | AE81: ='3'!W18 -> معافیت های مقرر در ماده 133 | AI81: =IF('1'!$C$170=1,AD81,AE81) -> 
AD82: ='2'!M23 -> 0 | AE82: ='3'!W19 -> 0 | AI82: =IF('1'!$C$170=1,AD82,AE82) -> 0
AD83: ='2'!Q23 -> فروش کتمان شده : | AE83: ='3'!H21 -> نوع شرکت | AI83: =IF('1'!$C$170=1,AD83,AE83) -> فروش کتمان شده :
AD84: ='2'!T23 -> 0 | AE84: ='3'!H22 -> 0 | AI84: =IF('1'!$C$170=1,AD84,AE84) -> 0
AD85: ='2'!D56 -> توضیحات : مودی محترم برای عملکرد 1402 در موعد قانونی در شغل دندانپزشکی تجربی اقدام به تسلیم اظهارنامه مالیاتی نموده است. مودی علاوه بر شغل دندانپزشکی تجربی مشغول به فعالیت در جایگاه سوخت نیز می باشد. مودی قسمتی از اسناد و مدارک مربوط به حساب را ارائه نمود . میزان فروش یا خدمات ابرازی مودی در اظهارنامه عملکرد مبلغ 27،000،000،000 ريال می باشد. گردش حساب بانکی مربوط به پرونده مبلغ 46،042،624،356 ريال و گردش دستگاه پوز مبلغ 28،472،801،306 ريال و فروش در سامانه ارسال صورت معاملات مبلغ 0 ريال و مبلغ فروش در سامانه استخراج اطلاعاتی و پیمان های بلندمدت مبلغ 0 ريال و سایر فروش0 ريال می باشد. مبلغ خرید در سامانه استخراج اطلاعات سازمان مبلغ 0 ريال می باشد. با برسی و آنالیز حساب ها مبالغ ذیل تحت گردش حساب تجاری مودی لحاظ گردید : (1. حساب بانکی شماره IR210170000000107384022002 مربوط به بانک ملی با گردش حساب 24،728،837،002 ريال که تماما تجاری لحاظ گردید 2. حساب بانکی شماره IR280600220901015204478001 مربوط به بانک مهر با گردش 21،313،787،354 ريال که با آنالیز حساب ها طبق مدارک یوست مبلغ 9،524،398،604 ريال تحت فعالیت تجاری مربوط به پرونده لحاظ گردید . مبنای رسیدگی فعالیت مودی بر اساس اطلاعات سامانه کد اقتصادی و ابرازی مودی در اظهارنامه قرار گرفته است . بنابراین رسیدگی با استناد به دستورالعمل 200/99/522 مورخ 1399/11/27 به علت عدم ارائه اسناد هزینه ای فروش و با در نظر گرفتن نرخ سود فعالیت به شرح اطلاعلات جداول فوق تعیین درآمد می گردد . | AE85: ='3'!C48 -> توضیحات : مودی محترم برای عملکرد 1402 در موعد قانونی برای شغل نسوزکاری اقدام به تسلیم اظهارنامه مالیاتی نموده ولی اسناد و مدارک حسابداری و دفاتر از طرف مودی ارائه نگردید . میزان فروش یا خدمات ابرازی مودی در اظهارنامه عملکرد مبلغ 14،257،561،756 ريال و ابرازی در اظهارنامه ارزش افرزش دوره های مالیاتی سال 1402 مبلغ 34،155،873،760 ريال و گردش حساب بانکی مبلغ 8،579،099،357 ريال و فروش در سامانه ارسال صورت معاملات مبلغ 27،470،912،760 ريال و مبلغ فروش در سامانه استخراج اطلاعات مبلغ 0 ريال می باشد. با بررسی درگاه های اطلاعاتی سازمان و تحقیقات میدانی اطلاعاتی مبنی بر اشتغال به سایر فعالیت ها واصل نگردید بنابراین مبنای رسیدگی فعالیت مودی بر اساس ابرازی مودی در اظهارنامه ارزش افرزش افزوده مودی قرار گرفته و رسیدگی با استناد به دستورالعمل 200/99/522 مورخ 1399/11/27 با در نظر گرفتن نرخ سود فعالیت به شرح جدول فوق تعیین درآمد می گردد . | AI85: =IF('1'!$C$170=1,AD85,AE85) -> توضیحات : مودی محترم برای عملکرد 1402 در موعد قانونی در شغل دندانپزشکی تجربی اقدام به تسلیم اظهارنامه مالیاتی نموده است. مودی علاوه بر شغل دندانپزشکی تجربی مشغول به فعالیت در جایگاه سوخت نیز می باشد. مودی قسمتی از اسناد و مدارک مربوط به حساب را ارائه نمود . میزان فروش یا خدمات ابرازی مودی در اظهارنامه عملکرد مبلغ 27،000،000،000 ريال می باشد. گردش حساب بانکی مربوط به پرونده مبلغ 46،042،624،356 ريال و گردش دستگاه پوز مبلغ 28،472،801،306 ريال و فروش در سامانه ارسال صورت معاملات مبلغ 0 ريال و مبلغ فروش در سامانه استخراج اطلاعاتی و پیمان های بلندمدت مبلغ 0 ريال و سایر فروش0 ريال می باشد. مبلغ خرید در سامانه استخراج اطلاعات سازمان مبلغ 0 ريال می باشد. با برسی و آنالیز حساب ها مبالغ ذیل تحت گردش حساب تجاری مودی لحاظ گردید : (1. حساب بانکی شماره IR210170000000107384022002 مربوط به بانک ملی با گردش حساب 24،728،837،002 ريال که تماما تجاری لحاظ گردید 2. حساب بانکی شماره IR280600220901015204478001 مربوط به بانک مهر با گردش 21،313،787،354 ريال که با آنالیز حساب ها طبق مدارک یوست مبلغ 9،524،398،604 ريال تحت فعالیت تجاری مربوط به پرونده لحاظ گردید . مبنای رسیدگی فعالیت مودی بر اساس اطلاعات سامانه کد اقتصادی و ابرازی مودی در اظهارنامه قرار گرفته است . بنابراین رسیدگی با استناد به دستورالعمل 200/99/522 مورخ 1399/11/27 به علت عدم ارائه اسناد هزینه ای فروش و با در نظر گرفتن نرخ سود فعالیت به شرح اطلاعلات جداول فوق تعیین درآمد می گردد .
ET86: 2
X110: 1 | Y110: =IF(E111>E115,0,IF(I116<E115,I116,0)) -> 0
X112: 2 | Y112: =IF(AND(I116>E115,I116<E116),I116-E115,0) -> 0
X113: 3
X114: 4
X115: 5
X116: 6
X117: 7
X118: 8
X119: 9
X120: 10
X121: 11
X122: 12
X123: 13
O194: =A194:J2082060011عمده فروشی روغن -> 
D216: توضیحات : مودی محترم برای عملکرد 1401 در موعد قانونی در شغل عمده فروشی روغن اقدام به تسلیم اظهارنامه مالیاتی نموده و با توجه به بررسی ها و تحقیقات میدانی و اینکه با جستجو در درگاه های اطلاعاتی سازمان مبنی بر اشتغال به سایر فعالیت ها موردی یافت نشد بنابراین مبنای رسیدگی فعالیت مودی بر اساس اینتاکد سامانه کد اقتصادی و مدارک ارائه شده مودی (علافی) قرار گرفته و رسیدگی با استناد به دستورالعمل 200/99/522 مورخ 1399/11/27 با در نظر گرفتن نرخ سود فعالیت به شرح جدول فوق تعیین درآمد می گردد. 1. با بررسی صورتحساب های بانکی مبلغ ....................... ریال از بابت انتقال پول مابین حساب های شخصی خویش بوده است 2. برابر صورتحساب ارائه شده بانک یک فقره تسهیلات به مبلغ ................... ریال به حساب مودی واریز شده است 3. بنا به اعلام مودی مبنی بر اینکه فروش نهاده های کشاورزی شرکت کشت و صنعت قره آغاج به شناسه ملی ................ را به مبلغ .................... ریال را به کارتخوان شخص حقیقی کشیده در حالی که فروش مزبور به صورت کارمزدی بوده که کارمزد آن به نام شرکت طی نامه شماره ................... مورخ 1402/08/23 واصل شده است و برابر گزارش شماره ............ مورخ 1402/09/05 کارشناس ارشد مالیاتی صحت ادعای مودی به علت یکسان بودن محل فعالیت شرکت و شخص حقیقی مورد تایید قرار گرفته است که مبلغ فوق غیر تجاری لحاظ می گردد 4. مبلغ ........................ برابر نامه شماره 18561 مورخ 1402/09/15 توزیع بذر کارمزدی داشته و به علت اینکه خریدار و فروشنده هیچ کدام در صورت معاملات فصلی ثبت ننموده اند به صورت عمده فروشی در گزارش لحاظ می گردد.
BK441: ='2'!AV207 -> 1 | BL441: ='2'!AS232 -> 1403 | BM441: ='2'!AR232 -> 1000000000 | BN441: ='2'!AT460 -> 0 | BO441: ='2'!AU460 -> 0 | BP441: ='2'!AU207 -> PERCENTAGE | BQ441: ='2'!AW460 -> 0 | BR441: ='2'!#REF! ->  | BS441: ='2'!AY460 -> 0 | BT441: ='2'!AZ460 -> 0 | BU441: ='2'!BA460 -> 0 | BV441: ='2'!BB460 -> 0
BK442: ='2'!#REF! ->  | BL442: ='2'!AS207 -> 1391 | BM442: ='2'!AR207 -> 66000000 | BN442: ='2'!AV208 -> 2 | BO442: ='2'!AU461 -> 0 | BP442: ='2'!AU208 -> 50 | BQ442: ='2'!#REF! ->  | BR442: ='2'!#REF! ->  | BS442: ='2'!AY461 -> 0 | BT442: ='2'!AZ461 -> 0 | BU442: ='2'!BA461 -> 0 | BV442: ='2'!BB461 -> 0
BK443: ='2'!#REF! ->  | BL443: ='2'!AS208 -> 1392 | BM443: ='2'!AR208 -> 100000000 | BN443: ='2'!AV209 -> 3 | BO443: ='2'!AU462 -> 0 | BP443: ='2'!AU209 -> 30 | BQ443: ='2'!AW462 -> 0 | BR443: ='2'!#REF! ->  | BS443: ='2'!AY462 -> 0 | BT443: ='2'!AZ462 -> 0 | BU443: ='2'!BA462 -> 0 | BV443: ='2'!BB462 -> 0
BK444: ='2'!#REF! ->  | BL444: ='2'!AS209 -> 1393 | BM444: ='2'!AR209 -> 120000000 | BN444: ='2'!AV210 -> 4 | BO444: ='2'!AU463 -> 0 | BP444: ='2'!AU210 -> 20 | BQ444: ='2'!AW463 -> 0 | BR444: ='2'!#REF! ->  | BS444: ='2'!AY463 -> 0 | BT444: ='2'!AZ463 -> 0 | BU444: ='2'!BA463 -> 0 | BV444: ='2'!BB463 -> 0
BK445: ='2'!#REF! ->  | BL445: ='2'!AS210 -> 1394 | BM445: ='2'!AR210 -> 138000000 | BN445: ='2'!AV211 -> 5 | BO445: ='2'!AU464 -> 0 | BP445: ='2'!AU211 -> 20 | BQ445: ='2'!AW464 -> 0 | BR445: ='2'!#REF! ->  | BS445: ='2'!AY464 -> 0 | BT445: ='2'!AZ464 -> 0 | BU445: ='2'!BA464 -> 0 | BV445: ='2'!BB464 -> 0
BK446: ='2'!#REF! ->  | BL446: ='2'!AS211 -> 1395 | BM446: ='2'!AR211 -> 156000000 | BN446: ='2'!AV212 -> 6 | BO446: ='2'!AU465 -> 0 | BP446: ='2'!AU212 -> 100 | BQ446: ='2'!AW465 -> 0 | BR446: ='2'!#REF! ->  | BS446: ='2'!AY465 -> 0 | BT446: ='2'!AZ465 -> 0 | BU446: ='2'!BA465 -> 0 | BV446: ='2'!BB465 -> 0
BK447: ='2'!#REF! ->  | BL447: ='2'!AS212 -> 1396 | BM447: ='2'!AR212 -> 180000000 | BN447: ='2'!AV213 -> 7 | BO447: ='2'!AU466 -> 0 | BP447: ='2'!AX466 -> 0 | BQ447: ='2'!AW466 -> 0 | BR447: ='2'!#REF! ->  | BS447: ='2'!AY466 -> 0 | BT447: ='2'!AZ466 -> 0 | BU447: ='2'!BA466 -> 0 | BV447: ='2'!BB466 -> 0
BK448: ='2'!#REF! ->  | BL448: ='2'!AS213 -> 1397 | BM448: ='2'!AR213 -> 216000000 | BN448: ='2'!AV214 -> 8 | BO448: ='2'!AU467 -> 0 | BP448: ='2'!AX467 -> 0 | BQ448: ='2'!AW467 -> 0 | BR448: ='2'!#REF! ->  | BS448: ='2'!AY467 -> 0 | BT448: ='2'!AZ467 -> 0 | BU448: ='2'!BA467 -> 0 | BV448: ='2'!BB467 -> 0
BK449: ='2'!#REF! ->  | BL449: ='2'!AS214 -> 1398 | BM449: ='2'!AR214 -> 258000000 | BN449: ='2'!AV215 -> 9 | BO449: ='2'!AU468 -> 0 | BP449: ='2'!AX468 -> 0 | BQ449: ='2'!AW468 -> 0 | BR449: ='2'!#REF! ->  | BS449: ='2'!AY468 -> 0 | BT449: ='2'!AZ468 -> 0 | BU449: ='2'!BA468 -> 0 | BV449: ='2'!BB468 -> 0
BK450: ='2'!#REF! ->  | BL450: ='2'!AS215 -> 1399 | BM450: ='2'!AR215 -> 288000000 | BN450: ='2'!AV216 -> 10 | BO450: ='2'!AW461 -> 0 | BP450: ='2'!AV469 -> 0 | BQ450: ='2'!AW469 -> 0 | BR450: ='2'!AX469 -> 0 | BS450: ='2'!AY469 -> 0 | BT450: ='2'!AZ469 -> 0 | BU450: ='2'!BA469 -> 0 | BV450: ='2'!BB469 -> 0
BK451: ='2'!AV217 -> 11 | BL451: ='2'!AS216 -> 1400 | BM451: ='2'!AR216 -> 360000000 | BN451: ='2'!AT470 -> 0 | BO451: ='2'!AU470 -> 0 | BP451: ='2'!AV470 -> 0 | BQ451: ='2'!AW470 -> 0 | BR451: ='2'!AX470 -> 0 | BS451: ='2'!AY470 -> 0 | BT451: ='2'!AZ470 -> 0 | BU451: ='2'!BA470 -> 0 | BV451: ='2'!BB470 -> 0
BK452: ='2'!AV218 -> 12 | BL452: ='2'!AS217 -> 1401 | BM452: ='2'!AR217 -> 396000000 | BN452: ='2'!AT471 -> 0 | BO452: ='2'!AU471 -> 0 | BP452: ='2'!AV471 -> 0 | BQ452: ='2'!AW471 -> 0 | BR452: ='2'!AX471 -> 0 | BS452: ='2'!AY471 -> 0 | BT452: ='2'!AZ471 -> 0 | BU452: ='2'!BA471 -> 0 | BV452: ='2'!BB471 -> 0
BK453: ='2'!AV219 -> 13 | BL453: ='2'!AS218 -> 1402 | BM453: ='2'!AR218 -> 475000000 | BN453: ='2'!AT472 -> 0 | BO453: ='2'!AU472 -> 0 | BP453: ='2'!AV472 -> 0 | BQ453: ='2'!AW472 -> 0 | BR453: ='2'!AX472 -> 0 | BS453: ='2'!AY472 -> 0 | BT453: ='2'!AZ472 -> 0 | BU453: ='2'!BA472 -> 0 | BV453: ='2'!BB472 -> 0
BK454: ='2'!AV220 -> 14 | BL454: ='2'!AS219 -> 1403 | BM454: ='2'!AR219 -> 1000000000 | BN454: ='2'!AT473 -> 0 | BO454: ='2'!AU473 -> 0 | BP454: ='2'!AV473 -> 0 | BQ454: ='2'!AW473 -> 0 | BR454: ='2'!AX473 -> 0 | BS454: ='2'!AY473 -> 0 | BT454: ='2'!AZ473 -> 0 | BU454: ='2'!BA473 -> 0 | BV454: ='2'!BB473 -> 0
BK455: ='2'!AV221 -> 15 | BL455: ='2'!AS220 -> 1404 | BM455: ='2'!AR220 -> 2000000000 | BN455: ='2'!AT474 -> 0 | BO455: ='2'!AU474 -> 0 | BP455: ='2'!AV474 -> 0 | BQ455: ='2'!AW474 -> 0 | BR455: ='2'!AX474 -> 0 | BS455: ='2'!AY474 -> 0 | BT455: ='2'!AZ474 -> 0 | BU455: ='2'!BA474 -> 0 | BV455: ='2'!BB474 -> 0
BK456: ='2'!AV222 -> 16 | BL456: ='2'!AS221 -> 1405 | BM456: ='2'!AR221 -> 0 | BN456: ='2'!AT475 -> 0 | BO456: ='2'!AU475 -> 0 | BP456: ='2'!AV475 -> 0 | BQ456: ='2'!AW475 -> 0 | BR456: ='2'!AX475 -> 0 | BS456: ='2'!AY475 -> 0 | BT456: ='2'!AZ475 -> 0 | BU456: ='2'!BA475 -> 0 | BV456: ='2'!BB475 -> 0
BK457: ='2'!AV223 -> 17 | BL457: ='2'!AS222 -> 1406 | BM457: ='2'!AR222 -> 0 | BN457: ='2'!AT476 -> 0 | BO457: ='2'!AU476 -> 0 | BP457: ='2'!AV476 -> 0 | BQ457: ='2'!AW476 -> 0 | BR457: ='2'!AX476 -> 0 | BS457: ='2'!AY476 -> 0 | BT457: ='2'!AZ476 -> 0 | BU457: ='2'!BA476 -> 0 | BV457: ='2'!BB476 -> 0
BK458: ='2'!AR237 -> 0 | BL458: ='2'!AV234 -> adjustment | BM458: ='2'!AR234 -> 1000000000 | BN458: ='2'!AR236 -> 1000000000 | BO458: ='2'!AU148 -> 0 | BP458: ='2'!AV148 -> 0 | BQ458: ='2'!AW148 -> 0 | BR458: ='2'!AX148 -> سود ابرازی بیشتر است | BS458: ='2'!AY148 -> 0 | BT458: ='2'!AZ148 -> 0 | BU458: ='2'!BA148 -> 0 | BV458: ='2'!BB148 -> 0
BK459: ='2'!AR238 -> 0 | BL459: ='2'!AR242 -> 0 | BM459: ='2'!AV235 -> (مشمول معافیت) | BN459: ='2'!AT149 -> 0 | BO459: ='2'!AU149 -> 0 | BP459: ='2'!AV149 -> 0 | BQ459: ='2'!AW149 -> 0 | BR459: ='2'!AX149 ->  | BS459: ='2'!AY149 -> 0 | BT459: ='2'!AZ149 -> 0 | BU459: ='2'!BA149 -> 0 | BV459: ='2'!BB149 -> 0
BK460: ='2'!AR239 -> 0 | BL460: ='2'!#REF! ->  | BM460: ='2'!#REF! ->  | BN460: ='2'!AT150 -> 0 | BO460: ='2'!AU150 -> 0 | BP460: ='2'!AV150 -> 0 | BQ460: ='2'!AW150 -> 0 | BR460: ='2'!AX150 ->  | BS460: ='2'!AY150 -> 0 | BT460: ='2'!AZ150 -> 0 | BU460: ='2'!BA150 -> 0 | BV460: ='2'!BB150 -> 0
BK461: ='2'!AQ480 -> 0 | BL461: ='2'!AR151 -> 0 | BM461: ='2'!AR235 -> 1000000000 | BN461: ='2'!AT151 -> 0 | BO461: ='2'!AU151 -> 0 | BP461: ='2'!AV151 -> 0 | BQ461: ='2'!AW151 -> 0 | BR461: ='2'!AX151 -> 0 | BS461: ='2'!AY151 -> 0 | BT461: ='2'!AZ151 -> 0 | BU461: ='2'!BA151 -> 0 | BV461: ='2'!BB151 -> 0
BK462: ='2'!AQ481 -> 0 | BL462: ='2'!AR152 -> 0 | BM462: ='2'!AS152 -> investigation type | BN462: ='2'!AT152 -> investigation type | BO462: ='2'!AU152 -> investigation type | BP462: ='2'!AV152 -> merchant | BQ462: ='2'!AW152 -> merchant | BR462: ='2'!AX152 -> tax return | BS462: ='2'!AY152 -> tax return | BT462: ='2'!AZ152 -> transaction | BU462: ='2'!BA152 -> transaction | BV462: ='2'!BB152 -> 0
BK463: ='2'!AQ482 -> 0 | BL463: ='2'!AR153 -> 1 | BM463: ='2'!AS153 -> رسیدگی به دفاتر | BN463: ='2'!AT153 -> خرید و هزینه/سود فعالیت | BO463: ='2'!AU153 ->  | BP463: ='2'!AV153 -> 1 | BQ463: ='2'!AW153 -> دارد | BR463: ='2'!AX153 -> 1 | BS463: ='2'!AY153 -> ارائه | BT463: ='2'!AZ153 -> 2 | BU463: ='2'!BA153 -> مشمول | BV463: ='2'!BB153 -> در رسیدگی به دفاتر در ردیف اول فروش و خرید و هزینه مورد تایید و بقیه ردیف ها ضریب اینتاکد وارد شود
BK464: ='2'!AQ483 -> 0 | BL464: ='2'!AR154 -> 2 | BM464: ='2'!AS154 -> فروش برآوردی | BN464: ='2'!AT154 -> نرخ سود فعالیت/ ویژه | BO464: ='2'!AU154 -> درصد سود فعالیت / ویژه | BP464: ='2'!AV154 -> 2 | BQ464: ='2'!AW154 -> ندارد | BR464: ='2'!AX154 -> 2 | BS464: ='2'!AY154 -> عدم ارائه | BT464: ='2'!AZ154 -> 2 | BU464: ='2'!BA154 -> غیرمشمول | BV464: ='2'!BB154 -> 
BK465: ='2'!AQ484 -> 0 | BL465: 1 | BM465: ='2'!AS155 -> فروش برآوردی | BN465: ='2'!AT155 -> نرخ سود فعالیت/ ویژه | BO465: ='2'!AU155 -> درصد سود فعالیت / ویژه | BP465: 2 | BQ465: ='2'!AW155 -> ندارد | BR465: ='2'!AX155 -> 1 | BS465: ='2'!AY155 -> ارائه | BT465: ='2'!AZ155 -> 2 | BU465: ='2'!BA155 -> غیرمشمول | BV465: ='2'!BB155 -> 
BK466: ='2'!AQ485 -> 0 | BL466: ='2'!AR156 -> group | BM466: ='2'!AS156 -> group | BN466: ='2'!AT156 -> 1 | BO466: ='2'!AU156 -> عادی | BP466: ='2'!AV156 -> 1 | BQ466: ='2'!AW156 -> میدانی | BR466: ='2'!AX156 -> معافیت | BS466: ='2'!AY156 -> معافیت | BT466: ='2'!AZ156 -> 0 | BU466: ='2'!BA156 -> 0 | BV466: ='2'!BB156 -> 0
BK467: ='2'!AQ486 -> 0 | BL467: ='2'!AR157 -> 1 | BM467: ='2'!AS157 -> اول | BN467: ='2'!AT157 -> 2 | BO467: ='2'!AU157 -> اصلاحی | BP467: ='2'!AV157 -> 2 | BQ467: ='2'!AW157 -> اداری (پشت میزی) | BR467: ='2'!AX157 -> 1 | BS467: ='2'!AY157 -> (مشمول معافیت) | BT467: ='2'!AZ157 -> 0 | BU467: ='2'!BA157 -> 0 | BV467: ='2'!BB157 -> 0
BK468: ='2'!AQ487 -> 0 | BL468: ='2'!AR158 -> 1 | BM468: ='2'!AS158 -> دوم | BN468: ='2'!AT158 -> 3 | BO468: ='2'!AU158 -> جایگزین | BP468: ='2'!AV158 -> 3 | BQ468: ='2'!AW158 -> علی‌الرأس | BR468: ='2'!AX158 -> 2 | BS468: ='2'!AY158 -> (عدم معافیت) | BT468: ='2'!AZ158 -> 0 | BU468: ='2'!BA158 -> 0 | BV468: ='2'!BB158 -> 0
BK469: ='2'!AQ488 -> 0 | BL469: ='2'!AR159 -> 3 | BM469: ='2'!AS159 -> سوم | BN469: ='2'!AT159 -> 4 | BO469: ='2'!AU159 -> سایر | BP469: ='2'!AV159 -> 4 | BQ469: ='2'!AW159 -> بازرسی | BR469: ='2'!AX159 -> 3 | BS469: ='2'!AY159 -> (سایر) | BT469: ='2'!AZ159 -> 0 | BU469: ='2'!BA159 -> 0 | BV469: ='2'!BB159 -> 0
BK470: ='2'!AQ489 -> 0 | BL470: ='2'!AR160 -> 3 | BM470: ='2'!AS160 -> سوم | BN470: ='2'!AT160 -> 1 | BO470: ='2'!AU160 -> عادی | BP470: ='2'!AV160 -> 2 | BQ470: ='2'!AW160 -> اداری (پشت میزی) | BR470: ='2'!AX160 -> 1 | BS470: ='2'!AY160 -> (مشمول معافیت) | BT470: ='2'!AZ160 -> 0 | BU470: ='2'!BA160 -> 0 | BV470: ='2'!BB160 -> 0
BK471: ='2'!AQ490 -> 0 | BL471: ='2'!AR161 -> determiner | BM471: ='2'!AS161 -> file type | BN471: ='2'!AT161 -> partnership | BO471: ='2'!AU161 -> partnership | BP471: ='2'!AV161 -> partnership | BQ471: ='2'!AW161 -> 0 | BR471: ='2'!AX161 -> 0 | BS471: ='2'!AY161 -> 0 | BT471: ='2'!AZ161 -> 0 | BU471: ='2'!BA161 -> 0 | BV471: ='2'!BB161 -> 0
BK472: ='2'!AQ491 -> 0 | BL472: ='2'!AR162 -> 1 | BM472: ='2'!AS162 -> مشارکتی | BN472: ='2'!AT162 -> درصد شراکت | BO472: ='2'!AU162 -> درآمد مشمول مالیات هر شریک | BP472: ='2'!AV162 -> مالیات هرشریک | BQ472: ='2'!AW162 -> تعداد شرکا | BR472: ='2'!AX162 -> درآمد مشمول مالیات هر شریک قبل معافیت: | BS472: ='2'!#REF! ->  | BT472: ='2'!AZ162 -> 0 | BU472: ='2'!BA162 -> 0 | BV472: ='2'!#REF! -> 
BK473: ='2'!AQ492 -> 0 | BL473: ='2'!AR163 -> 2 | BM473: ='2'!AS163 -> انفرادی | BN473: ='2'!AT163 -> درصد سهم | BO473: ='2'!AU163 -> درآمد مشمول مالیات | BP473: ='2'!AV163 -> مالیات | BQ473: ='2'!AW163 -> تعداد اعضا | BR473: ='2'!AX163 -> درآمد مشمول مالیات قبل معافیت | BS473: ='2'!AY163 -> 1 | BT473: ='2'!AZ163 -> 0 | BU473: ='2'!BA163 -> 0 | BV473: ='2'!BB163 -> 0
BK474: ='2'!AQ493 -> 0 | BL474: 1 | BM474: ='2'!AS164 -> انفرادی | BN474: ='2'!AT164 -> درصد سهم | BO474: ='2'!AU164 -> درآمد مشمول مالیات | BP474: ='2'!AV164 -> مالیات | BQ474: ='2'!AW164 -> تعداد اعضا | BR474: ='2'!AX164 -> درآمد مشمول مالیات قبل معافیت | BS474: ='2'!AY164 -> 1 | BT474: ='2'!AZ164 -> 0 | BU474: ='2'!BA164 -> 0 | BV474: ='2'!BB164 -> 0
BK475: ='2'!AQ494 -> 0 | BL475: ='2'!AR165 -> net 4 compute | BM475: ='2'!AS165 -> merchant | BN475: ='2'!AT165 -> remark 186 | BO475: ='2'!AU165 -> inc af exem | BP475: ='2'!AV165 -> exem aft adj | BQ475: ='2'!AW165 -> exem adj | BR475: ='2'!AX165 -> Exem | BS475: ='2'!AY165 -> income | BT475: ='2'!AZ165 -> PERCENTAGE | BU475: ='2'!BA165 -> MAX INC | BV475: ='2'!BB165 -> 0
BK476: ='2'!AQ495 -> 0 | BL476: ='2'!AR166 -> 0 | BM476: ='2'!AS166 -> 0 | BN476: ='2'!AT166 -> 0 | BO476: ='2'!AU166 -> 0 | BP476: ='2'!AV166 -> 0 | BQ476: ='2'!AW166 -> 0 | BR476: ='2'!AX166 -> 0 | BS476: ='2'!AY166 -> 0 | BT476: ='2'!AZ166 -> 0 | BU476: ='2'!BA166 -> 0 | BV476: ='2'!BB166 -> 1
BK477: ='2'!AQ496 -> 0 | BL477: ='2'!AR167 -> 0 | BM477: ='2'!AS167 -> 0 | BN477: ='2'!AT167 -> 0 | BO477: ='2'!AU167 -> 0 | BP477: ='2'!AV167 -> 0 | BQ477: ='2'!AW167 -> 0 | BR477: ='2'!AX167 -> 0 | BS477: ='2'!AY167 -> 0 | BT477: ='2'!AZ167 -> 0 | BU477: ='2'!BA167 -> 0 | BV477: ='2'!BB167 -> 2
BK478: ='2'!AQ497 -> 0 | BL478: ='2'!AR168 -> 0 | BM478: ='2'!AS168 -> 0 | BN478: ='2'!AT168 -> 0 | BO478: ='2'!AU168 -> 0 | BP478: ='2'!AV168 -> 0 | BQ478: ='2'!AW168 -> 0 | BR478: ='2'!AX168 -> 0 | BS478: ='2'!AY168 -> 0 | BT478: ='2'!AZ168 -> 0 | BU478: ='2'!BA168 -> 0 | BV478: ='2'!BB168 -> 3
BK479: ='2'!AQ498 -> 0 | BL479: ='2'!AR169 -> 0 | BM479: ='2'!AS169 -> 0 | BN479: ='2'!AT169 -> 0 | BO479: ='2'!AU169 -> 0 | BP479: ='2'!AV169 -> 0 | BQ479: ='2'!AW169 -> 0 | BR479: ='2'!AX169 -> 0 | BS479: ='2'!AY169 -> 0 | BT479: ='2'!AZ169 -> 0 | BU479: ='2'!BA169 -> 0 | BV479: ='2'!BB169 -> 4
BK480: ='2'!AQ499 -> 0 | BL480: ='2'!AR170 -> 0 | BM480: ='2'!AS170 -> 0 | BN480: ='2'!AT170 -> 0 | BO480: ='2'!AU170 -> 0 | BP480: ='2'!AV170 -> 0 | BQ480: ='2'!AW170 -> 0 | BR480: ='2'!AX170 -> 0 | BS480: ='2'!AY170 -> 0 | BT480: ='2'!AZ170 -> 0 | BU480: ='2'!BA170 -> 0 | BV480: ='2'!BB170 -> 5
BK481: ='2'!AQ500 -> 0 | BL481: ='2'!AR176 -> 0 | BM481: ='2'!AS176 -> 0 | BN481: ='2'!AT176 -> 0 | BO481: ='2'!AU176 -> 0 | BP481: ='2'!AV176 -> 0 | BQ481: ='2'!AW176 -> 0 | BR481: ='2'!AX176 -> 0 | BS481: ='2'!AY176 -> 0 | BT481: ='2'!AZ176 -> 0 | BU481: ='2'!BA176 -> 0 | BV481: ='2'!BB176 -> tax return
BK482: ='2'!AQ501 -> 0 | BL482: ='2'!AR177 -> 0 | BM482: ='2'!AS177 -> 0 | BN482: ='2'!AT177 -> 0 | BO482: ='2'!AU177 -> 0 | BP482: ='2'!AV177 -> 0 | BQ482: ='2'!AW177 -> 0 | BR482: ='2'!AX177 -> 0 | BS482: ='2'!AY177 -> 0 | BT482: ='2'!AZ177 -> 0 | BU482: ='2'!BA177 -> 2744000000 | BV482: ='2'!BB177 -> net inc after adj
AS483: ='1'!$C$211 -> 1 | BK483: ='2'!AQ502 -> 0 | BL483: ='2'!AR178 -> 1742256000 | BM483: ='2'!AS178 -> 0 | BN483: ='2'!AT178 -> 1744000 | BO483: ='2'!AU178 -> 1744000000 | BP483: ='2'!AV178 -> 1000000000 | BQ483: ='2'!AW178 -> 0 | BR483: ='2'!AX178 -> 1000000000 | BS483: ='2'!AY178 -> 2744000000 | BT483: ='2'!AZ178 -> 1 | BU483: ='2'!BA178 -> 2744000000 | BV483: ='2'!BB178 -> TOTAL
BK484: ='2'!AQ503 -> 0 | BL484: ='2'!AR179 -> 0 | BM484: ='2'!AS179 -> 0 | BN484: ='2'!AT179 -> 0 | BO484: ='2'!AU179 -> 0 | BP484: ='2'!AV179 -> new | BQ484: ='2'!AW179 -> 1403 | BR484: ='2'!AX179 -> 1400 | BS484: ='2'!AY179 -> perc af adj | BT484: ='2'!AZ179 -> adj 131 | BU484: ='2'!BA179 -> perc | BV484: ='2'!BB179 -> num
BK485: ='2'!AQ504 -> 0 | BL485: ='2'!AR180 -> 0 | BM485: ='2'!AS180 -> 0 | BN485: ='2'!AT180 -> 0 | BO485: ='2'!AU180 -> 0 | BP485: ='2'!AV180 -> 0 | BQ485: ='2'!AW180 -> 2000000000 | BR485: ='2'!AX180 -> 500000000 | BS485: ='2'!AY180 -> 0.15 | BT485: ='2'!AZ180 -> 0 | BU485: ='2'!BA180 -> 15 | BV485: ='2'!BB180 -> 1
BK486: ='2'!AQ505 -> 0 | BL486: ='2'!AR181 -> 0 | BM486: ='2'!AS181 -> 0 | BN486: ='2'!AT181 -> 0 | BO486: ='2'!AU181 -> 0 | BP486: ='2'!AV181 -> 0 | BQ486: ='2'!AW181 -> 4000000000 | BR486: ='2'!AX181 -> 1000000000 | BS486: ='2'!AY181 -> 0.2 | BT486: ='2'!AZ181 -> 0 | BU486: ='2'!BA181 -> 20 | BV486: ='2'!BB181 -> 2
BK487: ='2'!AQ506 -> 0 | BL487: ='2'!AR182 -> 0 | BM487: ='2'!AS182 -> 0 | BN487: ='2'!AT182 -> 0 | BO487: ='2'!AU182 -> 0 | BP487: ='2'!AV182 -> 0 | BQ487: ='2'!AW182 -> 0 | BR487: ='2'!AX182 -> 0 | BS487: ='2'!AY182 -> 0.25 | BT487: ='2'!AZ182 -> 0 | BU487: ='2'!BA182 -> 25 | BV487: ='2'!BB182 -> 3
BK488: ='2'!AQ509 -> 0 | BL488: ='2'!AR190 -> 0 | BM488: ='2'!AS190 ->  | BN488: ='2'!AT190 -> 0 | BO488: ='2'!AU190 -> 0 | BP488: ='2'!#REF! ->  | BQ488: ='2'!AW190 -> 0 | BR488: ='2'!AX190 -> 0 | BS488: ='2'!AV190 -> 1403 | BT488: ='2'!AZ190 -> 1403 | BU488: ='2'!BA190 -> 1400 | BV488: ='2'!BB190 -> 1403
BK489: ='2'!AQ510 -> 0 | BL489: ='2'!AR191 -> سهم شریک اول | BM489: ='2'!AS191 ->  | BN489: ='2'!AT191 -> 0 | BO489: ='2'!AU191 -> 0 | BP489: ='2'!#REF! ->  | BQ489: ='2'!AW191 -> 0 | BR489: ='2'!AX191 -> 0 | BS489: ='2'!AV191 -> 0 | BT489: ='2'!AZ191 -> 0 | BU489: ='2'!BA191 -> 0 | BV489: ='2'!BB191 -> 1
BK490: ='2'!AQ511 -> 0 | BL490: ='2'!AR192 -> سهم شریک دوم | BM490: ='2'!AS192 ->  | BN490: ='2'!AT192 -> 0 | BO490: ='2'!AU192 -> 0 | BP490: ='2'!#REF! ->  | BQ490: ='2'!AW192 -> 0 | BR490: ='2'!AX192 -> 0 | BS490: ='2'!AV192 -> 0 | BT490: ='2'!AZ192 -> 0 | BU490: ='2'!BA192 -> 0 | BV490: ='2'!BB192 -> 2
BK491: ='2'!AQ512 -> 0 | BL491: ='2'!AR193 -> سهم شریک سوم | BM491: ='2'!AS193 ->  | BN491: ='2'!AT193 -> 0 | BO491: ='2'!AU193 -> 0 | BP491: ='2'!#REF! ->  | BQ491: ='2'!AW193 -> 0 | BR491: ='2'!AX193 -> 0 | BS491: ='2'!AV193 -> 0 | BT491: ='2'!AZ193 -> 0 | BU491: ='2'!BA193 -> 0 | BV491: ='2'!BB193 -> 3
BK492: ='2'!AQ513 -> 0 | BL492: ='2'!AR194 -> سهم شریک چهارم | BM492: ='2'!AS194 ->  | BN492: ='2'!AT194 -> 0 | BO492: ='2'!AU194 -> 0 | BP492: ='2'!#REF! ->  | BQ492: ='2'!AW194 -> 0 | BR492: ='2'!AX194 -> 0 | BS492: ='2'!AV194 -> 0 | BT492: ='2'!AZ194 -> 0 | BU492: ='2'!BA194 -> 0 | BV492: ='2'!BB194 -> 4
BK493: ='2'!AQ514 -> 0 | BL493: ='2'!AR195 -> سهم شریک پنجم | BM493: ='2'!AS195 ->  | BN493: ='2'!AT195 -> 0 | BO493: ='2'!AU195 -> 0 | BP493: ='2'!#REF! ->  | BQ493: ='2'!AW195 -> 0 | BR493: ='2'!AX195 -> 0 | BS493: ='2'!AV195 -> 0 | BT493: ='2'!AZ195 -> 0 | BU493: ='2'!BA195 -> 0 | BV493: ='2'!BB195 -> 5
BK494: ='2'!AQ515 -> 0 | BL494: ='2'!AR201 -> 0 | BM494: ='2'!AS201 -> 0 | BN494: ='2'!AT201 -> 0 | BO494: ='2'!AU201 -> 0 | BP494: ='2'!#REF! ->  | BQ494: ='2'!AW201 -> 0 | BR494: ='2'!AX201 -> 0 | BS494: ='2'!AV201 -> 261338400 | BT494: ='2'!AZ201 -> 261338400 | BU494: ='2'!BA201 -> 360564000 | BV494: ='2'!BB201 -> solitar
BN513: tax return statement
BN514: 1393 | BP514: 500000000 | BR514: 1000000000
BN515: 1394 | BP515: 500000000 | BR515: 1000000000
BN516: 1395 | BP516: 500000000 | BR516: 1000000000
BN517: 1396 | BP517: 500000000 | BR517: 1000000000
BN518: 1397 | BP518: 500000000 | BR518: 1000000000
BN519: 1398 | BP519: 500000000 | BR519: 1000000000
BN520: 1399 | BP520: 500000000 | BR520: 1000000000
BL521: 0.15 | BM521: 500000000 | BN521: 1400 | BP521: 500000000 | BR521: 1000000000
BL522: 0.2 | BM522: 1000000000 | BN522: 1401 | BP522: 2000000000 | BR522: 4000000000
BL523: 0.25 | BN523: 1402 | BP523: 2000000000 | BR523: 4000000000
BN524: 1403 | BP524: 0 | BR524: 0
BM525: 0 | BN525: =BN556 -> 1403 | BP525: =LOOKUP(BN525,BN514:BN524,BP514:BP524) -> 0 | BR525: =LOOKUP(BN525,BN514:BN524,BR514:BR524) -> 0
BN526: مالیات | BP526: =J38 -> 0 | BR526: =IF(BP526<=BP525,BP526*15%,IF(BP526<=BR525,(BP525*15%)+(BP526-BP525)*20%,(BP525*15%)+((BR525-BP525)*20%)+(BP526-BR525)*25%)) -> 0
BN528: hide
BN529: 1393 | BP529: 500000000 | BR529: 1000000000
BN530: 1394 | BP530: 500000000 | BR530: 1000000000
BN531: 1395 | BP531: 500000000 | BR531: 1000000000
BN532: 1396 | BP532: 500000000 | BR532: 1000000000
BN533: 1397 | BP533: 500000000 | BR533: 1000000000
BN534: 1398 | BP534: 500000000 | BR534: 1000000000
BN535: 1399 | BP535: 500000000 | BR535: 1000000000
BL536: 0.15 | BM536: 500000000 | BN536: 1400 | BP536: 500000000 | BR536: 1000000000
BL537: 0.2 | BM537: 1000000000 | BN537: 1401 | BP537: 2000000000 | BR537: 4000000000
BL538: 0.25 | BN538: 1402 | BP538: 2000000000 | BR538: 4000000000
BN539: 1403 | BP539: 0 | BR539: 0
BM540: 0 | BN540: ='1'!E9 -> 1403 | BP540: =LOOKUP(BN540,BN529:BN539,BP529:BP539) -> 0 | BR540: =LOOKUP(BN540,BN529:BN539,BR529:BR539) -> 0
BN541: مالیات | BP541: 20000000 | BR541: =IF(BP541<=BP540,BP541*15%,IF(BP541<=BR540,(BP540*15%)+(BP541-BP540)*20%,(BP540*15%)+((BR540-BP540)*20%)+(BP541-BR540)*25%)) -> 5000000
BN544: hide artax
BN545: 1393 | BP545: 500000000 | BR545: 1000000000
BN546: 1394 | BP546: 500000000 | BR546: 1000000000
BN547: 1395 | BP547: 500000000 | BR547: 1000000000
BN548: 1396 | BP548: 500000000 | BR548: 1000000000
BN549: 1397 | BP549: 500000000 | BR549: 1000000000
BN550: 1398 | BP550: 500000000 | BR550: 1000000000
BN551: 1399 | BP551: 500000000 | BR551: 1000000000
BL552: 0.15 | BM552: 500000000 | BN552: 1400 | BP552: 500000000 | BR552: 1000000000
BL553: 0.2 | BM553: 1000000000 | BN553: 1401 | BP553: 2000000000 | BR553: 4000000000
BL554: 0.25 | BN554: 1402 | BP554: 2000000000 | BR554: 4000000000
BN555: 1403 | BP555: 2000000000 | BR555: 4000000000
BM556: 0 | BN556: =BN540 -> 1403 | BP556: =LOOKUP(BN556,BN545:BN555,BP545:BP555) -> 2000000000 | BR556: =LOOKUP(BN556,BN545:BN555,BR545:BR555) -> 4000000000
BN557: مالیات | BP557: 4000000000 | BR557: =IF(BP557<=BP556,BP557*15%,IF(BP557<=BR556,(BP556*15%)+(BP557-BP556)*20%,(BP556*15%)+((BR556-BP556)*20%)+(BP557-BR556)*25%)) -> 700000000

Sheet Vatsm
D2: صفحه اصلی | F2: راهنما و تنظیمات - پایین صفحه | K2: ارزش افزوده | M2: ماده 169 و سامانه مودیان | O2: مهم | P2: مشاغل | Q2: شرکت ها
C5: کاربرگ رسیدگی اظهارنامه مالیات بر ارزش افزوده
C6: (بر اساس حکم ماده 3 قانون تسهیل تکالیف مؤدیان)
C8: مشخصات مؤدی : | E8: نام مودی : | H8: ='1'!I7 -> یاسر ناظمی | L8: شناسه مؤدی : | N8: ='1'!I9 -> 16218196470001 | P8: نوع شخصیت : | Q8: ='1'!O9 -> حقیقی
E9: اداره کل مالیاتی : | H9: ='1'!E63 -> اردبيل | L9: اداره امور مالیاتی : | N9: ='1'!M63 -> شهرستان گرمی | P9: نوع فعالیت : | Q9: ='1'!G11 -> دندانپزشکی
C10: جزییات حسابرسی : | E10: نوع حسابرسی : | H10: ='1'!O25 -> اداری (پشت میزی) | L10: سال عملکرد : | N10: ='1'!E9 -> 1403 | P10: شماره اظهارنامه :
A11: 1 | E11: نوع اظهارنامه : | H11: =D216 -> عمومی ( سایر کالا و خدمات ) | N11: =D217 -> 10 | P11: تاریخ اظهارنامه : | AA11: اظهارنامه ماليات بر ارزش افزوده
C12: کد پستی و آدرس : | E12: ='1'!G33 -> 5618694316 | H12: ='1'!H33 -> مرکزی شهرک آیت الله کاشانی کوچه ((احد اصولی)) کوچه شهیدنجف کوشش پلاک 0 طبقه همکف | P12: موبایل : | Q12: ='1'!O11 -> 9127212385 | AA12: (بر اساس حکم ماده 3 قانون تسهيل تکاليف مؤديان)
AA13: 3 | AB13: نسخه:1
C14: جدول (الف): اطلاعات مربوط به فروش خالص کالاها و خدمات (نقد و نسیه) و صادرات | AA14: اداره کل امور ‌مالياتي: استان اردبيل
C15: ردیف | D15: عنوان | H15: نرخ | I15: دوره | J15: بهاي‌كالاهاوخدمات‌فروخته/صادرشده | P15: ماليات و عوارض ارزش افزوده فروش | AA15: سال : | AB15: 1402 | AC15: طول دوره مالياتي: | AD15: 3 | AE15: شماره‌دوره: | AF15: 4
J16: بارگذاری از سامانه مؤدیان | L16: خارج از سامانه مؤدیان | N16: مجموع | AA16: 1402/12/29 تا 1402/10/01 دوره مالياتي از تاريخ | AB16: 1460977438 کدرهگيري
J17: ابرازی | K17: حسابرسی | L17: ابرازی | M17: حسابرسی | N17: ابرازی | O17: حسابرسی | P17: ابرازی | Q17: حسابرسی
C18: 1 | D18: فروش خالص کالاها و خدمات عمومی مشمول(نقد و نسیه) : | H18: 9 | I18: 1 | J18: 250000000000 | K18: =J18 -> 250000000000 | L18: 0 | M18: 500000000000 | N18: =IFERROR(IF($E$120=$D$249,SUM(J18,L18),$L$247),0) -> 250000000000 | O18: =IFERROR(IF($E$120=$D$249,SUM(K18,M18),$L$247),0) -> 750000000000 | P18: =IFERROR(IF($E$120=$D$249,N18*$H$18%,$L$247),0) -> 22500000000 | Q18: =IFERROR(IF($E$120=$D$249,O18*$H$18%,$L$247),0) -> 67500000000 | AA18: الف-مشخصات مودي
H19: =H18 -> 9 | I19: 2 | K19: =J19 -> 0 | N19: 0 | O19: 0 | P19: 0 | Q19: 0
H20: =H18 -> 9 | I20: 3 | K20: 0 | N20: 0 | O20: 0 | P20: 0 | Q20: 0
H21: =H18 -> 9 | I21: 4 | K21: 0 | N21: 0 | O21: 0 | P21: 0 | Q21: 0 | AA21: شماره شعبه/نمايندگي: | AB21: 0
C22: 2 | D22: فروش خالص کالاها و خدمات مشمول و فراخوان شده از دستگاه کارت خوان و یا درگاه پرداخت اینترنتی : | H22: 9 | I22: 1 | K22: 0 | N22: 0 | O22: 0 | P22: 0 | Q22: 0 | AA22: شخص حقوقي | AB22: نام مؤدي: | AC22: صنعت شير آلات قهرمان | AD22: شماره‌ثبت: | AE22: 1291 | AF22: شناسه‌ملي: | AG22: 10980210850
H23: =H22 -> 9 | I23: 2 | K23: 0 | N23: 0 | O23: 0 | P23: 0 | Q23: 0
H24: =H22 -> 9 | I24: 3 | K24: 0 | N24: 0 | O24: 0 | P24: 0 | Q24: 0
H25: =H22 -> 9 | I25: 4 | K25: 0 | N25: 0 | O25: 0 | P25: 0 | Q25: 0
C26: 3 | D26: فروش خالص کالاها و خدمات معاف (نقدی و نسیه) : | H26: 0 | I26: 1 | K26: 0 | N26: 0 | O26: 0 | P26: 0 | Q26: 0 | AA26: استان: اردبيل | AB26: شهرستان: گرمي
H27: 0 | I27: 2 | K27: 0 | N27: 0 | O27: 0 | P27: 0 | Q27: 0
H28: 0 | I28: 3 | K28: 0 | N28: 0 | O28: 0 | P28: 0 | Q28: 0
H29: 0 | I29: 4 | K29: 0 | N29: 0 | O29: 0 | P29: 0 | Q29: 0 | AA29: شهر: | AB29: گرمي
C30: 4 | D30: کل صادرات کالا و خدمات به غیر از صادرات کالاهای موضوع تبصره 2 ماده 10 قانون دائمی ارزش افزوده - پذیرفته شده : | H30: 0 | I30: 1 | K30: 0 | N30: 0 | O30: 0 | P30: 0 | Q30: 0
H31: =H30 -> 0 | I31: 2 | K31: 0 | N31: 0 | O31: 0 | P31: 0 | Q31: 0
H32: =H30 -> 0 | I32: 3 | K32: 0 | N32: 0 | O32: 0 | P32: 0 | Q32: 0
H33: =H30 -> 0 | I33: 4 | K33: 0 | N33: 0 | O33: 0 | P33: 0 | Q33: 0 | AA33: کدپستي: 5653141339 | AB33: (045 ) 33623661 :تلفن | AC33: () :نمابر
C34: 5 | D34: کل صادرات کالا و خدمات به غیر از صادرات کالاهای موضوع تبصره 2 ماده 10 قانون دائمی ارزش افزوده - تایید نشده : | H34: 9 | I34: 1 | K34: 0 | N34: 0 | O34: 0 | P34: 0 | Q34: 0 | AA34: نشاني: استان اردبيل - شهرستان گرمي - شهر گرمي - اردبيل گرمي گرمي استان اردبيل-شهرستان گرمي-روستاي بيلداشي
H35: =H34 -> 9 | I35: 2 | K35: 0 | N35: 0 | O35: 0 | P35: 0 | Q35: 0
H36: =H34 -> 9 | I36: 3 | K36: 0 | N36: 0 | O36: 0 | P36: 0 | Q36: 0
H37: =H34 -> 9 | I37: 4 | K37: 0 | N37: 0 | O37: 0 | P37: 0 | Q37: 0
C38: 6 | D38: تعدیلات مالیات و عوارض ناشی از نرخ و بهاء از دوره های گذشته بابت فروش کالا و خدمات عمومی : | H38: 9 | I38: 1 | K38: 0 | N38: 0 | O38: 0 | P38: 0 | Q38: 0 | AA38: جدول (الف): اطلاعات مربوط به فروش خالص کالاها و خدمات (نقد و نسيه) و صادرات
H39: =H38 -> 9 | I39: 2 | K39: 0 | N39: 0 | O39: 0 | P39: 0 | Q39: 0
H40: =H38 -> 9 | I40: 3 | K40: 0 | N40: 0 | O40: 0 | P40: 0 | Q40: 0
H41: =H38 -> 9 | I41: 4 | K41: 0 | N41: 0 | O41: 0 | P41: =IFERROR(N41*H38,0) -> 0 | Q41: =IFERROR(IF($E$120=$D$249,O41*$H$18%,$L$247),0) -> 0 | AA41: شرح | AB41: نرخ
C42: جمع مالیات و عوارض ارزش افزوده فروش کالا و خدمات : | H42: 9 | I42: 1 | N42: =IFERROR(IF($E$120=$D$249,SUMIF($I$18:$I$41,I42,$N$18:$N$41),$N$68),0) -> 250000000000 | O42: =IFERROR(IF($E$120=$D$249,SUMIF($I$18:$I$41,I42,$O$18:$O$41),$N$68),0) -> 750000000000 | P42: =IFERROR(IF($E$120=$D$249,SUMIF($I$18:$I$41,I42,$P$18:$P$41),$N$68),0) -> 22500000000 | Q42: =IFERROR(IF($E$120=$D$249,SUMIF($I$18:$I$41,I42,$Q$18:$Q$41),$N$68),0) -> 67500000000 | AA42: (درصد) | AB42: بهاي‌كالاهاوخدمات‌فروخته/صادرشده
H43: =H42 -> 9 | I43: 2 | N43: =IFERROR(IF($E$120=$D$249,SUMIF($I$18:$I$41,I43,$N$18:$N$41),$N$68),0) -> 0 | O43: =IFERROR(IF($E$120=$D$249,SUMIF($I$18:$I$41,I43,$O$18:$O$41),$N$68),0) -> 0 | P43: =IFERROR(IF($E$120=$D$249,SUMIF($I$18:$I$41,I43,$P$18:$P$41),$N$68),0) -> 0 | Q43: =IFERROR(IF($E$120=$D$249,SUMIF($I$18:$I$41,I43,$Q$18:$Q$41),$N$68),0) -> 0
H44: =H42 -> 9 | I44: 3 | N44: =IFERROR(IF($E$120=$D$249,SUMIF($I$18:$I$41,I44,$N$18:$N$41),$N$68),0) -> 0 | O44: =IFERROR(IF($E$120=$D$249,SUMIF($I$18:$I$41,I44,$O$18:$O$41),$N$68),0) -> 0 | P44: =IFERROR(IF($E$120=$D$249,SUMIF($I$18:$I$41,I44,$P$18:$P$41),$N$68),0) -> 0 | Q44: =IFERROR(IF($E$120=$D$249,SUMIF($I$18:$I$41,I44,$Q$18:$Q$41),$N$68),0) -> 0
H45: =H42 -> 9 | I45: 4 | N45: =IFERROR(IF($E$120=$D$249,SUMIF($I$18:$I$41,I45,$N$18:$N$41),$N$68),0) -> 0 | O45: =IFERROR(IF($E$120=$D$249,SUMIF($I$18:$I$41,I45,$O$18:$O$41),$N$68),0) -> 0 | P45: =IFERROR(IF($E$120=$D$249,SUMIF($I$18:$I$41,I45,$P$18:$P$41),$N$68),0) -> 0 | Q45: =IFERROR(IF($E$120=$D$249,SUMIF($I$18:$I$41,I45,$Q$18:$Q$41),$N$68),0) -> 0 | AA45: (ريال) | AB45: ماليات و عوارض ارزش افزوده فروش
C46: * تعدیلات در این قسمت مربوط به مالیات و عوارض صورت‌حساب های خارج از سامانه مؤدیان است و تعدیلات صورت‌حساب های داخل سامانه مؤدیان در ردیف های 1تا 22 جدول الف لحاظ شده است | AA46: (ريال)
AA47: بارگذاري از سامانه مؤديان | AB47: خارج از سامانه مؤديان | AC47: جمع
C48: جدول (ب):اطلاعات مربوط به خرید خالص کالا و خدمات (نقد و نسیه) و واردات | AA48: فروش خالص کالاها و خدمات عمومي مشمول(نقد و نسيه) | AB48: 0.09 | AC48: 1004984868100 | AD48: 6 | AE48: 1004984868106 | AF48: 90448638130
C49: ردیف | D49: عنوان | H49: نرخ | I49: دوره | J49: بهاي‌كالاهاوخدمات‌فروخته/صادرشده | P49: ماليات و عوارض ارزش افزوده فروش | AA49: فروش خالص کالاها و خدمات مشمول و فراخوان شده از دستگاه کارت خوان و يا درگاه پرداخت اينترنتي | AB49: 0.09 | AC49: 34315007055 | AD49: -34315007055 | AE49: ---- | AF49: ----
J50: بارگذاری از سامانه مؤدیان | L50: خارج از سامانه مؤدیان | N50: مجموع | AA50: فروش خالص کالاها و خدمات معاف (نقدي و نسيه) | AB50: 0 | AC50: 44 | AD50: ---- | AE50: 44 | AF50: ----
J51: ابرازی | K51: حسابرسی | L51: ابرازی | M51: حسابرسی | N51: ابرازی | O51: حسابرسی | P51: ابرازی | Q51: حسابرسی
C52: 1 | D52: خرید خالص کالا و خدمات عمومی مشمول (نقد و نسیه) : | H52: 9 | I52: 1 | J52: 0 | K52: =J52 -> 0 | L52: 0 | M52: 0 | N52: =IFERROR(IF($E$120=$D$249,SUM(J52,L52),$L$247),0) -> 0 | O52: 0 | P52: =IFERROR(IF($E$120=$D$249,N52*H52%,$L$247),0) -> 0 | Q52: =IFERROR(IF($E$120=$D$249,O52*H52%,$L$247),0) -> 0 | AA52: تعديلات ماليات و عوارض ناشي از نرخ و بهاء از دوره هاي گذشته بابت فروش کالا و خدمات عمومي | AB52: ---- | AC52: ---- | AD52: ---- | AE52: ---- | AF52: ----
H53: =H52 -> 9 | I53: 2 | K53: =J53 -> 0 | N53: 0 | O53: 0 | P53: 0 | Q53: 0
H54: =H52 -> 9 | I54: 3 | K54: 0 | N54: 0 | O54: 0 | P54: 0 | Q54: 0
H55: =H52 -> 9 | I55: 4 | K55: 0 | N55: 0 | O55: 0 | P55: 0 | Q55: 0 | AA55: جمع ماليات و عوارض ارزش افزوده فروش کالا و خدمات | AC55: 90448638130
C56: 2 | D56: خرید خالص کالا و خدمات معاف (نقدی و نسیه) : | H56: 0 | I56: 1 | K56: 0 | N56: 0 | O56: 0 | P56: 0 | Q56: 0 | AA56: * تعديلات در اين قسمت مربوط به ماليات و عوارض صورت‌حساب هاي خارج از سامانه مؤديان است و تعديلات صورت‌حساب هاي داخل سامانه مؤديان در رديف هاي 1تا 22 جدول الف لحاظ شده است.
H57: 0 | I57: 2 | K57: 0 | N57: 0 | O57: 0 | P57: 0 | Q57: 0
H58: 0 | I58: 3 | K58: 0 | N58: 0 | O58: 0 | P58: 0 | Q58: 0
H59: 0 | I59: 4 | K59: 0 | N59: 0 | O59: 0 | P59: 0 | Q59: 0 | AA59: جدول (ب):اطلاعات مربوط به خريد خالص کالا و خدمات (نقد و نسيه) و واردات
C60: 3 | D60: کسر می‌شود: اعتبار مالیاتی مربوط به خریدهای مازاد بر سقف موضوع ماده (6) قانون پایانه های فروشگاهی و سامانه مؤدیان و معاملات غیرنقدی (نسیه) کالاها و خدمات عمومی : | H60: 9 | I60: 1 | K60: 0 | N60: =IFERROR(IF($E$120=$D$249,-1*(SUM(J60,L60)),$L$247),0) -> 0 | O60: 0 | P60: 0 | Q60: 0 | AA60: شرح | AB60: نرخ
H61: =H60 -> 9 | I61: 2 | K61: =J61 -> 0 | N61: 0 | O61: 0 | P61: 0 | Q61: 0
H62: =H60 -> 9 | I62: 3 | K62: =J62 -> 0 | N62: 0 | O62: 0 | P62: 0 | Q62: 0
H63: =H60 -> 9 | I63: 4 | K63: =J63 -> 0 | N63: 0 | O63: 0 | P63: 0 | Q63: 0 | AA63: (درصد) | AB63: بهاي‌كالاهاوخدمات‌فروخته/صادرشده
C64: 4 | D64: تعدیلات مالیات و عوارض ناشی از نرخ و بهاء از دوره های گذشته بابت خرید و واردات کالا و خدمات عمومی* | H64: 9 | I64: 1 | K64: 0 | N64: =IFERROR(IF($E$120=$D$249,SUM(J64,L64),$L$247),0) -> 0 | O64: 0 | P64: 0 | Q64: 0 | AA64: (ريال) | AB64: ماليات و عوارض ارزش افزوده فروش
H65: =H64 -> 9 | I65: 2 | K65: 0 | N65: 0 | O65: 0 | P65: 0 | Q65: 0
H66: =H64 -> 9 | I66: 3 | K66: 0 | N66: 0 | O66: 0 | P66: 0 | Q66: 0
H67: =H64 -> 9 | I67: 4 | K67: 0 | N67: 0 | O67: 0 | P67: 0 | Q67: 0 | AA67: (ريال)
C68: جمع مالیات و عوارض ارزش افزوده خرید کالا و خدمات : | I68: 1 | N68: =IFERROR(SUMIF($I$52:$I$67,$I68,$N$52:$N$67),0) -> 0 | O68: =IFERROR(SUMIF($I$52:$I$67,$I68,$O$52:$O$67),0) -> 0 | P68: =IFERROR(SUMIF($I$52:$I$67,I68,$P$52:$P$67),0) -> 0 | Q68: =IFERROR(SUMIF($I$52:$I$67,I68,$Q$52:$Q$67),0) -> 0 | AA68: بارگذاري از سامانه مؤديان | AB68: خارج از سامانه مؤديان | AC68: جمع
I69: 2 | N69: =IFERROR(SUMIF($I$52:$I$67,$I69,$N$52:$N$67),0) -> 0 | O69: =IFERROR(SUMIF($I$52:$I$67,$I69,$O$52:$O$67),0) -> 0 | P69: =IFERROR(SUMIF($I$52:$I$67,I69,$P$52:$P$67),0) -> 0 | Q69: =IFERROR(SUMIF($I$52:$I$67,I69,$Q$52:$Q$67),0) -> 0
I70: 3 | N70: 0 | O70: 0 | P70: 0 | Q70: 0
I71: 4 | N71: 0 | O71: 0 | P71: 0 | Q71: 0
C72: * تعدیلات در این قسمت مربوط به مالیات و عوارض صورت‌حساب های خارج از سامانه است و تعدیلات مالیات و عوارض صورت‌حساب های داخل سامانه در ردیف های 1تا 28 جدول ب لحاظ شده است | AA72: خريد خالص کالا و خدمات معاف (نقدي و نسيه) | AB72: 0 | AC72: 4808800 | AD72: ---- | AE72: 4808800 | AF72: ----
AA73: کسر مي‌شود: اعتبار مالياتي مربوط به خريدهاي مازاد بر سقف موضوع ماده (6) قانون پايانه هاي فروشگاهي و سامانه مؤديان و معاملات غيرنقدي (نسيه) کالاها و خدمات عمومي | AC73: ----
C74: تاریخ شروع تنظیم کاربرگ حسابرسی : | G74: 140-/--/-- | K74: تاریخ پایان تنظیم کاربرگ حسابرسی : | N74: 140-/--/-- | P74: نام و نام‌خانوادگی تایید کننده : | AA74: شرح | AB74: ماليات و عوارض (ريال)
C75: نام و نام‌خانوادگی حسابرس : | G75: ='1'!F65 -> یاسر ناظمی | K75: نام و نام‌خانوادگی حسابرس مسئول : | N75: ='1'!J65 -> علی بخشی | P75: ='1'!O65 -> حسن حامدی | AA75: ماليات و عوارض متعلقه بابت فروش کالا و ارايه خدمات(نقد و نسيه) | AB75: 90448638130
C76: سمت : | G76: حسابرس ارشد | K76: سمت : | N76: رئیس گروه مالیاتی | P76: سمت : رئیس امور مالیاتی | AA76: ماليات و عوارض قابل کسر از ماليات فروش | AB76: 23365787177
C77: کاربرگ رسیدگی اظهارنامه مالیات بر ارزش افزوده | AA77: ماليات و عوارض فروش کالاها و ارائه خدمات (نسيه) در دوره جاري که هنوز وجه آن دريافت نشده است | AB77: 1
C78: (بر اساس حکم ماده 3 قانون تسهیل تکالیف مؤدیان) | AA78: ماليات بر ارزش افزوده دوره جاري | AB78: 67082850952
C79: =C8 -> مشخصات مؤدی : | E79: نام مودی : | H79: =H8 -> یاسر ناظمی | J79: =H8 -> یاسر ناظمی | L79: شناسه مؤدی : | N79: =N8 -> 16218196470001 | P79: نوع شخصیت : | Q79: =Q8 -> حقیقی | AA79: اعتبارهاي دوره هاي قبل که در اين دوره ابطال شده است. | AB79: ----
E80: اداره کل مالیاتی : | H80: =H9 -> اردبيل | J80: =H9 -> اردبيل | L80: اداره امور مالیاتی : | N80: =N9 -> شهرستان گرمی | P80: نوع فعالیت : | Q80: =Q9 -> دندانپزشکی | AA80: ماليات و عوارض ارزش افزوده متعلق به صورتحساب هاي الکترونيکي فروش مربوط به دوره‌هاي قبل که در اين دوره باطل شده است | AB80: ----
C81: جزییات حسابرسی : | E81: نوع حسابرسی : | H81: =H10 -> اداری (پشت میزی) | J81: =H10 -> اداری (پشت میزی) | L81: سال عملکرد : | N81: 1403 | P81: شماره اظهارنامه : | Q81: 0 | AA81: ماليات و عوارض ارزش افزوده پرداخت نشده فروش‌هاي نسيه دوره هاي قبل که در دوره جاري وصول شده | AB81: ----
E82: =E11 -> نوع اظهارنامه : | H82: =H11 -> عمومی ( سایر کالا و خدمات ) | J82: =H11 -> عمومی ( سایر کالا و خدمات ) | L82: دوره : | N82: 10 | P82: تاریخ اظهارنامه : | Q82: 0 | AA82: اضافه پرداختي ماليات و عوارض انتقالي از دوره قبل (بدون امکان تغيير توسط مودي) | AB82: -9855042228
C83: کد پستی و آدرس : | E83: =E12 -> 5618694316 | J83: =H12 -> مرکزی شهرک آیت الله کاشانی کوچه ((احد اصولی)) کوچه شهیدنجف کوشش پلاک 0 طبقه همکف | P83: موبایل : | Q83: =Q12 -> 9127212385 | AA83: ماليات و عوارض علي الحساب پرداختي بابت تبصره (1) ماده (17) | AB83: ----
C85: جدول (ج):محاسبه ماليات و عوارض پرداختي قابل كسر يا استرداد (اعتبار مالیاتی) | AA85: تعديلات ماليات و عوارض ناشي از نرخ و بهاء از دوره هاي گذشته بابت خريد و واردات کالا و خدمات عمومي*
C86: ردیف | D86: عنوان | J86: ماليات و عوارض ارزش افزوده فروش
J87: ابرازی : | N87: حسابرسی
J88: دوره 1 | K88: دوره 2 | L88: دوره 3 | M88: دوره 4 | N88: دوره 1 | O88: دوره 2 | P88: دوره 3 | Q88: دوره 4
C89: 1 | D89: مالیات و عوارض پرداختی بابت خرید و واردات کالا و خدمات(انتقالی از ردیف جمع خرید و واردات/ مالیات و عوارض خریدکالاها و خدمات - جدول ب) | J89: =P68 -> 0 | K89: =P69 -> 0 | L89: =P70 -> 0 | M89: =P71 -> 0 | N89: =Q68 -> 0 | O89: =Q69 -> 0 | P89: =Q70 -> 0 | Q89: =Q71 -> 0 | AA89: جمع ماليات و عوارض ارزش افزوده خريد کالا و خدمات | AC89: 23365787177
C90: 2 | D90: (اضافه / کسر می‌شود: اعتبار خریدهای نسیه دوره/های قبل که در این دوره پرداخت شده است | AA90: جدول (ج):محاسبه ماليات و عوارض پرداختي قابل كسر يا استرداد (اعتبار مالياتي)
C91: 3 | D91: مالیات و عوارض پرداختی بابت خرید و واردات نهاده های مربوط به فروش کالا و خدمات معاف | AA91: ماليات و عوارض پرداختي بابت خريد و واردات کالا و خدمات(انتقالي از رديف جمع خريد و واردات/ ماليات و عوارض خريدکالاها و خدمات - جدول ب) | AB91: 23365787177
C92: 4 | D92: مالیات و عوارض پرداختی بابت خرید نهاده‌های تملک دارایی سرمایه‌ای (عمرانی) موضوع تبصره (1) ماده (8) و تبصره (4) بند الف ماده (26) | AA92: ماليات و عوارض پرداختي بابت خريد و واردات نهاده هاي مربوط به فروش کالا و خدمات معاف | AB92: ----
C94: جدول (د)- محاسبه مانده بدهی ماليات و عوارض ارزش افزوده | AA94: ماليات و عوارض فروش نسيه کالا و ارايه خدمات بابت فروش دوره‌هاي قبل که هنوز تسويه نشده است | AB94: ----
C95: ردیف | D95: عنوان | J95: ماليات و عوارض ارزش افزوده فروش | AA95: مانده بدهي ماليات بر ارزش افزوده | AB95: 57227808724
J96: ابرازی : | N96: حسابرسی
J97: دوره 1 | K97: دوره 2 | L97: دوره 3 | M97: دوره 4 | N97: دوره 1 | O97: دوره 2 | P97: دوره 3 | Q97: دوره 4
C98: 1 | D98: مالیات و عوارض متعلقه بابت فروش کالا و ارایه خدمات(نقد و نسیه) | J98: =P42 -> 22500000000 | K98: =P43 -> 0 | L98: =P44 -> 0 | M98: =P45 -> 0 | N98: =Q42 -> 67500000000 | O98: =Q43 -> 0 | P98: =Q44 -> 0 | Q98: =Q45 -> 0 | AA98: جدول (ه)- درخواست مؤدي دال بر «عدم پرداخت بخشي از ماليات محاسبه‌شده در دوره جاري» به دلايل اشتباهات سيستمي مؤدي
C99: 2 | D99: مالیات و عوارض قابل کسر از مالیات فروش | J99: =SUM(J89:J92) -> 0 | K99: 0 | L99: 0 | M99: 0 | N99: 0 | O99: 0 | P99: 0 | Q99: 0 | AA99: مانده بدهي ماليات بر ارزش افزوده | AB99: 57227808724
C100: 3 | D100: مالیات و عوارض فروش کالاها و ارائه خدمات (نسیه) در دوره جاری که هنوز وجه آن دریافت نشده است | AA100: اعتبار لحاظ نشده براي خريداران بابت صورت‌حساب‌هاي الکترونيکي خريد با برچسب «عبور از حد مجاز» در دوره جاري | AB100: 0
C101: 4 | D101: مالیات بر ارزش افزوده دوره جاری | J101: =J98-J99-J100 -> 22500000000 | K101: =K98-K99-K100 -> 0 | L101: 0 | M101: 0 | N101: 67500000000 | O101: 0 | P101: 0 | Q101: 0 | AA101: ماليات و عوارض ارزش افزوده مورد درخواست مؤدي براي پرداخت در اين دوره در منبع کالا و خدمات عمومي57,227,808,724ريال مي‌باشد.
C102: 5 | D102: اعتبارهای دوره های قبل که در این دوره ابطال شده است.
C103: 6 | D103: مالیات و عوارض ارزش افزوده متعلق به صورتحساب های الکترونیکی فروش مربوط به دوره‌های قبل که در این دوره باطل شده است | AA103: شماره‌ثبت‌تسليم‌اظهارنامه: 1410949208 | AB103: 1403/02/06 :تاريخ‌ثبت‌تسليم‌اظهارنامه
C104: 7 | D104: مالیات و عوارض ارزش افزوده پرداخت نشده فروش‌های نسیه دوره های قبل که در دوره جاری وصول شده | AA104: صحت‌مندرجات تنظيمي مورد تاييدمي‌باشد.
C105: 8 | D105: اضافه پرداختی مالیات و عوارض انتقالی از دوره قبل (بدون امکان تغییر توسط مودی)
C106: 9 | D106: مالیات و عوارض علی الحساب پرداختی بابت تبصره (1) ماده (17)
C107: 10 | D107: مالیات و عوارض علی الحساب پرداختی بابت افزایش حد مجاز فروش و پرداختی بابت سایر موارد
C108: 11 | D108: مالیات و عوارض فروش نسیه کالا و ارایه خدمات بابت فروش دوره‌های قبل که هنوز تسویه نشده است
C109: 12 | D109: مانده بدهی مالیات بر ارزش افزوده | J109: =J101-J102-J103+J104-J105-J106-J107-J108 -> 22500000000 | K109: =K101-K102-K103+K104-K105-K106-K107-K108 -> 0 | L109: 0 | M109: 0 | N109: 67500000000 | O109: 0 | P109: 0 | Q109: 0
C111: جدول (ه)- درخواست مؤدی دال بر «عدم پرداخت بخشی از مالیات محاسبه‌شده در دوره جاری» به دلایل اشتباهات سیستمی مؤدی
C112: ردیف | D112: عنوان | J112: ماليات و عوارض ارزش افزوده فروش
J113: ابرازی : | N113: حسابرسی
J114: دوره 1 | K114: دوره 2 | L114: دوره 3 | M114: دوره 4 | N114: دوره 1 | O114: دوره 2 | P114: دوره 3 | Q114: دوره 4
C115: 1 | D115: مانده بدهی مالیات بر ارزش افزوده | J115: =J109 -> 22500000000 | K115: 0 | L115: 0 | M115: 0 | N115: 67500000000 | O115: 0 | P115: 0 | Q115: 0
C116: 2 | D116: بدهی انتقالی به دوره بعد، بدلیل بیشتر بودن مالیات و عوارض «صورت‌حساب‌های الکترونیکی» صادره نسبت به فروش واقعی به موجب «صدور صورت‌حساب تکراری»،... «صدور صورت‌حساب با مبلغ اشتباه»، و ...«عدم ابطال صورت‌حساب‌های اشتباه و یا صدور صورت‌حساب ابطالی و عدم تأیید آن توسط خریدار در موعد مقرر»
C117: 3 | D117: اعتبار لحاظ نشده برای خریداران بابت صورت‌حساب‌های الکترونیکی خرید با برچسب «عبور از حد مجاز» در دوره جاری
C118: 4 | D118: مالیات و عوارض ارزش افزوده مورد درخواست مؤدی برای پرداخت در این دوره | J118: =J115+J116-J117 -> 22500000000 | K118: =K115+K116-K117 -> 0 | L118: 0 | M118: 0 | N118: 67500000000 | O118: 0 | P118: 0 | Q118: 0
C120: توضیحات : | E120: Designed By Yaser Nazemi Ardabil Provience Germi City Tax Affairs Department - All rights reserved
C121: مالیات و عوارض ارزش افزوده مورد درخواست مؤدی برای پرداخت در این دوره در منبع کالا و خدمات عمومی…………………………… ریال می‌باشد.
C124: تاریخ شروع تنظیم کاربرگ حسابرسی : | G124: =G74 -> 140-/--/-- | I124: 140-/--/-- | K124: تاریخ پایان تنظیم کاربرگ حسابرسی : | N124: 140-/--/-- | P124: نام و نام‌خانوادگی تایید کننده :
C125: نام و نام‌خانوادگی حسابرس : | G125: =G75 -> یاسر ناظمی | I125: =G75 -> یاسر ناظمی | K125: نام و نام‌خانوادگی حسابرس مسئول : | N125: =N75 -> علی بخشی | P125: =P75 -> حسن حامدی
C126: سمت : | G126: =G76 -> حسابرس ارشد | I126: حسابرس ارشد | K126: سمت : | N126: رئیس گروه مالیاتی | P126: سمت : رئیس امور مالیاتی
C127: کاربرگ جرائم اظهارنامه مالیات بر ارزش افزوده
C128: (بر اساس حکم ماده 3 قانون تسهیل تکالیف مؤدیان)
C129: =C8 -> مشخصات مؤدی : | E129: نام مودی : | H129: =H8 -> یاسر ناظمی | L129: شناسه مؤدی : | N129: =N8 -> 16218196470001 | P129: نوع شخصیت : | Q129: =Q8 -> حقیقی
E130: اداره کل مالیاتی : | H130: =H9 -> اردبيل | J130: =H60 -> 9 | L130: اداره امور مالیاتی : | N130: =N9 -> شهرستان گرمی | P130: نوع فعالیت : | Q130: =Q9 -> دندانپزشکی
C131: جزییات حسابرسی : | E131: نوع حسابرسی : | H131: =H10 -> اداری (پشت میزی) | J131: =H61 -> 9 | L131: سال عملکرد : | N131: =N10 -> 1403 | P131: شماره اظهارنامه : | Q131: =Q10 -> 0
E132: =E82 -> نوع اظهارنامه : | H132: =H11 -> عمومی ( سایر کالا و خدمات ) | J132: =H62 -> 9 | L132: دوره : | N132: =N11 -> 10 | P132: تاریخ اظهارنامه : | Q132: =Q11 -> 0
C133: کد پستی و آدرس : | E133: =E12 -> 5618694316 | H133: =H12 -> مرکزی شهرک آیت الله کاشانی کوچه ((احد اصولی)) کوچه شهیدنجف کوشش پلاک 0 طبقه همکف | J133: =H63 -> 9 | P133: موبایل : | Q133: =Q12 -> 9127212385
C135: جرائم موضوع ماده 36
C136: ردیف | D136: عنوان | I136: دوره | J136: ماخذ جریمه (ریال ) | L136: نرخ جریمه % | N136: حداقل مبلغ جریمه ( ريال) | P136: مبلغ جریمه (ريال)
C137: 1 | D137: الف - عدم عضویت یا عدم تسلیم اظهارنامه | I137: 1 | J137: =IF(N42=0,N101-J101,0) -> 0 | L137: 200 | N137: 10000000 | P137: =IF($E$120=$D$249,IF(J137=0,0,MAX(N137,J137*L137%)),$L$247) -> 0
I138: 2 | J138: =IF(N43=0,O101-K101,0) -> 0 | L138: 200 | N138: 10000000 | P138: 0
I139: 3 | J139: =IF(N44=0,P101-L101,0) -> 0 | L139: 200 | N139: 10000000 | P139: 0
I140: 4 | J140: =IF(N45=0,Q101-M101,0) -> 0 | L140: 200 | N140: 10000000 | P140: 0
C141: 2 | D141: ب - جریمه کتمان | I141: 1 | J141: =MAX(0,N101-J101) -> 45000000000 | L141: 200 | N141: 0 | P141: 90000000000
I142: 2 | J142: =MAX(0,O101-K101) -> 0 | L142: 200 | N142: 0 | P142: 0
I143: 3 | J143: =MAX(0,P101-L101) -> 0 | L143: 200 | N143: 0 | P143: 0
I144: 4 | J144: =MAX(0,Q101-M101) -> 0 | L144: 200 | N144: 0 | P144: 0
C145: 3 | D145: ب - کم اظهاری مالیات ( بیش اظهاری مالیات و عوارض خرید یا کم اظهاری مالیات و عوارض فروش ) | I145: 1 | J145: =MAX(0,P68-Q68) -> 0 | L145: 200 | N145: 0 | P145: 0
I146: 2 | J146: =MAX(0,P69-Q69) -> 0 | L146: 200 | N146: 0 | P146: 0
I147: 3 | J147: 0 | L147: 200 | N147: 0 | P147: 0
I148: 4 | J148: 0 | L148: 200 | N148: 0 | P148: 0
C149: 4 | D149: ج - ثبت معاملات خود به نام غیر یا غیر به نام خود | I149: 1 | L149: 200 | N149: 0 | P149: 0
I150: 2 | L150: 200 | N150: 0 | P150: 0
I151: 3 | L151: 200 | N151: 0 | P151: 0
I152: 4 | L152: 200 | N152: 0 | P152: 0
C153: 4 | D153: ج - دریافت توسط اشخاص غیر مجاز | I153: 1 | L153: 200 | N153: 0 | P153: 0
I154: 2 | L154: 200 | N154: 0 | P154: 0
I155: 3 | L155: 200 | N155: 0 | P155: 0
I156: 4 | L156: 200 | N156: 0 | P156: 0
C158: جرائم موضوع ماده 26
C159: ردیف | D159: عنوان | I159: دوره | J159: ماخذ | L159: نرخ جریمه | N159: حداقل مبلغ جریمه | P159: مبلغ جریمه
C160: 1 | D160: ب - ارزش اصل طلا، جواهر و پلاتین | I160: 1 | L160: 9 | N160: 0 | P160: =IF(J160=0,0,MAX(N160,J160*L160%)) -> 0
I161: 2 | L161: 9 | N161: 0 | P161: =IF(J161=0,0,MAX(N160,J161*L160%)) -> 0
I162: 3 | L162: 9 | N162: 0 | P162: =IF(J162=0,0,MAX(N160,J162*L160%)) -> 0
I163: 4 | L163: 9 | N163: 0 | P163: =IF(J163=0,0,MAX(N160,J163*L160%)) -> 0
C165: جرائم موضوع ماده 22 قانون پاینه های فروشگاهی
C166: ردیف | D166: عنوان | I166: دوره | J166: ماخذ جریمه (ریال ) | L166: نرخ جریمه % | N166: حداقل مبلغ جریمه ( ريال) | P166: مبلغ جریمه (ريال)
C167: 1 | D167: الف- عدم صدور و ارسال صورتحساب الکترونیکی به سامانه مودیان | I167: 1 | L167: 10 | N167: 20000000 | P167: =IF(J167=0,0,MAX(N167,J167*L167%)) -> 0
I168: 2 | L168: 10 | N168: 20000000 | P168: =IF(J168=0,0,MAX(N167,J168*L167%)) -> 0
I169: 3 | L169: 10 | N169: 20000000 | P169: =IF(J169=0,0,MAX(N167,J169*L167%)) -> 0
I170: 4 | L170: 10 | N170: 20000000 | P170: =IF(J170=0,0,MAX(N167,J170*L167%)) -> 0
C171: 2 | D171: ب - عدم عضویت، عدم استفاده از پایانه های فروشگاهی،حافظه مالیاتی و سوء استفاده | I171: 1 | L171: 10 | N171: 20000000 | P171: =IF(J171=0,0,MAX(N171,J171*L171%)) -> 0
I172: 2 | L172: 10 | N172: 20000000 | P172: =IF(J172=0,0,MAX(N171,J172*L171%)) -> 0
I173: 3 | L173: 10 | N173: 20000000 | P173: =IF(J173=0,0,MAX(N171,J173*L171%)) -> 0
I174: 4 | L174: 10 | N174: 20000000 | P174: =IF(J174=0,0,MAX(N171,J174*L171%)) -> 0
C175: 3 | D175: پ - عدم اعلام شماره حساب و حساب های بانکی واحد اقتصادی | I175: 1 | L175: 10 | N175: 20000000 | P175: 0
I176: 2 | L176: 10 | N176: 20000000 | P176: =IF(J176=0,0,MAX(N175,J176*L175%)) -> 0
I177: 3 | L177: 10 | N177: 20000000 | P177: =IF(J177=0,0,MAX(N175,J177*L175%)) -> 0
I178: 4 | L178: 10 | N178: 20000000 | P178: =IF(J178=0,0,MAX(N175,J178*L175%)) -> 0
C179: 4 | D179: ت -عدم تحویل صورتحساب چاپی به خریدار ، حذف یا مخدوش نمودن صورتحساب | I179: 1 | L179: 2 | N179: 20000000 | P179: 0
I180: 2 | L180: 2 | N180: 20000000 | P180: =IF(J180=0,0,MAX(N179,J180*L179%)) -> 0
I181: 3 | L181: 2 | N181: 20000000 | P181: =IF(J181=0,0,MAX(N179,J181*L179%)) -> 0
I182: 4 | L182: 2 | N182: 20000000 | P182: =IF(J182=0,0,MAX(N179,J182*L179%)) -> 0
C183: 5 | D183: ث -عدم اعلام تغییر شغل یا محل فعالیت و مالکیت ظرف 10 روز | I183: 1 | L183: 1 | N183: 10000000 | P183: 0
I184: 2 | L184: 1 | N184: 10000000 | P184: =IF(J184=0,0,MAX(N183,J184*L183%)) -> 0
I185: 3 | L185: 1 | N185: 10000000 | P185: =IF(J185=0,0,MAX(N183,J185*L183%)) -> 0
I186: 4 | L186: 1 | N186: 10000000 | P186: =IF(J186=0,0,MAX(N183,J186*L183%)) -> 0
C188: توضیحات : | E188: Designed By Yaser Nazemi Ardabil Provience Germi City Tax Affairs Department - All rights reserved
C189: مالیات و عوارض ارزش افزوده مورد درخواست مؤدی برای پرداخت در این دوره در منبع کالا و خدمات عمومی…………………………… ریال می‌باشد.
C192: تاریخ شروع تنظیم کاربرگ حسابرسی : | G192: =G74 -> 140-/--/-- | I192: 140-/--/-- | K192: تاریخ پایان تنظیم کاربرگ حسابرسی : | N192: 140-/--/-- | P192: نام و نام‌خانوادگی تایید کننده :
C193: نام و نام‌خانوادگی حسابرس : | G193: =G75 -> یاسر ناظمی | I193: 140-/--/-- | K193: نام و نام‌خانوادگی حسابرس مسئول : | N193: =N126 -> رئیس گروه مالیاتی | P193: =P125 -> حسن حامدی
C194: سمت : | G194: =G76 -> حسابرس ارشد | I194: 140-/--/-- | K194: سمت : | N194: رئیس گروه مالیاتی | P194: سمت : رئیس امور مالیاتی
C197: راهنما
C198: در قسمت تعدیلات در صورتی که میخواهید کسر شود از علامت منفی استفاده شود مثال : | P198: -200000000
C199: در صورتی که نرخ ها متفاوت بود می توانید تغییر دهید
C200: در صورت تغییر در فرمول ها و حذف نوشته های انگلیسی ممکن است محاسبات با خطا مواجه شود
C201: برای تغییر اندازه فونت از قسمت Home اقدام نمایید
C204: تنظیمات - من خودم تنظیم کردم ولی مطمئن نیستم در صورت مغایرت فقط موارد آبی تغییر داده شود
C205: ردیف | D205: عنوان | J205: 1401 | K205: 1402 | L205: 1403 | M205: 1404 | N205: 1405 | O205: 1406 | P205: 1407 | Q205: 1408
C206: 1 | D206: عمومی ( سایر کالا و خدمات ) | J206: 9 | K206: 9 | L206: 10 | M206: 10 | N206: 10 | O206: 10 | P206: 10 | Q206: 10 | R206: =M206 -> 10
C207: 2 | D207: سیگار، توتون، پیپ و تنباکوی داخلی | J207: 25 | K207: 25 | L207: 25 | M207: 35 | N207: 35 | O207: 35 | P207: 35 | Q207: 35 | R207: 35
C208: 3 | D208: سیگار، توتون، پیپ و تنباکوی نشان بین المللی | J208: 40 | K208: 40 | L208: 40 | M208: 50 | N208: 50 | O208: 50 | P208: 50 | Q208: 50 | R208: 50
C209: 4 | D209: سیگار، توتون، پیپ و تنباکوی وارداتی | J209: 65 | K209: 65 | L209: 65 | M209: 75 | N209: 75 | O209: 75 | P209: 75 | Q209: 75 | R209: 75
C210: 5 | D210: توتون خام وارداتی | J210: 10 | K210: 10 | L210: 10 | M210: 10 | N210: 10 | O210: 10 | P210: 10 | Q210: 10 | R210: 10
C211: 6 | D211: توتون فراوری شده وارداتی | J211: 35 | K211: 35 | L211: 35 | M211: 35 | N211: 35 | O211: 35 | P211: 35 | Q211: 35 | R211: 35
C212: 7 | D212: قند و شکر و ... | J212: 1 | K212: 1 | L212: 1 | M212: 10 | N212: 10 | O212: 10 | P212: 10 | Q212: 10 | R212: 10
C213: 8 | D213: معاف | J213: 0 | K213: 0 | L213: 0 | M213: 0 | N213: 0 | O213: 0 | P213: 0 | Q213: 0 | R213: 0
C214: 9 | D214: نوشابه گازدار | J214: 16 | K214: 16 | L214: 16 | M214: 16 | N214: 16 | O214: 16 | P214: 16 | Q214: 16 | R214: 16
C215: 10 | D215: طلا | J215: 9 | K215: 9 | L215: 9 | M215: 10 | N215: 10 | O215: 10 | P215: 10 | Q215: 10 | R215: 10
C216: 1 | D216: =IFERROR(IF($E$120=$D$249,LOOKUP($C$216,$C$206:$C$215,D206:D215),$L$247),0) -> عمومی ( سایر کالا و خدمات ) | J216: =IFERROR(IF($E$120=$D$249,LOOKUP($C$216,$C$206:$C$215,J206:J215),$L$247),0) -> 9 | K216: 9 | L216: 10 | M216: 10 | N216: 10 | O216: 10 | P216: 10 | Q216: 10 | R216: 10
C217: =IFERROR(IF($E$120=$D$249,N10,$L$247),0) -> 1403 | D217: =IFERROR(IF($E$120=$D$249,LOOKUP(C217,J205:Q205,J216:Q216),$L$247),0) -> 10
D246: ='1'!$O$247 -> Designed By Yaser Nazemi Ardabil Provience Germi City Tax Affairs Department - All rights reserved | E246: ='1'!$O$247 -> Designed By Yaser Nazemi Ardabil Provience Germi City Tax Affairs Department - All rights reserved | F246: ='1'!$O$247 -> Designed By Yaser Nazemi Ardabil Provience Germi City Tax Affairs Department - All rights reserved | G246: ='1'!$O$247 -> Designed By Yaser Nazemi Ardabil Provience Germi City Tax Affairs Department - All rights reserved | H246: ='1'!$O$247 -> Designed By Yaser Nazemi Ardabil Provience Germi City Tax Affairs Department - All rights reserved | I246: ='1'!$O$247 -> Designed By Yaser Nazemi Ardabil Provience Germi City Tax Affairs Department - All rights reserved | J246: ='1'!$O$247 -> Designed By Yaser Nazemi Ardabil Provience Germi City Tax Affairs Department - All rights reserved | K246: ='1'!$O$247 -> Designed By Yaser Nazemi Ardabil Provience Germi City Tax Affairs Department - All rights reserved | L246: ='1'!$O$247 -> Designed By Yaser Nazemi Ardabil Provience Germi City Tax Affairs Department - All rights reserved | M246: ='1'!$O$247 -> Designed By Yaser Nazemi Ardabil Provience Germi City Tax Affairs Department - All rights reserved | N246: ='1'!$O$247 -> Designed By Yaser Nazemi Ardabil Provience Germi City Tax Affairs Department - All rights reserved | O246: ='1'!$O$247 -> Designed By Yaser Nazemi Ardabil Provience Germi City Tax Affairs Department - All rights reserved | P246: ='1'!$O$247 -> Designed By Yaser Nazemi Ardabil Provience Germi City Tax Affairs Department - All rights reserved | Q246: ='1'!$O$247 -> Designed By Yaser Nazemi Ardabil Provience Germi City Tax Affairs Department - All rights reserved
D247: Designed By Yaser Nazemi Ardabil Provience Germi City Tax Affairs Department - All rights reserved | E247: Designed By Yaser Nazemi Ardabil Provience Germi City Tax Affairs Department - All rights reserved | F247: Designed By Yaser Nazemi Ardabil Provience Germi City Tax Affairs Department - All rights reserved | G247: Designed By Yaser Nazemi Ardabil Provience Germi City Tax Affairs Department - All rights reserved | H247: Designed By Yaser Nazemi Ardabil Provience Germi City Tax Affairs Department - All rights reserved | I247: Designed By Yaser Nazemi Ardabil Provience Germi City Tax Affairs Department - All rights reserved | J247: Designed By Yaser Nazemi Ardabil Provience Germi City Tax Affairs Department - All rights reserved | K247: Designed By Yaser Nazemi Ardabil Provience Germi City Tax Affairs Department - All rights reserved | L247: Designed By Yaser Nazemi Ardabil Provience Germi City Tax Affairs Department - All rights reserved | M247: Designed By Yaser Nazemi Ardabil Provience Germi City Tax Affairs Department - All rights reserved | N247: Designed By Yaser Nazemi Ardabil Provience Germi City Tax Affairs Department - All rights reserved | O247: Designed By Yaser Nazemi Ardabil Provience Germi City Tax Affairs Department - All rights reserved | P247: Designed By Yaser Nazemi Ardabil Provience Germi City Tax Affairs Department - All rights reserved | Q247: Designed By Yaser Nazemi Ardabil Provience Germi City Tax Affairs Department - All rights reserved
D248: Designed By Yaser Nazemi Ardabil Provience Germi City Tax Affairs Department - All rights reserved | E248: =E246 -> Designed By Yaser Nazemi Ardabil Provience Germi City Tax Affairs Department - All rights reserved | F248: =F246 -> Designed By Yaser Nazemi Ardabil Provience Germi City Tax Affairs Department - All rights reserved | G248: Designed By Yaser Nazemi Ardabil Provience Germi City Tax Affairs Department - All rights reserved | H248: Designed By Yaser Nazemi Ardabil Provience Germi City Tax Affairs Department - All rights reserved | I248: Designed By Yaser Nazemi Ardabil Provience Germi City Tax Affairs Department - All rights reserved | J248: Designed By Yaser Nazemi Ardabil Provience Germi City Tax Affairs Department - All rights reserved | K248: Designed By Yaser Nazemi Ardabil Provience Germi City Tax Affairs Department - All rights reserved | L248: Designed By Yaser Nazemi Ardabil Provience Germi City Tax Affairs Department - All rights reserved | M248: Designed By Yaser Nazemi Ardabil Provience Germi City Tax Affairs Department - All rights reserved | N248: Designed By Yaser Nazemi Ardabil Provience Germi City Tax Affairs Department - All rights reserved | O248: Designed By Yaser Nazemi Ardabil Provience Germi City Tax Affairs Department - All rights reserved | P248: Designed By Yaser Nazemi Ardabil Provience Germi City Tax Affairs Department - All rights reserved | Q248: Designed By Yaser Nazemi Ardabil Provience Germi City Tax Affairs Department - All rights reserved
... 1 more rows

Sheet A
B1: صفحه اصلی
C3: برگ دعوت ارائه دفاتر، اسناد و مدارک جهت رسیدگی مالیات
F4: عملکرد سال | G4: ='1'!E9 -> 1403 | H4: شماره : | I4: 1000000000021440
H5: تاریخ : | I5: 1402/11/01
C6: شناسه پرونده : | F6: نام و نام خانوادگی : | H6: منبع مالیاتی :
C7: ='1'!I9 -> 16218196470001 | F7: ='1'!I7 -> یاسر ناظمی | H7: ='1'!M9 -> مشاغل
C9: 1 | D9: - | E9: دفاتر پلمپ شده روزنامه و کل یا دفاتر درآمد و هزینه یا خلاصه درآمد و هزینه سالانه. (حسب مورد)
C10: 2 | D10: - | E10: تراز آزمایشی شش ستونی حسابها در سطح کل و معین بصورت سالانه و دوره های 3 ماهه مالیات بر ارزش افزوده.
C11: 3 | D11: - | E11: لیست خرید و فروش مواد و کالا و خدمات به تفکیک معاف و غیرمعاف از مالیات بر ارزش افزوده.
C12: 4 | D12: - | E12: فاکتور یا صورت حسابهای خرید و فروش کالا و خدمات به همراه مستندات پرداخت و حمل مواد یا کالا. (به ترتیب تاریخ)
C13: 5 | D13: - | E13: گردش حساب مالیات بر ارزش افزوده خرید و فروش.
C14: 6 | D14: - | E14: فهرست و مستندات واردات و صادرات کالا و خدمات.
C15: 7 | D15: - | E15: لیست کارکنان و لیست حقوق ارسالی به اداره امور مالیاتی و لیست بیمه.
C16: 8 | D16: - | E16: اصل پروانه بهره برداری یا پروانه کسب ، اصل سند مالکیت یا اجاره نامه به همراه فرم تکمیل شده مشخصات طبق نمونه.
C17: 9 | D17: - | E17: اسناد و مدارک مربوط به هزینه ها به همراه فرم تکمیل شده مشخصات طبق نمونه.
C18: 10 | D18: - | E18: صورت حسابهای بانکی و مغایرتهای آنها - صورتهای مالی حسابرسی شده - سایر اسناد و مدارک حسابداری.
C31: اینجانب در تاریخ با رویت این برگ تمامی اسناد و مدارک فوق الذکر را مطابق لیست درخواستی
C32: به استناد ماده 229 ق.م.م و ماده 18 ق.م.ا.ا تا مهلت مقرر قانونی به واحد رسیدگی ارائه می نمایم.
E38: حسابرس | F38: مسئول حسابرسی | H38: تایید کننده :
E39: ='1'!F65 -> یاسر ناظمی | F39: ='1'!J65 -> علی بخشی | H39: ='1'!O65 -> حسن حامدی

Sheet S
C1: صفحه اصلی | E1: کاربرگ مشاغل | G1: کاربرگ شرکت ها
C4: صورتمجلس ارائه دفاتر، اسناد و مدارک | H4: ='1'!O11 -> 9127212385
D5: جهت رسیدگی مالیات عملکرد/ ارزش افزوده سال | F5: =A!G4 -> 1403 | G5: شماره :
G6: تاریخ :
C8: مودی محترم جناب آقای /خانم | E8: ='1'!I7 -> یاسر ناظمی | F8: به شناسه ملی | G8: ='1'!I9 -> 16218196470001 | H8: واحد
C9: مالیاتی | D9: ='1'!I63 -> 610400 | E9: که به موجب دعوتنامه شماره | G9: 100000244485512 | H9: درخواست
C10: اسناد و مدارک شده بود در موعد مقرر در محل حاضر گردید / نگردید و اسناد و مدارک زیر را تحویل اداره مالیاتی نمود / ننمود
C11: که به شرح ذیل صورتمجلس می گردد .
C13: الف – دفاتر از طرف مدیر عامل / حسابدار شرکت / مؤدی ارائه گردید / نگردید / مشمول نمی باشد.
C14: ب- ترازنامه و صورت سود و زیان : ارائه گردید / نگردید
C15: ج – اسناد و مدارک :
C16: د- صورتحساب گردش بانکی و دستگاه پوز : ارائه گردید / ارائه نگردید
C17: ه- خلاصه درآمد و هزینه مربوط به مودیان گروه .............. ارائه گردید / نگردید
C31: مؤدی مالیاتی | D31: حسابدار شرکت | E31: حسابرس ارشد مالیاتی | F31: رییس گروه مالیاتی | G31: رییس امور مالیاتی
C32: نام و نام خانوادگی | D32: نام و نام خانوادگی | E32: نام و نام خانوادگی | F32: نام و نام خانوادگی | G32: نام و نام خانوادگی
C33: مهر و امضاء | D33: مهر و امضاء | E33: امضا و مهر | F33: امضا و مهر | G33: امضا و مهر

Sheet Int
D2: صفحه اصلی | E2: مهم | F2: مشاغل | H2: شرکت ها
D3: یاسر ناظمی | E3: اداره کل امور مالیاتی استان اردبیل
D4: متن جستجو یا اینتاکد را وارد کرده و سپس روی جستجو کلیک کنید : | F4: 3180070
D6: *** در صورت بروز خطا به هر دلیل پس از تایپ متن مورد نظر روی فلش زیر عناوین کلیک کرده و گزینه sort by color را انتخاب کنید***
D7: اینتاکد | E7: شرح فعالیت | F7: سود فعالیت 1401 | G7: نسبت سود ناویژه | H7: ملاحظات سود ناویژه | I7: ملاحظات سود فعالیت
D8: 3180070 | E8: لابراتوار دندان سازی و دندانساز تجربی | F8: 21 | G8: 31.5
D9: 3210120 | E9: تعمیرگاه های مجاز انواع خودرو سبک و سنگین | F9: 22 | G9: 33 | H9: که از شرکت های طرف قرارداد طبق مقررات مربوط | I9: اجناسی که از شرکت های طرف قرارداد طبق مقررات
B10: 9127212385 | D10: 3070090 | E10: حق العملکاری انواع کالا و امانتکار تجاری(به غیر از حق العملکار گمرکی) | F10: 40 | G10: 60 | H10: حق العمل کار و احر از آن توسط | I10: حق العمل کار و احر از آن توسط
B11: ا | D11: 1010020 | E11: انواع چای ( خشک کردن ، سورت ( طبقه بندی ) و بسته بندی چای ) | F11: 4.3 | G11: 5.6
D12: 1010280 | E12: انواع چای ( خشک کردن ، سورت ( طبقه بندی ) و بسته بندی چای ) صرفا اجرت بگير | F12: 16 | G12: 20.8 | H12: از اجرت دریافتی | I12: از اجرت دریافتی
D13: 1010290 | E13: صرفا بسته بندی و فروش چای | F13: 6.4 | G13: 8.32
D14: 2010041 | E14: انواع چای - عمده فروشی ( تولید داخل ) | F14: 2 | G14: 2.6
D15: 2010042 | E15: انواع چای - عمده فروشی ( وارداتی ) | F15: 3.6 | G15: 4.68
D16: 2010043 | E16: انواع چای - خرده فروشی ( تولید داخل ) | F16: 6.7 | G16: 8.71
D17: 2010044 | E17: انواع چای - خرده فروشی ( وارداتی ) | F17: 8.8 | G17: 11.44
D18: 2010045 | E18: انواع چای - صادرات | F18: 2.5 | G18: 3.25
D19: 2010046 | E19: انواع چای - واردات | F19: 8.8 | G19: 11.44
D20: 2010047 | E20: انواع چای - خرده فروشی ( صرفا عرضه در میادین میوه و تره بار ) | F20: 1.5 | G20: 1.95
D21: 3060040 | E21: قهوه خانه وچای خانه ( باسروغذا ) | F21: 15 | G21: 22.5 | H21: تذکر:سروقلیان75 از وجوه دریافتی | I21: تذکر:سروقلیان50 از وجوه دریافتی
D22: 3060050 | E22: قهوه خانه وچای خانه ( بدون سروغذا ) | F22: 10 | G22: 15 | H22: تذکر:سروقلیان75 از وجوه دریافتی | I22: تذکر:سروقلیان50 از وجوه دریافتی
B23: خواهشمند است از دزدی فایل های اینجانب و انتشار به اسم خویش خودداری فرمائید | D23: 3070180 | E23: فروشگاه های زنجیر های ( فرانچایز | F23: 22 | G23: 33 | H23: از کارمزد دریافتی | I23: از کارمزد دریافتی
D24: 1020450 | E24: انواع قند و شکر ( از چغندر یا ني شکر ) | F24: 4.5 | G24: 5.85
D25: 1020460 | E25: انواع قند ( توليد شده از شکر ) | F25: 4 | G25: 5.2
D26: 1020690 | E26: انواع قند و شکر ( از چغندریاني شکر - ) صرفا اجرت بگير | F26: 16 | G26: 20.8
D27: 1020700 | E27: انواع قند ( توليد شده از شکر - ) صرفا اجرت بگير | F27: 16 | G27: 20.8
D28: 1020710 | E28: توليد انواع کيک یزدی ، نان قندی ، پيراشکی ، نان بستنی و سایر نان های شيرین توسط واحد های صنفی و صنعتی | F28: 9.6 | G28: 12.48
B29: بعد از وارد کردن متن جس | D29: 2020401 | E29: انواع قند و شکر - عمده فروشی ( تولید داخل ) | F29: 2 | G29: 2.6
D30: 2020402 | E30: انواع قند و شکر - عمده فروشی ( وارداتی ) | F30: 4.8 | G30: 6.24
D31: 2020403 | E31: انواع قند و شکر - خرده فروشی ( تولید داخل ) | F31: 6 | G31: 7.8
D32: 2020404 | E32: انواع قند و شکر - خرده فروشی ( وارداتی ) | F32: 11.2 | G32: 14.56
D33: 2020405 | E33: انواع قند و شکر - صادرات | F33: 3.5 | G33: 4.55
D34: 2020406 | E34: انواع قند و شکر - واردات | F34: 15.2 | G34: 19.76
D35: 2020407 | E35: انواع قند و شکر ( از چغندر یا نیشکر - ) خرده فروشی ( صرفا در میادین میوه و تره بار ) | F35: 1.5 | G35: 1.95
D36: 3210040 | E36: تعویض روغن وفیلتر ، تنظیمبادوپنچر گیری و سایر خدمات مشابه انواع وسائط نقلیه | F36: 22 | G36: 33 | H36: از اجرت دریافتی و بابت فروش انواع لاستیک تولید داخل ، وارداتی و مستعمل به ترتیب از ضریب6 درصد ، 8.7 درصد و3.1 درصد و بابت فروش سایر لوازم و قطعات مصرفی از ضریب12.3 درصد استفاده شود. | I36: از اجرت دریافتی و بابت فروش انواع لاستیک تولید داخل ، وارداتی و مستعمل به ترتیب از ضریب4.6 درصد ، 6.7 درصد و2.4 درصد و بابت فروش سایر لوازم و قطعات مصرفی از ضریب9.5 درصد استفاده شود.
D37: 1010090 | E37: انواع دانه های روغنی | F37: 6 | G37: 7.8
D38: 1020130 | E38: سایر فرآورده های لبنی نظير انواع خامه ، ماست ، پنيرو مایه پنير ، دوغ ، کره و روغن حيوانی ، کشک و غيره | F38: 5.2 | G38: 6.76
D39: 1020380 | E39: انواع روغن نباتی | F39: 5 | G39: 6.5
D40: 1020670 | E40: روغن کشی وتصفيه روغن | F40: 7.2 | G40: 9.36
D41: 1060010 | E41: انواع روغن های پایه نفتی و محصولات مشابه | F41: 8.9 | G41: 11.57
D42: 1060040 | E42: انواع روغن جلا و پارافين | F42: 8.3 | G42: 10.79
D43: 1060070 | E43: بازیافت انواع ضایعات و پسماند های نفتی و روغن کارکرده | F43: 4.1 | G43: 5.33
D44: 2010131 | E44: انواع دانه های روغنی - عمده فروشی ( تولید داخل ) | F44: 3.2 | G44: 4.16
D45: 2010132 | E45: انواع دانه های روغنی - عمده فروشی ( وارداتی ) | F45: 4.8 | G45: 6.24
D46: 2010133 | E46: انواع دانه های روغنی - خرده فروشی ( تولید داخل ) | F46: 10.4 | G46: 13.52
D47: 2010134 | E47: انواع دانه های روغنی - خرده فروشی ( وارداتی ) | F47: 11.2 | G47: 14.56
D48: 2010135 | E48: انواع دانه های روغنی - صادرات | F48: 3.2 | G48: 4.16
D49: 2010136 | E49: انواع دانه های روغنی - واردات | F49: 13.6 | G49: 17.68
D50: 2020331 | E50: انواع روغن نباتی - عمده فروشی ( تولید داخل ) | F50: 1.38 | G50: 1.794
D51: 2020332 | E51: انواع روغن نباتی - عمده فروشی ( وارداتی ) | F51: 3.4 | G51: 4.42
D52: 2020333 | E52: انواع روغن نباتی - خرده فروشی ( تولید داخل ) | F52: 6 | G52: 7.8
D53: 2020334 | E53: انواع روغن نباتی - خرده فروشی ( وارداتی ) | F53: 9.6 | G53: 12.48
D54: 2020335 | E54: انواع روغن نباتی - صادرات | F54: 2.6 | G54: 3.38
D55: 2020336 | E55: انواع روغن نباتی - واردات | F55: 12.8 | G55: 16.64
D56: 2060011 | E56: انواع روغن های پایه نفتی و محصولات مشابه - عمده فروشی ( تولید داخل) | F56: 2.5 | G56: 3.25
D57: 2060012 | E57: انواع روغن های پایه نفتی و محصولات مشابه - عمده فروشی ( وارداتی ) | F57: 3.8 | G57: 4.94
D58: 2060013 | E58: انواع روغن های پایه نفتی و محصولات مشابه - خرده فروشی ( تولید داخل ) | F58: 7 | G58: 9.1
D59: 2060014 | E59: انواع روغن های پایه نفتی و محصولات مشابه - خرده فروشی ( وارداتی ) | F59: 9.6 | G59: 12.48
D60: 2060015 | E60: انواع روغن های پایه نفتی و محصولات مشابه - صادرات | F60: 3.8 | G60: 4.94
D61: 2060016 | E61: انواع روغن های پایه نفتی و محصولات مشابه - واردات | F61: 17.6 | G61: 22.88
D62: 2060041 | E62: انواع روغن جلا و پارافین - عمده فروشی ( تولید داخل ) | F62: 2.5 | G62: 3.25
D63: 2060042 | E63: انواع روغن جلا و پارافین - عمده فروشی ( وارداتی ) | F63: 4.8 | G63: 6.24
D64: 2060043 | E64: انواع روغن جلا و پارافین - خرده فروشی ( تولید داخل ) | F64: 9.5 | G64: 12.35
D65: 2060044 | E65: انواع روغن جلا و پارافین - خرده فروشی ( وارداتی ) | F65: 13.6 | G65: 17.68
D66: 2060045 | E66: انواع روغن جلا و پارافین - صادرات | F66: 4.8 | G66: 6.24
D67: 2060046 | E67: انواع روغن جلا و پارافین - واردات | F67: 17.6 | G67: 22.88
D68: 3220050 | E68: جایگاه های سوخت گیری فرآورده های نفتی | F68: 15 | G68: 22.5 | H68: تذکر: بابت فروش انواع مکمل ها ، روغن ، ضد یخ و غیره از ضریب12.3 از وجوه دریافتی استفاده شود | I68: تذکر: بابت فروش انواع مکمل ها ، روغن ، ضد یخ و غیره از ضریب9.5 از وجوه دریافتی استفاده شود
D69: 3220060 | E69: جایگاه سوخت گیری گازیو CNG ( کارمزدی ) | F69: 15 | G69: 22.5 | H69: تذکر: بابت فروش انواع مکمل ها ، روغن ، ضد یخ و غیره از ضریب12.3 از وجوه دریافتی استفاده شود | I69: تذکر: بابت فروش انواع مکمل ها ، روغن ، ضد یخ و غیره از ضریب9.5 از وجوه دریافتی استفاده شود
D70: 2260123 | E70: فروشنده انواع خواربار و مواد غذایی - خرده فروشی | F70: 10 | G70: 13
D71: 2260121 | E71: فروشنده انواع خواربار و مواد غذایی - عمده فروشی ( تولید داخل ) | F71: 4.4 | G71: 5.72
D72: 2260122 | E72: فروشنده انواع خواربار و مواد غذایی - عمده فروشی ( وارداتی ) | F72: 5.8 | G72: 7.54
D73: 1020190 | E73: آرد گندم ( خرید گندم غير از شرکت بازرگانی دولتی ایران و فروش آرد به قيمت آزاد ) | F73: 4.4 | G73: 5.72 | H73: ازمجموع درآمد حاصل از فروش آرد کيسه گيری شده ، سبوس و فضولات | I73: ازمجموع درآمد حاصل از فروش آرد کيسه گيری شده ، سبوس و فضولات
D74: 1010300 | E74: انواع بذر گندم وجو | F74: 5.6 | G74: 7.28
D75: 1020180 | E75: آرد گندم ( خرید گندم از شرکت بازرگانی دولتی ایران و فروش آرد به قيمت مصوب ) | F75: 1.6 | G75: 2.08 | H75: از فروش آرد کيسه گيری | I75: فروش آرد کيسه گيری شده ،
D76: 1020420 | E76: انواع گلوکز و نشاسته از آرد گندم | F76: 5.7 | G76: 7.41
D77: 1020660 | E77: آرد گندم - صرفا اجرت بگير | F77: 16 | G77: 20.8
D78: 2010011 | E78: گندم ، جو ، ذرت و سایر انواع غلات - عمده فروشی ( تولید داخل) | F78: 1.5 | G78: 1.95
D79: 2010012 | E79: گندم ، جو ، ذرت و سایر انواع غلات - عمده فروشی ( وارداتی ) | F79: 1.9 | G79: 2.47
D80: 2010013 | E80: گندم ، جو ، ذرت و سایر انواع غلات - خرده فروشی ( تولید داخل) | F80: 8 | G80: 10.4
D81: 2010014 | E81: گندم ، جو ، ذرت و سایر انواع غلات - خرده فروشی ( وارداتی ) | F81: 9.6 | G81: 12.48
D82: 2010015 | E82: گندم ، جو ، ذرت و سایر انواع غلات - صادرات | F82: 1.8 | G82: 2.34
D83: 2010016 | E83: گندم ، جو ، ذرت و سایر انواع غلات - واردات | F83: 9.6 | G83: 12.48
D84: 2020161 | E84: آرد گندم - عمده فروشی ( تولید داخل ) | F84: 2 | G84: 2.6
D85: 2020162 | E85: آرد گندم - عمده فروشی ( وارداتی ) | F85: 3.8 | G85: 4.94
D86: 2020163 | E86: آرد گندم - خرده فروشی ( تولید داخل ) | F86: 5 | G86: 6.5
D87: 2020164 | E87: آرد گندم - خرده فروشی ( وارداتی ) | F87: 6.8 | G87: 8.84
D88: 2020165 | E88: آرد گندم - صادرات | F88: 2.6 | G88: 3.38
D89: 2020166 | E89: آرد گندم - واردات | F89: 9.6 | G89: 12.48
D90: 2140043 | E90: گندم | F90: 10 | G90: 13
D91: 1010110 | E91: انواع کاه ، یونجه ، سبوس وعلوفه جات | F91: 5.2 | G91: 6.76
D92: 2010151 | E92: انواع کاه ، یونجه ، سبوس و علوفه جات - عمده فروشی ( تولید داخل) | F92: 1.6 | G92: 2.08
D93: 2010152 | E93: انواع کاه ، یونجه ، سبوس و علوفه جات - عمده فروشی ( وارداتی ) | F93: 2.5 | G93: 3.25
D94: 2010153 | E94: انواع کاه ، یونجه ، سبوس و علوفه جات - خرده فروشی ( تولید داخل ) | F94: 5.6 | G94: 7.28
D95: 2010154 | E95: انواع کاه ، یونجه ، سبوس و علوفه جات - خرده فروشی ( وارداتی ) | F95: 5.8 | G95: 7.54
D96: 2010155 | E96: انواع کاه ، یونجه ، سبوس و علوفه جات - صادرات | F96: 1.8 | G96: 2.34
D97: 2010156 | E97: انواع کاه ، یونجه ، سبوس و علوفه جات - واردات | F97: 9.6 | G97: 12.48
D98: 2260277 | E98: غرفه داران ( صاحبان مشاغل غرفه ها ) | G98: نسبتسود فعالیت غرفه دارانباکاهش دوواحد از نسبت سود فعالیت مربوط مندرجدراین مجموعه محاسبه گردد. | H98: نسبتسود فعالیت غرفه دارانباکاهش دوواحد از نسبت سود فعالیت مربوط مندرجدراین مجموعه محاسبه گردد. | I98: نسبتسود فعالیت غرفه دارانباکاهش دوواحد از نسبت سود فعالیت مربوط مندرجدراین مجموعه محاسبه گردد.
D99: 1010150 | E99: انواع احشام و دام خوراکی ( زنده ) | F99: 6 | G99: 7.8
D100: 1020010 | E100: گوشت قرمز و سفيد شامل گوشت انواع احشام ، دام و طيور ( کشتار ، انجماد ، بسته بندی ) | F100: 2.5 | G100: 3.25
D101: 2010181 | E101: انواع احشام و دام خوراکی ( زنده - ) عمده فروشی ( تولید داخل) | F101: 2.21 | G101: 2.873
D102: 2010182 | E102: انواع احشام و دام خوراکی ( زنده - ) عمده فروشی ( وارداتی ) | F102: 3.8 | G102: 4.94
D103: 2010183 | E103: انواع احشام ودام خوراکی ( زنده - ) خرده فروشی ( تولید داخل ) | F103: 8 | G103: 10.4
D104: 2010184 | E104: انواع احشام ودام خوراکی ( زنده - ) خرده فروشی ( وارداتی ) | F104: 9.6 | G104: 12.48
D105: 2010185 | E105: انواع احشام ودام خوراکی ( زنده - ) صادرات | F105: 2.6 | G105: 3.38
D106: 2010186 | E106: انواع احشام ودام خوراکی ( زنده - ) واردات | F106: 11.2 | G106: 14.56
D107: 2020011 | E107: انواع گوشت قرمز و سفید احشام و دام و طیور - عمده فروشی ( تولید داخل) | F107: 1.9 | G107: 2.47
D108: 2020012 | E108: انواع گوشت قرمز و سفید احشام و دام و طیور - عمده فروشی ( وارداتی ) | F108: 3.8 | G108: 4.94
D109: 2020013 | E109: انواع گوشت قرمز و سفید احشام ودام و طیور - خرده فروشی ( تولید داخل ) | F109: 5 | G109: 6.5
D110: 2020014 | E110: انواع گوشت قرمز و سفید احشام ودام و طیور - خرده فروشی ( وارداتی ) | F110: 7.6 | G110: 9.88
D111: 2020015 | E111: انواع گوشت قرمز و سفید احشام ودام و طیور - صادرات | F111: 2.6 | G111: 3.38
D112: 2020016 | E112: انواع گوشت قرمز و سفید احشام ودام و طیور - واردات | F112: 9.6 | G112: 12.48
D113: 2020017 | E113: انواع گوشت قرمز و سفید احشام ودام و طیور - خرده فروشی ( صرفا عرضه در میادین میوه و تره بار ) | F113: 1.5 | G113: 1.95
D114: 3220370 | E114: کشتار انواع احشام ، دام و طیور ( کارمزدی ) | F114: 25 | G114: 37.5
D115: 3070130 | E115: نمایشگاه انواع خودرو های سبک و سنگین ( - حق الزحمه ای ) | F115: 50 | G115: 75
D116: 2170021 | E116: انواع لوازم و قطعات یدکی ، شاسی ، کفی ، اتاق ، بدنه و سایر تجهیزات جانبی و کمکی انواع خودرو سبک و سنگین ( به جز لاستیک ، باطری ، شیشه ، روکش صندلی ، عرق گیر و سایر لوازم تودوزی اتومبیل - ) عمده فروشی ( تولید داخل ) | F116: 2 | G116: 2.6
D117: 2170022 | E117: انواع لوازم و قطعات یدکی ، شاسی ، کفی ، اتاق ، بدنه و سایر تجهیزات جانبی و کمکی انواع خودرو سبک و سنگین ( به جز لاستیک ، باطری ، شیشه ، روکش صندلی ، عرق گیر و سایر لوازم تودوزی اتومبیل - ) عمده فروشی ( وارداتی ) | F117: 3.8 | G117: 4.94
D118: 2170023 | E118: انواع لوازم و قطعات یدکی ، شاسی ، کفی ، اتاق ، بدنه و سایر تجهیزات جانبی و کمکی انواع خودرو سبک و سنگین ( به جز لاستیک ، باطری ، شیشه ، روکش صندلی ، عرق گیر و سایر لوازم تودوزی اتومبیل - ) خرده فروشی ( تولید داخل ) | F118: 9.5 | G118: 12.35
D119: 2170024 | E119: انواع لوازم و قطعات یدکی ، شاسی ، کفی ، اتاق ، بدنه و سایر تجهیزات جانبی و کمکی انواع خودرو سبک و سنگین ( به جز لاستیک ، باطری ، شیشه ، روکش صندلی ، عرق گیر و سایر لوازم تودوزی اتومبیل - ) خرده فروشی ( وارداتی ) | F119: 13.6 | G119: 17.68
D120: 2170025 | E120: انواع لوازم و قطعات یدکی ، شاسی ، کفی ، اتاق ، بدنه و سایر تجهیزات جانبی و کمکی انواع خودرو سبک و سنگین ( به جز لاستیک ، باطری ، شیشه ، روکش صندلی ، عرق گیر و سایر لوازم تودوزی اتومبیل - ) صادرات | F120: 2.6 | G120: 3.38
D121: 2170026 | E121: انواع لوازم و قطعات یدکی ، شاسی ، کفی ، اتاق ، بدنه و سایر تجهیزات جانبی و کمکی انواع خودرو سبک و سنگین ( به جز لاستیک ، باطری ، شیشه ، روکش صندلی ، عرق گیر و سایر لوازم تودوزی اتومبیل - ) واردات | F121: 17.6 | G121: 22.88
D122: 1170020 | E122: انواع لوازم و قطعات یدکی ، شاسی ، انواع کفی ، اتاق و بدنه ، مخازن گازی ، کولر و سایر تجهيزات جانبی و کمکی انواع خودرو سبک و سنگين ( به جز لاستيک ، باطری ، شيشه ، روکش صندلی ، عرقگيرو سایر لوازم تودوزی اتومبيل ) | F122: 3.7 | G122: 4.8
D123: 3060210 | E123: کبابی | F123: 18 | G123: 27
D124: 3060160 | E124: چلوکباب و چلوخورش - ممتاز | F124: 20 | G124: 30
D125: 3060170 | E125: چلوکباب و چلوخورش - درجه یک | F125: 18 | G125: 27
D126: 3060180 | E126: چلوکباب و چلوخورش - درجه دو و سه | F126: 15 | G126: 22.5
D127: 3220190 | E127: خاکشویان طلا | F127: 20 | G127: 30
D128: 1030030 | E128: استخراج مواد معدنی غيرفلزی شامل ؛ نيترات ها ، فسفات ها ، سولفات ها ، گرافيت ، نسوز ها ، خاک های صنعتی و نظایر آنها ( صرفا استخراج ) | F128: 7.8 | G128: 10.14
D129: 1030040 | E129: استخراج و فرآوری مواد معدنی غيرفلزی شامل ؛ نيترات ها ، فسفات ها ، سولفات ها ، گرافيت ، نسوز ها ، خاک های صنعتی و نظایر آنها ( استخراج و فرآوری توأم ) | F129: 9.3 | G129: 12.09
D130: 2030021 | E130: مواد معدنی غیرفلزی شامل ؛ نیترات ها ، فسفات ها ، سولفات ها ، گرافیت ، نسوز ها ، خاک های صنعتی و نظایر آنها - عمده فروشی ( تولید داخل ) | F130: 4.2 | G130: 5.46
D131: 2030022 | E131: مواد معدنی غیرفلزی شامل ؛ نیترات ها ، فسفات ها ، سولفات ها ، گرافیت ، نسوز ها ، خاک های صنعتی و نظایر آنها - عمده فروشی ( وارداتی ) | F131: 6.4 | G131: 8.32
D132: 2030023 | E132: مواد معدنی غیرفلزی شامل ؛ نیترات ها ، فسفات ها ، سولفات ها ، گرافیت ، نسوز ها ، خاک های صنعتی و نظایر آنها - خرده فروشی ( تولید داخل ) | F132: 13.2 | G132: 17.16
D133: 2030024 | E133: مواد معدنی غیرفلزی شامل ؛ نیترات ها ، فسفات ها ، سولفات ها ، گرافیت ، نسوز ها ، خاک های صنعتی و نظایر آنها - خرده فروشی ( وارداتی ) | F133: 14.4 | G133: 18.72
D134: 2030025 | E134: مواد معدنی غیرفلزی شامل ؛ نیترات ها ، فسفات ها ، سولفات ها ، گرافیت ، نسوز ها ، خاک های صنعتی و نظایر آنها - صادرات | F134: 4.4 | G134: 5.72
D135: 2030026 | E135: مواد معدنی غیرفلزی شامل ؛ نیترات ها ، فسفات ها ، سولفات ها ، گرافیت ، نسوز ها ، خاک های صنعتی و نظایر آنها - واردات | F135: 17.6 | G135: 22.88
D136: 3110140 | E136: تحقیقاتخاک شناسی ، کاوش ، نمونه برداریو ازمایش خاک | F136: 22 | G136: 33
D137: 3120010 | E137: شرکت های مهندسین مشاوردارای صلاحیتوضو آب ط سازمان مدیریتکه درامورمطالعه وتهیه طرحراهوساختمان ، تأسیسات ، خاک شناسیومقاومت مصالح ، نقشهکشی ، نظارت ( عالیهو کارگاهی ) ، محاسبات فنی و ... فعالیت دارند و دریافتی آنه آب ر اساس فهرست بهای ا تعرفه سازمان مدیریت محاسبه گردد | F137: 14 | G137: 21
D138: 3120020 | E138: سایر اشخاص ( حقیقی و حقوقی ) که در امور مطالعه وتهیهطرحراه وساختمان ، تأسیسات ، خاکشناسیو مقاومت مصالح ، نقشه کشی ، نظارت ( عالیهو کارگاهی ) ، محاسبات فنی و ... فعالیت دارند ومشمولضو آب طو تعرفه های سازمان مدیریتنمیباشند | F138: 20 | G138: 30
D139: 3120350 | E139: اشخاص حقیقی که درامورمطالعه وتهیه طرحراهوساختمان ، تأسیسات ، خاک شناسیومقاومت مصالح ، نقشهکشی ، نظارت ( عالیهو کارگاهی ) ، محاسبات فنی و ... فعالیت دارند ومشمولضو آب طو تعرفه های سازمان مدیریتنمیباشند - دارایدفترکار | F139: 20 | G139: 30
D140: 3120360 | E140: اشخاص حقیقی که درامورمطالعه وتهیه طرحراهوساختمان ، تأسیسات ، خاک شناسیومقاومت مصالح ، نقشهکشی ، نظارت ( عالیهو کارگاهی ) ، محاسبات فنی و ... فعالیت دارند ومشمولضو آب طو تعرفه های سازمان مدیریتنمیباشند - بدون دفترکار | F140: 30 | G140: 45
D141: 1040080 | E141: انواع ملات و بتون آماده ، قطعات بتونی و سيمانی نظير تير برق ، تيرچه ، ایرانيت ، لوله ، تراورس و... | F141: 7.3 | G141: 9.49
D142: 1040130 | E142: انواع بتونه | F142: 7.3 | G142: 9.49
D143: 1050050 | E143: ضد یخ سيمان و بتون | F143: 7.8 | G143: 10.14
D144: 1090110 | E144: انواع پارچه زریباف ، ترمه باف و گلابتوندوز | F144: 8.3 | G144: 10.79
D145: 2040071 | E145: انواع ملات و بتون آماده ، قطعات بتونی وسیمانی نظیر تیر برق ، تیرچه ، ایرانیت ، لوله ، تراورس و - ...عمده فروشی ( تولید داخل ) | F145: 2.95 | G145: 3.835
D146: 2040072 | E146: انواع ملات و بتون آماده ، قطعات بتونی وسیمانی نظیر تیر برق ، تیرچه ، ایرانیت ، لوله ، تراورس و - ...عمده فروشی ( وارداتی ) | F146: 5 | G146: 6.5
D147: 2040073 | E147: انواع ملات و بتون آماده ، قطعات بتونی وسیمانی نظیر تیر برق ، تیرچه ، ایرانیت ، لوله ، تراورس و - ...خرده فروشی ( تولید داخل ) | F147: 11.4 | G147: 14.82
D148: 2040074 | E148: انواع ملات و بتون آماده ، قطعات بتونی وسیمانی نظیر تیر برق ، تیرچه ، ایرانیت ، لوله ، تراورس و - ...خرده فروشی ( وارداتی ) | F148: 14.4 | G148: 18.72
D149: 2040075 | E149: انواع ملات و بتون آماده ، قطعات بتونی وسیمانی نظیر تیر برق ، تیرچه ، ایرانیت ، لوله ، تراورس و - ...صادرات | F149: 3.5 | G149: 4.55
D150: 2040076 | E150: انواع ملات و بتون آماده ، قطعات بتونی وسیمانی نظیر تیر برق ، تیرچه ، ایرانیت ، لوله ، تراورس و - ...واردات | F150: 17.6 | G150: 22.88
D151: 2040131 | E151: انواع بتونه - عمده فروشی ( تولید داخل ) | F151: 3.68 | G151: 4.784
D152: 2040132 | E152: انواع بتونه - عمده فروشی ( وارداتی ) | F152: 6.2 | G152: 8.06
D153: 2040133 | E153: انواع بتونه - خرده فروشی ( تولید داخل ) | F153: 9.38 | G153: 12.194
D154: 2040134 | E154: انواع بتونه - خرده فروشی ( وارداتی ) | F154: 12 | G154: 15.6
D155: 2040135 | E155: انواع بتونه - صادرات | F155: 4.4 | G155: 5.72
D156: 2040136 | E156: انواع بتونه - واردات | F156: 17.6 | G156: 22.88
D157: 2050051 | E157: ضد یخ سیمان و بتون - عمده فروشی ( تولید داخل ) | F157: 3.6 | G157: 4.68
D158: 2050052 | E158: ضد یخ سیمان و بتون - عمده فروشی ( وارداتی ) | F158: 6.4 | G158: 8.32
D159: 2050053 | E159: ضد یخ سیمان و بتون - خرده فروشی ( تولید داخل ) | F159: 9.1 | G159: 11.83
D160: 2050054 | E160: ضد یخ سیمان و بتون - خرده فروشی ( وارداتی ) | F160: 12 | G160: 15.6
D161: 2050055 | E161: ضد یخ سیمان و بتون - صادرات | F161: 4.4 | G161: 5.72
D162: 2050056 | E162: ضد یخ سیمان و بتون - واردات | F162: 17.6 | G162: 22.88
D163: 2090071 | E163: انواع پارچه ابریشم ، حریر و مخمل ، زریباف ، ترمه باف و گلابتوندوز - عمده فروشی ( تولید داخل ) | F163: 3 | G163: 3.9
D164: 2090072 | E164: انواع پارچه ابریشم ، حریر و مخمل ، زریباف ، ترمه باف و گلابتوندوز - عمده فروشی ( وارداتی ) | F164: 3 | G164: 3.9
D165: 2090073 | E165: انواع پارچه ابریشم ، حریر و مخمل ، زریباف ، ترمه باف و گلابتوندوز - خرده فروشی ( تولید داخل ) | F165: 11.5 | G165: 14.95
D166: 2090074 | E166: انواع پارچه ابریشم ، حریر و مخمل ، زریباف ، ترمه باف و گلابتوندوز - خرده فروشی ( وارداتی ) | F166: 14.4 | G166: 18.72
D167: 2090075 | E167: انواع پارچه ابریشم ، حریر و مخمل ، زریباف ، ترمه باف و گلابتوندوز - صادرات | F167: 3.5 | G167: 4.55
D168: 2090076 | E168: انواع پارچه ابریشم ، حریر و مخمل ، زریباف ، ترمه باف و گلابتوندوز - واردات | F168: 17.6 | G168: 22.88
D169: 3090030 | E169: آموزش متوسطه ( دوره های اولودوم ) | F169: 18 | G169: 27 | H169: پس از کسرحقوق پرداختی طبق تاییدیه اداره امور مالیاتی ذیربط | I169: پس از کسرحقوق پرداختی طبق تاییدیه اداره امور مالیاتی ذیربط
D170: 1210040 | E170: ميزو صندلی و نيمکت مدارس | F170: 6.2 | G170: 8.06
D171: 3110160 | E171: مراکز پژوهشو تحقیقاتکشاورزی | F171: 25 | G171: 37.5
D172: 1030050 | E172: استخراج مواد معدنی فلزی شامل ؛ آهن ، طلا ، کروم ، قلع ، جيوه ، سرب ، روی ، مس ، تيتانيوم ، موليبدن و سایر فلزات ( صرفا استخراج ) | F172: 8.6 | G172: 11.18
D173: 1030060 | E173: استخراج مواد معدنی فلزی شامل ؛ آهن ، طلا ، کروم ، قلع ، جيوه ، سرب ، روی ، مس ، تيتانيوم ، موليبدن و سایر فلزات ( استخراج و فرآوری توأم ) | F173: 10.1 | G173: 13.13
D174: 1190030 | E174: انواع محصولات فلزی غيرآهنی ( به استثنا فلزات قيمتی نظير طلا ، نقره و پلاتين ) شامل انواع شمش ، بلوم ، بيلت ، اسلب ، ورق ، صفحه ، تور ، نوار ، سپری ، تسمه ، لوله ، نورد یا رول ، گلوله ، ميلهیا ميلگرد ، فویل ، مفتول ، سيم و کابل ( غير از مصارف برقی ) ، نبشی ، ناودانی ، قوطی ، پروفيل ، تير ، ریل ، تراورس و پودر فلزات مزبور | F174: 6.4 | G174: 8.3
D175: 1200010 | E175: استحصال وجدا سازی طلا و نقره از کنسانتره مس | F175: 4.3 | G175: 5.59
D176: 1200030 | E176: شمش و سایر مصنوعات ساخته شده از جنس طلا و پلاتين ( به استثنا انواع سکه و زیور آلات ) | F176: 5.3 | G176: 6.89
D177: 1200040 | E177: انواع سکه طلا | F177: 4.7 | G177: 6.11
D178: 1200050 | E178: انواع طلا ، جواهر و سنگ های قيمتی ( شامل انواع زیورآلات از جنس طلا و پلاتين ، سنگ های قيمتی ویا سنگ های قيمتی نصب شده برروی طلا وپلاتين ) | F178: 4.7 | G178: 6.11
D179: 1200070 | E179: توليد کننده شمش و سایر مصنوعات ساخته شده از جنس طلا و پلاتين ( به استثنا انواع سکه و زیورآلات - ) صرفا اجرت بگير | F179: 16.7 | G179: 21.71
D180: 1200080 | E180: توليد کننده انواع طلا ، جواهر و سنگ های قيمتی ( شامل انواع زیورآلات از جنس طلا و پلاتين ، سنگ های قيمتی ویا سنگ های قيمتی نصب شده برروی طلا وپلاتين - ) صرفا اجرت بگير | F180: 21.3 | G180: 27.69
D181: 2030031 | E181: مواد معدنی فلزی شامل ؛ آهن ، طلا ، کروم ، قلع ، جیوه ، سرب ، روی ، مس ، تیتانیوم ، مولیبدن و سایر فلزات - عمده فروشی ( تولید داخل ) | F181: 4.2 | G181: 5.46
D182: 2030032 | E182: مواد معدنی فلزی شامل ؛ آهن ، طلا ، کروم ، قلع ، جیوه ، سرب ، روی ، مس ، تیتانیوم ، مولیبدن و سایر فلزات - عمده فروشی ( وارداتی ) | F182: 6 | G182: 7.8
D183: 2030033 | E183: مواد معدنی فلزی شامل ؛ آهن ، طلا ، کروم ، قلع ، جیوه ، سرب ، روی ، مس ، تیتانیوم ، مولیبدن و سایر فلزات - خرده فروشی ( تولید داخل ) | F183: 13.2 | G183: 17.16
D184: 2030034 | E184: مواد معدنی فلزی شامل ؛ آهن ، طلا ، کروم ، قلع ، جیوه ، سرب ، روی ، مس ، تیتانیوم ، مولیبدن و سایر فلزات - خرده فروشی ( وارداتی ) | F184: 14.4 | G184: 18.72
D185: 2030035 | E185: مواد معدنی فلزی شامل ؛ آهن ، طلا ، کروم ، قلع ، جیوه ، سرب ، روی ، مس ، تیتانیوم ، مولیبدن و سایر فلزات - صادرات | F185: 4.4 | G185: 5.72
D186: 2030036 | E186: مواد معدنی فلزی شامل ؛ آهن ، طلا ، کروم ، قلع ، جیوه ، سرب ، روی ، مس ، تیتانیوم ، مولیبدن و سایر فلزات - واردات | F186: 17.6 | G186: 22.88
D187: 2190031 | E187: انواع محصولات فلزی غیرآهنی ( به استثنا فلزات قیمتی نظیر طلا ، نقره و پلاتین ) شامل انواع شمش ، بلوم ، بیلت ، اسلب ، ورق ، صفحه ، تور ، نوار ، سپری ، تسمه ، لوله ، نورد یا رول ، گلوله ، میله یا میلگرد ، فویل ، مفتول ، سیم و کابل ( غیر از مصارف برقی ) ، نبشی ، ناودانی ، قوطی ، پروفیل ، تیر ، ریل ، تراورس و پودر فلزات مزبور - عمده فروشی ( تولید داخل ) | F187: 1.6 | G187: 2.08
D188: 2190032 | E188: انواع محصولات فلزی غیرآهنی ( به استثنا فلزات قیمتی نظیر طلا ، نقره و پلاتین ) شامل انواع شمش ، بلوم ، بیلت ، اسلب ، ورق ، صفحه ، تور ، نوار ، سپری ، تسمه ، لوله ، نورد یا رول ، گلوله ، میله یا میلگرد ، فویل ، مفتول ، سیم و کابل ( غیر از مصارف برقی ) ، نبشی ، ناودانی ، قوطی ، پروفیل ، تیر ، ریل ، تراورس و پودر فلزات مزبور - عمده فروشی ( وارداتی ) | F188: 2.3 | G188: 2.99
D189: 2190033 | E189: انواع محصولات فلزی غیرآهنی ( به استثنا فلزات قیمتی نظیر طلا ، نقره و پلاتین ) شامل انواع شمش ، بلوم ، بیلت ، اسلب ، ورق ، صفحه ، تور ، نوار ، سپری ، تسمه ، لوله ، نورد یا رول ، گلوله ، میله یا میلگرد ، فویل ، مفتول ، سیم و کابل ( غیر از مصارف برقی ) ، نبشی ، ناودانی ، قوطی ، پروفیل ، تیر ، ریل ، تراورس و پودر فلزات مزبور - خرده فروشی ( تولید داخل ) | F189: 4 | G189: 5.2
D190: 2190034 | E190: انواع محصولات فلزی غیرآهنی ( به استثنا فلزات قیمتی نظیر طلا ، نقره و پلاتین ) شامل انواع شمش ، بلوم ، بیلت ، اسلب ، ورق ، صفحه ، تور ، نوار ، سپری ، تسمه ، لوله ، نورد یا رول ، گلوله ، میله یا میلگرد ، فویل ، مفتول ، سیم و کابل ( غیر از مصارف برقی ) ، نبشی ، ناودانی ، قوطی ، پروفیل ، تیر ، ریل ، تراورس و پودر فلزات مزبور - خرده فروشی ( وارداتی ) | F190: 4.6 | G190: 5.98
D191: 2190035 | E191: انواع محصولات فلزی غیرآهنی ( به استثنا فلزات قیمتی نظیر طلا ، نقره و پلاتین ) شامل انواع شمش ، بلوم ، بیلت ، اسلب ، ورق ، صفحه ، تور ، نوار ، سپری ، تسمه ، لوله ، نورد یا رول ، گلوله ، میله یا میلگرد ، فویل ، مفتول ، سیم و کابل ( غیر از مصارف برقی ) ، نبشی ، ناودانی ، قوطی ، پروفیل ، تیر ، ریل ، تراورس و پودر فلزات مزبور - صادرات | F191: 1.6 | G191: 2.08
D192: 2190036 | E192: انواع محصولات فلزی غیرآهنی ( به استثنا فلزات قیمتی نظیر طلا ، نقره و پلاتین ) شامل انواع شمش ، بلوم ، بیلت ، اسلب ، ورق ، صفحه ، تور ، نوار ، سپری ، تسمه ، لوله ، نورد یا رول ، گلوله ، میله یا میلگرد ، فویل ، مفتول ، سیم و کابل ( غیر از مصارف برقی ) ، نبشی ، ناودانی ، قوطی ، پروفیل ، تیر ، ریل ، تراورس و پودر فلزات مزبور - واردات | F192: 16 | G192: 20.8
D193: 2200021 | E193: شمش طلا وپلاتین - عمده فروشی | F193: 0.5 | G193: 0.65
D194: 2200023 | E194: شمش طلا وپلاتین - خرده فروشی | F194: 1.8 | G194: 2.34
D195: 2200025 | E195: شمش طلا وپلاتین - صادرات | F195: 0.8 | G195: 1.04
D196: 2200026 | E196: شمش طلا وپلاتین - واردات | F196: 5 | G196: 6.5
D197: 2200031 | E197: سایر مصنوعات ساخته شده از جنس طلا وپلاتین ( به استثنا انواع سکهوزیورآلات - ) عمده فروشی ( تولید داخل ) | F197: 0.9 | G197: 1.17
D198: 2200032 | E198: سایر مصنوعات ساخته شده از جنس طلا وپلاتین ( به استثنا انواع سکهوزیورآلات - ) عمده فروشی ( وارداتی ) | F198: 1.2 | G198: 1.56
D199: 2200033 | E199: سایر مصنوعات ساخته شده از جنس طلا وپلاتین ( به استثنا انواع سکهوزیورآلات - ) خرده فروشی ( تولید داخل ) | F199: 7 | G199: 9.1
D200: 2200034 | E200: سایر مصنوعات ساخته شده از جنس طلا وپلاتین ( به استثنا انواع سکهوزیورآلات - ) خرده فروشی ( وارداتی ) | F200: 9.6 | G200: 12.48
D201: 2200035 | E201: سایر مصنوعات ساخته شده از جنس طلا وپلاتین ( به استثنا انواع سکهوزیورآلات - ) صادرات | F201: 1.2 | G201: 1.56
D202: 2200036 | E202: سایر مصنوعات ساخته شده از جنس طلا وپلاتین ( به استثنا انواع سکهوزیورآلات - ) واردات | F202: 6.4 | G202: 8.32
... 3166 more rows

Sheet 11
A1: 2 | C1: صفحه اصلی | F1: کاربرگ دوره به دوره | H1: کاربرگ اعتبار | J1: کاربرگ آلایندگی | L1: سامانه مودیان-ارزش افزوده | O1: یاسر ناظمی
E3: کاربرگ اصلی محاسبه مالیات بر ارزش افزوده | M3: ='1'!O11 -> 9127212385
E4: F | M4: صفحه 1 از
C6: مشخصات مؤدی : | F6: نام و نام‌خانوادگی: | G6: ='10'!K8 -> یاسر ناظمی | I6: شناسه مؤدی: | J6: ='10'!Q8 -> 16218196470001 | L6: نوع شخصیت: | M6: ='1'!O9 -> حقیقی
C7: جزییات مورد حسابرسی | E7: منبع | F7: ارزش افزوده | G7: نوع حسابرسی : | H7: ='10'!K10 -> اداری (پشت میزی) | J7: سال عملکرد: | K7: ='10'!$Q$10 -> 1403 | L7: دوره مالیاتی: | M7: کل دوره ها | O7: اداره کل امور مالیاتی استان اردبیل
E8: نوع اظهارنامه : | F8: =IF(K7>1400,'1'!E138,IF(E116=TRUE,F116,F115)) -> عمومی ( سایر کالا و خدمات ) | J8: =IF('1'!E9>1400,'1'!E139,IF(E116=TRUE,E119,E118)) -> 10 | K8: نوع فعالیت : | L8: ='1'!$G$11 -> دندانپزشکی
C10: دوره | D10: شماره اظهارنامه | E10: تاریخ ارائه | F10: مبلغ تشخیص | G10: طبق اظهارنامه | H10: صورتحساب ارائه شده | I10: فاکتورهای فاقد اقلام تکمیلی | J10: ماخذ فروش بند ب ماده 36 | K10: ماخذ بند ج ماده 36 | L10: مالیات | M10: =I103 -> 
C11: 1 | D11: ='1'!N56 -> 1409040939 | E11: =LOOKUP(C11,'1'!E56:E59,'1'!I56:I59) -> 1402/04/13 | F11: 4115000000 | G11: ='1'!J56 -> 2004325940 | H11: 0 | I11: 0 | J11: =MAX(0,IF('1'!$J$196=1,F11-G11,0)) -> 2110674060 | K11: 0 | L11: =IF($K$7>1400,F11*$J$8%,F11*$D$97) -> 411500000 | M11: =F11*$E$96 -> 0
C12: 2 | D12: ='1'!N57 -> - | E12: =LOOKUP(C12,'1'!E56:E59,'1'!I56:I59) -> 0 | F12: 9080000000 | G12: ='1'!J57 -> 0 | H12: 0 | I12: 0 | J12: =MAX(0,IF('1'!$J$197=1,F12-G12,0)) -> 9080000000 | K12: 0 | L12: =IF($K$7>1400,F12*$J$8%,F12*$D$97) -> 908000000 | M12: =F12*$E$96 -> 0
C13: 3 | D13: ='1'!N58 -> - | E13: =LOOKUP(C13,'1'!E56:E59,'1'!I56:I59) -> 0 | F13: 10440000000 | G13: ='1'!J58 -> 0 | H13: 0 | I13: 0 | J13: =MAX(0,IF('1'!$J$198=1,F13-G13,0)) -> 10440000000 | K13: 0 | L13: =IF($K$7>1400,F13*$J$8%,F13*$D$97) -> 1044000000 | M13: =F13*$E$96 -> 0
C14: 4 | D14: ='1'!N59 -> - | E14: =LOOKUP(C14,'1'!E56:E59,'1'!I56:I59) -> 0 | F14: 7750000000 | G14: ='1'!J59 -> 0 | H14: 0 | I14: 0 | J14: =MAX(0,IF('1'!$J$199=1,F14-G14,0)) -> 7750000000 | K14: 0 | L14: =IF($K$7>1399,F14*$J$8%,F14*$D$97) -> 775000000 | M14: =IF(K7<1400,F14*$E$96,0) -> 0 | O14: مهم | P14: `
C15: مجمـــــــوع فــــــروش : | F15: =SUM(F11:F14) -> 31385000000 | G15: =SUM(G11:G14) -> 2004325940 | H15: =SUM(H11:H14) -> 0 | I15: =SUM(I11:I14) -> 0 | J15: 29380674060 | K15: =SUM(K11:K14) -> 0 | L15: 3138500000 | M15: 0
C16: 1 | F16: 0 | G16: ='1'!L56 -> 0 | H16: 0 | J16: 0 | K16: 0 | L16: =IF($K$7>1400,F16*$J$8%,F16*$D$97) -> 0 | M16: =F16*$E$96 -> 0
C17: 2 | F17: 0 | G17: ='1'!L57 -> 0 | H17: 0 | J17: 0 | K17: 0 | L17: =IF($K$7>1400,F17*$J$8%,F17*$D$97) -> 0 | M17: =F17*$E$96 -> 0
C18: 3 | F18: 0 | G18: ='1'!L58 -> 0 | H18: 0 | J18: 0 | K18: 0 | L18: =IF($K$7>1400,F18*$J$8%,F18*$D$97) -> 0 | M18: =F18*$E$96 -> 0
C19: 4 | F19: 0 | G19: ='1'!L59 -> 0 | H19: 0 | J19: 0 | K19: 0 | L19: =IF($K$7>1399,F19*$J$8%,F19*$D$97) -> 0 | M19: =IF(K7<1400,F19*$E$96,0) -> 0
C20: مجمـــــــوع خــــــرید : | F20: =SUM(F16:F19) -> 0 | G20: =SUM(G16:G19) -> 0 | H20: =SUM(H16:H19) -> 0 | J20: =SUM(J16:J19) -> 0 | K20: =SUM(K16:K19) -> 0 | L20: =SUM(L16:L19) -> 0 | M20: =SUM(M16:M19) -> 0
C22: عنوان | G22: نرخ جریمه | I22: دوره | M22: مجموع
I23: 1 | J23: 2 | K23: 3 | L23: 4
C24: مالیات دوره پس از کسر اعتبار خرید | I24: =SUM(L11-L16) -> 411500000 | J24: =SUM(L12-L17) -> 908000000 | K24: =SUM(L13-L18) -> 1044000000 | L24: =SUM(L14-L19) -> 775000000 | M24: =SUM(I24:L24) -> 3138500000
C25: عوارض دوره پس از کسر اعتبار خرید | I25: =SUM(M11-M16) -> 0 | J25: =SUM(M12-M17) -> 0 | K25: =SUM(M13-M18) -> 0 | L25: =SUM(M14-M19) -> 0 | M25: =SUM(I25:L25) -> 0
C26: مجموع | I26: =SUM(I24:I25) -> 411500000 | J26: =SUM(J24:J25) -> 908000000 | K26: =SUM(K24:K25) -> 1044000000 | L26: =SUM(L24:L25) -> 775000000 | M26: =SUM(L24:M25) -> 3913500000
C27: ماخذ (فروش) عدم صدور صورتحساب | G27: =H125 -> 2 | I27: =IF(H125=2,0,MAX(0,F11-H11)) -> 0 | J27: =IF(H125=2,0,MAX(0,F12-H12)) -> 0 | K27: =IF(H125=2,0,MAX(0,F13-H13)) -> 0 | L27: =IF(H125=2,0,MAX(0,F14-H14)) -> 0 | M27: =SUM(I27:L27) -> 0
B28: 44 | C28: جریمه عدم صدور صورتحساب - مالیات | F28: =I125 -> عدم جریمه | G28: 100% مالیات | I28: =I27*$D$96 -> 0 | J28: =J27*$D$96 -> 0 | K28: =K27*$D$96 -> 0 | L28: =IF(K7=1400,L27*J8%,L27*$D$96) -> 0 | M28: 0
C29: جریمه عدم صدور صورتحساب - عوارض | G29: 100% عوارض | I29: =I27*$E$96 -> 0 | J29: =J27*$E$96 -> 0 | K29: =K27*$E$96 -> 0 | L29: =IF(K7=1400,0,L27*$E$96) -> 0 | M29: 0
C30: جریمه عدم درج اطلاعات (فاکتور فروش فاقد اقلام تکمیلی) -مالیات | G30: 100% مالیات | I30: =I11*$D$96 -> 0 | J30: =I12*$D$96 -> 0 | K30: =I13*$D$96 -> 0 | L30: =I14*$D$96 -> 0 | M30: 0
C31: جریمه عدم درج اطلاعات(فاکتور فروش فاقد اقلام تکمیلی)-عوارض | G31: 100% عوارض | I31: =I11*$E$96 -> 0 | J31: =I12*$E$96 -> 0 | K31: =I13*$E$96 -> 0 | L31: =I14*$E$96 -> 0 | M31: 0
C32: =E126 -> جریمه بند الف ماده 36- عدم عضویت یا عدم اظهارنامه | G32: =D109 -> دو برابر مالیات یا حداقل 1 میلیون | I32: =IF(F11=0,0,IF('1'!J196=1,0,IF(K7>1400,MAX($I$97,I24*2),L11*50%))) -> 0 | J32: =IF(F12=0,0,IF('1'!J197=1,0,IF(K7>1400,MAX($I$97,J24*2),L12*50%))) -> 0 | K32: =IF(F13=0,0,IF('1'!J198=1,0,IF(K7>1400,MAX($I$97,K24*2),L13*50%))) -> 0 | L32: =IF(F14=0,0,IF('1'!J199=1,0,IF(K7>1399,MAX($I$97,L24*2),L14*50%))) -> 0 | M32: 0
C33: =D103 -> مالیات ماخذ بند الف ماده 36 (جهت ثبت در اریس) | G33: =J103 -> - | I33: =E103 -> 0 | J33: =F103 -> 0 | K33: =G103 -> 0 | L33: =H103 -> 0 | M33: 0
I34: ='1'!G56 -> در موعد مقرر | J34: ='1'!G57 -> در موعد مقرر | K34: ='1'!G58 -> در موعد مقرر | L34: ='1'!G59 -> در موعد مقرر
C35: جریمه بند ب ماده 36 -کتمان ،کم اظهاری،بيش‌ اظهاري … | G35: =E109 -> دو برابر مالیات | I35: =F62 -> 422134812 | J35: =F63 -> 1816000000 | K35: =F64 -> 2088000000 | L35: =F65 -> 1550000000 | M35: 5876134812
C36: مالیات درآمد کتمان شده | I36: =I35/2 -> 211067406 | J36: =J35/2 -> 908000000 | K36: =K35/2 -> 1044000000 | L36: =L35/2 -> 775000000
C37: جریمه بند ج ماده 36 -دریافت توسط اشخاص غیر مجاز | G37: =F109 -> دو برابر مالیات | I37: =G62 -> 0 | J37: =G63 -> 0 | K37: =G64 -> 0 | L37: =G65 -> 0 | M37: 0
C38: ماخذ جریمه ماده 26 ( دستی وارد شود ) | G38: ارزش اصل طلا، جواهر و پلاتین | I38: 0 | J38: 0 | K38: 0 | L38: 0 | M38: =SUM(I38:L38) -> 0
C39: جریمه ماده 26 | G39: =J8 -> 10 | I39: =I38*G39 -> 0 | J39: =J38*H39 -> 0 | K39: 0 | L39: =L38*9% -> 0 | M39: =SUM(I39:L39) -> 0
C40: جریمه عدم ارائه اسناد و مدارک -مالیات | F40: =J119 -> غیر مشمول | G40: =K103 -> 25% مالیات متعلق | I40: =IF($J$113=2,I24*25%,0) -> 0 | J40: 0 | K40: 0 | L40: 0 | M40: 0
C41: جریمه عدم ارائه اسناد و مدارک -عوارض | I41: 0 | J41: 0 | K41: 0 | L41: 0 | M41: 0
C42: جریمه عدم ارائه دفاتر -مالیات | F42: =K119 -> غیر مشمول | G42: =G40 -> 25% مالیات متعلق | I42: =IF($K$113=2,I24*25%,0) -> 0 | J42: =IF($K$113=2,J24*25%,0) -> 0 | K42: =IF($K$113=2,K24*25%,0) -> 0 | L42: =IF($K$113=2,L24*25%,0) -> 0 | M42: 0
C43: جریمه عدم ارائه دفاتر -عوارض | I43: =IF($K$113=2,M11*25%,0) -> 0 | J43: =IF($K$113=2,M12*25%,0) -> 0 | K43: =IF($K$113=2,M13*25%,0) -> 0 | L43: =IF($K$113=2,M14*25%,0) -> 0 | M43: 0
C45: میزان فروش یا خدمات ابرازی مودی در اظهارنامه عملکرد مبلغ 19،161،920،000 ريال و گردش حساب بانکی مبلغ 19،161،920،000 ريال و گردش دستگاه پوز مبلغ 8،786،920،000 ريال و فروش در سامانه ارسال صورت معاملات مبلغ 0 ريال و مبلغ فروش در سامانه استخراج اطلاعاتی و پیمان های بلندمدت مبلغ 874،470،000 ريال و سایر فروش 0 ريال می باشد. با بررسی اسناد و مدارک تسلیمی مودی و تعداد معاملات و بازدید میدانی از محل کسب و پرس و جو از مطلعان مشخص گردید میزان کمیسیون دریافتی از خریداران و فروشندگان مبلغ 1،700،000،000 ريال می باشد و مابقی مبالغ مربوط به اشخاص بوده که به صورت امانی به حساب مودی واریز شده است.
C49: تاریخ شروع تنظیم کاربرگ حسابرسی : | G49: تاریخ شروع تنظیم کاربرگ حسابرسی : | L49: ='1'!M65 -> تایید کننده نهایی :
C50: نام و نام‌خانوادگی حسابرس : | F50: ='10'!H52 -> یاسر ناظمی | G50: نام و نام‌خانوادگی حسابرس مسئول: | I50: ='10'!Q52 -> علی بخشی | L50: ='1'!O65 -> حسن حامدی
C51: سمت: | F51: ='2'!H66 -> حسابرس ارشد | G51: سمت: | I51: رئیس گروه مالیاتی | L51: رئیس امور مالیاتی
AK56: 2
C60: تنظیمات - در صورت عدم تسلط به اکسل دستکاری نشود
E61: TRUE | F61: جریمه بند ب 36 | G61: جریمه بند ج 36
E62: =MAX(F62,$I$97) -> 422134812 | F62: =IF($K$7>1400,(J11*J8%*200%)+(J16*J8%*200%),0) -> 422134812 | G62: =IF($K$7>1400,(K11*J8%*200%)+(K16*J8%*200%),0) -> 0
E63: =MAX(F63,$I$97) -> 1816000000 | F63: =IF($K$7>1400,(J12*J8%*200%)+(J17*J8%*200%),0) -> 1816000000 | G63: =IF($K$7>1400,(K12*J8%*200%)+(K17*J8%*200%),0) -> 0
E64: =MAX(F64,$I$97) -> 2088000000 | F64: =IF($K$7>1400,(J13*J8%*200%)+(J18*J8%*200%),0) -> 2088000000 | G64: =IF($K$7>1400,(K13*J8%*200%)+(K18*J8%*200%),0) -> 0
E65: =MAX(F65,$I$97) -> 1550000000 | F65: =IF($K$7>1400,(J14*J8%*200%)+(J19*J8%*200%),0) -> 1550000000 | G65: =IF($K$7>1400,(K14*J8%*200%)+(K19*J8%*200%),0) -> 0
C69: year | D69: percentage | E69: duty% | F69: total | I69: حداقل جریمه
I70: 0
C71: 1387 | D71: 0.015 | E71: 0.015 | F71: =SUM(D71:E71) -> 0.03 | I71: 0
I72: 0
C73: 1388 | D73: 0.015 | E73: 0.015 | F73: =SUM(D73:E73) -> 0.03 | I73: 0
C74: 1389 | D74: 0.015 | E74: 0.015 | F74: 0.03 | I74: 0
C75: 1390 | D75: 0.022 | E75: 0.018 | F75: 0.04 | I75: 0
C76: 1391 | D76: 0.029 | E76: 0.021 | F76: 0.05 | I76: 0
C77: 1392 | D77: 0.036 | E77: 0.024 | F77: 0.06 | I77: 0
C78: 1393 | D78: 0.053 | E78: 0.027 | F78: 0.08 | I78: 0
C79: 1394 | D79: 0.06 | E79: 0.03 | F79: 0.09 | I79: 0
C80: 1395 | D80: 0.06 | E80: 0.03 | F80: 0.09 | I80: 0
C81: 1396 | D81: 0.06 | E81: 0.03 | F81: 0.09 | I81: 0
C82: 1397 | D82: 0.06 | E82: 0.03 | F82: 0.09 | I82: 0
C83: 1398 | D83: 0.06 | E83: 0.03 | F83: 0.09 | I83: 0
C84: 1399 | D84: 0.06 | E84: 0.03 | F84: 0.09 | I84: 0
C85: 1400 | D85: 0.06 | E85: 0.03 | F85: 0.09 | I85: 10000000
C86: 1401 | D86: 0.09 | E86: 0 | F86: 0.09 | I86: 10000000
C87: 1402 | D87: 0.09 | E87: 0 | F87: 0.09 | I87: 10000000
C88: 1403 | D88: 10 | E88: 0 | F88: 10 | I88: 10000000
C89: 1404 | D89: 10 | E89: 0 | F89: 10 | I89: 10000000
C90: 1405 | D90: 10 | E90: 0 | F90: 10 | I90: 10000000
C91: 1406 | D91: 10 | E91: 0 | F91: 10 | I91: 10000000
C92: 1407 | D92: 10 | E92: 0 | F92: 10 | I92: 10000000
D95: tax | E95: duty | F95: total
D96: =LOOKUP(K7,C71:C87,D71:D87) -> 0.09 | E96: =LOOKUP(K7,C71:C87,E71:E87) -> 0 | F96: =SUM(D96:E96) -> 0.09
D97: =IF(E116=TRUE,D96*2,D96) -> 0.09 | I97: ='1'!K141 -> 10000000
C100: year | D100: title | E100: 1 | F100: 2 | G100: 3 | H100: 4 | J100: =D103 -> مالیات ماخذ بند الف ماده 36 (جهت ثبت در اریس)
C101: =MIN(C103,1400) -> 1400 | D101: جریمه عدم تسلیم اظهارنامه -عوارض | E101: =IF('1'!J196=1,0,M11*50%) -> 0 | F101: =IF('1'!J197=1,0,M12*50%) -> 0 | G101: =IF('1'!J198=1,0,M13*50%) -> 0 | H101: =IF('1'!J199=1,0,M14*50%) -> 0 | I101: عوارض | J101: 50% عوارض | K101: 25% مالیات متعلق | L101: 25% عوارض متعلق
C102: =MAX(1401,C103) -> 1403 | D102: مالیات ماخذ بند الف ماده 36 (جهت ثبت در اریس) | E102: =I32/2 -> 0 | F102: =J32/2 -> 0 | G102: =K32/2 -> 0 | H102: =L32/2 -> 0 | I102: ="" ->  | J102: - | K102: 25% مالیات متعلق | L102: 25% عوارض متعلق
C103: =K7 -> 1403 | D103: =LOOKUP($C$103,$C$101:$C$102,D101:D102) -> مالیات ماخذ بند الف ماده 36 (جهت ثبت در اریس) | E103: 0 | F103: 0 | G103: 0 | H103: 0 | J103: - | K103: 25% مالیات متعلق | L103: 25% عوارض متعلق
C106: =C100 -> year | D106: جریمه عدم تسلیم اظهارنامه بند الف 36 | E106: بند ب 36 | F106: بند ج 36
C107: =C101 -> 1400 | D107: 50% مالیات | E107: ="" ->  | F107: ="" -> 
C108: 1403 | D108: دو برابر مالیات یا حداقل 1 میلیون | E108: دو برابر مالیات | F108: دو برابر مالیات
C109: 1403 | D109: =LOOKUP($C$103,$C$101:$C$102,D107:D108) -> دو برابر مالیات یا حداقل 1 میلیون | E109: =LOOKUP($C$103,$C$101:$C$102,E107:E108) -> دو برابر مالیات | F109: =LOOKUP($C$103,$C$101:$C$102,F107:F108) -> دو برابر مالیات
J111: documents | K111: book
J112: TRUE
J113: 3 | K113: ='1'!C209 -> 3
E115: ='1'!E139 -> 10 | F115: ='1'!E125 -> عمومی ( سایر کالا و خدمات ) | H115: ندارد | I115: 1 | J115: ارائه | K115: ارائه
E116: =ISEVEN('1'!C138) -> FALSE | F116: سیگار | H116: دارد | I116: 2 | J116: عدم ارائه | K116: عدم ارائه
D117: vat | I117: 3 | J117: غیر مشمول | K117: غیر مشمول
C118: ='1'!C216 -> 2 | D118: (مشمول) | E118: 9 | F118: =F8 -> عمومی ( سایر کالا و خدمات ) | I118: 4 | J118: 0 | K118: 0
D119: (غیرمشمول) | E119: 15 | F119: =IF(E116=TRUE,E119,E118) -> 9 | J119: =LOOKUP(J113,I115:I118,J115:J118) -> غیر مشمول | K119: =LOOKUP(K113,I115:I118,K115:K118) -> غیر مشمول
D120: =IF(C118=1,D118,D119) -> (غیرمشمول)
F123: 3 | H123: 1 | I123: جریمه
C124: دو برابر مالیات | E124: جریمه عدم تسلیم اظهارنامه -مالیات | F124: جریمه عدم تسلیم اظهارنامه -عوارض | H124: 2 | I124: عدم جریمه
C125: سه برابر مالیات | E125: جریمه بند الف ماده 36- عدم عضویت یا عدم اظهارنامه | F125: جریمه بند ب ماده 36-کتمان | H125: 2 | I125: =LOOKUP(H125,H123:H124,I123:I124) -> عدم جریمه
E126: =IF($K$7>1400,E125,E124) -> جریمه بند الف ماده 36- عدم عضویت یا عدم اظهارنامه | F126: 2
G128: 50% مالیات متعلقه
D129: =J8 -> 10 | F129: =J11 -> 2110674060 | G129: 10/000/000ريال یا دوبرابر مالیات
G130: =IF($K$7>1400,G129,G128) -> 10/000/000ريال یا دوبرابر مالیات

Sheet 12
C1: صفحه اصلی | F1: ارزش افزوده(اصلی) | G1: کاربرگ شرکت ها | H1: کاربرگ اعتبار | I1: کاربرگ آلایندگی | J1: کاربرگ آلایندگی | M1: ارزش افزوده
F3: کاربرگ اصلی محاسبه جرایم ماده (22) قانون مالیات بر ارزش افزوده | N3: ویرایش صفر
F4: F | N4: صفحه 1 از
C6: مشخصات مؤدی | F6: نام مودی : | G6: ='1'!$I$7 -> یاسر ناظمی | I6: شناسه مؤدی: | K6: ='1'!$I$9 -> 16218196470001 | M6: نوع شخصیت: | N6: ='11'!M6 -> حقیقی
F8: اداره کل امور مالیاتی | G8: ='1'!$E$63 -> اردبيل | I8: اداره امور مالیاتی | K8: ='1'!I63 -> 610400 | M8: عطف به کاربرگ
C10: جزییات مورد حسابرسی | F10: نوع حسابرسی : | G10: ='1'!$O$25 -> اداری (پشت میزی) | I10: سال عملکرد : | K10: ='1'!$E$9 -> 1403 | M10: دوره مالیاتی | N10: 4 | Q10: برای چاپ دوره به دوره فلش را فشار دهید
C11: نوع اظهارنامه : | E11: ='11'!$F$8 -> عمومی ( سایر کالا و خدمات ) | H11: ='11'!$J$8 -> 10 | I11: شماره اظهارنامه: | J11: =LOOKUP(N10,'1'!E56:E59,'1'!O56:O59) -> 0 | K11: تاریخ اظهارنامه: | L11: =LOOKUP(N10,'1'!E56:E59,'1'!I56:I59) -> 0
D14: مبلغ تشخیصی طبق حسابرسی | H14: مبلغ ابرازی مؤدی طبق اظهارنامه تسلیمی | K14: اعتبار مالیاتی
D15: ماخذ | F15: مالیات | G15: =AD51 ->  | H15: ماخذ | I15: مالیات | J15: =G15 ->  | K15: ماخذ | L15: مالیات | M15: =G15 -> 
D16: =LOOKUP($N$10,'11'!$C$11:$C$14,'11'!F11:F14) -> 7750000000 | F16: =LOOKUP($N$10,'11'!$C$11:$C$14,'11'!L11:L14) -> 775000000 | G16: =LOOKUP($N$10,'11'!$C$11:$C$14,'11'!M11:M14) -> 0 | H16: =LOOKUP($N$10,'11'!$C$11:$C$14,'11'!G11:G14) -> 0 | I16: =IF(AND(K10=1400,N10=4),H16*H11%,IF($K$10>1400,D16*$H$11%,H16*($H$11-3)%)) -> 775000000 | J16: =IF(AND(K10=1400,N10=4),0,IF($K$10>1400,"",H16*3%)) ->  | K16: =LOOKUP('13'!M9,'11'!$C$11:$C$14,'11'!$F$16:$F$19) -> 0 | L16: =LOOKUP($N$10,'11'!$C$11:$C$14,'11'!$L$16:$L$19) -> 0 | M16: =LOOKUP($N$10,'11'!$C$11:$C$14,'11'!$M$16:$M$19) -> 0
D18: ردیف | E18: عنوان جریمه | H18: نرخ جریمه | J18: مبلغ صورتحساب مشمول جریمه | L18: مبلغ جریمه
L19: مالیات | M19: =G15 -> 
D20: 1 | E20: ='11'!C32 -> جریمه بند الف ماده 36- عدم عضویت یا عدم اظهارنامه | H20: ='11'!G130 -> 10/000/000ريال یا دوبرابر مالیات | J20: =LOOKUP($N$10,'11'!$C$11:$C$14,'11'!F11:F14) -> 7750000000 | L20: =LOOKUP($N$10,'11'!$I$23:$L$23,'11'!I32:L32) -> 0 | M20: =LOOKUP($N$10,'11'!$I$23:$L$23,'11'!I33:L33) -> 0
D21: 2 | E21: ='11'!C35 -> جریمه بند ب ماده 36 -کتمان ،کم اظهاری،بيش‌ اظهاري … | H21: دو برابر مالیات | J21: =LOOKUP($N$10,'11'!$C$11:$C$14,'11'!J11:J14) -> 7750000000 | L21: =LOOKUP($N$10,'11'!$I$23:$L$23,'11'!I35:L35) -> 1550000000
D22: 3 | E22: ='11'!C37 -> جریمه بند ج ماده 36 -دریافت توسط اشخاص غیر مجاز | H22: دو برابر مالیات | J22: =LOOKUP($N$10,'11'!$C$11:$C$14,'11'!K11:K14) -> 0 | L22: =LOOKUP($N$10,'11'!$I$23:$L$23,'11'!I37:L37) -> 0
D23: 4 | E23: جریمه عدم صدور صورتحساب | H23: یک برابر مالیات متعلقه | J23: =LOOKUP($N$10,'11'!$I$23:$L$23,'11'!I27:L27) -> 0 | L23: =LOOKUP($N$10,'11'!$I$23:$L$23,'11'!I28:L28) -> 0 | M23: =LOOKUP($N$10,'11'!$I$23:$L$23,'11'!I29:L29) -> 0
D24: 5 | E24: عدم تکمیل اطلاعات صورتحساب طبق نمونه اعلام شده | H24: 25% مالیات متعلقه | J24: =LOOKUP($N$10,'11'!C11:C14,'11'!I11:I14) -> 0 | L24: =LOOKUP($N$10,'11'!$I$23:$L$23,'11'!I30:L30) -> 0 | M24: =LOOKUP($N$10,'11'!$I$23:$L$23,'11'!I31:L31) -> 0
C25: ='11'!F40 -> غیر مشمول | D25: 6 | E25: جریمه عدم ارائه اسناد و مدارک | H25: 25% مالیات متعلقه | J25: =LOOKUP($N$10,'11'!$C$11:$C$14,'11'!F11:F14) -> 7750000000 | L25: =LOOKUP($N$10,'11'!$I$23:$L$23,'11'!I40:L40) -> 0 | M25: =LOOKUP($N$10,'11'!$I$23:$L$23,'11'!I41:L41) -> 0
C26: ='11'!F42 -> غیر مشمول | D26: 7 | E26: جریمه عدم ارائه دفاتر | H26: 25% مالیات متعلقه | J26: =LOOKUP($N$10,'11'!$C$11:$C$14,'11'!F11:F14) -> 7750000000 | L26: =LOOKUP($N$10,'11'!$I$23:$L$23,'11'!I42:L42) -> 0 | M26: =LOOKUP($N$10,'11'!$I$23:$L$23,'11'!I43:L43) -> 0
D27: 8 | E27: عدم ثبت نام مؤدیان در مهلت مقرر | H27: 75%مالیات متعلق تا تاریخ ثبت‌نام یا شناسایی حسب مورد | L27: =LOOKUP($N$10,'11'!$I$23:$L$23,'11'!I39:L39) -> 0
D28: جمع (نقل به گزارش) | L28: =SUM(L20:L27) -> 1550000000 | M28: =SUM(M20:M27) -> 0
D29: طبق نامه شماره 7821 مورخ 1389/05/02 جریمه همزمان ردیف 1 و 5 همچنین 3 و 4 موضوعیت ندارد
C30: توضیحات: یاسر ناظمی …
C32: تاریخ شروع تنظیم کاربرگ حسابرسی | H32: تاریخ پایان تنظیم کاربرگ حسابرسی | L32: ='1'!M65 -> تایید کننده نهایی :
C33: نام و نام‌خانوادگی حسابرس | F33: ='1'!F65 -> یاسر ناظمی | H33: نام و نام‌خانوادگی حسابرس مسئول | J33: ='1'!J65 -> علی بخشی | L33: ='1'!O65 -> حسن حامدی
C34: سمت : | F34: حسابرس ارشد | H34: سمت : | J34: رئیس گروه مالیاتی | L34: ='10'!T53 -> رئیس امور مالیاتی
C40: جهت راهنمایی و ارائه پیشنهاد تماس بگیرید 09127212385
X41: 1
X42: 2
X43: 3
X44: 4
X45: =N10 -> 4
AC49: =K10 -> 1403 | AD49: عوارض
AC50: =N10 -> 4 | AD50: ="" -> 
AD51: =IF(AC49>1400,AD50,AD49) -> 

Sheet 13
C1: صفحه اصلی | F1: ارزش افزوده(اصلی) | G1: کاربرگ شرکت ها | I1: کاربرگ آلایندگی | J1: کاربرگ آلایندگی
D3: کاربرگ اصلی حسابرسی اعتبار مالیات و عوارض ارزش افزوده | L3: ویرایش صفر
D4: F | L4: صفحه 1 از
C6: مشخصات مؤدی: | D6: نام مؤدی: | F6: ='1'!I7 -> یاسر ناظمی | H6: کد اقتصادی/شناسه ملی: | J6: ='1'!I9 -> 16218196470001 | L6: نوع شخصیت: | M6: ='1'!O9 -> حقیقی
D7: اداره کل امور مالیاتی : | F7: ='1'!E63 -> اردبيل | H7: اداره امور مالیاتی : | J7: ='1'!I63 -> 610400 | L7: عطف به کاربرگ نهایی : | M7: 0
C9: جزییات مورد حسابرسی: | E9: نوع حسابرسی : | F9: ='1'!O25 -> اداری (پشت میزی) | H9: منبع مالیاتی: | I9: ارزش افزوده | J9: سال عملکرد | K9: ='1'!E9 -> 1403 | L9: دوره مالیاتی | M9: ='12'!N10 -> 4
C10: نوع اظهارنامه : | D10: ='11'!F8 -> عمومی ( سایر کالا و خدمات ) | I10: ='11'!J8 -> 10 | J10: شماره اظهارنامه: | L10: تاریخ اظهارنامه:
C12: عنوان | D12: مبالغ ابرازی مؤدی طبق اظهارنامه تسلیمی * | G12: تعدیلات ** | J12: تشخیصی | M12: شماره عطف کاربرگ فرعی
D13: مأخذ | E13: مالیات | F13: عوارض | G13: مأخذ | H13: مالیات | I13: عوارض | J13: مأخذ | K13: مالیات | L13: عوارض
C14: اعتبار مالیاتی : | D14: =LOOKUP(M9,'11'!C16:C19,'11'!G16:G19) -> 0 | E14: =IF(AND(K9>1399,M9>3),D14*I10%,D14*(I10-3)%) -> 0 | F14: =IF(AND(K9>1399,M9>3),0,D14*3%) -> 0 | G14: =J14-D14 -> 0 | H14: =IF(AND(K9>1399,M9>3),G14*I10%,G14*(I10-3)%) -> 0 | I14: =IF(AND(K9>1399,M9>3),0,G14*3%) -> 0 | J14: ='12'!K16 -> 0 | K14: ='12'!K16 -> 0 | L14: ='12'!M16 -> 0
C15: تبصره (7) ماده (17) : | G15: 0 | H15: 0 | I15: 0 | J15: =G15 -> 0 | K15: =H15 -> 0 | L15: =I15 -> 0
C16: تبصره (2) ماده (38) : | G16: 0 | I16: 0 | J16: =G16 -> 0 | L16: =I16 -> 0
C17: جمع کل | D17: =D14 -> 0 | E17: =E14 -> 0 | F17: =D17*0.03 -> 0 | G17: =SUM(G14:G16) -> 0 | H17: 0 | I17: 0 | J17: 0 | K17: 0 | L17: 0
C18: انتقال به گزارش
C19: * در خصوص تبصره (2) ماده (38) منظور مبلغ فروش کالای تولیدی و یا ارائه خدمات مشمول بند الف ماده (38) ابرازی در اظهارنامه می‌باشد.
C20: * * تعدیلات تبصره (2) ماده (38) صرفاً کاهنده می‌باشد.
C21: توضیحات :
C29: تاریخ شروع تنظیم کاربرگ حسابرسی : | G29: تاریخ پایان تنظیم کاربرگ حسابرسی : | K29: تایید کننده نهایی :
C30: نام و نام‌خانوادگی حسابرس : | E30: ='1'!F65 -> یاسر ناظمی | G30: نام و نام‌خانوادگی حسابرس مسئول : | I30: ='1'!J65 -> علی بخشی | K30: ='1'!O65 -> حسن حامدی
C31: سمت: | E31: ='2'!H66 -> حسابرس ارشد | G31: سمت: | I31: ='2'!N66 -> رئیس گروه مالیاتی | K31: سمت :

Sheet 14
C1: صفحه اصلی | F1: ماده 169 | G1: مشاغل | H1: کاربرگ شرکت ها | I1: کاربرگ اعتبار | J1: کاربرگ دوره به دوره | K1: کاربرگ آلایندگی
D3: کاربرگ اصلی حسابرسی عوارض آلایندگی | L3: ویرایش صفر
D4: F | L4: صفحه 1 از
C6: مشخصات مؤدی: | D6: نام مؤدی: | E6: ='1'!I7 -> یاسر ناظمی | G6: کد اقتصادی/شناسه ملی: | I6: ='1'!I9 -> 16218196470001 | K6: نوع شخصیت: | L6: ='11'!$M$6 -> حقیقی | O6: ظ
D7: اداره کل امور مالیاتی : | E7: استان اردبیل | G7: اداره امور مالیاتی : | I7: ='1'!I63 -> 610400 | K7: عطف به کاربرگ نهایی | L7: -
C9: جزییات مورد حسابرسی: | D9: نوع حسابرسی : | E9: ='1'!O25 -> اداری (پشت میزی) | F9: منبع مالیاتی: | G9: ='11'!$F$7 -> ارزش افزوده | H9: سال عملکرد | I9: ='1'!E9 -> 1403 | K9: دوره مالیاتی
D10: نوع اظهارنامه : | E10: آلایندگی | F10: ضریب آلایندگی : | G10: =L44 -> 0.5 | H10: شماره اظهارنامه: | K10: تاریخ اظهارنامه:
C12: مبالغ ابرازی مؤدی طبق اظهارنامه تسلیمی | F12: تعدیلات | I12: تشخیصی | L12: شماره عطف کاربرگ فرعی
C13: دوره | D13: مأخذ | E13: عوارض متعلق | F13: مأخذ | H13: عوارض متعلق | I13: مأخذ | K13: عوارض متعلق
C14: 1 | D14: 0 | E14: =D14*G10% -> 0 | F14: =I14-D14 -> 500000000 | H14: =F14*G10% -> 2500000 | I14: 500000000 | K14: =I14*G10% -> 2500000
C15: 2 | D15: 0 | E15: =D15*G10% -> 0 | F15: =I15-D15 -> 1000000000 | H15: =F15*G10% -> 5000000 | I15: 1000000000 | K15: =I15*G10% -> 5000000
C16: 3 | D16: 0 | E16: =D16*G11% -> 0 | F16: =I16-D16 -> 0 | H16: =F16*G10% -> 0 | K16: =I16*G10% -> 0
C17: 4 | D17: 0 | E17: =D17*G10% -> 0 | F17: =I17-D17 -> 0 | H17: =F17*G10% -> 0 | K17: =I17*G10% -> 0
C19: جرائم | E19: دوره 1 | F19: دوره 2 | G19: دوره 3 | H19: دوره 4 | I19: توضیحات
C20: جریمه عدم ارائه دفاتر | E20: =K14*25% -> 625000 | F20: =K15*25% -> 1250000 | G20: =K16*25% -> 0 | H20: =K17*25% -> 0
C21: جریمه عدم تسلیم اظهارنامه | E21: =K14*50% -> 1250000 | F21: =K15*50% -> 2500000 | G21: 0 | H21: 0
C22: جریمه عدم صدور صورتحساب | E22: =K14 -> 2500000 | F22: =K15 -> 5000000 | G22: =K16 -> 0 | H22: =K17 -> 0
C23: جریمه عدم ارائه اسناد و مدارک | E23: =E20 -> 625000 | F23: =F20 -> 1250000 | G23: =G20 -> 0 | H23: =H20 -> 0
C25: انتقال به گزارش
C26: توضیحات :
C30: تاریخ شروع تنظیم کاربرگ حسابرسی | G30: تاریخ پایان تنظیم کاربرگ حسابرسی | I30: توضیحات: انتقال به گزارش شماره
C31: نام و نام‌خانوادگی حسابرس | E31: ='10'!H52 -> یاسر ناظمی | H31: نام و نام‌خانوادگی حسابرس مسئول | J31: ='10'!Q52 -> علی بخشی
C32: سمت: | F32: مهر و امضاء | H32: سمت: | J32: مهر و امضاء
C36: تنظیمات نرخ های آلایندگی
K37: نرخ ( درصد )
C38: 1 | L38: 0.5
C39: 2 | L39: 1
C40: 3 | L40: 1.5
C41: 4 | L41: 0.5
C42: 5 | L42: 1
C43: 6 | L43: 1.5
C44: 4 | L44: =LOOKUP(C44,C38:C43,L38:L43) -> 0.5

Sheet 15
E1: صفحه اصلی | I1: برگ تشخیص حقوق | K1: برگ قطعی
F2: گزارش رسیدگی حقوق
M4: شماره: | N4: 4775
J5: عملکرد : | K5: ='10'!Q10 -> 1403 | M5: تاریخ: | N5: 1403/10/03
G6: نوع شخص : | H6: ='1'!O9 -> حقیقی | M6: کلاسه : | N6: 1 | T6: خرید | U6: فروش | V6: امتناع
B7: برای موارد ساده فقط سلول های قرمز رنگ پر شود بقیه خودکار محاسبه می شود | G7: عنوان مودی : | H7: ='10'!K8 -> یاسر ناظمی | I7: ='1'!I9 -> 16218196470001 | J7: موبایل : | K7: ='1'!O11 -> 9127212385 | M7: نوع حسابرسی : | N7: ='1'!O25 -> اداری (پشت میزی) | T7: =IF(AND($K$5=1394,#REF!=$K$5,#REF!=#REF!),#REF!,0) ->  | U7: =IF(AND($K$5=1394,#REF!=$K$5,#REF!=#REF!),#REF!,0) ->  | V7: =IF(AND($K$5=1394,#REF!=$K$5,#REF!=#REF!),#REF!,0) -> 
G8: آدرس : | H8: ='1'!H33 -> مرکزی شهرک آیت الله کاشانی کوچه ((احد اصولی)) کوچه شهیدنجف کوشش پلاک 0 طبقه همکف | M8: عنوان شغلی : | N8: ='1'!G11 -> دندانپزشکی | T8: =IF(AND(K6=1394,#REF!=K6,#REF!=#REF!),N23,0) -> 
T9: =IF(AND(K8=1394,#REF!=K8,#REF!=#REF!),N25,0) -> 
G11: عنوان | I11: مبلغ | J11: توضیحات | K11: =G11 -> عنوان | L11: =I11 -> مبلغ | N11: =J11 -> توضیحات
G12: مجموع لیست حقوق : | I12: 1000000000 | J12: -
G13: بیمه سهم کارفرما : | I13: 0 | J13: معاف | K13: مالیات متعلقه : | L13: 0
G14: عیدی : | I14: 0 | J14: به میزان 1/6 | K14: مالیات اقلام مقطوع : | L14: 0 | T14: موارد آبی رنگ تکمیل شود
G15: سنوات : | I15: 0 | J15: معاف | K15: مجموع مالیات | L15: =SUM(L13:M14) -> 0
G16: هزینه حسابداری و سایر مقطوعات : | I16: 0 | J16: مقطوع
G17: مجموع کل اقلام حقوق و دستمزد : | I17: =SUM(I12:I16) -> 1000000000
G18: کسر می شود اقلام معاف و مقطوع : | I18: =I15+I13+I16 -> 0
G19: معافیت موضوع ماده 84 : | I19: 0
G20: درآمد مشمول : | I20: =I17-I18-I19 -> 1000000000
G22: ماه | H22: حقوق پرداختی | I22: لیست حقوق ارائه شده | J22: وضعیت ارائه | K22: مالیات پرداخت نشده | L22: جریمه ماده 197 (%2) | N22: جریمه ماده 199 (10%)
G23: فروردین | H23: =$I$12/12 -> 83333333.33 | I23: 0 | J23: عدم ارائه | K23: =L13/12 -> 0 | L23: =IF(OR(J23=$BG$26,J23=$BG$27),MAX((I23*2%)+(H23-I23)*2%,0),MAX((H23-I23)*2%,0)) -> 1666666.667 | N23: =K23*10% -> 0
G24: اردیبهشت | H24: 83333333.33 | I24: 0 | J24: عدم ارائه | K24: =$L$13/12 -> 0 | L24: 1666666.667 | N24: =K24*10% -> 0 | U24: جمع معاملات ارائه شده ( در موعد مقرر ) | AD24: =SUMIFS(N23:N25,#REF!,OR(#REF!=K5,#REF!=K5+1)) -> 
G25: خرداد | H25: 83333333.33 | I25: 0 | J25: عدم ارائه | K25: 0 | L25: 1666666.667 | N25: =K25*10% -> 0 | BF25: 2 | BG25: ارائه | BH25: حسن حامدی
G26: تیر | H26: 83333333.33 | I26: 0 | J26: عدم ارائه | K26: 0 | L26: 1666666.667 | N26: 0 | BF26: 4 | BG26: عدم ارائه | BH26: محمد پایدار
G27: مرداد | H27: 83333333.33 | I27: 0 | J27: عدم ارائه | K27: 0 | L27: 1666666.667 | N27: 0 | BG27: تاخیر در ارائه | BH27: طاهر کریمی
G28: شهریور | H28: 83333333.33 | I28: 0 | J28: عدم ارائه | K28: 0 | L28: 1666666.667 | N28: 0 | BH28: یاسر ناظمی
B29: Y09144553185n%%%L | G29: مهر | H29: 83333333.33 | I29: 0 | J29: عدم ارائه | K29: 0 | L29: 1666666.667 | N29: 0 | BH29: =BH25 -> حسن حامدی
G30: آبان | H30: 83333333.33 | I30: 0 | J30: عدم ارائه | K30: 0 | L30: 1666666.667 | N30: 0
G31: آذر | H31: 83333333.33 | I31: 0 | J31: عدم ارائه | K31: 0 | L31: =IF(OR(J31=$BG$26,J31=$BG$27),MAX((I31*2%)+(H31-I31)*2%,0),MAX((H31-I31)*2%,0)) -> 1666666.667 | N31: 0
G32: دی | H32: 83333333.33 | I32: 0 | J32: عدم ارائه | K32: 0 | L32: =IF(OR(J32=$BG$26,J32=$BG$27),MAX((I32*2%)+(H32-I32)*2%,0),MAX((H32-I32)*2%,0)) -> 1666666.667 | N32: 0
G33: بهمن | H33: 83333333.33 | I33: 0 | J33: عدم ارائه | K33: 0 | L33: =IF(OR(J33=$BG$26,J33=$BG$27),MAX((I33*2%)+(H33-I33)*2%,0),MAX((H33-I33)*2%,0)) -> 1666666.667 | N33: 0
G34: اسفند | H34: 83333333.33 | I34: 0 | J34: عدم ارائه | K34: 0 | L34: =IF(OR(J34=$BG$26,J34=$BG$27),MAX((I34*2%)+(H34-I34)*2%,0),MAX((H34-I34)*2%,0)) -> 1666666.667 | N34: 0
G35: پاداش و عیدی | H35: 0 | I35: 0 | J35: عدم ارائه | L35: =IF(OR(J35=$BG$26,J35=$BG$27),MAX((I35*2%)+(H35-I35)*2%,0),MAX((H35-I35)*2%,0)) -> 0 | N35: 0
G36: مجموع | H36: =SUM(H23:H35) -> 1000000000 | I36: =SUM(I23:I35) -> 0 | L36: =SUM(L23:M35) -> 20000000 | N36: =SUM(N23:O35) -> 0
G38: لیست حقوق ارائه شده در موعد مقرر | I38: =SUMIF(J23:J35,BG25,I23:I35) -> 0 | K38: ماخذ محاسبه مالیات | M38: =H36 -> 1000000000
G39: لیست حقوق ارائه شده خارج از موعد مقرر | I39: =SUMIF(J23:J35,BG26,I23:I35)+SUMIF(J23:J35,BG27,I23:I35) -> 0 | K39: مالیات متعلقه | M39: =K36 -> 0
G40: لیست حقوق ارائه نشده | I40: =H36-I36 -> 1000000000 | K40: جریمه موضوع ماده 197 | M40: =L36 -> 20000000
K41: جریمه موضوع ماده 199 | M41: =SUM(N36,M42) -> 0
K42: جریمه 2/5% ماده 199 | M42: 0
K43: جمع بدهی مالیاتی | M43: =SUM(M39:N42) -> 20000000
BE44: =M42 -> 0
G45: توضیحات : با توجه به عدم وجود مستندات در مورد لیست حقوق و صرفا بر اساس ابرازی مودی در اظهارنامه عملکرد ماخذ برای کل سال عینا اعمال می گردد
G51: مهر و امضا حسابرس ارشد مالیاتی | J51: مهر و امضا رئیس گروه مالیاتی | M51: مهر و امضا تایید کننده نهایی
G52: ='1'!F65 -> یاسر ناظمی | J52: ='1'!J65 -> علی بخشی | M52: ='1'!O65 -> حسن حامدی
F53: Designesd By Yaser Nazemi | BP53: day | BQ53: mounth | BR53: year | BS53: رسیدگی کننده | BT53: مسئول رسیدگی | BU53: وضعیت ارائه | BV53: ایزن | BW53: نوع شخص
BP54: 01 | BQ54: 01 | BR54: 1391 | BS54: محمد پایدار | BT54: حسن حامدی | BU54: ارائه | BV54: / | BW54: حقیقی
Y55: day | Z55: mounth | AA55: year | AB55: رسیدگی کننده | AC55: مسئول رسیدگی | AD55: وضعیت ارائه | AE55: ایزن | AF55: نوع شخص | BP55: 02 | BQ55: 02 | BR55: 1392 | BS55: لیلا مجد | BT55: علی بخشی | BU55: عدم ارائه | BW55: حقوقی
Y56: 09 | Z56: 09 | BP56: 03 | BQ56: 03 | BR56: 1393 | BS56: یاسر ناظمی | BT56: حسین صالحی
Y57: 10 | Z57: 10 | BP57: 04 | BQ57: 04 | BR57: 1394 | BS57: محمد احدی
Y58: 11 | Z58: 11 | BP58: 05 | BQ58: 05 | BR58: 1395 | BS58: مهدی سعیدی
Y59: 12 | Z59: 12 | BP59: 06 | BQ59: 06 | BR59: 1396
Y60: 13 | BP60: 07 | BQ60: 07 | BR60: 1397
Y61: 14 | BP61: 08 | BQ61: 08 | BR61: 1398
Y62: 15 | BP62: 09 | BQ62: 09
Y63: 16 | BP63: 10 | BQ63: 10
Y64: 17 | BP64: 11 | BQ64: 11
Y65: 18 | BP65: 12 | BQ65: 12
Y66: 19 | BP66: 13
Y67: 20 | BP67: 14
Y68: 21 | BP68: 15
Y69: 22 | BP69: 16
Y70: 23 | BP70: 17
Y71: 24 | BP71: 18
Y72: 25 | BP72: 19
Y73: 26 | BP73: 20
Y74: 27 | BP74: 21
Y75: 28 | BP75: 22
Y76: 29 | BP76: 23
Y77: 30 | BP77: 24
Y78: 31 | BP78: 25
BP79: 26
BP80: 27
BP81: 28
BP82: 29
BP83: 30
BP84: 31

Sheet 16
C2: صفحه اصلی | S2: کاربرگ حقوق | Y2: برگ قطعی
K4: برگ تشخیص مالیات | U4: شماره : | W4: 4777
L5: موضوع ماده 90 قانون مالیات های مستقیم | U5: تاریخ : | W5: =O11 -> 1403/10/03
M6: سال عملکرد : | O6: ='15'!K5 -> 1403
D7: اداره کل امور مالیاتی | H7: ='1'!E63 -> اردبيل | J7: اداره امور مالیاتی | M7: ='1'!I63 -> 610400 | R7: گروه مالیاتی : | T7: =M7 -> 610400 | V7: شماره پرونده | Y7: 0
D8: آدرس : | F8: استان اردبيل شهرستان گرمي شهرگرمی خیابان معلم | V8: واحد مالیاتی | Y8: ='1'!J63 -> 0
D9: شناسه مؤدی : | G9: ='1'!I9 -> 16218196470001 | K9: مشخصات مؤدی : | N9: ='1'!I7 -> یاسر ناظمی | T9: نوع فعالیت : | W9: ='1'!G11 -> دندانپزشکی
D10: آدرس : | F10: ='1'!H33 -> مرکزی شهرک آیت الله کاشانی کوچه ((احد اصولی)) کوچه شهیدنجف کوشش پلاک 0 طبقه همکف | U10: تلفن : | V10: ='1'!O11 -> 9127212385
E11: براساس گزارش شماره | I11: ='15'!N4 -> 4775 | M11: مورخ | O11: ='15'!N5 -> 1403/10/03 | U11: عدم پرداخت ماليات درموعد مقرر
E12: ماليات حقوق و جرايم متعلقه از تاريخ | J12: 1402/01/01 | M12: لغایت | O12: 1402/12/29 | R12: به دليل | U12: پرداخت ماليات كمتر از ميزان واقعي
E13: به شرح ذیل گزارش می گردد :
A14: در صورت تکمیل صفحات قبل فقط موارد قرمز رنگ تغییر شود | E14: شرح | P14: مبلغ ( ریال)
E15: مأخذ محاسبه مالیات | P15: ='15'!M38 -> 1000000000
E16: مالیات حقوق و دستمزد | P16: ='15'!M39 -> 0
E17: اضافه می شود جریمه موضوع ماده 197 ق.م.م | P17: ='15'!M40 -> 20000000
E18: اضافه می شود جریمه موضوع ماده 199 ق.م.م | P18: ='15'!M41 -> 0
E19: اضافه می شود جریمه تأخیر در پرداخت (تا تاریخ تحریر گزارش) | P19: ='15'!M42 -> 0
E20: جمع کل بدهی مالیات و جریمه حقوق و دستمزد | P20: =SUM(P16:Z19) -> 20000000
E21: کسر می شود مالیات پرداخت شده | P21: 0
E22: مانده کل بدهی مالیات و جریمه حقوق و دستمزد | P22: =P20-P21 -> 20000000
E23: * لازم به توضیح است، جریمه 2.5% تأخیر در پرداخت مالیات در ماه، تا تاریخ درج شده در گزارش محاسبه گردیده و مابقی در زمان تسویه محاسبه خواهد شد.
W25: مهر و امضا
D26: مؤدی | E26: اینجانب، نام | M26: نام خانوادگی | V26: در تاریخ
E27: این برگ را رویت و دریافت نمودم.
W28: امضاء
E29: اينجانب : نام | M29: نام خانوادگي : | R29: كه نسبت به مودي سمت | Y29: را دارم درتاريخ
I30: اين برگ را رويت نموده وتعهد مينمايم كه به مودي برسانم .
W31: امضاء
D32: مأمور ابلاغ
E33: اینجانب، نام | M33: نام خانوادگی | V33: در تاریخ
E34: تایید می نمایم این برگ را در | J34: ⃝ | K34: محل سکونت مؤدی | O34: ⃝ | P34: محل کار مؤدی به نشانی مندرج در این برگ به نام
E35: نام خانوادگی | J35: که به مؤدی سمت / نسبت | R35: را دارد ابلاغ نمودم.
W36: امضاء
E37: به علت | F37: ⃝ | G37: عدم حضور | I37: ⃝ | J37: استنکاف مؤدی / بستگان مؤدی این برگ به درب محل سکونت / محل کار مؤدی به نشانی فوق الذکر الصاق گردید.
W38: امضاء
D39: مخصوص مامورپست | E39: اینجانب، نام | M39: نام خانوادگی | V39: در تاریخ
E40: تایید می نمایم این برگ را در | J40: ⃝ | K40: محل سکونت مؤدی | O40: ⃝ | P40: محل کار مؤدی به نشانی مندرج در این برگ به نام
E41: نام خانوادگی | J41: که به مؤدی سمت / نسبت | R41: را دارد ابلاغ نمودم.
W42: امضاء
E43: به علت | F43: ⃝ | G43: عدم حضور | I43: ⃝ | J43: استنکاف مؤدی / بستگان مؤدی این برگ به درب محل سکونت / محل کار مؤدی به نشانی فوق الذکر الصاق گردید
E44: و پانزده روز پس از اين تاريخ كه برابر است با | N44: مجددا مراجعه خواهد شد.
W45: امضاء
D47: ماده 238 در مواردی که برگ تشخیص مالیات صادر و به مودی ابلاغ میشود چنانچه مودی نسبت به آن معترض باشد میتواند ظرف سی روز از تاریخ ابلاغ شخصاً یا به وسیله وکیل تام الاختیار خود به اداره امور مالیاتی مراجعه و با ارقه دلایل و استاد و مدارک کتباً تقاضای رسیدگی مجدد نماید مسئول مربوط موظف است پس از ثبت درخواست مودی در دفتر مربوط و ظرف مهلتی که بیش از سی روز از تاریخ مراجعه نباشد به موضوع رسیدگی و درصورتی که دلایل و استاد و مدارک ابراز شده و برای رد مندرجات برگ تشخیص کافی دانست آن را رد و مراتب را ظهر برگ تشخیص درج و امضا نماید و در صورتی که دلایل و استاد و مدارک ابرازی را موثر در تعدیل درآمد تشخیص دهد و نظر او مورد قبول مودی قرار گیرد مراتب ظهر برگ تشخیص مستعکس و به امضای مسئول مربوط و مودی خواهد رسید و هرگاه دلایل و اسناد و مدارک برازی مودی را برای رد برگ تشخیص یا تعدیل درآمد موثر تشخیص ندهد باید مراتب را مستدلاً در ظهر برگ تشخیص متعکس و پرونده امر را برای رسیدگی به هیات حل اختلاف ارجاع نماید. ماده 239 - در صورتی که مودی ظرف سی روز از تاریخ ابلاغ برگ تشخیص مالیات قبولی خود را نسبت به آن کتباً اعلام کند یا مالیات مورد مطالبه را به ماخذ برگ تشخیص پرداخت یا ترتیب پرداخت آن را بدهد یا اختلاف موجود بین خود و اداره امورمالیاتی را بشرح ماده 238 این قانون رفع نماید پرونده امر از لحاظ میزان درآمد مشمول مالیات مختومه تلقی میگردد و در مواردی که مودی ظرف سی روز کتباً اعتراض ننماید و یا در مهلت مقرر در ماده مذکور به اداره امور مالیاتی مربوط مراجعه نکند درآمد تعیین شده در برگ تشخیص مالیات قطعی است. تبصره در مواردی که برگ تشخیص مالیات طبق مقررات تبصره ماده (203) و ماده (208) این قانون ابلاغ شده باشد و مودی به شرح مقررات این ماده اقدام نکرده باشد در حکم معترض به برگ تشخیص مالیات شناخته میشود در این صورت و همچنین در مواردی که مودی ظرف مهلت سی روز از تاریخ ابلاغ کتباً به برگ تشخیص اعتراض کند پرونده امر برای رسیدگی به هیات حل اختلاف مالیاتی ارجاع می گردد.
D58: نظر مسئول مربوط
D61: خانم/ آقای شرکت مودی مالیاتی وکیل مودی در تاریخ به اینجانب مراجعه و با ملاحظه | V61: نام و نام خانوادگی مسئول مربوط
D62: مدارک ارائه شده ضمیمه و اظهارات مشاراليه بشرح زیر:
V63: نام و نام خانوادگی مودی مالیاتی وکیل مودی
D65: پرونده متشکله بررسی و بشرح زیر اظهار نظر میشود
V66: امضاء
V68: امضاء
D72: نظر مسئول مربوط بشرح فوق مورد قبول اینجانب از
I80: صفحه دوم وقت نداشتم تکمیل کنم اگه تکمیل کردین به منم بفرستین

Sheet 17
D1: صفحه اصلی | AH1: کاربرگ حقوق | AN1: برگ تشخیص حقوق
AG3: کد 6001021 - 85/8 - 500ج
E4: جمهوري اسلامي ايران | T4: برگ ماليات قطعی
E5: وزارت اموراقتصادي و دارائي | AL5: شماره : | AN5: 1233
E6: سازمان امور مالياتي كشور | X6: سال عملکرد | AA6: ='15'!K5 -> 1403 | AL6: تاريخ : | AN6: 1402/08/26
E8: اداره كل امور مالياتي استان : | R8: ='1'!E63 -> اردبيل | Y8: اداره امورمالياتي : | AD8: ='1'!I63 -> 610400 | AJ8: واحد مالياتي : | AN8: =AD8 -> 610400
E9: آدرس : | I9: ='16'!F8 -> استان اردبيل شهرستان گرمي شهرگرمی خیابان معلم | Z9: تلفن : | AC9: 045-32622007 | AJ9: شماره پرونده : | AN9: -
E10: نام شخص حقيقي / حقوقی : | P10: ='1'!I7 -> یاسر ناظمی | AB10: شماره | AH10: تاريخ | AK10: حوزه | AN10: محل
AB11: شناسنامه / ملي / ثبت | AH11: صدور/ ثبت | AK11: صدور/ ثبت | AN11: صدور/ثبت
E12: منبع مالیاتی : | L12: حقوق | R12: شهرت کسبی : | U12: ='1'!G11 -> دندانپزشکی | AB12: ='1'!I9 -> 16218196470001
E14: آدرس : | G14: اقامتگاه قانونی یا محل کار : | O14: ='1'!H33 -> مرکزی شهرک آیت الله کاشانی کوچه ((احد اصولی)) کوچه شهیدنجف کوشش پلاک 0 طبقه همکف | AD14: تلفن : | AE14: ='1'!O11 -> 9127212385 | AJ14: شماره پستی : | AN14: ='1'!G33 -> 5618694316
G16: محل سکونت : | N16: ='1'!H33 -> مرکزی شهرک آیت الله کاشانی کوچه ((احد اصولی)) کوچه شهیدنجف کوشش پلاک 0 طبقه همکف | AD16: تلفن : | AE16: =AE14 -> 9127212385 | AJ16: شماره پستی : | AN16: ='1'!G33 -> 5618694316
AD18: شماره شناسایی :
E20: مالیات | H20: حقوق | P20: عملکرد سال | S20: =AA6 -> 1403 | W20: بموجب برگ تشخیص شماره | AD20: ='16'!W4 -> 4777 | AJ20: مورخ | AL20: ='16'!W5 -> 1403/10/03
E21: که در تاریخ | I21: 1402/08/29 | R21: ابلاغ گردیده به شرح زیر قطعی شده است .
E22: ماخذ محاسبه مالیات قبل از کسر معافیت : | Q22: 0 | V22: ریال معافيت مالياتي | AA22: 0 | AE22: ریال،مانده مشمول ماليات | AK22: =Q22-AB22 -> 0 | AQ22: ریال
E24: شرح | AI24: مبلغ ( ريال )
B26: در صورت تکمیل مراحل قبل فقط موارد قرمز رنگ تغییر داده شود | E26: مالیات : | AI26: 0
E27: یک در هزار موضوع تبصره 2 ماده 186 | AI27: 0
E28: کسر میشود : 1- پرداختی تا تاریخ | P28: 1402/01/01 | U28: بموجب | V28: - | AA28: فقره رسید مالیاتی | AE28: - | AI28: 0
E29: -2 | F29: جایزه خوش حسابی موضوع مواد 166 و 189 و 190 قانون مالیاتهای مستقیم | AI29: 0
E30: جمع کسورات : | AI30: =SUM(AI28:AQ29) -> 0
E31: باقیمانده | AI31: =AI26+AI27-AI30 -> 0
E32: اضافه می شود : جریمه موضوع مواد | Q32: 197 | X32: قانون مالیاتهای مستقیم تا تاریخ | AI32: 0
E33: اضافه می شود : جریمه موضوع مواد | Q33: 197 | X33: قانون مالیاتهای مستقیم تا تاریخ | AI33: 0
E34: اضافه می شود : جریمه موضوع مواد | Q34: 199 | X34: قانون مالیاتهای مستقیم تا تاریخ | AI34: 0
E35: جمع بدهی | AI35: =SUM(AI31:AQ34) -> 0
E36: خواهشمند است حداکثر ظرف ده روز از تاریخ ابلاغ این برگ با مراجعه به اداره امور مالیاتی نسبت به پرداخت ، یا ترتیب پرداخت مبلغ | AJ36: =AI35 -> 0 | AQ36: ریال
E37: (بحروف) | I37: 0 | AH37: ریال اقدام فرمائید .
E38: درغیر اینصورت به استناد ماده 210 قانون مالیاتهای مستقیم اقدام به صدور برگ اجرائی خواهد شد .
E39: كارشناس ارشد مالياتي | T39: نام ونام خانوادگي : | AH39: مهر و امضاء
E42: مخصوص مودي
H43: اينجانب : نام | T43: نام خانوادگي : | AB43: درتاريخ | AI43: اين برگ رارويت نمودم .
AM45: امضاء
H46: اينجانب : نام | T46: نام خانوادگي : | AB46: كه نسبت به مودي سمت | AJ46: را دارم درتاريخ
H47: اين برگ را رويت نموده وتعهد مينمايم كه به مودي برسانم . | AD47: امضاء
E48: مخصوص مامورابلاغ
H49: اينجانب : نام | P49: نام خانوادگي : | X49: تاييد مينمايم كه اين برگ درتاريخ | AG49: درمحل سكونت | AM49: محل كار
H51: مودي به نشاني مندرج در اين برگ ابلاغ و امضاءنام | Y51: نام خانوادگي | AH51: راگواهي مينمايم . | AM51: امضاء
H53: به علت (عدم حضور | P53: استنكاف | T53: ( | U53: مودي | X53: بستگان و مستخدمين مودي | AF53: اين برگ درتاريخ | AO53: به درب
H55: محل سكونت | O55: محل كار | S55: مودي به نشاني مندرج در اين برگ الصاق گرديد. | AH55: امضاء
E57: مخصوص مامورپست
H58: اينجانب : نام | P58: نام خانوادگي : | X58: تاييد مينمايم كه اين برگ درتاريخ | AH58: درمحل سكونت | AM58: محل كار
H61: مودي به نشاني مندرج در اين برگ ابلاغ و امضاء نام | X61: نام خانوادگي | AH61: راگواهي مينمايم . | AM61: امضاء
H63: به علت (عدم حضور مودي يا بستگان و مستخدمين وي )اين برگ درتاريخ | AB63: به درب محل سكونت | AI63: محل كار | AN63: مودي به نشانی
H65: مندرج در اين برگ الصاق و پانزده روز پس از اين تاريخ كه برابر است با | AD65: مجددا"مراجعه خواهد شد. امضاء
H67: به علت (عدم حضور | P67: استنكاف | T67: ( | U67: مودي | X67: بستگان و مستخدمين مودي | AF67: اين برگ درتاريخ | AO67: به درب
H69: محل سكونت | O69: محل كار | S69: مودي به نشاني مندرج در اين برگ الصاق گرديد. | AH69: امضاء

Sheet LM
A1: صفحه اصلی | D1: راهنما | E1: راهنما | F1: راهنما | G1: پس از دانلود لیست اظهارنامه ها از کد اقتصادی و تبدیل به شماره یا CINVERT TO NUMBER روی سلول زرد PASTE کنید ( تو گوگل سرچ کنید میاره روالش ساده است بعد از انتخاب همه اقلام دانلود شده از کد اقتصادی یه علامت شبیه علامت احتیاط میاد اون میزنین و سپس convert to number انتخاب میکنید سپس اینجا paste می کنید)
A2: 1 | B2: 2 | C2: 3 | D2: 4 | E2: 5 | F2: 6 | G2: 7 | H2: 8 | I2: 9 | J2: 10 | K2: 11 | L2: 12 | M2: 13 | N2: 14 | O2: 15 | P2: 16 | Q2: 17 | R2: 18 | S2: 19 | T2: 20 | U2: 21 | V2: 22 | W2: 23 | X2: 24 | Y2: 25 | Z2: 26 | AA2: 27 | AB2: 28 | AC2: 29 | AD2: 30 | AE2: 31
A3: کد رهگیری اظهارنامه | B3: سال عملکرد | C3: حوزه | D3: انفرادي/مشارکتي | E3: تاريخ ارسال | F3: کدرهگيري ثبت نام | G3: تبصره ماده 100 | H3: گروه مشموليت | I3: شماره ملي | J3: نام | K3: پرونده TIN | L3: مؤدي TIN | M3: نوع | N3: نام شغل / فعاليت | O3: کد پستي اقامتگاه قانوني | P3: آدرس اقامتگاه قانوني | Q3: شماره تلفن همراه | R3: درآمدهاي عملياتي گروه اول | S3: فروش کالا گروه دوم و سوم | T3: درآمد حاصل از ارائه خدمات گروه دوم و سوم | U3: سود/زيان ويژه | V3: درآمد مشمول ماليات قبل از کسر معافيت ماده 101 | W3: معافيت ماده 101 | X3: درآمد مشمول ماليات بعد از کسر معافيت ماده 101 | Y3: درآمد مشمول ماليات خالص | Z3: ماليات | AA3: موضوع جزء 2 بند ق تبصره 6 قانون بودجه سال 1400 کل کشور | AB3: ماليات قابل پرداخت/خالص ماليات متعلقه | AC3: پرداخت هاي انجام شده درج شده در اظهارنامه | AD3: مانده ماليات قابل پرداخت | AE3: بارگذاری شده در
A4: 3247124679 | B4: 1402 | C4: 610400 | D4: انفرادی | E4: 1402/02/29 | F4: 2237165935 | G4: خیر | H4: گروه سوم | I4: 1621819647 | J4: یاسر ناظمی | K4: 16218196470001 | L4: 16603084530001 | M4: اصلی | N4: میوه فروشی خرد | O4: 5618694316 | P4: مرکزی شهرک آیت الله کاشانی کوچه ((احد اصولی)) کوچه شهیدنجف کوشش پلاک 0 طبقه همکف | Q4: 9127212385 | S4: 0 | T4: 0 | U4: 0 | V4: 0 | W4: 0 | X4: 0 | Y4: 0 | Z4: 0 | AA4: 0 | AB4: 0 | AC4: 0 | AD4: 0 | AE4: سنیم
A5: 3278828353 | B5: 1402 | C5: 619900 | D5: انفرادی | E5: 1402/03/17 | F5: 3063368332 | G5: خیر | H5: گروه سوم | I5: 1621819647 | J5: یاسر ناظمی | K5: 16218196470001 | L5: 51985448170001 | M5: اصلی | N5: کشاورزی | O5: 5691914359 | P5: مرکزی میرهاشم بلوار جانبازان کوچه (مسجد امام حسن عسگری) پلاک 0 طبقه همکف | Q5: 9127212385 | S5: 0 | T5: 0 | U5: 0 | V5: 0 | W5: 0 | X5: 0 | Y5: 0 | Z5: 0 | AA5: 0 | AB5: 0 | AC5: 0 | AD5: 0 | AE5: سنیم

Sheet LS
A1: صفحه اصلی | D1: راهنما | E1: راهنما | F1: راهنما | G1: پس از دانلود لیست اظهارنامه ها از کد اقتصادی و تبدیل به شماره یا CINVERT TO NUMBER روی سلول زرد PASTE کنید ( تو گوگل سرچ کنید میاره روالش ساده است بعد از انتخاب همه اقلام دانلود شده از کد اقتصادی یه علامت شبیه علامت احتیاط میاد اون میزنین و سپس convert to number انتخاب میکنید سپس اینجا paste می کنید)
A2: 1 | B2: 2 | C2: 3 | D2: 4 | E2: 5 | F2: 6 | G2: 7 | H2: 8 | I2: 9 | J2: 10 | K2: 11 | L2: 12 | M2: 13 | N2: 14 | O2: 15 | P2: 16 | Q2: 17 | R2: 18 | S2: 19 | T2: 20 | U2: 21 | V2: 22 | W2: 23 | X2: 24 | Y2: 25 | Z2: 26 | AA2: 27 | AB2: 28 | AC2: 29 | AD2: 30 | AE2: 31
A3: شناسه ملی | B3: نام شخص حقوقی | C3: سال عملکرد | D3: کد رهگیری اظهارنامه | E3: تاریخ ارسال | F3: نوع اظهارنامه | G3: کد رهگیری پیش ثبت نام | H3: کد رهگیری اظهارنامه اصلی | I3: از تاریخ | J3: تا تاریخ | K3: کد اداره کل | L3: نام اداره کل | M3: کد حوزه | N3: شماره کلاسه | O3: نوع ماهیت شخص حقوقی | P3: نوع شخص حقوقی | Q3: درآمد مشمول مالیات ناخالص | R3: سهم اتاق بازرگانی | S3: خالص درآمد مشمول مالیات ابرازی | T3: مالیات متعلقه به نرخ ماده 105 | U3: بخشودگی های مالیاتی | V3: معافیت های مالیاتی | W3: تخفیف تبصره 7 ماده 105 | X3: بند (ق) تبصره (6) قانون بودجه 1400 | Y3: مالیات قابل پرداخت | Z3: پرداخت های انجام شده | AA3: مانده مالیات قابل پرداخت | AB3: فروش خالص | AC3: درآمد ناخالص پیمانکاری و ارائه خدمات | AD3: سود زیان ناشی از فروش سایر دارایی ها | AE3: سود زیان قبل از کسر مالیات (ویژه) | AF3: هزینه حقوق، دستمزد و مزایا | AG3: مبلغ حقوق و دستمزد | AH3: معافیت ماده 132 | AI3: بارگذاری در | AJ3: اداره بارگذاری | AK3: موعد قانونی | AL3: سال مالی
A4: 14012860130 | B4: تجارت شهریار گستر سبلان | C4: 1402 | D4: 3652373625 | E4: 1403/03/07 | F4: اصلی | G4: 3266343229 | I4: 1402/09/23 | J4: 1402/12/29 | K4: 61 | L4: اردبيل | M4: 610000 | N4: - | O4: شرکت | P4: شرکت با مسئولیت محدود | Q4: 0 | R4: 0 | S4: 0 | T4: 0 | W4: 0 | Y4: 0 | AA4: 0 | AB4: 0 | AC4: 0 | AE4: 0 | AG4: 0 | AH4: 0 | AI4: سنیم | AJ4: 2807 | AK4: در موعد | AL4: میانسالی

Sheet 18
D2: یاسر ناظمی | E2: 09127212385 | G2: کاربرگ محاسباتی مستغلات | I2: برگ تشخیص دستی | K2: اداره کل امور مالیاتی استان اردبیل | L2: مکرو را حتما فعال کنید
D4: بر اساس ضوابط اجرائی شهر مورد نظر موارد آبی رنگ تغییر داده شود
D5: متراژ تا | G5: 30 | H5: معادل | I5: 1 | K5: ارزش اجاری املاک تجاری
D6: بیشتر از | G6: =G5 -> 30 | H6: معادل | I6: 0.7 | K6: ارزش اجاری املاک تجاری
D7: بیشتر از | G7: 60 | H7: معادل | I7: 0.5 | K7: ارزش اجاری املاک تجاری
D8: پارکینگ، انباری،بالکن، زیرزمین و ... | G8: معادل | H8: 0.3 | K8: ارزش اجاری املاک تجاری (بدون رعایت تعدیلات)
D9: صاحب عین ملک بدون داشتن حق سرقفلی | H9: 0.05 | K9: ارزش اجاری املاک تجاری
D10: مبلغ پرداختی به مالک در اجاره دست دوم معادل | H10: 0.05 | K10: ارزش اجاری
D11: ازای یک طبقه بالاتر یا پایین تر از همکف | H11: 0.25 | K11: از ارزش اجاری کم می شود
D12: ازای دو طبقه بالاتر یا پایین تر از همکف | H12: 0.35 | K12: از ارزش اجاری کم می شود
D13: به ازای سه طبقه و بیشتر بالاتر یا پایین تر از همکف | H13: 0.45 | K13: از ارزش اجاری کم می شود
D17: متراژ معیار یا مبنای خیابان | H17: 14
D18: درصد افزایش به ازای هر متر از متراژ مبنا | H18: 5 | J18: حداقل متراژ خیابان | L18: حداکثر متراژ خیابان
D19: درصدکاهش به ازای هر متر از متراژ مبنا | H19: 3 | J19: 6 | L19: 30
D22: سال عملکرد >>>> | E22: 1399 | F22: 1400 | G22: 1401 | H22: 1402 | I22: 1403 | J22: 1404 | K22: 1405 | L22: 1406 | M22: 1407
D23: شماره بلوک | E23: ارزش اجاری | F23: ارزش اجاری | G23: ارزش اجاری | H23: ارزش اجاری | I23: ارزش اجاری | J23: ارزش اجاری | K23: ارزش اجاری | L23: ارزش اجاری | M23: ارزش اجاری
D24: 1 | E24: 1000 | F24: 2000 | G24: 3000 | H24: 4000 | I24: 5000 | J24: 6000 | K24: 7000 | L24: 0 | M24: 0
D25: 2 | E25: 1001 | F25: 2001 | G25: 3001 | H25: 4001 | I25: 5001 | J25: 6001 | K25: 7001 | L25: 0 | M25: 0
D26: 3 | E26: 1002 | F26: 2002 | G26: 3002 | H26: 4002 | I26: 5002 | J26: 6002 | K26: 7002 | L26: 0 | M26: 0
D27: 4 | E27: 1003 | F27: 2003 | G27: 3003 | H27: 4003 | I27: 5003 | J27: 6003 | K27: 7003 | L27: 0 | M27: 0
D28: 5 | E28: 1004 | F28: 2004 | G28: 3004 | H28: 4004 | I28: 5004 | J28: 6004 | K28: 7004 | L28: 0 | M28: 0
D29: 6 | L29: 0 | M29: 0
D30: 7
D31: 8
D32: 9
D33: 10
D34: 11
D35: 12
D36: 13
D37: 14
D38: 15
D39: 16
D40: 17
D41: 18
D42: 19
D43: 20
D44: 21
D45: 22
D46: 23
D47: 24
D48: 25
D49: 26
D50: 27 | AP50: day | AQ50: mounth | AR50: year | AS50: رسیدگی کننده | AT50: مسئول رسیدگی | AU50: وضعیت ارائه | AV50: ایزن | AW50: نوع شخص
D51: 28 | AP51: 1 | AQ51: 1 | AR51: 1391 | AS51: محمد پایدار | AT51: حسن حامدی | AU51: ارائه | AV51: / | AW51: حقیقی
D52: 29 | AP52: 2 | AQ52: 2 | AR52: 1392 | AS52: لیلا مجد | AT52: علی بخشی | AU52: عدم ارائه | AW52: حقوقی
D53: 30 | AP53: 3 | AQ53: 3 | AR53: 1393 | AS53: یاسر ناظمی | AT53: حسین صالحی
D54: 31 | AP54: 4 | AQ54: 4 | AR54: 1394 | AS54: محمد احدی
D55: 32 | AP55: 5 | AQ55: 5 | AR55: 1395 | AS55: مهدی سعیدی
D56: 33 | AP56: 6 | AQ56: 6 | AR56: 1396
D57: 34 | AP57: 7 | AQ57: 7
D58: 35 | AP58: 8 | AQ58: 8
D59: 36 | AP59: 9 | AQ59: 9
D60: 37 | AP60: 10 | AQ60: 10
D61: 38 | AP61: 11 | AQ61: 11
D62: 39 | AP62: 12 | AQ62: 12
D63: 40 | AP63: 13
D64: 41 | AP64: 14
D65: 42 | AP65: 15
D66: 43 | AP66: 16
D67: 44 | AP67: 17
D68: 45 | AP68: 18
D69: 46 | AP69: 19
D70: 47 | AP70: 20
D71: 48 | AP71: 21
D72: 49 | AP72: 22
D73: 50 | AP73: 23
D74: 51 | AP74: 24
D75: 52 | AP75: 25
D76: 53 | AP76: 26
D77: 54 | AP77: 27
D78: 55 | AP78: 28
D79: 56 | AP79: 29
D80: 57 | AP80: 30
D81: 58 | AP81: 31
D82: 59
D83: 60
D84: 61
D85: 62
D86: 63
D87: 64
D88: 65
D89: 66
D90: 67
D91: 68
D92: 69
D93: 70
D94: 71
D95: 72
D96: 73
D97: 74
D98: 75
D99: 76
D100: 77
D101: 78
D102: 79
D103: 80
D104: 81
D105: 82
D106: 83
D107: 84
D108: 85
D109: 86
D110: 87
D111: 88
D112: 89
D113: 90
D114: 91
D115: 92
D116: 93
D117: 94
D118: 95
D119: 96
D120: 97
D121: 98
D122: 99
D123: 100
D124: 101
D125: 102
D126: 103
D127: 104
D128: 105
D129: 106
D130: 107
D131: 108
D132: 109
D133: 110
D134: 111
D135: 112
D136: 113
D137: 114
D138: 115
D139: 116
D140: 117
D141: 118
D142: 119
D143: 120
D144: 121
D145: 122
D146: 123
D147: 124
D148: 125
D149: 126
D150: 127
D151: 128
D152: 129
D153: 130
D154: 131
D155: 132
D156: 133
D157: 134
D158: 135
D159: 136
D160: 137
D161: 138
D162: 139
D163: 140
D164: 141
D165: 142
D166: 143
D167: 144
D168: 145
D169: 146
D170: 147
D171: 148
D172: 149
D173: 150
D174: 151
D175: 152
D176: 153
D177: 154
D178: 155
D179: 156
D180: 157
D181: 158
D182: 159
D183: 160
D184: 161
D185: 162
D186: 163
D187: 164
D188: 165
D189: 166
D190: 167
D191: 168
D192: 169
D193: 170
D194: 171
D195: 172
D196: 173
D197: 174
D198: 175
D199: 176
D200: 177
D201: 178
D202: 179
D203: 180
D204: 181
D205: 182
D206: 183
D207: 184
... 9 more rows

Sheet 19
B2: صفحه اصلی | Q2: به دقت بر اساس دفترچه وارد و کامل تکمیل شود >> | S2: تنظیمات مستغلات | U2: برگ تشخیص دستی
B4: کاربرگ محاسبات حسابرسی شهر اردبیل
C5: F | T5: شماره و تاریخ: | U5: 3220 | V5: 1402/10/01
B7: مشخصات مؤدی | H7: نام شخص حقوقی/ نام و نام‌خانوادگی : | N7: ='1'!I7 -> یاسر ناظمی | Q7: شناسه مؤدی: | S7: ='1'!I9 -> 16218196470001 | T7: نوع شخصیت: | V7: حقیقی
B8: جزییات مورد حسابرسی | H8: اداره کل امور مالیاتی : | N8: ='1'!E63 -> اردبيل | Q8: اداره امور مالیاتی : | S8: ='1'!I63 -> 610400 | T8: عطف به کاربرگ مربوطه :
H9: نوع حسابرسی : | N9: ='1'!O25 -> اداری (پشت میزی) | Q9: سال عملکرد: | S9: 1402 | T9: دوره مالیاتی :
B10: نوع اظهارنامه : | D10: عادی | H10: منبع مالیاتی: | N10: مستغلات | Q10: شماره اظهارنامه: | T10: تاریخ اظهارنامه:
BO12: 1392
BO13: 1393
C14: تعداد مغازه | D14: متراژ مغازه | E14: متراژ خیابان | F14: شماره بلوک | G14: ارزش اجاری بر اساس متراژ مبنا | H14: ارزش اجاری هر متر | J14: طبقه | L14: پارکینگ،انباری،بالکن و ... | M14: سهم مودی (دانگ) | N14: مدت اجاره | P14: نوع مالکیت | Q14: درآمد ابرازی | R14: درآمد طبق مستندات | S14: ارزش اجاری طبق ضوابط | T14: معادل رهن ابرازی و یا اجاره ماشین الات | U14: درآمد انتخابی | V14: درآمد مشمول | BO14: 1394
C15: 1 | P15: مبلغ پرداختی به مالک | BO15: 1395
C16: 1 | D16: 10 | E16: 30 | F16: 1 | G16: =VLOOKUP(F16,'18'!$D$24:$M$216,$AT$110,0) -> 7000 | H16: =IF(E16>'18'!$H$17,G16+G16*MIN('18'!$L$19-'18'!$H$17,(E16-'18'!$H$17))*'18'!$H$18%,G16+G16*MAX('18'!$J$19-'18'!$H$17,(E16-'18'!$H$17))*'18'!$H$19%) -> 12600 | I16: 2 | J16: =IF(I16=0,$AZ$92,IF(I16=1,$AZ$94,IF(I16=2,$AZ$95,IF(I16=3,$AZ$96,IF(I16=4,$AZ$97,IF(I16=5,$AZ$98,IF(I16=6,$AZ$99,IF(I16=7,$AZ$100,$AZ$101)))))))) -> همکف | K16: 2 | L16: =IF(K16=2,"دارد","ندارد") -> دارد | M16: 6 | N16: 12 | O16: 2 | P16: =IF(O16=1,$BA$92,IF(O16=2,$BA$94,$BA$95)) -> مالکیت و سرقفلی | Q16: 0 | R16: 0 | S16: =AV89 -> 7476000 | T16: 0 | U16: =IF(AND(Q16<=(R16),S16<=(R16)),(R16),IF(Q16>=S16*80%,Q16,S16)) -> 7476000 | V16: =MAX(0,IF($P$16=$BA$95,U16,U16*75%))+IF(P16=$BA$95,T16,T16*75%) -> 5607000 | BO16: 1396
L17: 100 | N17: 0 | P17: =AV$86*$BD$97 -> 373800 | BO17: 1397
C18: 2 | D18: 30 | E18: 1 | F18: 2 | G18: =VLOOKUP(F18,'18'!$D$24:$M$216,$AT$110,0) -> 7001 | H18: =IF(E18>'18'!$H$17,G18+G18*MIN('18'!$L$19-'18'!$H$17,(E18-'18'!$H$17))*'18'!$H$18%,G18+G18*MAX('18'!$J$19-'18'!$H$17,(E18-'18'!$H$17))*'18'!$H$19%) -> 5320.76 | I18: 2 | J18: =IF(I18=0,$AZ$92,IF(I18=1,$AZ$94,IF(I18=2,$AZ$95,IF(I18=3,$AZ$96,IF(I18=4,$AZ$97,IF(I18=5,$AZ$98,IF(I18=6,$AZ$99,IF(I18=7,$AZ$100,$AZ$101)))))))) -> همکف | K18: 2 | L18: =IF(K18=2,"دارد","ندارد") -> دارد | M18: 6 | N18: 12 | O18: 2 | P18: =IF(O18=1,$BA$92,IF(O18=2,$BA$94,$BA$95)) -> مالکیت و سرقفلی | Q18: 0 | R18: 0 | S18: =AU89 -> 7880325.6 | T18: 0 | U18: =IF(AND(Q18<=(R18),S18<=(R18)),(R18),IF(Q18>=S18*80%,Q18,S18)) -> 7880325.6 | V18: =MAX(0,IF($P$18=$BA$95,U18,U18*75%))+IF(P18=$BA$95,T18,T18*75%) -> 5910244.2 | BO18: 1398
L19: 100 | N19: 0 | P19: =AU$86*$BD$97 -> 394016.28 | BO19: 1399
C20: 3 | D20: 30 | E20: 12 | F20: 3 | G20: =VLOOKUP(F20,'18'!$D$24:$M$216,$AT$110,0) -> 7002 | H20: =IF(E20>'18'!$H$17,G20+G20*MIN('18'!$L$19-'18'!$H$17,(E20-'18'!$H$17))*'18'!$H$18%,G20+G20*MAX('18'!$J$19-'18'!$H$17,(E20-'18'!$H$17))*'18'!$H$19%) -> 6581.88 | I20: 2 | J20: =IF(I20=0,$AZ$92,IF(I20=1,$AZ$94,IF(I20=2,$AZ$95,IF(I20=3,$AZ$96,IF(I20=4,$AZ$97,IF(I20=5,$AZ$98,IF(I20=6,$AZ$99,IF(I20=7,$AZ$100,$AZ$101)))))))) -> همکف | K20: 2 | L20: =IF(K20=2,"دارد","ندارد") -> دارد | M20: 6 | N20: 12 | O20: 2 | P20: =IF(O20=1,$BA$92,IF(O20=2,$BA$94,$BA$95)) -> مالکیت و سرقفلی | Q20: 0 | R20: 0 | S20: =AT89 -> 8335180.8 | T20: 0 | U20: =IF(AND(Q20<=(R20),S20<=(R20)),(R20),IF(Q20>=S20*80%,Q20,S20)) -> 8335180.8 | V20: =MAX(0,IF($P$20=$BA$95,U20,U20*75%))+IF(P20=$BA$95,T20,T20*75%) -> 6251385.6 | BO20: 1400
L21: 100 | N21: 0 | P21: =AT$86*$BD$97 -> 416759.04 | BO21: 1401
C22: 4 | D22: 30 | E22: 13 | F22: 4 | G22: =VLOOKUP(F22,'18'!$D$24:$M$216,$AT$110,0) -> 7003 | H22: =IF(E22>'18'!$H$17,G22+G22*MIN('18'!$L$19-'18'!$H$17,(E22-'18'!$H$17))*'18'!$H$18%,G22+G22*MAX('18'!$J$19-'18'!$H$17,(E22-'18'!$H$17))*'18'!$H$19%) -> 6792.91 | I22: 2 | J22: =IF(I22=0,$AZ$92,IF(I22=1,$AZ$94,IF(I22=2,$AZ$95,IF(I22=3,$AZ$96,IF(I22=4,$AZ$97,IF(I22=5,$AZ$98,IF(I22=6,$AZ$99,IF(I22=7,$AZ$100,$AZ$101)))))))) -> همکف | K22: 2 | L22: =IF(K22=2,"دارد","ندارد") -> دارد | M22: 6 | N22: 12 | O22: 2 | P22: =IF(O22=1,$BA$92,IF(O22=2,$BA$94,$BA$95)) -> مالکیت و سرقفلی | Q22: 0 | R22: 0 | S22: =AS89 -> 8412003.6 | T22: 0 | U22: =IF(AND(Q22<=(R22),S22<=(R22)),(R22),IF(Q22>=S22*80%,Q22,S22)) -> 8412003.6 | V22: =MAX(0,IF($P$22=$BA$95,U22,U22*75%))+IF(P22=$BA$95,T22,T22*75%) -> 6309002.7 | BO22: 1402
L23: 100 | N23: 0 | P23: =AS$86*$BD$97 -> 420600.18 | BO23: 1403
C24: 5 | D24: 30 | E24: 30 | F24: 5 | G24: =VLOOKUP(F24,'18'!$D$24:$M$216,$AT$110,0) -> 7004 | H24: =IF(E24>'18'!$H$17,G24+G24*MIN('18'!$L$19-'18'!$H$17,(E24-'18'!$H$17))*'18'!$H$18%,G24+G24*MAX('18'!$J$19-'18'!$H$17,(E24-'18'!$H$17))*'18'!$H$19%) -> 12607.2 | I24: 2 | J24: =IF(I24=0,$AZ$92,IF(I24=1,$AZ$94,IF(I24=2,$AZ$95,IF(I24=3,$AZ$96,IF(I24=4,$AZ$97,IF(I24=5,$AZ$98,IF(I24=6,$AZ$99,IF(I24=7,$AZ$100,$AZ$101)))))))) -> همکف | K24: 2 | L24: =IF(K24=2,"دارد","ندارد") -> دارد | M24: 6 | N24: 12 | O24: 2 | P24: =IF(O24=1,$BA$92,IF(O24=2,$BA$94,$BA$95)) -> مالکیت و سرقفلی | Q24: 0 | R24: 0 | S24: =AR89 -> 10506000 | T24: 0 | U24: =IF(AND(Q24<=(R24),S24<=(R24)),(R24),IF(Q24>=S24*80%,Q24,S24)) -> 10506000 | V24: =MAX(0,IF($P$24=$BA$95,U24,U24*75%))+IF(P24=$BA$95,T24,T24*75%) -> 7879500 | BO24: 1404
L25: 100 | N25: 0 | P25: =AR$86*$BD$97 -> 525300 | BO25: 1405
C26: 6 | D26: 30 | E26: 16 | F26: 1 | G26: =VLOOKUP(F26,'18'!$D$24:$M$216,$AT$110,0) -> 7000 | H26: =IF(E26>'18'!$H$17,G26+G26*MIN('18'!$L$19-'18'!$H$17,(E26-'18'!$H$17))*'18'!$H$18%,G26+G26*MAX('18'!$J$19-'18'!$H$17,(E26-'18'!$H$17))*'18'!$H$19%) -> 7700 | I26: 2 | J26: =IF(I26=0,$AZ$92,IF(I26=1,$AZ$94,IF(I26=2,$AZ$95,IF(I26=3,$AZ$96,IF(I26=4,$AZ$97,IF(I26=5,$AZ$98,IF(I26=6,$AZ$99,IF(I26=7,$AZ$100,$AZ$101)))))))) -> همکف | K26: 2 | L26: =IF(K26=2,"دارد","ندارد") -> دارد | M26: 6 | N26: 12 | O26: 2 | P26: =IF(O26=1,$BA$92,IF(O26=2,$BA$94,$BA$95)) -> مالکیت و سرقفلی | Q26: 0 | R26: 0 | S26: =AQ89 -> 728000 | T26: 0 | U26: =IF(AND(Q26<=(R26),S26<=(R26)),(R26),IF(Q26>=S26*80%,Q26,S26)) -> 728000 | V26: =MAX(0,IF($P$26=$BA$95,U26,U26*75%))+IF(P26=$BA$95,T26,T26*75%) -> 546000
L27: 100 | N27: 0 | P27: =AQ$86*$BD$97 -> 36400
C28: مجموع | D28: =IF($C$15=1,D16,IF($C$15=2,SUM(D16:D19),IF($C$15=3,SUM(D16:D21),IF($C$15=4,SUM(D16:D23),IF($C$15=5,SUM(D16:D25),IF($C$15=6,SUM(D16:D27),0)))))) -> 10 | Q28: =IF($C$15=1,Q16,IF($C$15=2,SUM(Q16:Q19),IF($C$15=3,SUM(Q16:Q21),IF($C$15=4,SUM(Q16:Q23),IF($C$15=5,SUM(Q16:Q25),IF($C$15=6,SUM(Q16:Q27),0)))))) -> 0 | R28: 0 | S28: 7476000 | T28: 0 | U28: 7476000 | V28: 5607000
C30: معافیت ماده 57 | J30: سایر معافیت ها و بخشودگی ها | N30: مغازه : | Q30: مغازه اول | R30: مغازه دوم | S30: مغازه سوم | T30: مغازه چهارم | U30: مغازه پنجم | V30: مغازه ششم
I31: 1 | N31: 80% ارزش اجاری : | Q31: =S16*80% -> 5980800 | R31: =S18*80% -> 6304260.48 | S31: =S20*80% -> 6668144.64 | T31: =S22*80% -> 6729602.88 | U31: =S24*80% -> 8404800 | V31: =S26*80% -> 582400
C32: 2555555 | H32: =C32+J32 -> 2555555 | J32: 0 | N32: درآمد مشمول مالیات : | Q32: =V16 -> 5607000 | R32: =V18 -> 5910244.2 | S32: =V20 -> 6251385.6 | T32: =V22 -> 6309002.7 | U32: =V24 -> 7879500 | V32: =V26 -> 546000
N33: معافیت قابل استفاده : | Q33: =IF(H32>=Q32,Q32,IF(H32<Q32,H32,0)) -> 2555555 | R33: =IF(H32>=Q32+R32,R32,IF(H32<Q32+R32,H32-Q33,0)) -> 0 | S33: =IF(H32>=Q32+R32+S32,S32,IF(H32<Q32+R32+S32,H32-Q33-R33,0)) -> 0 | T33: =IF(H32>=Q32+R32+S32+T32,T32,IF(H32<Q32+R32+S32+T32,H32-Q33-R33-S33,0)) -> 0 | U33: =IF(H32>=Q32+R32+S32+T32+U32,U32,IF(H32<Q32+R32+S32+T32+U32,H32-Q33-R33-S33-T33,0)) -> 0 | V33: =IF(H32>=Q32+R32+S32+T32+U32+V32,V32,IF(H32<Q32+R32+S32+T32+U32+V32,H32-Q33-R33-S33-T33-U33,0)) -> 0
C34: محل الصاق بارکد | N34: درآمد مشمول پس از کسر معافیت : | Q34: =Q32-Q33 -> 3051445 | R34: 5910244.2 | S34: 6251385.6 | T34: 6309002.7 | U34: 7879500 | V34: 546000
N35: مالیات هر مغازه به تفکیک : | Q35: =IF(Q34<=500000000,Q34*0.15,IF(Q34<=1000000000,75000000+(Q34-500000000)*0.2,175000000+(Q34-1000000000)*0.25)) -> 457716.75 | R35: 886536.63 | S35: 937707.84 | T35: 946350.405 | U35: 1181925 | V35: 81900
N37: درآمد مشمول کل | R37: درآمد مشمول پس از کسر معافیت | U37: مالیات مورد مطالبه از مودی
C38: Designed by Yaser Nazemi Ardabil Tax Administration Office | N38: =V28 -> 5607000 | R38: =IF($C$15=1,Q34,IF($C$15=2,SUM(Q34:R34),IF($C$15=3,SUM(Q34:S34),IF($C$15=4,SUM(Q34:T34),IF($C$15=5,SUM(Q34:U34),IF($C$15=6,SUM(Q34:V34),0)))))) -> 3051445 | U38: =AZ125 -> 457716.75 | AV38: =I16 -> 2
B42: تاریخ شروع تنظیم کاربرگ حسابرسی | N42: تاریخ پایان تنظیم کاربرگ حسابرسی | Q42: 1400/02/02
B43: نام و نام‌خانوادگی حسابرس : | I43: یاسر ناظمی | N43: نام و نام‌خانوادگی حسابرس مسئول
B44: سمت: | N44: سمت:
P52: صرفاً جهت راهنمایی و بدون تاثیر بر کاربرگ
P55: تبدیل سهم مودی از درصد به دانگ
P56: درصد | Q56: 32 | R56: Percenteage | AQ56: 6 | AR56: 5 | AS56: 4 | AT56: امغازه سوم | AU56: امغازه 2 | AV56: مغازه 1
P57: دانگ | Q57: =Q56*6% -> 1.92 | R57: Dung | AQ57: سال 96 | AR57: سال 96 | AS57: سال 96 | AT57: سال 96 | AU57: سال 96 | AV57: سال 96
AQ58: =D26 -> 30 | AR58: =D24 -> 30 | AS58: =D22 -> 30 | AT58: =D20 -> 30 | AU58: =D18 -> 30 | AV58: =D16 -> 10
AQ59: ارزش اجاری هر متر | AR59: ارزش اجاری هر متر | AS59: ارزش اجاری هر متر | AT59: ارزش اجاری هر متر | AU59: ارزش اجاری هر متر | AV59: ارزش اجاری هر متر
AQ60: =IF($I$26=2,$H$26,IF(OR($I$26=1,$I$26=3),$H$26*(1-'18'!$H$11),IF(OR($I$26=4,$I$26=0),$H$26*(1-'18'!$H$12),$H$26*(1-'18'!$H$13)))) -> 7700 | AR60: =IF($I$24=2,$H$24,IF(OR($I$24=1,$I$24=3),$H$24*(1-'18'!$H$11),IF(OR($I$24=4,$I$24=0),$H$24*(1-'18'!$H$12),$H$24*(1-'18'!$H$13)))) -> 12607.2 | AS60: =IF($I$22=2,$H$22,IF(OR($I$22=1,$I$22=3),$H$22*(1-'18'!$H$11),IF(OR($I$22=4,$I$22=0),$H$22*(1-'18'!$H$12),$H$22*(1-'18'!$H$13)))) -> 6792.91 | AT60: =IF($I$20=2,$H$20,IF(OR($I$20=1,$I$20=3),$H$20*(1-'18'!$H$11),IF(OR($I$20=4,$I$20=0),$H$20*(1-'18'!$H$12),$H$20*(1-'18'!$H$13)))) -> 6581.88 | AU60: =IF($I$18=2,$H$18,IF(OR($I$18=1,$I$18=3),$H$18*(1-'18'!$H$11),IF(OR($I$18=4,$I$18=0),$H$18*(1-'18'!$H$12),$H$18*(1-'18'!$H$13)))) -> 5320.76 | AV60: =IF($I$16=2,$H$16,IF(OR($I$16=1,$I$16=3),$H$16*(1-'18'!$H$11),IF(OR($I$16=4,$I$16=0),$H$16*(1-'18'!$H$12),$H$16*(1-'18'!$H$13)))) -> 12600
J61: ارزش اجاری هر متر | N61: >>>>>>>>> | R61: درصد افزایش/کاهش به ازای هر متر | T61: متراژ خیابان مد نظر | U61: ارزش تجاری | V61: متراژ معیار یا مبنا | AQ61: متراژ تا | AR61: متراژ تا | AS61: متراژ تا | AT61: متراژ تا | AU61: متراژ تا | AV61: متراژ تا
J62: =U62+(U62*(T62-V62)*R62%) -> 7040 | R62: 3 | T62: 10 | U62: 8000 | V62: 14 | AQ62: =MIN('18'!$G$5,$D$26) -> 30 | AR62: =MIN('18'!$G$5,$D$24) -> 30 | AS62: =MIN('18'!$G$5,$D$22) -> 30 | AT62: =MIN('18'!$G$5,$D$20) -> 30 | AU62: =MIN('18'!$G$5,$D$18) -> 30 | AV62: =MIN('18'!$G$5,$D$16) -> 10
AQ63: =_xlfn.TEXTJOIN("",FALSE,'18'!$D$6," ",'18'!$G$6) -> بیشتر از 30 | AR63: =_xlfn.TEXTJOIN("",FALSE,'18'!$D$6," ",'18'!$G$6) -> بیشتر از 30 | AS63: =_xlfn.TEXTJOIN("",FALSE,'18'!$D$6," ",'18'!$G$6) -> بیشتر از 30 | AT63: =_xlfn.TEXTJOIN("",FALSE,'18'!$D$6," ",'18'!$G$6) -> بیشتر از 30 | AU63: =_xlfn.TEXTJOIN("",FALSE,'18'!$D$6," ",'18'!$G$6) -> بیشتر از 30 | AV63: =_xlfn.TEXTJOIN("",FALSE,'18'!$D$6," ",'18'!$G$6) -> بیشتر از 30
AQ64: =MIN(('18'!G7-'18'!G6),MAX($D$26-AQ62,0)) -> 0 | AR64: =MIN(('18'!G7-'18'!G6),MAX($D$24-AR62,0)) -> 0 | AS64: =MIN(('18'!G7-'18'!G6),MAX($D$22-AS62,0)) -> 0 | AT64: =MIN(('18'!G7-'18'!G6),MAX($D$20-AT62,0)) -> 0 | AU64: =MIN(('18'!G7-'18'!G6),MAX($D$18-AU62,0)) -> 0 | AV64: =MIN(('18'!G7-'18'!G6),MAX($D$16-AV62,0)) -> 0
AQ65: ='18'!$I$6 -> 0.7 | AR65: ='18'!$I$6 -> 0.7 | AS65: ='18'!$I$6 -> 0.7 | AT65: ='18'!$I$6 -> 0.7 | AU65: ='18'!$I$6 -> 0.7 | AV65: ='18'!$I$6 -> 0.7
AQ66: =_xlfn.TEXTJOIN("",FALSE,'18'!$D$6," ",'18'!$G$7) -> بیشتر از 60 | AR66: =_xlfn.TEXTJOIN("",FALSE,'18'!$D$6," ",'18'!$G$7) -> بیشتر از 60 | AS66: =_xlfn.TEXTJOIN("",FALSE,'18'!$D$6," ",'18'!$G$7) -> بیشتر از 60 | AT66: =_xlfn.TEXTJOIN("",FALSE,'18'!$D$6," ",'18'!$G$7) -> بیشتر از 60 | AU66: =_xlfn.TEXTJOIN("",FALSE,'18'!$D$6," ",'18'!$G$7) -> بیشتر از 60 | AV66: =_xlfn.TEXTJOIN("",FALSE,'18'!$D$6," ",'18'!$G$7) -> بیشتر از 60
AQ67: =MAX($D$26-'18'!G7,0) -> 0 | AR67: =MAX($D$24-'18'!G7,0) -> 0 | AS67: =MAX($D$22-'18'!G7,0) -> 0 | AT67: =MAX($D$20-'18'!G7,0) -> 0 | AU67: =MAX($D$18-'18'!G7,0) -> 0 | AV67: =MAX($D$16-'18'!G7,0) -> 0
AQ68: ='18'!$I$7 -> 0.5 | AR68: ='18'!$I$7 -> 0.5 | AS68: ='18'!$I$7 -> 0.5 | AT68: ='18'!$I$7 -> 0.5 | AU68: ='18'!$I$7 -> 0.5 | AV68: ='18'!$I$7 -> 0.5
AQ69: پارکینگ | AR69: پارکینگ | AS69: پارکینگ | AT69: پارکینگ | AU69: پارکینگ | AV69: پارکینگ
AQ70: =G26 -> 7000 | AR70: =G24 -> 7004 | AS70: =G22 -> 7003 | AT70: =G20 -> 7002 | AU70: =G18 -> 7001 | AV70: =G16 -> 7000
AQ71: =L27 -> 100 | AR71: =L25 -> 100 | AS71: =L25 -> 100 | AT71: =L23 -> 100 | AU71: =L19 -> 100 | AV71: =L17 -> 100
AQ72: متراژ تا | AR72: متراژ تا | AS72: متراژ تا | AT72: متراژ تا | AU72: متراژ تا | AV72: متراژ تا | AX72: =L17 -> 100
AQ73: =MIN('18'!$G$5,$L$27) -> 30 | AR73: =MIN('18'!$G$5,$L$25) -> 30 | AS73: =MIN('18'!$G$5,$L$23) -> 30 | AT73: =MIN('18'!$G$5,$L$21) -> 30 | AU73: =MIN('18'!$G$5,$L$19) -> 30 | AV73: =MIN('18'!$G$5,$L$17) -> 30 | AX73: =H16 -> 12600
AO74: =_xlfn.TEXTJOIN("",FALSE,'18'!$D$6," ",'18'!$G$6) -> بیشتر از 30 | AP74: =_xlfn.TEXTJOIN("",FALSE,'18'!$D$6," ",'18'!$G$6) -> بیشتر از 30 | AQ74: =_xlfn.TEXTJOIN("",FALSE,'18'!$D$6," ",'18'!$G$6) -> بیشتر از 30 | AR74: =_xlfn.TEXTJOIN("",FALSE,'18'!$D$6," ",'18'!$G$6) -> بیشتر از 30 | AS74: =_xlfn.TEXTJOIN("",FALSE,'18'!$D$6," ",'18'!$G$6) -> بیشتر از 30 | AT74: =_xlfn.TEXTJOIN("",FALSE,'18'!$D$6," ",'18'!$G$6) -> بیشتر از 30 | AU74: =_xlfn.TEXTJOIN("",FALSE,'18'!$D$6," ",'18'!$G$6) -> بیشتر از 30 | AV74: =_xlfn.TEXTJOIN("",FALSE,'18'!$D$6," ",'18'!$G$6) -> بیشتر از 30 | AX74: ='18'!$H$8 -> 0.3
AQ75: =MIN(('18'!G7-'18'!G6),MAX(AQ71-'18'!G6,0)) -> 30 | AR75: =MIN(('18'!G7-'18'!G6),MAX(AR71-'18'!G6,0)) -> 30 | AS75: =MIN(('18'!G7-'18'!G6),MAX(AS71-'18'!G6,0)) -> 30 | AT75: =MIN(('18'!G7-'18'!G6),MAX(AT71-'18'!G6,0)) -> 30 | AU75: =MIN(('18'!G7-'18'!G6),MAX(AU71-'18'!G6,0)) -> 30 | AV75: =MIN(('18'!G7-'18'!G6),MAX(AV71-'18'!G6,0)) -> 30 | AX75: =G16 -> 7000
AO76: =_xlfn.TEXTJOIN("",FALSE,'18'!$D$6," ",'18'!$G$7) -> بیشتر از 60 | AP76: =_xlfn.TEXTJOIN("",FALSE,'18'!$D$6," ",'18'!$G$7) -> بیشتر از 60 | AQ76: =_xlfn.TEXTJOIN("",FALSE,'18'!$D$6," ",'18'!$G$7) -> بیشتر از 60 | AR76: =_xlfn.TEXTJOIN("",FALSE,'18'!$D$6," ",'18'!$G$7) -> بیشتر از 60 | AS76: =_xlfn.TEXTJOIN("",FALSE,'18'!$D$6," ",'18'!$G$7) -> بیشتر از 60 | AT76: =_xlfn.TEXTJOIN("",FALSE,'18'!$D$6," ",'18'!$G$7) -> بیشتر از 60 | AU76: =_xlfn.TEXTJOIN("",FALSE,'18'!$D$6," ",'18'!$G$7) -> بیشتر از 60 | AV76: =_xlfn.TEXTJOIN("",FALSE,'18'!$D$6," ",'18'!$G$7) -> بیشتر از 60
AQ77: =MAX(AQ71-'18'!G7,0) -> 40 | AR77: =MAX(AR71-'18'!G7,0) -> 40 | AS77: =MAX(AS71-'18'!G7,0) -> 40 | AT77: =MAX(AT71-'18'!G7,0) -> 40 | AU77: =MAX(AU71-'18'!G7,0) -> 40 | AV77: =MAX(AV71-'18'!G7,0) -> 40
AQ78: =O26 -> 2 | AR78: =O24 -> 2 | AS78: =O22 -> 2 | AT78: =O20 -> 2 | AU78: =O18 -> 2 | AV78: =O16 -> 2
AQ79: =IF(AQ78=3,AQ70*AQ71,(AQ70*AQ73)+(AQ70*AQ75)*'18'!$I$6+(AQ70*AQ77)*'18'!$I$7) -> 497000 | AR79: =IF(AR78=3,AR70*AR71,(AR70*AR73)+(AR70*AR75)*'18'!$I$6+(AR70*AR77)*'18'!$I$7) -> 497284 | AS79: =IF(AS78=3,AS70*AS71,(AS70*AS73)+(AS70*AS75)*'18'!$I$6+(AS70*AS77)*'18'!$I$7) -> 497213 | AT79: =IF(AT78=3,AT70*AT71,(AT70*AT73)+(AT70*AT75)*'18'!$I$6+(AT70*AT77)*'18'!$I$7) -> 497142 | AU79: =IF(AU78=3,AU70*AU71,(AU70*AU73)+(AU70*AU75)*'18'!$I$6+(AU70*AU77)*'18'!$I$7) -> 497071 | AV79: =IF(AV78=3,AV70*AV71,(AV70*AV73)+(AV70*AV75)*'18'!$I$6+(AV70*AV77)*'18'!$I$7) -> 497000
AQ80: =IF(AND($L$16="دارد",$S$9>1394),AQ79,0) -> 497000 | AR80: 497284 | AS80: 497213 | AT80: 497142 | AU80: 497071 | AV80: 497000
AW81: =N16 -> 12
AQ83: ارزش هر متر ابرازی | AR83: ارزش هر متر ابرازی | AS83: ارزش هر متر ابرازی | AT83: ارزش هر متر ابرازی | AU83: ارزش هر متر ابرازی | AV83: ارزش هر متر ابرازی
AQ84: =$K$32/$D$16/12 -> 0 | AR84: =$K$32/$D$16/12 -> 0 | AS84: =$K$32/$D$16/12 -> 0 | AT84: =$K$32/$D$16/12 -> 0 | AU84: =$K$32/$D$18/12 -> 0 | AV84: =$K$32/$D$16/12 -> 0
AQ85: ارزش اجاری | AR85: ارزش اجاری | AS85: ارزش اجاری | AT85: ارزش اجاری | AU85: ارزش اجاری | AV85: ارزش اجاری
AQ86: =((AQ60*AQ62)+(AQ60*AQ64*AQ65)+AQ80)+(AQ60*AQ67*AQ68)*($N$26+($N$27/30))*$M$26/6 -> 728000 | AR86: =((AR60*AR62)+(AR60*AR64*AR65)+(AR60*AR67*AR68)+AR80)*($N$24+($N$25/30))*$M$24/6 -> 10506000 | AS86: =((AS60*AS62)+(AS60*AS64*AS65)+(AS60*AS67*AS68)+AS80)*($N$22+($N$23/30))*$M$22/6 -> 8412003.6 | AT86: =((AT60*AT62)+(AT60*AT64*AT65+(AT60*AT67*AT68))+AT80)*($N$20+($N$21/30))*$M$20/6 -> 8335180.8 | AU86: =((AU60*AU62)+(AU60*AU64*AU65)+(AU60*AU67*AU68)+AU80)*($N$18+($N$19/30))*$M$18/6 -> 7880325.6 | AV86: =((AV60*AV62)+(AV60*AV64*AV65)+(AV60*AV67*AV68)+AV80)*($N$16+($N$17/30))*$M$16/6 -> 7476000
AQ87: ارزش اجاری با اعمال نوع مالکیت | AR87: ارزش اجاری با اعمال نوع مالکیت | AS87: ارزش اجاری با اعمال نوع مالکیت | AT87: ارزش اجاری با اعمال نوع مالکیت | AU87: ارزش اجاری با اعمال نوع مالکیت | AV87: ارزش اجاری با اعمال نوع مالکیت | AW87: =P16 -> مالکیت و سرقفلی
AQ88: 1 | AR88: 2 | AS88: 3 | AT88: 4 | AU88: 5 | AV88: 6
AQ89: =MAX(0,IF($P$26=$BA$94,$AQ$86,IF($P$26=$BA$95,$AQ$86-$P$27,$AQ$86*BA96))) -> 728000 | AR89: =MAX(0,IF($P$24=$BA$94,$AR$86,IF($P$24=$BA$95,$AR$86-$P$25,$AR$86*BA96))) -> 10506000 | AS89: =MAX(0,IF($P$22=$BA$94,$AS$86,IF($P$22=$BA$95,$AS$86-$P$23,$AS$86*BA96))) -> 8412003.6 | AT89: =MAX(0,IF($P$20=$BA$94,$AT$86,IF($P$20=$BA$95,$AT$86-$P$21,$AT$86*BA96))) -> 8335180.8 | AU89: =MAX(0,IF($P$18=$BA$94,$AU$86,IF($P$18=$BA$95,$AU$86-$P$19,$AU$86*BA96))) -> 7880325.6 | AV89: =MAX(0,IF($P$16=$BA$94,$AV$86,IF($P$16=$BA$95,$AV$86-$P$17,$AV$86*BA96))) -> 7476000 | AW89: =BA94 -> مالکیت و سرقفلی
AQ90: درآمد مشمول | AR90: درآمد مشمول | AS90: درآمد مشمول | AT90: درآمد مشمول | AU90: درآمد مشمول | AV90: درآمد مشمول
AQ91: =MAX(0,IF($P$26=$BA$94,$AQ$86*75%,AQ89)) -> 546000 | AR91: =MAX(0,IF($P$24=$BA$94,$AR$86*75%,AR89)) -> 7879500 | AS91: =MAX(0,IF($P$22=$BA$94,$AS$86*75%,AS89)) -> 6309002.7 | AT91: =MAX(0,IF($P$20=$BA$94,$AT$86*75%,AT89)) -> 6251385.6 | AU91: =MAX(0,IF($P$18=$BA$94,$AU$86*75%,AU89)) -> 5910244.2 | AV91: =MAX(0,IF($P$16=$BA$94,$AV$86*75%,AV89)) -> 5607000 | AW91: =P17 -> 373800
AR92: تعداد مغازه | AS92: ارزش اجاری کل | AT92: درآمد مشمول کل | AU92: تعدیل رهن | AV92: درآمد مشمول کل پس از تعدیل رهن | AX92: سال 95 | AZ92: زیرزمین 2 | BA92: فقط مالکیت | BB92: میدانی | BC92: عادی | BD92: حقیقی
AR93: =C15 -> 1 | AS93: =SUMIF(AQ88:AV88,"<="&AR93,AQ89:AV89) -> 728000 | AT93: =SUMIF(AQ88:AV88,"<="&AR93,AQ91:AV91) -> 546000 | AU93: =T28*75% -> 0 | AV93: =AT93+AU93 -> 546000
AX94: =H14 -> ارزش اجاری هر متر | AZ94: زیرزمین | BA94: مالکیت و سرقفلی | BB94: بازرسی | BC94: اصلاحی | BD94: حقوقی
AU95: =IF($P$16=$BA$94,T28*75%,IF($P$16=$BA$95,T28-$P$17,AV86*1%)) -> 0 | AX95: =IF($I$16=2,$H$16,IF(OR($I$16=1,$I$16=3),$H$16*85%,IF(OR($I$16=4,$I$16=0),$H$16*70%,$H$16*55%))) -> 12600 | AZ95: همکف | BA95: دست دوم | BB95: علی‌الرأس | BC95: جایگزین
AQ96: =SUM(AQ89:AU89) -> 35861510 | AX96: پارکینگ | AZ96: اول | BA96: ='18'!H9 -> 0.05 | BB96: اداری(پشت میزی) | BC96: سایر | BD96: درضد اجاره دست دوم
AX97: =IF(AND(L16="دارد",S9=1395),L17*30%*H16,0) -> 0 | AZ97: دوم | BD97: ='18'!H10 -> 0.05
AS98: 1396 | AT98: 2 | AX98: متراژ تا | AZ98: سوم
AS99: 1397 | AT99: 3 | AX99: =MIN(20,D16) -> 10 | AZ99: چهارم
AS100: 1398 | AT100: 4 | AX100: متراژبیش از 20 متر | AZ100: پنجم
AS101: 1399 | AT101: 5 | AX101: =MAX(D16-AX99,0) -> 0 | AZ101: ششم و بالاتر
AS102: 1400 | AT102: 6 | AX102: 0.5
AS103: 1401 | AT103: 7
AS104: 1402 | AT104: 8
AS105: 1403 | AT105: 9
AS106: 1404 | AT106: 10
AS107: 1405 | AT107: 11
AX108: ارزش هر متر ابرازی
AX109: =K32/D16/12 -> 0
AS110: =S9 -> 1402 | AT110: =LOOKUP(AS110,AS98:AS107,AT98:AT107) -> 8
AV112: کتمان
AV113: 1393 | AX113: 500000000 | AZ113: 1000000000
AV114: 1394 | AX114: 500000000 | AZ114: 1000000000
AV115: 1395 | AX115: 500000000 | AZ115: 1000000000
AV116: 1396 | AX116: 500000000 | AZ116: 1000000000
AV117: 1397 | AX117: 500000000 | AZ117: 1000000000
AV118: 1398 | AX118: 500000000 | AZ118: 1000000000
AV119: 1399 | AX119: 500000000 | AZ119: 1000000000
AT120: 0.15 | AU120: 500000000 | AV120: 1400 | AX120: 500000000 | AZ120: 1000000000
AT121: 0.2 | AU121: 1000000000 | AV121: 1401 | AX121: 2000000000 | AZ121: 4000000000
AT122: 0.25 | AV122: 1402 | AX122: 2000000000 | AZ122: 4000000000
AV123: 1403 | AX123: 0 | AZ123: 0
AU124: 0 | AV124: =S9 -> 1402 | AX124: =LOOKUP(AV124,AV113:AV123,AX113:AX123) -> 2000000000 | AZ124: =LOOKUP(AV124,AV113:AV123,AZ113:AZ123) -> 4000000000
AV125: مالیات | AX125: =R38 -> 3051445 | AZ125: =IF(AX125<=AX124,AX125*15%,IF(AX125<=AZ124,(AX124*15%)+(AX125-AX124)*20%,(AX124*15%)+((AZ124-AX124)*20%)+(AX125-AZ124)*25%)) -> 457716.75

Sheet 20
F1: صفحه اصلی | Q1: تنظیمات مستغلات
C3: وزارت امور اقتصادی و دارایی | J3: برگ تشخیص مالیات مستغلات | T3: شماره : | V3: 225
C4: سازمان امور مالیاتی کل کشور | K4: اجاره املاک | P4: حق واگذاری | T4: تاریخ : | V4: 1402/02/11
L5: سال عملکرد : | N5: ='15'!K5 -> 1403
C6: اداره کل امور مالیاتی | G6: ='19'!N8 -> اردبيل | I6: اداره امور مالیاتی | L6: 619612 | Q6: گروه مالیاتی : | S6: 6196 | U6: شماره پرونده | X6: 11
C7: آدرس : | E7: استان اردبيل شهرستان گرمي شهرگرمی خیابان معلم | U7: واحد مالیاتی | X7: 61932
C9: شناسه مؤدی : | F9: ='19'!S7 -> 16218196470001 | J9: مشخصات مؤدی : | M9: ='19'!N7 -> یاسر ناظمی | S9: کد پستی : | V9: ='1'!G33 -> 5618694316
C10: آدرس : | E10: استان اردبیل | T10: تلفن : | U10: ='1'!O11 -> 9127212385
D12: براساس گزارش شماره | H12: ='19'!U5 -> 3220 | L12: مورخ | N12: ='19'!V5 -> 1402/10/01
D13: ماليات متعلقه مستغلات از تاريخ | I13: 1401/01/01 | L13: لغایت | N13: 1401/12/29 | S13: به شرح ذیل گزارش می گردد :
E16: شرح | L16: مبلغ اجاره سالانه | T16: وجه دریافتی بابت حق واگذاری
D17: 1 | E17: مأخذ محاسبه مالیات | L17: ='19'!U28 -> 7476000 | T17: 0
D18: 2
D19: 3
D20: 4
D21: 5
D22: 6
D23: 7
D24: درآمد مشمول مالیات : | H24: ='19'!R38 -> 3051445 | O24: مالیات متعلقه : | S24: ='19'!U38 -> 457716.75
D27: حسابرس ارشد مالیاتی | V27: مسئول رسیدگی
D28: مهر و امضا | V28: مهر و امضا
C29: مؤدی | D29: اینجانب، نام | L29: نام خانوادگی | U29: در تاریخ
D30: این برگ را رویت و دریافت نمودم.
V31: امضاء
D33: اينجانب : نام | L33: نام خانوادگي : | Q33: كه نسبت به مودي سمت | X33: را دارم درتاريخ
H34: اين برگ را رويت نموده وتعهد مينمايم كه به مودي برسانم .
V35: امضاء
C36: مأمور ابلاغ
D37: اینجانب، نام | L37: نام خانوادگی | U37: در تاریخ
D38: تایید می نمایم این برگ را در | I38: ⃝ | J38: محل سکونت مؤدی | N38: ⃝ | O38: محل کار مؤدی به نشانی مندرج در این برگ به نام
D39: نام خانوادگی | I39: که به مؤدی سمت / نسبت | Q39: را دارد ابلاغ نمودم.
V40: امضاء
D41: به علت | E41: ⃝ | F41: عدم حضور | H41: ⃝ | I41: استنکاف مؤدی / بستگان مؤدی این برگ به درب محل سکونت / محل کار مؤدی به نشانی فوق الذکر الصاق گردید.
V42: امضاء
C43: مخصوص مامورپست | D43: اینجانب، نام | L43: نام خانوادگی | U43: در تاریخ
D44: تایید می نمایم این برگ را در | I44: ⃝ | J44: محل سکونت مؤدی | N44: ⃝ | O44: محل کار مؤدی به نشانی مندرج در این برگ به نام
D45: نام خانوادگی | I45: که به مؤدی سمت / نسبت | Q45: را دارد ابلاغ نمودم.
V46: امضاء
D47: به علت | E47: ⃝ | F47: عدم حضور | H47: ⃝ | I47: استنکاف مؤدی / بستگان مؤدی این برگ به درب محل سکونت / محل کار مؤدی به نشانی فوق الذکر الصاق گردید
D48: و پانزده روز پس از اين تاريخ كه برابر است با | M48: مجددا مراجعه خواهد شد.
V49: امضاء
C50: ماده 238 در مواردی که برگ تشخیص مالیات صادر و به مودی ابلاغ میشود چنانچه مودی نسبت به آن معترض باشد میتواند ظرف سی روز از تاریخ ابلاغ شخصاً یا به وسیله وکیل تام الاختیار خود به اداره امور مالیاتی مراجعه و با ارقه دلایل و استاد و مدارک کتباً تقاضای رسیدگی مجدد نماید مسئول مربوط موظف است پس از ثبت درخواست مودی در دفتر مربوط و ظرف مهلتی که بیش از سی روز از تاریخ مراجعه نباشد به موضوع رسیدگی و درصورتی که دلایل و استاد و مدارک ابراز شده و برای رد مندرجات برگ تشخیص کافی دانست آن را رد و مراتب را ظهر برگ تشخیص درج و امضا نماید و در صورتی که دلایل و استاد و مدارک ابرازی را موثر در تعدیل درآمد تشخیص دهد و نظر او مورد قبول مودی قرار گیرد مراتب ظهر برگ تشخیص مستعکس و به امضای مسئول مربوط و مودی خواهد رسید و هرگاه دلایل و اسناد و مدارک برازی مودی را برای رد برگ تشخیص یا تعدیل درآمد موثر تشخیص ندهد باید مراتب را مستدلاً در ظهر برگ تشخیص متعکس و پرونده امر را برای رسیدگی به هیات حل اختلاف ارجاع نماید. ماده 239 - در صورتی که مودی ظرف سی روز از تاریخ ابلاغ برگ تشخیص مالیات قبولی خود را نسبت به آن کتباً اعلام کند یا مالیات مورد مطالبه را به ماخذ برگ تشخیص پرداخت یا ترتیب پرداخت آن را بدهد یا اختلاف موجود بین خود و اداره امورمالیاتی را بشرح ماده 238 این قانون رفع نماید پرونده امر از لحاظ میزان درآمد مشمول مالیات مختومه تلقی میگردد و در مواردی که مودی ظرف سی روز کتباً اعتراض ننماید و یا در مهلت مقرر در ماده مذکور به اداره امور مالیاتی مربوط مراجعه نکند درآمد تعیین شده در برگ تشخیص مالیات قطعی است. تبصره در مواردی که برگ تشخیص مالیات طبق مقررات تبصره ماده (203) و ماده (208) این قانون ابلاغ شده باشد و مودی به شرح مقررات این ماده اقدام نکرده باشد در حکم معترض به برگ تشخیص مالیات شناخته میشود در این صورت و همچنین در مواردی که مودی ظرف مهلت سی روز از تاریخ ابلاغ کتباً به برگ تشخیص اعتراض کند پرونده امر برای رسیدگی به هیات حل اختلاف مالیاتی ارجاع می گردد.
C61: نظر مسئول مربوط
C64: خانم/ آقای شرکت مودی مالیاتی وکیل مودی در تاریخ به اینجانب مراجعه و با ملاحظه | U64: نام و نام خانوادگی مسئول مربوط
C65: مدارک ارائه شده ضمیمه و اظهارات مشاراليه بشرح زیر:
U66: نام و نام خانوادگی مودی مالیاتی وکیل مودی
C68: پرونده متشکله بررسی و بشرح زیر اظهار نظر میشود
U69: امضاء
U71: امضاء
C75: نظر مسئول مربوط بشرح فوق مورد قبول اینجانب از
H83: صفحه دوم وقت نداشتم تکمیل کنم اگه تکمیل کردین به منم بفرستین

Sheet H
E2: صفحه اصلی | F2: درخواست افزایش حد مجاز ماده 6 قانون پایانه های فروشگاهی از طریق سامانه تیکتینگ
D4: اطلاعات مؤدي
D5: اداره کل امور مالیاتی: | F5: استان اردبیل | G5: اداره امور مالیاتی: | I5: شهرستان گرمی | K5: شماره پرونده/کلاسه: | M5: 1
D6: نام و نام خانوادگی/نام شخص حقوقی: | G6: راه و سازه چاوش مغان | K6: شماره اقتصادی: | M6: 14013274685
D7: کد رهگیری ثبت‌نام: | F7: 3375989852 | G7: سال و دوره مدنظر جهت افزایش حد مجاز: | K7: دوره : | L7: 4 | M7: سال : | N7: 1403
D8: درخواست مودی
D9: مودی طی نامه شماره | F9: 125/16168/د | H9: مورخ | I9: 1403/11/04 | K9: درخواست افزایش حدمجاز فروش کالای مشمول به نرخ
D10: 10 | F10: به مبلغ | G10: 3265607018 | J10: را به طریق زیر داشته است:
D11: 1- پرداخت بدهی ترتیب پرداخت مانده بدهی مالیات و عوارض ارزش‌افزوده دوره مشابه سال قبل
D12: 2- پرداخت مالیات و عوارض متعلقه ارائه تضمین
D13: الف- بدهی مالیاتی مودی
D14: کد رهگیری اظهارنامه مالیات بر ارزش‌افزوده دوره مشابه سال قبل : | J14: عدم ارائه
D15: 1 | E15: مبلغ فروش مشمول مالیات و عوارض ابرازی مودی : | J15: 0 | N15: ریال
D16: 2 | E16: مبلغ مالیات بر ارزش‌افزوده ابرازی/قطعی : | J16: 0 | N16: ریال
D17: 3 | E17: مبلغ مانده بدهی مالیات بر ارزش‌افزوده ابرازی/قطعی : | J17: 0 | N17: ریال
D18: 4 | E18: مبلغ درخواستی بابت تسویه مانده بدهی مالیات بر ارزش‌افزوده : | J18: 0 | N18: ریال
D19: نحوه تسویه بدهی مالیات بر ارزش‌افزوده دوره مشابه سال قبل:
E20: پرداخت مبلغ | G20: =J16 -> 0 | J20: ریال
E21: ترتیب پرداخت مبلغ | G21: 0 | J21: ریال
E22: با عنایت به موارد فوق افزایش حد مجاز فروش کالای مشمول مودی از مبلغ | I22: 0 | K22: به مبلغ | L22: =G10 -> 3265607018
E23: تا سقف مقرر در ماده 6 قانون پایانه‌های فروشگاهی بلامانع می باشد.
D24: ب- پرداخت مالیات و عوارض متعلقه یا ارائه تضمین جهت افزایش حد مجاز فروش
E25: مالیات و عوارض متعلقه پرداختی به مبلغ | J25: 6560702 | L25: ریال
E26: ارائه تضمین (سپرده بانکی ضمانت بانکی وثیقه بانکی سایر ) به مبلغ | J26: =(G10*D10%)-J25 -> 319999999.8 | L26: ریال
D27: با عنایت به موارد فوق افزایش حد مجاز فروش کالای مشمول مودی از مبلغ | I27: =I22 -> 0 | K27: ریال به مبلغ | L27: =L22 -> 3265607018
D28: تا سقف مقرر در ماده 6 قانون پایانه‌های فروشگاهی بلامانع می باشد.
D29: حسابرس ارشد مالیاتی رئیس گروه مالیاتی رئیس امور مالیاتی
D30: * تعیین سقف مالیات بر ارزش‌افزوده صرفا در خصوص بند (ب) فرم امکان‌پذیر می‌باشد.

Sheet Q
E1: صفحه اصلی
F3: گزارش اجرای قرار کارشناسی F2350-10 | I3: صفحه 44 از 48
D4: شماره : | E4: ......................... | G4: شماره ملی : | H4: 16215580880001
D5: تاریخ : | E5: .........................
D6: پرونده : | E6: .........................
D7: هیأت محترم حل اختلاف مالیاتی شماره ....................
D8: احتراماً در اجرای قرار شماره ................ مورخه .............. در خصوص پرونده مالیاتی آقای ..................................... به نشانی .......................................................................................... عملکرد سال 1394 واحد مالیاتی 619611 که طی نامه شماره ............ مورخ 16/11/95 به اینجانب ارجاع گردیده به استحضار می رساند:
D9: موارد قابل رسیدگی از سوی هیأت حل اختلاف مالیاتی مطابق قرار صادره :
D10: 1 | E10: تعیین مأخذ درآمد مشمول مالیات
D11: 2
D12: 3
D13: 4
D14: 5
D15: مشروح بررسی‌های به عمل آمده شامل تحقیقات انجام شده، مستندات قانونی و اعلام نتیجه نهایی :
D16: احتراماً اینجانب پس از تحقیقات و بررسی سوابق پرونده و پرس و جو از مطلعین و استعلام از ادارات محترم آب، برق، بیمه مشخص گردید که مودی در فصل های بهار و تابستان سال 94 به طور کامل فعالیت داشته است. بنابراین فروش و مأخذ درآمد مشمول مالیات لحاظ شده در گزارش رسیدگی ارزش افزوده برای دوره های مذکور مورد تایید می باشد. و نیز در دوره سوم و چهارم به علت وضعیت جوی و شرایط آب و هوا ضعیف بودن ساخت و ساز در آن فصول فقط در مهر ماه کارکرد داشته و در بقیه ماه ها تعطیل بوده است. مراتب جهت استحضار گزارش می گردد.

Sheet E
C1: صفحه اصلی
C3: محاسبه استهلاک | G3: محاسبه مالیات
C4: :بهاي تمام شده دارايي | F4: 52000000 | G4: تاریخ خرید | H4: 25 | I4: / | J4: 8 | K4: / | L4: 1402
C5: :ارزش اسقاط در پايان عمر مفيد | F5: 0 | G5: تاریخ فروش | H5: 25 | I5: / | J5: 8 | K5: / | L5: 1403
C6: :سالهاي عمر مفيد | F6: 10 | G6: مبلغ فروش | H6: 42000000
G7: مانده استهلاک نشده | H7: =IF(L5>=L4,F4-((F4-F5)/F6)*(((L5-L4)*365)+((J5-J4)*30)+(H5-H4))/365,"تاریخ اصلاح شود") -> 46800000
G8: ضریب طبق دفترچه | H8: 0.8
G9: درآمد مشمول | H9: =H7*H8 -> 37440000
G10: مالیات مورد مطالبه | H10: =H9*25% -> 9360000
D13: ردیف | E13: سال | F13: روش خط مستقیم | G13: روش مانده نزولی با نرخ مضاعف | H13: روش مجموع سنوات
D14: 1 | E14: اول | F14: =SUM((E!F4-E!F5)/E!F6) -> 5200000 | G14: =SUM((E!F4)/(E!F6)*2) -> 10400000 | H14: =SUM((E!F4-E!F5)*(E!F6+1-1)/(E!F6*(E!F6+1)/2)) -> 9454545.455
D15: 2 | E15: دوم | F15: =IF(E!F6<2,"-",(E!F4-E!F5)/E!F6) -> 5200000 | G15: =IF(E!F6<2,"-",(E!F4-G14)/E!F6*2)+IF(D14=G37,E37-F37-G14) -> 8320000 | H15: =IF(E!F6<2,"-",(E!F4-E!F5)*(E!F6+1-2)/(E!F6*(E!F6+1)/2)) -> 8509090.909
D16: 3 | E16: سوم | F16: =IF(E!F6<3,"-",(E!F4-E!F5)/E!F6) -> 5200000 | G16: =IF(E!F6<3,"-",(E!F4-G15-G14)/E!F6*2) -> 6656000 | H16: =IF(E!F6<3,"-",(E!F4-E!F5)*(E!F6+1-3)/(E!F6*(E!F6+1)/2)) -> 7563636.364
D17: 4 | E17: چهارم | F17: =IF(E!F6<4,"-",(E!F4-E!F5)/E!F6) -> 5200000 | G17: =IF(E!F6<4,"-",(E!F4-G16-G15-G14)/E!F6*2) -> 5324800 | H17: =IF(E!F6<4,"-",(E!F4-E!F5)*(E!F6+1-4)/(E!F6*(E!F6+1)/2)) -> 6618181.818
D18: 5 | E18: پنجم | F18: =IF(E!F6<5,"-",(E!F4-E!F5)/E!F6) -> 5200000 | G18: =IF(E!F6<5,"-",(E!F4-G17-G16-G15-G14)/E!F6*2) -> 4259840 | H18: =IF(E!F6<5,"-",(E!F4-E!F5)*(E!F6+1-5)/(E!F6*(E!F6+1)/2)) -> 5672727.273
D19: 6 | E19: ششم | F19: =IF(E!F6<6,"-",(E!F4-E!F5)/E!F6) -> 5200000 | G19: =IF(E!F6<6,"-",(E!F4-G18-G17-G16-G15-G14)/E!F6*2) -> 3407872 | H19: =IF(E!F6<6,"-",(E!F4-E!F5)*(E!F6+1-6)/(E!F6*(E!F6+1)/2)) -> 4727272.727
D20: 7 | E20: هفتم | F20: =IF(E!F6<7,"-",(E!F4-E!F5)/E!F6) -> 5200000 | G20: =IF(E!F6<7,"-",(E!F4-G19-G18-G17-G16-G15-G14)/E!F6*2) -> 2726297.6 | H20: =IF(E!F6<7,"-",(E!F4-E!F5)*(E!F6+1-7)/(E!F6*(E!F6+1)/2)) -> 3781818.182
D21: 8 | E21: هشتم | F21: =IF(E!F6<8,"-",(E!F4-E!F5)/E!F6) -> 5200000 | G21: =IF(E!F6<8,"-",(E!F4-G20-G19-G18-G17-G16-G15-G14)/E!F6*2) -> 2181038.08 | H21: =IF(E!F6<8,"-",(E!F4-E!F5)*(E!F6+1-8)/(E!F6*(E!F6+1)/2)) -> 2836363.636
D22: 9 | E22: نهم | F22: =IF(E!F6<9,"-",(E!F4-E!F5)/E!F6) -> 5200000 | G22: =IF(E!F6<9,"-",(E!F4-G21-G20-G19-G18-G17-G16-G15-G14)/E!F6*2) -> 1744830.464 | H22: =IF(E!F6<9,"-",(E!F4-E!F5)*(E!F6+1-9)/(E!F6*(E!F6+1)/2)) -> 1890909.091
D23: 10 | E23: دهم | F23: =IF(E!F6<10,"-",(E!F4-E!F5)/E!F6) -> 5200000 | G23: =IF(E!F6<10,"-",(E!F4-G22-G21-G20-G19-G18-G17-G16-G15-G14)/E!F6*2) -> 1395864.371 | H23: =IF(E!F6<10,"-",(E!F4-E!F5)*(E!F6+1-10)/(E!F6*(E!F6+1)/2)) -> 945454.5455
D24: 11 | E24: یازدهم | F24: =IF(E!F6<11,"-",(E!F4-E!F5)/E!F6) -> - | G24: =IF(E!F6<11,"-",(E!F4-G23-G22-G21-G20-G19-G18-G17-G16-G15-G14)/E!F6*2) -> - | H24: =IF(E!F6<11,"-",(E!F4-E!F5)*(E!F6+1-11)/(E!F6*(E!F6+1)/2)) -> -
D25: 12 | E25: دوازدهم | F25: =IF(E!F6<12,"-",(E!F4-E!F5)/E!F6) -> - | G25: =IF(E!F6<12,"-",(E!F4-G24-G23-G22-G21-G20-G19-G18-G17-G16-G15-G14)/E!F6*2) -> - | H25: =IF(E!F6<12,"-",(E!F4-E!F5)*(E!F6+1-12)/(E!F6*(E!F6+1)/2)) -> -
D26: 13 | E26: سیزدهم | F26: =IF(E!F6<13,"-",(E!F4-E!F5)/E!F6) -> - | G26: =IF(E!F6<13,"-",(E!F4-G25-G24-G23-G22-G21-G20-G19-G18-G17-G16-G15-G14)/E!F6*2) -> - | H26: =IF(E!F6<13,"-",(E!F4-E!F5)*(E!F6+1-13)/(E!F6*(E!F6+1)/2)) -> -
D27: 14 | E27: چهاردهم | F27: =IF(E!F6<14,"-",(E!F4-E!F5)/E!F6) -> - | G27: =IF(E!F6<14,"-",(E!F4-G26-G25-G24-G23-G22-G21-G20-G19-G18-G17-G16-G15-G14)/E!F6*2) -> - | H27: =IF(E!F6<14,"-",(E!F4-E!F5)*(E!F6+1-14)/(E!F6*(E!F6+1)/2)) -> -
D28: 15 | E28: پانزدهم | F28: =IF(E!F6<15,"-",(E!F4-E!F5)/E!F6) -> - | G28: =IF(E!F6<15,"-",(E!F4-G27-G26-G25-G24-G23-G22-G21-G20-G19-G18-G17-G16-G15-G14)/E!F6*2) -> - | H28: =IF(E!F6<15,"-",(E!F4-E!F5)*(E!F6+1-15)/(E!F6*(E!F6+1)/2)) -> -
D29: 16 | E29: شانزدهم | F29: =IF(E!F6<16,"-",(E!F4-E!F5)/E!F6) -> - | G29: =IF(E!F6<16,"-",(E!F4-G28-G27-G26-G25-G24-G23-G22-G21-G20-G19-G18-G17-G16-G15-G14)/E!F6*2) -> - | H29: =IF(E!F6<16,"-",(E!F4-E!F5)*(E!F6+1-16)/(E!F6*(E!F6+1)/2)) -> -
D30: 17 | E30: هفدهم | F30: =IF(E!F6<17,"-",(E!F4-E!F5)/E!F6) -> - | G30: =IF(E!F6<17,"-",(E!F4-G29-G28-G27-G26-G25-G24-G23-G22-G21-G20-G19-G18-G17-G16-G15-G14)/E!F6*2) -> - | H30: =IF(E!F6<17,"-",(E!F4-E!F5)*(E!F6+1-17)/(E!F6*(E!F6+1)/2)) -> -
D31: 18 | E31: هجدهم | F31: =IF(E!F6<18,"-",(E!F4-E!F5)/E!F6) -> - | G31: =IF(E!F6<18,"-",(E!F4-G30-G29-G28-G27-G26-G25-G24-G23-G22-G21-G20-G19-G18-G17-G16-G15-G14)/E!F6*2) -> - | H31: =IF(E!F6<18,"-",(E!F4-E!F5)*(E!F6+1-18)/(E!F6*(E!F6+1)/2)) -> -
D32: 19 | E32: نوزدهم | F32: =IF(E!F6<19,"-",(E!F4-E!F5)/E!F6) -> - | G32: =IF(E!F6<19,"-",(E!F4-G31-G30-G29-G28-G27-G26-G25-G24-G23-G22-G21-G20-G19-G18-G17-G16-G15-G14)/E!F6*2) -> - | H32: =IF(E!F6<19,"-",(E!F4-E!F5)*(E!F6+1-19)/(E!F6*(E!F6+1)/2)) -> -
D33: 20 | E33: بیستم | F33: =IF(E!F6<20,"-",(E!F4-E!F5)/E!F6) -> - | G33: =IF(E!F6<20,"-",(E!F4-G32-G31-G30-G29-G28-G27-G26-G25-G24-G23-G22-G21-G20-G19-G18-G17-G16-G15-G14)/E!F6*2) -> - | H33: =IF(E!F6<20,"-",(E!F4-E!F5)*(E!F6+1-20)/(E!F6*(E!F6+1)/2)) -> -
E36: =E!C4 -> :بهاي تمام شده دارايي | F36: =E!C5 -> :ارزش اسقاط در پايان عمر مفيد | G36: =E!C6 -> :سالهاي عمر مفيد
E37: =E!F4 -> 52000000 | F37: =E!F5 -> 0 | G37: =E!F6 -> 10
D40: مهر و امضا حسابرس ارشد مالیاتی | F40: مهر و امضا رئیس گروه مالیاتی | H40: مهر و امضا تایید کننده نهایی
D41: ='1'!F65 -> یاسر ناظمی | F41: ='1'!J65 -> علی بخشی | H41: ='1'!O65 -> حسن حامدی

Sheet R
B2: صفحه اصلی | AD2: تذکر
C5: جمهوري اسلامي ايران | O5: برگ استرداد مالیات اضافه دریافتی | AI5: کد 6001121 - 85/8 - 500ج
C6: وزارت اموراقتصادي و دارائي | AJ6: شماره :
C7: سازمان امور مالياتي كشور | O7: موضوع ماده ۲۴۲ اصلاحی قانون مالیاتهای مستقیم مصوب ۱۳۸۰/۱۱/۲۷ | AJ7: تاريخ : | AS7: فقط موارد آبی پر شود
C9: اداره كل امور مالياتي : | J9: ='1'!E63 -> اردبيل | S9: اداره امورمالياتي : | X9: ='1'!I63 -> 610400 | AG9: واحد مالياتي | AL9: 619612
C10: نشاني : | G10: ='16'!F8 -> استان اردبيل شهرستان گرمي شهرگرمی خیابان معلم | X10: تلفن | Y10: 045-32622007 | AG10: شماره پرونده | AL10: 1
C11: نام شخص حقيقي / حقوقی : | N11: یاسر ناظمی | Z11: شماره | AF11: تاريخ | AI11: حوزه | AL11: محل
Z12: شناسنامه / ملي / ثبت | AF12: صدور/ ثبت | AI12: صدور/ ثبت | AL12: صدور/ثبت
C13: منبع مالیاتی : | G13: - | P13: شهرت کسبی : | T13: - | Z13: - | AF13: - | AI13: - | AL13: -
C14: تلفن : | F14: -
C15: به نشاني : | G15: - | AH15: کد پستی : | AK15: -
C16: بابت مالیات سال عملکرد | N16: 1401 | AA16: شماره شناسائی : | AI16: -
C17: مبلغ : | F17: ده میلیون ریال | AA17: به موجب | AD17: دو | AH17: فقره اسناد مشروحه زیر:
C19: شماره رسید بانکی | J19: تاریخ صدور | N19: نام شعبه | Q19: شهرستان | V19: مبلغ مندرج در رسید | AB19: شماره ردیف دفتر درآمد | AH19: ملاحظات
C20: 2341113213232 | J20: 1402/07/01 | N20: ملی | Q20: گرمی | V20: 2000000000 | AB20: 22111
C33: پرداخت نموده اند که به موجب گزارش شماره | Q33: - | U33: مورخ | W33: - | AA33: اداره امور مالیاتی رأی شماره | AI33: - | AM33: مورخ
C34: - | P34: هیأت حل اختلاف مالیاتی مبلغ | AA34: 20000000000 | AG34: ریال | AI34: به حروف
C35: دویست میلیون و سیصد هزار و سیصد | AA35: ریال از مالیات پرداختی به شرح زیر:
E36: شرح مبالغ قابل استرداد | AA36: مبلغ به ریال
E37: اصل مالیات | AA37: 20000000000
E38: حق تمبر | AA38: 0
E39: سایر | AA39: 0
E40: جرائم | AA40: 0
E41: خسارت تأخیر در استرداد (تبصره ماده (۲۴۲) | AA41: 0
E42: جمع کل مبلغ به حروف | K42: ) | L42: دویست میلیون و سیصد هزار و سیصد | Z42: ( | AA42: =SUM(AA37:AM41) -> 20000000000
D44: به علت | H44: پرداخت اشتباه
D45: قابل استرداد تشخیص گردیده است. علیهذا خواهشمند است در اجرای ماده ۲۴۲ اصلاحی قانون مالیات های مستقیم مصوب ۱۳۸۰/۱۱/۲۷ مبلغ
D46: =AA42 -> 20000000000 | K46: ریال | M46: به حروف | P46: =L42 -> دویست میلیون و سیصد هزار و سیصد | AH46: ريال اضافه دریافتی و
D47: خسارت تأخیر را از محل وصولی جاری ظرف یک ماه برگشت و به ذینفع پرداخت و نسخه ای از سند پرداخت را جهت ضبط در پرونده مالیاتی برای
D48: اداره امور مالیاتی | I48: =X9 -> 610400 | Y48: ارسال دارید.
C49: رسید بانکی / رسیدهای بانکی پرداخت مالیات که برای اصلاح / ابطال به ضمیمه ایفاد میگردد به شرح زیر است.
C50: شماره رسید بانکی | J50: تاریخ صدور | N50: =N19 -> نام شعبه | Q50: =Q19 -> شهرستان | R50: شهرستان | V50: =V19 -> مبلغ مندرج در رسید | AB50: =AB19 -> شماره ردیف دفتر درآمد | AH50: مبلغ قابل استرداد
C51: =C20 -> 2341113213232 | J51: =J20 -> 1402/07/01 | N51: =N20 -> ملی | Q51: =Q20 -> گرمی | R51: شهرستان | V51: =V20 -> 2000000000 | AB51: =AB20 -> 22111
C52: =C21 -> 0 | J52: =J21 -> 0 | N52: =N21 -> 0 | Q52: =Q21 -> 0 | R52: شهرستان | V52: =V21 -> 0 | AB52: =AB21 -> 0
C53: 0 | J53: 0 | N53: 0 | Q53: 0 | R53: شهرستان | V53: 0 | AB53: 0
C54: 0 | J54: 0 | N54: 0 | Q54: 0 | R54: شهرستان | V54: 0 | AB54: 0
C55: 0 | J55: 0 | N55: 0 | Q55: 0 | R55: شهرستان | V55: 0 | AB55: 0
C56: 0 | J56: 0 | N56: 0 | Q56: 0 | R56: شهرستان | V56: 0 | AB56: 0
C57: 0 | J57: 0 | N57: 0 | Q57: 0 | R57: شهرستان | V57: 0 | AB57: 0
C58: 0 | J58: 0 | N58: 0 | Q58: 0 | R58: شهرستان | V58: 0 | AB58: 0
C59: 0 | J59: 0 | N59: 0 | Q59: 0 | R59: شهرستان | V59: 0 | AB59: 0
C60: 0 | J60: 0 | N60: 0 | Q60: 0 | R60: شهرستان | V60: 0 | AB60: 0
C61: 0 | J61: 0 | N61: 0 | Q61: 0 | R61: شهرستان | V61: 0 | AB61: 0
C62: 0 | J62: 0 | N62: 0 | Q62: 0 | R62: شهرستان | V62: 0 | AB62: 0
E64: رئیس گروه مالیاتی نام و نام خانوادگی مهر و امضاء | AC64: رئیس امور مالیاتی نام و نام خانوادگی مهر و امضاء
AD65: فرم ۳ (ت (۸۳) دفتر خدمات مالیاتی
B68: تهیه شده در اداره کل امور مالیاتی استان اردبیل

Sheet B
E1: صفحه اصلی
E3: فرم تقاضای بخشودگی جرائم(1)
B4: صفحه اصلی
E5: وزارت امور اقتصادی و دارائی | AS5: در اجرای ماده 191 قانون مالیاتهای مستقیم | CR5: شماره : | DB5: 22 | DN5: تاریخ : | DW5: 1403/02/01
E6: سازمان امور مالیاتی کشور
F7: اداره کل : | T7: استان اردبیل | AS7: اداره امور مالیاتی: | BG7: شهر انگوت | BX7: واحد مالیاتی : | CL7: 619613 | DD7: کلاسه | DM7: -
F8: نشانی : | N8: شهرستان انگوت خیابان شهید ذاکر | BX8: کد پستی : | CL8: 5658110032 | DD8: تلفن: | DM8: 045-32652673
F10: رئیس امور مالیاتی | Z10: 6196
E11: بنا به در خواست وارده به شماره | AV11: 1827 | BH11: مورخ | BO11: 1403/03/21 | CD11: (تصویر پیوست) با مشخصات ذیل :
F12: نام مودی حقیقی / حقوقی: | AD12: یاسر ناظمی | DB12: شماره ثبت / ملی : | DQ12: 925
F13: شماره اقتصادی مودی: | AD13: 16218196470001 | CO13: تاریخ و محل ثبت : | DE13: 1344/02/08
F14: نوع و موضوع فعالیت: | AD14: تولید پنیر | CA14: مرحله مشمولیت : | CU14: غیر مشمول
F15: نشانی: | O15: استان اردبیل | CA15: کد پستی : | CU15: 5651634315 | DI15: تلفن: | DN15: 9127212385
H17: با توجه به پرداخت اصل مالیات | AH17: عملکرد | BD17: سال / سال های | BP17: 1401 | CH17: جمعاً به مبلغ | CV17: 3819848334 | DX17: ریال
F18: پیشنهاد می گردد از جرائم مودی به مبلغ | AV18: =CV17 -> 3819848334 | BX18: ریال به شرح ظهر فرم ، با توجه به اینکه مبلغ | DA18: =AV18*P19/100 -> 76396966.68 | DX18: ریال
F19: معادل | P19: 2 | AA19: درصد وصول شده است ، باقی مانده به مبلغ | BM19: =AV18*CP19/100 -> 3743451367 | CH19: ریال معادل | CP19: =100-P19 -> 98 | CZ19: درصد بخشوده شود.
F20: سوابق مالیاتی | U20: سال | AF20: وضعیت اظهارنامه | AT20: نحوه تشخیص مالیات | BI20: وضعیت پرداخت اصل مالیات | BZ20: تاریخ ابلاغ | CO20: تاریخ ابلاغ | DD20: مرحله | DP20: توضیحات
F21: 3 | AF21: تسلیم نموده | AM21: تسلیم ننموده | AT21: رسیدگی | AY21: علی الراس | BD21: ماده 272 | BI21: پرداخت شده | BQ21: پرداخت نشده | BZ21: برگ تشخیص | CO21: برگ قطعی | DD21: قطعیت
F22: سال گذشته | U22: 1398 | AF22: * | AT22: * | BI22: * | BZ22: 1400-04-10 | CO22: 1400-05-11
U23: 1399 | AF23: * | AT23: * | BI23: * | BZ23: 1401-03-10 | CO23: 1401-04-28
U24: 1400 | AF24: * | AT24: * | BI24: * | BZ24: - | CO24: 1401-11-16
F25: عملکرد/سال مورد درخواست | U25: 1401 | AF25: * | AT25: * | BQ25: * | BZ25: 1403-01-18 | CO25: 1403-03-20 | DD25: از برگ مطالبه | DP25: جراائم ماده 169
F26: * | H26: دلایل ابرازی موضوع ماده 191 قانون مالیاتهای مستقیم مبنی بر خارج از اختیار بودن عدم انجام تکالیف قانونی: عدم آشنایی با قوانین مالیاتی و خوش حسابی در پرداخت اصل مالیات
F29: مهر و امضای کارشناس ارشد مالیاتی | CV29: مهر و امضای رئیس گروه مالیاتی
E31: رئیس گروه مالیاتی | AA31: ...................
E32: پس از وصول مبلغ | T32: .................... | AL32: ریال با بخشودگی مبلغ | BD32: .................... | BU32: ریال از جرایم مالیاتی مودی فوق الذکر به میزان | DD32: ........ | DK32: درصد موافقت می گردد.
AP33: *********************************************************
E34: اداره کل امور مالیاتی | AA34: =T7 -> استان اردبیل
E35: با احترام پیشنهاد رئیس گروه مالیاتی شماره | AN35: =AA31 -> ................... | AY35: با نظر موافق مبنی بر بخشودگی جرائم پس از وصول مبلغ | CO35: ...................... | DM35: ریال از جریمه/جرایم فوق
